Workbook

Sheet NOMBRE (hidden)
A1: DATOS DEL ESTABLECIMIENTO | C1: CÓDIGOS
A2: NOMBRE DE COMUNA | I2: =IF(OR(NOMBRE!C2="",NOMBRE!D2="",NOMBRE!E2="",NOMBRE!F2="",NOMBRE!G2=""),"Falta Cód. Com.","") -> Falta Cód. Com. | AG2: =IF(I2>"",1,0) -> 1
A3: NOMBRE ESTABLECIMIENTO/ESTRATEGIA | I3: =IF(OR(NOMBRE!C3="",NOMBRE!D3="",NOMBRE!E3="",NOMBRE!F3="",NOMBRE!G3="",NOMBRE!H3=""),"Falta Cód. Est.","") -> Falta Cód. Est. | AG3: =IF(I3>"",1,0) -> 1
A4: TIPO DE ESTABLECIMIENTO/ESTRATEGIA | I4: =IF(OR(NOMBRE!B4=""),"Falta Tipo. Est.","") -> Falta Tipo. Est. | AG4: =IF(I4>"",1,0) -> 1
A5: DEPENDENCIA | I5: =IF(OR(NOMBRE!B5=""),"Falta Dependencia. Est.","") -> Falta Dependencia. Est. | AG5: =IF(I5>"",1,0) -> 1
A6: MES: | I6: =IF(OR(NOMBRE!C6="",NOMBRE!D6=""),"Falta Cód. Mes.","") -> Falta Cód. Mes. | AG6: =IF(I6>"",1,0) -> 1
A7: AÑO: | B7: 2023 | AG7: =SUM(AG2:AG6) -> 5
A9: Versión 1.4: Mayo 2023 | G9: Para habilitar el contenido de las celdas "Tipo de Establecimiento", "Dependencia" y "Mes", presione el boton "Verificar Habilitacion de Macros". Para poder tener un 100% de funcionalidad debe hablitar la opcion Macros en esta planilla.
A11: Director Servicio de Salud o Director Establecimiento | AA11: ENERO | AB11: Establecimiento de Mayor Complejidad (EMAYC) | AC11: SERVICIO DE SALUD
A12: Jefe de Estadísticas | AA12: FEBRERO | AB12: Establecimiento de Mediana Complejidad (EMEDC) | AC12: MUNICIPAL
AA13: MARZO | AB13: Establecimiento de Menor Complejidad (EMENC) | AC13: OTRA INSTITUCION (Delegado)
AA14: ABRIL | AB14: Centros de Diagnóstico Terapeutico (CDT)
A15: MINSAL - DEIS | AA15: MAYO | AB15: Centro de Referencia de Salud (CRS)
AA16: JUNIO | AB16: Consultorio General Urbano (CGU)
B17: SERIE A | G17: ESTADO MACROS: | AA17: JULIO | AB17: Consultorio General Urbano (CGU) - CESFAM
I18: HABILITADO | AA18: AGOSTO | AB18: Consultorio General Urbano(CGU) con SAPU/SUR/SAR
AA19: SEPTIEMBRE | AB19: Consultorio General Urbano (CGU) - CESFAM con SAPU/SAR
AA20: OCTUBRE | AB20: Consultorio General Rural (CGR)
AA21: NOVIEMBRE | AB21: Consultorio General Rural (CGR) - CESFAM
AA22: DICIEMBRE | AB22: Consultorio General Rural (CGR) con SAPU/SAR/SUR
AB23: Consultorio General Rural (CGR) - CESFAM con SAPU/SAR/SUR
AB24: Posta de Salud Rural (PSR)
AB25: Centro Comunitario de Salud Familiar (CECOF)
AB26: Consultorio de Salud Mental (COSAM)
AB27: Programa de Reparación y Atención Integral de Salud (PRAIS)
AB28: Centro de Atención Funcionarios (CAF)
AB29: Unidad de Salud de Funcionarios (USF)
AB30: ClÍnica Dental Móvil (CDM)
AB31: Dirección Servicio de Salud (DSS)
AB32: Servicio de Atención Primaria de Urgencia (SAPU)
AB33: Servicio de Atención Primaria de Urgencia de Alta Resolutividad (SAR)
AB34: Servicio de Urgencia Rural (SUR)
AB35: Laboratorio Clínico o Dental
AB36: Servicio de Atención Primaria de Urgencia Dental (SAPUDENT)
AB37: Centro de Rehabilitación (CR)
AB38: Hospital de Campaña
AB39: Centro Oncologico
AB40: SAMU

Sheet Filtro
A1: Establecimiento | B1: (Todas)
A2: Comuna | B2: (Todas)
A3: Mes | B3: (Todas)
A5: Etiquetas de fila | B5: Suma de Col01 | C5: Suma de Col02 | D5: Suma de Col03 | E5: Suma de Col04 | F5: Suma de Col05 | G5: Suma de Col06 | H5: Suma de Col07 | I5: Suma de Col08 | J5: Suma de Col09 | K5: Suma de Col10 | L5: Suma de Col11 | M5: Suma de Col12 | N5: Suma de Col13 | O5: Suma de Col14 | P5: Suma de Col15 | Q5: Suma de Col16 | R5: Suma de Col17 | S5: Suma de Col18 | T5: Suma de Col19 | U5: Suma de Col20 | V5: Suma de Col21 | W5: Suma de Col22 | X5: Suma de Col23 | Y5: Suma de Col24 | Z5: Suma de Col25 | AA5: Suma de Col26 | AB5: Suma de Col27 | AC5: Suma de Col28 | AD5: Suma de Col29 | AE5: Suma de Col30 | AF5: Suma de Col31 | AG5: Suma de Col32 | AH5: Suma de Col33 | AI5: Suma de Col34 | AJ5: Suma de Col35 | AK5: Suma de Col36 | AL5: Suma de Col37 | AM5: Suma de Col38 | AN5: Suma de Col39 | AO5: Suma de Col40 | AP5: Suma de Col41 | AQ5: Suma de col42 | AR5: Suma de col43 | AS5: Suma de col44 | AT5: Suma de col45 | AU5: Suma de col46 | AV5: Suma de col47 | AW5: Suma de col48
A6: 01010101 | B6: 7 | E6: 0 | F6: 0 | G6: 0 | H6: 4 | I6: 2 | J6: 0 | K6: 1 | L6: 0 | M6: 0 | N6: 0 | T6: 0 | U6: 7 | X6: 0 | Y6: 0 | Z6: 0 | AA6: 0 | AB6: 0
A7: 01010103 | B7: 1261 | E7: 3 | F7: 52 | G7: 200 | H7: 348 | I7: 329 | J7: 224 | K7: 89 | L7: 16 | M7: 0 | N7: 0 | T7: 7 | U7: 1240 | X7: 11 | Y7: 0 | Z7: 0 | AA7: 10 | AB7: 50
A8: 01010201 | B8: 240 | E8: 0 | F8: 15 | G8: 55 | H8: 59 | I8: 56 | J8: 43 | K8: 4 | L8: 3 | M8: 3 | N8: 2 | U8: 242 | V8: 13 | Y8: 0 | Z8: 0 | AA8: 2 | AB8: 1
A9: 01010203 | B9: 30956 | E9: 93 | F9: 1776 | G9: 6922 | H9: 9112 | I9: 7980 | J9: 3923 | K9: 1100 | L9: 47 | M9: 2 | N9: 1 | U9: 30667 | V9: 8657 | Y9: 30 | Z9: 33 | AA9: 342 | AB9: 2220
A10: 01010401 | B10: 1 | E10: 1 | F10: 0 | G10: 0 | H10: 0 | I10: 0 | J10: 0 | K10: 0 | L10: 0 | M10: 0 | N10: 0 | O10: 0 | P10: 0 | Q10: 0 | R10: 0 | S10: 0 | T10: 0 | U10: 8 | X10: 8 | Y10: 8 | Z10: 8 | AA10: 4 | AB10: 8
A11: 01010403 | B11: 59796 | E11: 1361 | F11: 8714 | G11: 10230 | H11: 10598 | I11: 9640 | J11: 7498 | K11: 5874 | L11: 4236 | M11: 1437 | N11: 142 | O11: 44 | P11: 15 | Q11: 4 | R11: 1 | S11: 2 | T11: 385 | U11: 58716 | X11: 1321 | Y11: 46 | Z11: 33 | AA11: 407 | AB11: 1203
A12: 01010601 | B12: 1119 | E12: 33 | F12: 68 | G12: 62 | H12: 77 | I12: 141 | J12: 142 | K12: 156 | L12: 115 | M12: 100 | N12: 99 | O12: 38 | P12: 38 | Q12: 24 | R12: 17 | S12: 9 | U12: 1194 | X12: 0 | Y12: 0 | Z12: 0 | AA12: 0 | AB12: 45
A13: 01010603 | B13: 41561 | E13: 249 | F13: 555 | G13: 1841 | H13: 3454 | I13: 4221 | J13: 4366 | K13: 4894 | L13: 5032 | M13: 5145 | N13: 4711 | O13: 3859 | P13: 1946 | Q13: 812 | R13: 329 | S13: 147 | U13: 40982 | X13: 36 | Y13: 7 | Z13: 1 | AA13: 168 | AB13: 1342
A14: 01010901 | B14: 364 | L14: 114 | M14: 114 | N14: 94 | O14: 42 | U14: 364 | AA14: 4 | AB14: 9
A15: 01010903 | B15: 3183 | L15: 860 | M15: 1229 | N15: 709 | O15: 385 | U15: 3194 | AA15: 45 | AB15: 116
A16: 01030100 | B16: 2282 | C16: 8 | D16: 163 | E16: 1755 | F16: 355 | G16: 10 | H16: 11 | I16: 20 | J16: 155 | K16: 1366 | L16: 1569 | M16: 164 | N16: 4 | O16: 11 | P16: 764 | Q16: 658 | R16: 68 | S16: 1947 | T16: 34 | U16: 274 | V16: 1688 | W16: 1 | X16: 86 | Y16: 236 | Z16: 0 | AA16: 0
A17: 01030100A | B17: 99 | C17: 40 | D17: 59 | AE17: 9 | AF17: 13 | AG17: 12 | AH17: 12 | AI17: 8 | AJ17: 19 | AK17: 11 | AL17: 15 | AM17: 8 | AN17: 8
A18: 01030200B | B18: 1297 | C18: 497 | D18: 800 | AE18: 103 | AF18: 195 | AG18: 145 | AH18: 231 | AI18: 123 | AJ18: 185 | AK18: 126 | AL18: 189 | AM18: 9 | AN18: 9
A19: 01030300 | B19: 920 | C19: 1 | D19: 10 | E19: 621 | F19: 269 | G19: 0 | H19: 1 | I19: 2 | J19: 16 | K19: 654 | L19: 881 | M19: 4 | N19: 0 | O19: 18 | P19: 5 | Q19: 15 | R19: 2 | S19: 55 | T19: 18 | U19: 727 | V19: 607 | W19: 0 | X19: 23 | Y19: 70 | Z19: 0 | AA19: 0
A20: 01030300C | B20: 96 | C20: 46 | D20: 50 | AE20: 10 | AF20: 15 | AG20: 13 | AH20: 10 | AI20: 11 | AJ20: 11 | AK20: 12 | AL20: 14 | AM20: 9 | AN20: 8
A21: 01030400 | B21: 491 | C21: 491 | K21: 9 | L21: 299 | M21: 20 | N21: 265 | O21: 354
A22: 01030400D | B22: 595 | C22: 220 | D22: 375 | AE22: 28 | AF22: 39 | AG22: 43 | AH22: 87 | AI22: 45 | AJ22: 75 | AK22: 104 | AL22: 174 | AM22: 14 | AN22: 8
A23: 01030500 | B23: 820 | C23: 310 | D23: 510 | E23: 29 | F23: 21 | G23: 853 | H23: 259 | I23: 594 | J23: 36 | K23: 37 | L23: 9 | M23: 40
A24: 01030600 | B24: 2955 | C24: 1305 | D24: 1650 | E24: 193 | F24: 142 | G24: 1244 | H24: 439 | I24: 805 | J24: 99 | K24: 73 | L24: 49 | M24: 62
A25: 01030700 | B25: 3032 | C25: 1446 | D25: 1586 | E25: 114 | F25: 104 | G25: 812 | H25: 369 | I25: 443 | J25: 52 | K25: 26 | L25: 3 | M25: 4
A26: 01030800 | B26: 246 | C26: 112 | D26: 134 | E26: 8 | F26: 4 | G26: 71 | H26: 43 | I26: 29 | J26: 6 | K26: 0 | L26: 40 | M26: 92
A27: 01031000 | B27: 375 | C27: 161 | D27: 214 | E27: 0 | F27: 1 | G27: 0 | H27: 0
A28: 01031100 | B28: 569 | C28: 282 | D28: 287 | E28: 4 | F28: 5 | G28: 1 | H28: 0
A29: 01031200 | B29: 700 | C29: 324 | D29: 376 | E29: 0 | F29: 6 | G29: 0 | H29: 0
A30: 01031300 | B30: 762 | C30: 369 | D30: 393 | E30: 4 | F30: 2 | G30: 0 | H30: 0
A31: 01031400 | B31: 695 | C31: 330 | D31: 365 | E31: 3 | F31: 0 | G31: 1 | H31: 0
A32: 01031900 | C32: 0 | G32: 1
A33: 01060100 | B33: 4694 | C33: 3 | D33: 17 | E33: 25 | F33: 75 | G33: 225 | H33: 817 | I33: 3148 | J33: 384 | K33: 82
A34: 01080003 | B34: 21 | C34: 2 | D34: 1 | E34: 8 | F34: 10 | G34: 0 | H34: 0 | I34: 0 | J34: 0 | K34: 0 | L34: 0 | M34: 0
A35: 01080004 | B35: 349 | C35: 12 | D35: 75 | E35: 57 | F35: 185 | G35: 0 | H35: 3 | I35: 4 | J35: 13 | K35: 0 | L35: 8 | M35: 14
A36: 01080008 | B36: 5001 | C36: 13 | D36: 295 | E36: 1120 | F36: 1513 | G36: 1221 | H36: 654 | I36: 181 | J36: 5 | K36: 0 | L36: 0 | M36: 105 | N36: 282 | O36: 628 | P36: 233 | Q36: 503
A37: 01080009 | B37: 4259 | C37: 10 | D37: 241 | E37: 958 | F37: 1287 | G37: 1057 | H37: 553 | I37: 148 | J37: 5 | K37: 0 | L37: 0 | M37: 72 | N37: 235 | O37: 435 | P37: 157 | Q37: 399
A38: 01080010 | B38: 1752 | C38: 12 | D38: 262 | E38: 635 | F38: 501 | G38: 238 | H38: 93 | I38: 11 | J38: 0 | K38: 0 | L38: 0 | M38: 33 | N38: 109 | O38: 212 | P38: 84 | Q38: 161
A39: 01080011 | B39: 880 | C39: 21 | D39: 107 | E39: 153 | F39: 199 | G39: 182 | H39: 109 | I39: 68 | J39: 28 | K39: 13 | L39: 0 | P39: 12 | Q39: 273 | R39: 3 | S39: 34 | T39: 1
A40: 01080013 | B40: 623 | C40: 27 | D40: 153 | E40: 83 | F40: 111 | G40: 94 | H40: 61 | I40: 43 | J40: 27 | K40: 21 | L40: 3 | P40: 46 | Q40: 122 | R40: 5 | S40: 24 | T40: 1
A41: 01080014 | B41: 413 | C41: 76 | D41: 266 | E41: 16 | F41: 12 | G41: 16 | H41: 11 | I41: 7 | J41: 2 | K41: 5 | L41: 2 | P41: 190 | Q41: 7 | R41: 3 | S41: 13 | T41: 0
A42: 01080016 | B42: 315
A43: 01080017 | B43: 63 | C43: 1 | D43: 1 | E43: 9
A44: 01080018 | B44: 82 | C44: 0 | D44: 0 | E44: 1
A45: 01080019 | B45: 853 | C45: 5 | D45: 30 | E45: 86
A46: 01080020 | B46: 5646
A47: 01080021 | B47: 3607 | C47: 294 | D47: 1041 | E47: 721 | F47: 569 | G47: 462 | H47: 319 | I47: 141 | J47: 51 | K47: 9 | L47: 0 | P47: 214 | Q47: 611 | R47: 33 | S47: 135 | T47: 4
A48: 01080022 | B48: 1384 | C48: 7 | D48: 92 | E48: 191 | F48: 246 | G48: 257 | H48: 198 | I48: 190 | J48: 161 | K48: 41 | L48: 1 | P48: 9 | Q48: 341 | R48: 8 | S48: 40 | T48: 2
A49: 01080023 | B49: 1606 | C49: 76 | D49: 468 | E49: 380 | F49: 288 | G49: 203 | H49: 113 | I49: 62 | J49: 16 | K49: 0 | L49: 0 | P49: 98 | Q49: 405 | R49: 14 | S49: 70 | T49: 5
A50: 01080030 | B50: 5 | E50: 0 | F50: 0 | G50: 1 | H50: 2 | I50: 2 | J50: 0 | K50: 0 | L50: 0 | M50: 0 | N50: 0 | U50: 10 | V50: 1 | W50: 8 | Y50: 0 | Z50: 0 | AA50: 0 | AB50: 3
A51: 01080040 | B51: 1347 | E51: 1 | F51: 84 | G51: 266 | H51: 390 | I51: 349 | J51: 192 | K51: 63 | L51: 1 | M51: 0 | N51: 1 | U51: 1313 | V51: 194 | W51: 456 | Y51: 3 | Z51: 0 | AA51: 13 | AB51: 61
A52: 01080090 | B52: 1317
A53: 01090040 | B53: 16 | C53: 1 | D53: 0 | E53: 4
A54: 01090050 | B54: 2714 | C54: 11 | D54: 230 | E54: 705 | F54: 769 | G54: 573 | H54: 315 | I54: 109 | J54: 2 | K54: 0 | L54: 0 | M54: 64 | N54: 147 | O54: 327 | P54: 107 | Q54: 187
A55: 01090060 | B55: 4054 | C55: 140 | D55: 685 | E55: 841 | F55: 815 | G55: 657 | H55: 419 | I55: 297 | J55: 160 | K55: 39 | L55: 1 | P55: 150 | Q55: 688 | R55: 36 | S55: 210 | T55: 2
A56: 01110106 | B56: 38 | F56: 2 | G56: 8 | H56: 10 | I56: 7 | J56: 6 | K56: 5 | U56: 35 | V56: 1 | W56: 19 | Y56: 0 | Z56: 0 | AA56: 1 | AB56: 4
A57: 01110107 | B57: 2626 | E57: 6 | F57: 140 | G57: 523 | H57: 772 | I57: 706 | J57: 364 | K57: 109 | L57: 5 | M57: 0 | N57: 1 | U57: 2588 | V57: 470 | W57: 1206 | Y57: 2 | Z57: 1 | AA57: 22 | AB57: 170
A58: 01200010 | B58: 50 | C58: 15 | D58: 35 | E58: 0 | F58: 0 | G58: 0 | H58: 0 | I58: 0 | J58: 0 | K58: 1 | L58: 1 | M58: 1 | N58: 1 | O58: 1 | P58: 0 | Q58: 1 | R58: 1 | S58: 1 | T58: 0 | U58: 0 | V58: 0 | W58: 0 | X58: 1 | Y58: 0 | Z58: 2 | AA58: 1 | AB58: 4 | AC58: 0 | AD58: 9 | AE58: 2 | AF58: 5 | AG58: 4 | AH58: 5 | AI58: 2 | AJ58: 2 | AK58: 1 | AL58: 4 | AM58: 0 | AN58: 0
A59: 01200020 | B59: 222 | C59: 68 | D59: 154 | E59: 0 | F59: 0 | G59: 2 | H59: 1 | I59: 0 | J59: 4 | K59: 0 | L59: 1 | M59: 0 | N59: 2 | O59: 0 | P59: 4 | Q59: 2 | R59: 4 | S59: 1 | T59: 10 | U59: 0 | V59: 17 | W59: 1 | X59: 7 | Y59: 2 | Z59: 12 | AA59: 8 | AB59: 16 | AC59: 16 | AD59: 12 | AE59: 11 | AF59: 20 | AG59: 10 | AH59: 17 | AI59: 8 | AJ59: 13 | AK59: 7 | AL59: 14 | AM59: 6 | AN59: 2
A60: 01200030 | B60: 219 | C60: 45 | D60: 174 | E60: 0 | F60: 1 | G60: 0 | H60: 0 | I60: 0 | J60: 0 | K60: 2 | L60: 3 | M60: 9 | N60: 51 | O60: 7 | P60: 30 | Q60: 7 | R60: 24 | S60: 9 | T60: 17 | U60: 6 | V60: 17 | W60: 3 | X60: 6 | Y60: 1 | Z60: 10 | AA60: 0 | AB60: 5 | AC60: 0 | AD60: 1 | AE60: 1 | AF60: 2 | AG60: 0 | AH60: 1 | AI60: 0 | AJ60: 5 | AK60: 0 | AL60: 1 | AM60: 1 | AN60: 17
A61: 01200031 | B61: 76 | C61: 47 | D61: 29 | E61: 30 | F61: 19 | G61: 10 | H61: 6 | I61: 5 | J61: 3 | K61: 2 | L61: 1 | AM61: 0 | AN61: 0
A62: 01200032 | B62: 676 | C62: 428 | D62: 248 | E62: 284 | F62: 175 | G62: 107 | H62: 50 | I62: 25 | J62: 16 | K62: 12 | L62: 9 | AM62: 2 | AN62: 0
A63: 01200033 | B63: 7 | C63: 2 | D63: 5 | E63: 1 | F63: 3 | G63: 1 | H63: 1 | I63: 0 | J63: 1 | K63: 0 | L63: 0 | AM63: 0 | AN63: 0
A64: 01200034 | B64: 180 | C64: 126 | D64: 54 | E64: 82 | F64: 36 | G64: 25 | H64: 15 | I64: 15 | J64: 2 | K64: 4 | L64: 1 | AM64: 0 | AN64: 1
A65: 01501010 | B65: 363 | C65: 122 | D65: 241 | E65: 2 | F65: 0 | G65: 2 | H65: 1 | I65: 4 | J65: 1 | K65: 5 | L65: 6 | M65: 1 | N65: 11 | O65: 5 | P65: 16 | Q65: 7 | R65: 21 | S65: 17 | T65: 26 | U65: 15 | V65: 37 | W65: 21 | X65: 32 | Y65: 14 | Z65: 32 | AA65: 8 | AB65: 14 | AC65: 8 | AD65: 20 | AE65: 13 | AF65: 24 | AG65: 0 | AH65: 0
A66: 01501020 | B66: 316 | C66: 104 | D66: 212 | E66: 1 | F66: 0 | G66: 0 | H66: 1 | I66: 3 | J66: 3 | K66: 0 | L66: 0 | M66: 2 | N66: 5 | O66: 2 | P66: 9 | Q66: 9 | R66: 13 | S66: 7 | T66: 9 | U66: 13 | V66: 46 | W66: 17 | X66: 27 | Y66: 17 | Z66: 22 | AA66: 19 | AB66: 25 | AC66: 7 | AD66: 15 | AE66: 7 | AF66: 37 | AG66: 0 | AH66: 0
A67: 01501030 | B67: 1159 | C67: 379 | D67: 780 | E67: 0 | F67: 0 | G67: 0 | H67: 2 | I67: 0 | J67: 1 | K67: 0 | L67: 3 | M67: 5 | N67: 9 | O67: 2 | P67: 12 | Q67: 12 | R67: 25 | S67: 19 | T67: 51 | U67: 24 | V67: 94 | W67: 47 | X67: 112 | Y67: 100 | Z67: 140 | AA67: 60 | AB67: 126 | AC67: 50 | AD67: 98 | AE67: 60 | AF67: 107 | AG67: 2 | AH67: 0
A68: 01501040 | B68: 1399 | C68: 414 | D68: 985 | E68: 0 | F68: 0 | G68: 0 | H68: 4 | I68: 0 | J68: 0 | K68: 2 | L68: 3 | M68: 0 | N68: 11 | O68: 0 | P68: 19 | Q68: 3 | R68: 13 | S68: 11 | T68: 91 | U68: 22 | V68: 125 | W68: 65 | X68: 176 | Y68: 116 | Z68: 214 | AA68: 86 | AB68: 157 | AC68: 49 | AD68: 80 | AE68: 60 | AF68: 92 | AG68: 2 | AH68: 2
A69: 01501050 | B69: 4 | E69: 0 | F69: 0 | G69: 3 | H69: 0 | I69: 0 | J69: 1 | K69: 0 | L69: 0 | M69: 0 | N69: 0 | U69: 4 | Y69: 0 | Z69: 0 | AA69: 0 | AB69: 0
A70: 01501060 | B70: 344 | E70: 0 | F70: 11 | G70: 78 | H70: 87 | I70: 91 | J70: 56 | K70: 19 | L70: 1 | M70: 0 | N70: 1 | U70: 345 | Y70: 1 | Z70: 0 | AA70: 2 | AB70: 21
A71: 01501070 | B71: 4 | E71: 0 | F71: 0 | G71: 1 | H71: 1 | I71: 0 | J71: 2 | K71: 0 | L71: 0 | M71: 0 | N71: 0 | U71: 4 | Y71: 0 | Z71: 0 | AA71: 0 | AB71: 0
A72: 01501080 | B72: 146 | E72: 0 | F72: 8 | G72: 28 | H72: 25 | I72: 41 | J72: 30 | K72: 12 | L72: 2 | M72: 0 | N72: 0 | U72: 140 | Y72: 0 | Z72: 0 | AA72: 3 | AB72: 9
A73: 01502000 | B73: 969 | C73: 969 | T73: 427 | U73: 520 | V73: 234 | W73: 472 | X73: 0 | Y73: 1 | Z73: 0 | AA73: 2 | AB73: 11
A74: 01502010 | B74: 1 | C74: 1 | U74: 1 | V74: 0 | W74: 0 | X74: 0 | Y74: 0 | Z74: 0 | AA74: 0 | AB74: 0
A75: 01502020 | B75: 436 | C75: 436 | T75: 194 | U75: 235 | V75: 72 | W75: 129 | X75: 1 | Y75: 3 | Z75: 1 | AA75: 1 | AB75: 8
A76: 01502040 | B76: 5 | C76: 0 | D76: 5 | E76: 0 | F76: 0 | G76: 0 | H76: 0 | I76: 0 | J76: 1 | K76: 0 | L76: 0 | M76: 0 | N76: 0 | O76: 0 | P76: 0 | Q76: 0 | R76: 1 | S76: 0 | T76: 0 | U76: 0 | V76: 0 | W76: 0 | X76: 0 | Y76: 0 | Z76: 0 | AA76: 0 | AB76: 0 | AC76: 0 | AD76: 3 | AE76: 0 | AF76: 0 | AG76: 0 | AH76: 0
A77: 02010101 | B77: 13784 | C77: 6369 | D77: 7406 | E77: 162 | F77: 3685 | G77: 317 | H77: 3599 | I77: 301 | J77: 61 | K77: 40 | L77: 71 | M77: 140 | N77: 52 | O77: 129 | P77: 136 | Q77: 171 | R77: 961 | S77: 311 | T77: 175 | U77: 42 | V77: 59 | W77: 76 | X77: 101 | Y77: 127 | Z77: 180 | AA77: 211 | AB77: 372 | AC77: 401 | AD77: 578 | AE77: 432 | AF77: 350 | AG77: 544 | AH77: 1746 | AI77: 11 | AJ77: 45 | AK77: 47 | AL77: 73 | AM77: 563
A78: 02010103 | B78: 16370 | C78: 3247 | D78: 13005 | E78: 3110 | S78: 2391 | T78: 2374 | U78: 1078 | V78: 1381 | W78: 1320 | X78: 1138 | Y78: 964 | Z78: 877 | AA78: 674 | AB78: 497 | AC78: 344 | AD78: 157 | AE78: 41 | AF78: 16 | AG78: 8 | AH78: 1388 | AJ78: 13 | AK78: 18 | AL78: 110 | AM78: 275
A79: 02010105 | B79: 20 | C79: 11 | D79: 8 | M79: 1 | N79: 1 | O79: 4 | P79: 0 | Q79: 2 | R79: 12 | AI79: 4 | AJ79: 2 | AK79: 0 | AL79: 1 | AM79: 42
A80: 02010201 | B80: 77910 | C80: 36477 | D80: 40540 | E80: 95 | F80: 71 | G80: 4098 | H80: 229 | I80: 4017 | J80: 300 | K80: 3971 | L80: 4807 | M80: 4999 | N80: 4216 | O80: 9566 | P80: 4434 | Q80: 4144 | R80: 10173 | S80: 4490 | T80: 1290 | U80: 465 | V80: 594 | W80: 648 | X80: 660 | Y80: 676 | Z80: 776 | AA80: 850 | AB80: 990 | AC80: 1099 | AD80: 2655 | AE80: 2596 | AF80: 2193 | AG80: 2862 | AH80: 3763 | AI80: 3166 | AJ80: 316 | AK80: 177 | AL80: 889 | AM80: 1255
A81: 02010320 | B81: 10446 | C81: 5041 | D81: 5405 | E81: 58 | F81: 55 | G81: 1881 | H81: 1917 | I81: 378 | J81: 388 | K81: 1521 | L81: 1637 | M81: 1108 | N81: 1310 | O81: 95 | P81: 98 | Q81: 41 | R81: 59
A82: 02010321 | B82: 1033 | C82: 635 | D82: 398 | E82: 10 | F82: 7 | G82: 93 | H82: 74 | I82: 50 | J82: 15 | K82: 240 | L82: 164 | M82: 235 | N82: 134 | O82: 7 | P82: 4 | Q82: 1 | R82: 8
A83: 02010322 | B83: 337 | C83: 232 | D83: 105 | E83: 1 | F83: 1 | G83: 18 | H83: 15 | I83: 10 | J83: 3 | K83: 108 | L83: 49 | M83: 87 | N83: 33 | O83: 8 | P83: 4 | Q83: 0 | R83: 2
A84: 02010420 | B84: 391 | C84: 227 | D84: 164 | E84: 2 | F84: 1 | G84: 22 | H84: 20 | I84: 21 | J84: 12 | K84: 107 | L84: 73 | M84: 63 | N84: 50 | O84: 12 | P84: 8 | Q84: 0 | R84: 1
A85: 02010421 | B85: 91 | C85: 62 | D85: 29 | E85: 0 | F85: 0 | G85: 6 | H85: 1 | I85: 11 | J85: 3 | K85: 25 | L85: 14 | M85: 16 | N85: 11 | O85: 4 | P85: 0 | Q85: 0 | R85: 0
A86: 02010422 | B86: 30 | C86: 25 | D86: 5 | E86: 0 | F86: 0 | G86: 1 | H86: 0 | I86: 0 | J86: 0 | K86: 11 | L86: 3 | M86: 10 | N86: 2 | O86: 3 | P86: 0 | Q86: 0 | R86: 0
A87: 02021730 | B87: 10976 | C87: 5465 | D87: 5511 | E87: 3 | F87: 14 | G87: 63 | H87: 60 | I87: 4 | J87: 10 | K87: 73 | L87: 99 | M87: 1834 | N87: 1914 | O87: 75 | P87: 77 | Q87: 14 | R87: 18 | S87: 65 | T87: 59 | U87: 1843 | V87: 1751 | W87: 1491 | X87: 1519
A88: 02021740 | B88: 13817 | C88: 7115 | D88: 6702 | E88: 79 | F88: 68 | G88: 2142 | H88: 2144 | I88: 543 | J88: 482 | K88: 2296 | L88: 2093 | M88: 1886 | N88: 1802 | O88: 177 | P88: 129 | Q88: 59 | R88: 76
A89: 02021760 | B89: 3674 | C89: 1822 | D89: 1852 | E89: 1516 | F89: 1523 | G89: 306 | H89: 329
A90: 02021790 | B90: 933 | C90: 519 | D90: 414 | E90: 19 | F90: 19 | G90: 71 | H90: 83 | I90: 63 | J90: 34 | K90: 142 | L90: 101 | M90: 212 | N90: 176 | O90: 13 | P90: 1
A91: 02021810 | B91: 982 | C91: 616 | D91: 366 | E91: 8 | F91: 7 | G91: 80 | H91: 67 | I91: 60 | J91: 24 | K91: 221 | L91: 135 | M91: 233 | N91: 128 | O91: 14 | P91: 5
A92: 02021820 | B92: 316 | C92: 228 | D92: 88 | E92: 1 | F92: 1 | G92: 13 | H92: 10 | I92: 14 | J92: 4 | K92: 94 | L92: 42 | M92: 91 | N92: 28 | O92: 15 | P92: 3
A93: 02021830 | B93: 4649 | C93: 1298 | D93: 1053 | E93: 106
A94: 02200010 | B94: 12790 | C94: 4869 | D94: 7921 | E94: 17 | F94: 33 | G94: 466 | H94: 787 | I94: 570 | J94: 903 | K94: 557 | L94: 1100 | M94: 535 | N94: 1027 | O94: 563 | P94: 947 | Q94: 455 | R94: 853 | S94: 466 | T94: 712 | U94: 389 | V94: 466 | W94: 252 | X94: 329 | Y94: 217 | Z94: 328 | AA94: 178 | AB94: 221 | AC94: 120 | AD94: 114 | AE94: 84 | AF94: 102 | AG94: 29 | AH94: 68
A95: 02200020 | B95: 11887 | C95: 5182 | D95: 6705 | E95: 23 | F95: 27 | G95: 157 | H95: 152 | I95: 185 | J95: 166 | K95: 211 | L95: 248 | M95: 241 | N95: 315 | O95: 287 | P95: 384 | Q95: 337 | R95: 449 | S95: 411 | T95: 509 | U95: 422 | V95: 382 | W95: 334 | X95: 354 | Y95: 684 | Z95: 918 | AA95: 660 | AB95: 900 | AC95: 594 | AD95: 809 | AE95: 636 | AF95: 1092 | AG95: 39 | AH95: 78
A96: 02200030 | B96: 9982 | C96: 3458 | D96: 6524 | E96: 11 | F96: 13 | G96: 170 | H96: 435 | I96: 193 | J96: 500 | K96: 252 | L96: 607 | M96: 279 | N96: 653 | O96: 279 | P96: 574 | Q96: 280 | R96: 587 | S96: 320 | T96: 534 | U96: 299 | V96: 464 | W96: 237 | X96: 364 | Y96: 344 | Z96: 554 | AA96: 302 | AB96: 444 | AC96: 233 | AD96: 375 | AE96: 259 | AF96: 420 | AG96: 41 | AH96: 146
A97: 02200040 | B97: 3773 | C97: 1244 | D97: 2529 | E97: 3 | F97: 3 | G97: 21 | H97: 45 | I97: 42 | J97: 80 | K97: 59 | L97: 115 | M97: 55 | N97: 132 | O97: 99 | P97: 182 | Q97: 111 | R97: 222 | S97: 95 | T97: 223 | U97: 116 | V97: 194 | W97: 82 | X97: 159 | Y97: 176 | Z97: 381 | AA97: 152 | AB97: 314 | AC97: 127 | AD97: 226 | AE97: 106 | AF97: 253 | AG97: 19 | AH97: 22
A98: 03010501 | B98: 106761 | C98: 36952 | D98: 70152 | K98: 67 | L98: 113 | M98: 117 | N98: 263 | O98: 179 | P98: 471 | Q98: 293 | R98: 871 | S98: 531 | T98: 1491 | U98: 892 | V98: 2479 | W98: 1433 | X98: 3931 | Y98: 2311 | Z98: 5935 | AA98: 3657 | AB98: 8603 | AC98: 5198 | AD98: 10042 | AE98: 6235 | AF98: 10446 | AG98: 5802 | AH98: 9118 | AI98: 4952 | AJ98: 7570 | AK98: 5472 | AL98: 8819 | AM98: 726 | AN98: 649
A99: 03010502 | B99: 46985 | C99: 17010 | D99: 29975 | K99: 32 | L99: 31 | M99: 50 | N99: 87 | O99: 69 | P99: 191 | Q99: 126 | R99: 343 | S99: 219 | T99: 627 | U99: 399 | V99: 1030 | W99: 649 | X99: 1598 | Y99: 1007 | Z99: 2460 | AA99: 1714 | AB99: 3573 | AC99: 2211 | AD99: 4146 | AE99: 2898 | AF99: 4579 | AG99: 2720 | AH99: 3981 | AI99: 2236 | AJ99: 3190 | AK99: 2680 | AL99: 4145 | AM99: 349 | AN99: 302
A100: 03010504 | B100: 44645 | C100: 14690 | D100: 29955 | K100: 33 | L100: 38 | M100: 54 | N100: 124 | O100: 80 | P100: 211 | Q100: 162 | R100: 436 | S100: 222 | T100: 734 | U100: 376 | V100: 1177 | W100: 623 | X100: 1843 | Y100: 935 | Z100: 2646 | AA100: 1415 | AB100: 3849 | AC100: 2011 | AD100: 4325 | AE100: 2428 | AF100: 4435 | AG100: 2343 | AH100: 3732 | AI100: 1828 | AJ100: 3067 | AK100: 2180 | AL100: 3338 | AM100: 730 | AN100: 313
A101: 03010505 | B101: 574 | C101: 245 | D101: 329 | K101: 1 | L101: 0 | M101: 0 | N101: 1 | O101: 2 | P101: 1 | Q101: 3 | R101: 10 | S101: 4 | T101: 5 | U101: 9 | V101: 13 | W101: 23 | X101: 21 | Y101: 10 | Z101: 43 | AA101: 31 | AB101: 37 | AC101: 31 | AD101: 36 | AE101: 31 | AF101: 48 | AG101: 30 | AH101: 39 | AI101: 30 | AJ101: 35 | AK101: 40 | AL101: 40 | AM101: 44 | AN101: 8
A102: 03020101 | B102: 8945 | C102: 3715 | D102: 5230 | E102: 232 | F102: 215 | G102: 840 | H102: 771 | I102: 878 | J102: 920 | K102: 473 | L102: 426 | M102: 182 | N102: 225 | O102: 60 | P102: 134 | Q102: 68 | R102: 194 | S102: 72 | T102: 200 | U102: 73 | V102: 229 | W102: 67 | X102: 190 | Y102: 50 | Z102: 206 | AA102: 61 | AB102: 231 | AC102: 88 | AD102: 256 | AE102: 126 | AF102: 271 | AG102: 114 | AH102: 238 | AI102: 89 | AJ102: 212 | AK102: 100 | AL102: 125 | AM102: 142 | AN102: 187 | AO102: 214 | AP102: 66 | AQ102: 16 | AR102: 34 | AS102: 79
A103: 03020201 | B103: 660 | C103: 328 | D103: 332 | E103: 80 | F103: 71 | G103: 153 | H103: 144 | I103: 95 | J103: 117 | AO103: 28 | AP103: 6 | AQ103: 9 | AR103: 3 | AS103: 37
A104: 03020301 | B104: 977 | C104: 367 | D104: 610 | E104: 8 | F104: 12 | G104: 50 | H104: 48 | I104: 53 | J104: 33 | K104: 19 | L104: 11 | M104: 8 | N104: 11 | O104: 3 | P104: 9 | Q104: 5 | R104: 7 | S104: 6 | T104: 11 | U104: 4 | V104: 18 | W104: 3 | X104: 20 | Y104: 5 | Z104: 18 | AA104: 14 | AB104: 35 | AC104: 14 | AD104: 56 | AE104: 22 | AF104: 60 | AG104: 37 | AH104: 60 | AI104: 28 | AJ104: 47 | AK104: 28 | AL104: 48 | AM104: 60 | AN104: 106 | AO104: 7 | AP104: 2 | AQ104: 0 | AR104: 0 | AS104: 23
A105: 03020401 | B105: 7595 | C105: 3059 | D105: 4536 | E105: 209 | F105: 233 | G105: 647 | H105: 614 | I105: 685 | J105: 674 | K105: 339 | L105: 344 | M105: 144 | N105: 182 | O105: 59 | P105: 132 | Q105: 73 | R105: 195 | S105: 76 | T105: 210 | U105: 73 | V105: 212 | W105: 52 | X105: 158 | Y105: 57 | Z105: 198 | AA105: 55 | AB105: 195 | AC105: 96 | AD105: 224 | AE105: 108 | AF105: 224 | AG105: 112 | AH105: 231 | AI105: 100 | AJ105: 201 | AK105: 76 | AL105: 138 | AM105: 98 | AN105: 171 | AO105: 598 | AP105: 61 | AQ105: 20 | AR105: 15 | AS105: 55
A106: 03020402 | B106: 923 | C106: 343 | D106: 580 | I106: 103 | J106: 67 | K106: 63 | L106: 49 | M106: 34 | N106: 33 | O106: 12 | P106: 20 | Q106: 8 | R106: 25 | S106: 8 | T106: 34 | U106: 1 | V106: 39 | W106: 7 | X106: 18 | Y106: 7 | Z106: 31 | AA106: 10 | AB106: 41 | AC106: 16 | AD106: 49 | AE106: 13 | AF106: 42 | AG106: 20 | AH106: 29 | AI106: 17 | AJ106: 43 | AK106: 12 | AL106: 30 | AM106: 12 | AN106: 30 | AO106: 21 | AP106: 2 | AQ106: 1 | AR106: 3 | AS106: 13
A107: 03020403 | B107: 549 | C107: 246 | D107: 303 | U107: 1 | V107: 1 | W107: 5 | X107: 9 | Y107: 4 | Z107: 12 | AA107: 6 | AB107: 12 | AC107: 5 | AD107: 28 | AE107: 22 | AF107: 29 | AG107: 30 | AH107: 43 | AI107: 42 | AJ107: 36 | AK107: 46 | AL107: 41 | AM107: 85 | AN107: 92 | AO107: 1 | AP107: 2 | AQ107: 0 | AR107: 0 | AS107: 10
A108: 03020501 | B108: 282426 | C108: 106018 | D108: 176408 | E108: 2336 | F108: 2179 | G108: 6631 | H108: 5714 | I108: 8389 | J108: 7607 | K108: 6881 | L108: 6849 | M108: 5434 | N108: 6953 | O108: 3374 | P108: 6898 | Q108: 3501 | R108: 7425 | S108: 3865 | T108: 8766 | U108: 3710 | V108: 9261 | W108: 3957 | X108: 10268 | Y108: 4660 | Z108: 11621 | AA108: 5933 | AB108: 13963 | AC108: 7353 | AD108: 15403 | AE108: 8600 | AF108: 15759 | AG108: 9094 | AH108: 14796 | AI108: 8165 | AJ108: 11838 | AK108: 6464 | AL108: 9428 | AM108: 7671 | AN108: 11680 | AO108: 8942 | AP108: 5004 | AQ108: 710 | AR108: 183 | AS108: 43
A109: 03020604 | B109: 18105 | C109: 6529 | D109: 11576 | E109: 2297 | F109: 2500 | G109: 1762 | H109: 1650 | I109: 591 | J109: 686 | K109: 394 | L109: 587 | M109: 296 | N109: 752 | O109: 69 | P109: 930 | Q109: 58 | R109: 1022 | S109: 57 | T109: 917 | U109: 51 | V109: 567 | W109: 73 | X109: 320 | Y109: 76 | Z109: 272 | AA109: 70 | AB109: 216 | AC109: 79 | AD109: 241 | AE109: 101 | AF109: 204 | AG109: 143 | AH109: 236 | AI109: 151 | AJ109: 158 | AK109: 115 | AL109: 120 | AM109: 146 | AN109: 198 | AO109: 337 | AP109: 282 | AQ109: 509 | AR109: 73 | AS109: 99
A110: 03020702 | B110: 39346 | C110: 17902 | D110: 21444 | E110: 564 | F110: 622 | G110: 1088 | H110: 955 | I110: 498 | J110: 514 | K110: 362 | L110: 403 | M110: 266 | N110: 309 | O110: 158 | P110: 385 | Q110: 250 | R110: 472 | S110: 274 | T110: 643 | U110: 361 | V110: 574 | W110: 350 | X110: 855 | Y110: 604 | Z110: 1116 | AA110: 1030 | AB110: 1481 | AC110: 1504 | AD110: 1820 | AE110: 1773 | AF110: 1814 | AG110: 2687 | AH110: 3064 | AI110: 2366 | AJ110: 2154 | AK110: 1701 | AL110: 1542 | AM110: 2066 | AN110: 2721 | AO110: 880 | AP110: 447 | AQ110: 65 | AR110: 77 | AS110: 6
A111: 03020806 | B111: 54506 | C111: 18771 | D111: 35735 | E111: 933 | F111: 1039 | G111: 1340 | H111: 962 | I111: 1396 | J111: 1165 | K111: 1167 | L111: 1235 | M111: 907 | N111: 1678 | O111: 778 | P111: 2797 | Q111: 949 | R111: 3475 | S111: 1039 | T111: 3609 | U111: 990 | V111: 2821 | W111: 896 | X111: 2379 | Y111: 931 | Z111: 2195 | AA111: 1110 | AB111: 2280 | AC111: 1314 | AD111: 2601 | AE111: 1343 | AF111: 2152 | AG111: 1098 | AH111: 1497 | AI111: 838 | AJ111: 1077 | AK111: 703 | AL111: 999 | AM111: 1080 | AN111: 1891 | AO111: 983 | AP111: 6112 | AQ111: 621 | AR111: 261 | AS111: 474
A112: 03020908 | B112: 11382 | C112: 3717 | D112: 7665 | E112: 55 | F112: 23 | G112: 264 | H112: 148 | I112: 562 | J112: 431 | K112: 770 | L112: 1175 | M112: 556 | N112: 988 | O112: 150 | P112: 459 | Q112: 147 | R112: 537 | S112: 171 | T112: 593 | U112: 154 | V112: 499 | W112: 110 | X112: 419 | Y112: 130 | Z112: 415 | AA112: 85 | AB112: 374 | AC112: 114 | AD112: 376 | AE112: 84 | AF112: 310 | AG112: 99 | AH112: 271 | AI112: 104 | AJ112: 237 | AK112: 71 | AL112: 193 | AM112: 92 | AN112: 217 | AO112: 140 | AP112: 113 | AQ112: 906 | AR112: 52 | AS112: 285
A113: 03021106 | B113: 4896 | C113: 2078 | D113: 2818 | E113: 9 | F113: 4 | G113: 9 | H113: 19 | I113: 21 | J113: 31 | K113: 33 | L113: 66 | M113: 62 | N113: 141 | O113: 92 | P113: 177 | Q113: 110 | R113: 267 | S113: 169 | T113: 284 | U113: 245 | V113: 363 | W113: 297 | X113: 382 | Y113: 384 | Z113: 341 | AA113: 277 | AB113: 292 | AC113: 181 | AD113: 215 | AE113: 189 | AF113: 236 | AG113: 25 | AH113: 81
A114: 03021107 | B114: 2474 | C114: 1096 | D114: 1378 | E114: 2 | F114: 2 | G114: 11 | H114: 7 | I114: 11 | J114: 22 | K114: 17 | L114: 47 | M114: 38 | N114: 57 | O114: 75 | P114: 88 | Q114: 68 | R114: 102 | S114: 98 | T114: 172 | U114: 142 | V114: 202 | W114: 187 | X114: 189 | Y114: 164 | Z114: 178 | AA114: 123 | AB114: 144 | AC114: 85 | AD114: 86 | AE114: 75 | AF114: 82 | AG114: 16 | AH114: 22
A115: 03021108 | B115: 3374 | C115: 1268 | D115: 2106 | E115: 6 | F115: 6 | G115: 13 | H115: 23 | I115: 23 | J115: 35 | K115: 32 | L115: 60 | M115: 48 | N115: 88 | O115: 85 | P115: 141 | Q115: 89 | R115: 190 | S115: 116 | T115: 271 | U115: 158 | V115: 308 | W115: 197 | X115: 340 | Y115: 199 | Z115: 244 | AA115: 147 | AB115: 178 | AC115: 84 | AD115: 127 | AE115: 71 | AF115: 95 | AG115: 15 | AH115: 29
A116: 03030101 | B116: 636 | C116: 245 | D116: 391 | E116: 0 | F116: 1
A117: 03030102 | B117: 46013 | C117: 17359 | D117: 28659 | E117: 125 | F117: 430
A118: 03030103 | B118: 2554 | C118: 181 | D118: 2404 | E118: 8 | F118: 39
A119: 03030104 | B119: 4964 | C119: 1691 | D119: 3283 | E119: 4 | F119: 104
A120: 03030110 | B120: 12818 | C120: 4266 | D120: 8552 | E120: 73 | F120: 238
A121: 03030120 | B121: 26527 | C121: 10069 | D121: 16458 | E121: 53 | F121: 119 | G121: 559 | H121: 1103 | I121: 714 | J121: 1336 | K121: 841 | L121: 1532 | M121: 795 | N121: 1531 | O121: 782 | P121: 1380 | Q121: 713 | R121: 1364 | S121: 750 | T121: 1222 | U121: 701 | V121: 948 | W121: 586 | X121: 669 | Y121: 1012 | Z121: 1485 | AA121: 984 | AB121: 1342 | AC121: 808 | AD121: 1153 | AE121: 785 | AF121: 1293 | AG121: 70 | AH121: 305
A122: 03030130 | B122: 22382 | C122: 6432 | D122: 15950 | E122: 42 | F122: 116 | G122: 351 | H122: 1040 | I122: 490 | J122: 1387 | K122: 574 | L122: 1650 | M122: 539 | N122: 1519 | O122: 566 | P122: 1394 | Q122: 539 | R122: 1239 | S122: 534 | T122: 1132 | U122: 465 | V122: 822 | W122: 338 | X122: 635 | Y122: 669 | Z122: 1675 | AA122: 554 | AB122: 1367 | AC122: 406 | AD122: 963 | AE122: 369 | AF122: 1037 | AG122: 73 | AH122: 253
A123: 03030140 | B123: 22135 | C123: 6594 | D123: 15541 | E123: 61 | F123: 55 | G123: 104 | H123: 66 | I123: 91 | J123: 83 | K123: 110 | L123: 180 | M123: 98 | N123: 259 | O123: 96 | P123: 291 | Q123: 116 | R123: 481 | S123: 154 | T123: 588 | U123: 176 | V123: 683 | W123: 175 | X123: 972 | Y123: 342 | Z123: 1210 | AA123: 506 | AB123: 1703 | AC123: 762 | AD123: 1979 | AE123: 825 | AF123: 1921 | AG123: 947 | AH123: 1740 | AI123: 783 | AJ123: 1443 | AK123: 1248 | AL123: 1887 | AM123: 81 | AN123: 107
A124: 03030150 | B124: 1761 | C124: 491 | D124: 1270 | E124: 9 | F124: 4 | G124: 3 | H124: 2 | I124: 7 | J124: 12 | K124: 6 | L124: 7 | M124: 6 | N124: 23 | O124: 5 | P124: 19 | Q124: 2 | R124: 52 | S124: 14 | T124: 57 | U124: 14 | V124: 81 | W124: 17 | X124: 79 | Y124: 27 | Z124: 122 | AA124: 47 | AB124: 136 | AC124: 58 | AD124: 148 | AE124: 75 | AF124: 139 | AG124: 68 | AH124: 134 | AI124: 50 | AJ124: 114 | AK124: 83 | AL124: 141 | AM124: 8 | AN124: 5
A125: 03030160 | B125: 2669 | C125: 728 | D125: 1941 | E125: 169 | F125: 147 | G125: 74 | H125: 73 | I125: 47 | J125: 59 | K125: 27 | L125: 80 | M125: 35 | N125: 142 | O125: 27 | P125: 138 | Q125: 20 | R125: 154 | S125: 24 | T125: 145 | U125: 33 | V125: 141 | W125: 31 | X125: 149 | Y125: 34 | Z125: 164 | AA125: 38 | AB125: 149 | AC125: 30 | AD125: 136 | AE125: 38 | AF125: 92 | AG125: 35 | AH125: 77 | AI125: 34 | AJ125: 55 | AK125: 32 | AL125: 40 | AM125: 28 | AN125: 56
A126: 03030170 | B126: 177 | C126: 12 | D126: 165 | E126: 3 | F126: 3 | G126: 0 | H126: 1 | I126: 0 | J126: 3 | K126: 0 | L126: 13 | M126: 0 | N126: 24 | O126: 2 | P126: 21 | Q126: 0 | R126: 26 | S126: 0 | T126: 19 | U126: 0 | V126: 8 | W126: 0 | X126: 3 | Y126: 0 | Z126: 8 | AA126: 0 | AB126: 10 | AC126: 1 | AD126: 6 | AE126: 0 | AF126: 2 | AG126: 0 | AH126: 4 | AI126: 1 | AJ126: 3 | AK126: 5 | AL126: 11 | AM126: 0 | AN126: 9
A127: 03030180 | B127: 285 | C127: 128 | D127: 157 | E127: 7 | F127: 3 | G127: 7 | H127: 3 | I127: 3 | J127: 4 | K127: 5 | L127: 2 | M127: 7 | N127: 18 | O127: 3 | P127: 10 | Q127: 6 | R127: 22 | S127: 6 | T127: 15 | U127: 16 | V127: 13 | W127: 13 | X127: 3 | Y127: 5 | Z127: 12 | AA127: 11 | AB127: 14 | AC127: 10 | AD127: 6 | AE127: 10 | AF127: 7 | AG127: 9 | AH127: 5 | AI127: 4 | AJ127: 7 | AK127: 6 | AL127: 13 | AM127: 8 | AN127: 0
A128: 03030250 | B128: 13050 | C128: 8158 | D128: 4892 | E128: 161 | F128: 156 | G128: 5686 | H128: 2617 | I128: 1238 | J128: 540 | K128: 202 | L128: 159 | M128: 72 | N128: 62 | O128: 29 | P128: 69 | Q128: 16 | R128: 47 | S128: 22 | T128: 57 | U128: 50 | V128: 64 | W128: 46 | X128: 64 | Y128: 21 | Z128: 65 | AA128: 29 | AB128: 108 | AC128: 58 | AD128: 96 | AE128: 67 | AF128: 125 | AG128: 79 | AH128: 130 | AI128: 115 | AJ128: 176 | AK128: 119 | AL128: 149 | AM128: 184 | AN128: 228 | AO128: 112 | AP128: 38 | AQ128: 8 | AR128: 51 | AS128: 32
A129: 03030270 | B129: 2351 | C129: 1156 | D129: 1195 | E129: 79 | F129: 46 | G129: 156 | H129: 46 | I129: 154 | J129: 48 | K129: 95 | L129: 21 | M129: 26 | N129: 34 | O129: 6 | P129: 6 | Q129: 17 | R129: 17 | S129: 3 | T129: 26 | U129: 13 | V129: 32 | W129: 21 | X129: 49 | Y129: 24 | Z129: 46 | AA129: 23 | AB129: 94 | AC129: 72 | AD129: 106 | AE129: 90 | AF129: 129 | AG129: 125 | AH129: 138 | AI129: 113 | AJ129: 83 | AK129: 60 | AL129: 118 | AM129: 79 | AN129: 156 | AO129: 5 | AP129: 27 | AQ129: 0 | AR129: 36 | AS129: 52
A130: 03030280 | B130: 267 | C130: 112 | D130: 155 | E130: 2 | F130: 4 | G130: 37 | H130: 18 | I130: 5 | J130: 6 | K130: 14 | L130: 5 | M130: 13 | N130: 21 | O130: 3 | P130: 9 | Q130: 1 | R130: 8 | S130: 0 | T130: 14 | U130: 5 | V130: 4 | W130: 1 | X130: 16 | Y130: 2 | Z130: 7 | AA130: 4 | AB130: 6 | AC130: 7 | AD130: 12 | AE130: 4 | AF130: 9 | AG130: 2 | AH130: 3 | AI130: 6 | AJ130: 2 | AK130: 0 | AL130: 5 | AM130: 6 | AN130: 6 | AO130: 11 | AP130: 4 | AQ130: 0 | AR130: 5 | AS130: 0
A131: 03030290 | B131: 96706
A132: 03030330 | B132: 22831 | C132: 8849 | D132: 13982 | E132: 114 | F132: 203 | G132: 762 | H132: 1301 | I132: 589 | J132: 1132 | K132: 505 | L132: 1131 | M132: 376 | N132: 904 | O132: 348 | P132: 774 | Q132: 323 | R132: 697 | S132: 295 | T132: 532 | U132: 280 | V132: 502 | W132: 266 | X132: 421 | Y132: 1095 | Z132: 1515 | AA132: 1168 | AB132: 1443 | AC132: 1128 | AD132: 1313 | AE132: 1633 | AF132: 2163 | AG132: 59 | AH132: 230
A133: 03030340 | B133: 3444 | C133: 1349 | D133: 2095 | E133: 32 | F133: 11 | G133: 43 | H133: 91 | I133: 28 | J133: 42 | K133: 18 | L133: 37 | M133: 9 | N133: 26 | O133: 9 | P133: 24 | Q133: 11 | R133: 22 | S133: 6 | T133: 20 | U133: 15 | V133: 16 | W133: 14 | X133: 23 | Y133: 170 | Z133: 267 | AA133: 242 | AB133: 308 | AC133: 243 | AD133: 335 | AE133: 512 | AF133: 873 | AG133: 15 | AH133: 53
A134: 03030350 | B134: 8559 | C134: 3185 | D134: 5374 | E134: 18 | F134: 130
A135: 03030360 | B135: 8450 | C135: 3447 | D135: 5003 | E135: 16 | F135: 11 | G135: 30 | H135: 46 | I135: 46 | J135: 73 | K135: 74 | L135: 153 | M135: 117 | N135: 260 | O135: 189 | P135: 355 | Q135: 221 | R135: 451 | S135: 312 | T135: 599 | U135: 417 | V135: 707 | W135: 498 | X135: 699 | Y135: 582 | Z135: 561 | AA135: 410 | AB135: 442 | AC135: 270 | AD135: 336 | AE135: 268 | AF135: 315 | AG135: 43 | AH135: 98
A136: 03040210 | B136: 138 | D136: 138 | L136: 1 | N136: 9 | P136: 35 | R136: 41 | T136: 26 | V136: 13 | X136: 6 | Z136: 5 | AB136: 0 | AD136: 1 | AF136: 1 | AO136: 1 | AP136: 8 | AQ136: 0 | AR136: 0 | AS136: 0
A137: 03040220 | B137: 470 | D137: 470 | F137: 0 | H137: 5 | J137: 5 | L137: 8 | N137: 42 | P137: 36 | R137: 33 | T137: 34 | V137: 52 | X137: 40 | Z137: 51 | AB137: 37 | AD137: 36 | AF137: 25 | AH137: 22 | AJ137: 21 | AL137: 11 | AN137: 12 | AO137: 43 | AP137: 5 | AQ137: 4 | AR137: 0 | AS137: 0
A138: 03050400 | B138: 4103 | C138: 1720 | D138: 2407 | E138: 1188 | F138: 1605 | G138: 532 | H138: 802
A139: 03050500 | B139: 599 | C139: 325 | D139: 274 | E139: 212 | F139: 178 | G139: 113 | H139: 96
A140: 03050600 | B140: 2395 | C140: 915 | D140: 1480 | E140: 689 | F140: 958 | G140: 226 | H140: 522
A141: 03050700 | B141: 1913 | C141: 860 | D141: 1053 | E141: 666 | F141: 677 | G141: 194 | H141: 376
A142: 03050710 | B142: 367 | C142: 182 | D142: 185 | E142: 134 | F142: 112 | G142: 48 | H142: 73
A143: 03051000A | B143: 9 | C143: 7 | D143: 2 | E143: 0 | F143: 0 | G143: 0 | H143: 0 | I143: 1 | J143: 0 | K143: 0 | L143: 0 | M143: 0 | N143: 0 | O143: 0 | P143: 0 | Q143: 0 | R143: 0 | S143: 4 | T143: 1 | U143: 1 | V143: 0 | W143: 1 | X143: 1 | Y143: 0 | Z143: 0
A144: 03051100 | B144: 247 | C144: 133 | D144: 114 | E144: 2 | F144: 1 | G144: 0 | H144: 0 | I144: 2 | J144: 1 | K144: 5 | L144: 1 | M144: 5 | N144: 2 | O144: 1 | P144: 2 | Q144: 1 | R144: 5 | S144: 79 | T144: 83 | U144: 18 | V144: 10 | W144: 15 | X144: 8 | Y144: 5 | Z144: 1
A145: 03051200 | B145: 304 | C145: 131 | D145: 173 | E145: 0 | F145: 1 | G145: 0 | H145: 1 | I145: 0 | J145: 1 | K145: 3 | L145: 1 | M145: 1 | N145: 0 | O145: 2 | P145: 1 | Q145: 6 | R145: 3 | S145: 85 | T145: 105 | U145: 15 | V145: 31 | W145: 13 | X145: 21 | Y145: 6 | Z145: 8
A146: 03051300 | B146: 228 | C146: 110 | D146: 118 | E146: 0 | F146: 0 | G146: 2 | H146: 1 | I146: 4 | J146: 1 | K146: 9 | L146: 4 | M146: 5 | N146: 1 | O146: 1 | P146: 0 | Q146: 1 | R146: 3 | S146: 46 | T146: 62 | U146: 7 | V146: 7 | W146: 24 | X146: 17 | Y146: 11 | Z146: 22
A147: 03051400 | B147: 18 | C147: 8 | D147: 10 | E147: 0 | F147: 0 | G147: 0 | H147: 0 | I147: 1 | J147: 1 | K147: 0 | L147: 0 | M147: 0 | N147: 0 | O147: 0 | P147: 0 | Q147: 0 | R147: 0 | S147: 1 | T147: 1 | U147: 0 | V147: 1 | W147: 1 | X147: 3 | Y147: 5 | Z147: 4
A148: 03051500 | B148: 1 | C148: 0 | D148: 1 | E148: 0 | F148: 0 | G148: 0 | H148: 0 | I148: 0 | J148: 0 | K148: 0 | L148: 0 | M148: 0 | N148: 0 | O148: 0 | P148: 0 | Q148: 0 | R148: 0 | S148: 0 | T148: 1 | U148: 0 | V148: 0 | W148: 0 | X148: 0 | Y148: 0 | Z148: 0
A149: 03051600 | B149: 32 | C149: 22 | D149: 10 | E149: 0 | F149: 0 | G149: 0 | H149: 0 | I149: 0 | J149: 0 | K149: 1 | L149: 0 | M149: 0 | N149: 0 | O149: 1 | P149: 1 | Q149: 0 | R149: 0 | S149: 16 | T149: 8 | U149: 4 | V149: 1 | W149: 0 | X149: 0 | Y149: 0 | Z149: 0
A150: 03051700 | B150: 49 | C150: 24 | D150: 25 | E150: 0 | F150: 0 | G150: 1 | H150: 0 | I150: 0 | J150: 0 | K150: 1 | L150: 0 | M150: 1 | N150: 0 | O150: 1 | P150: 1 | Q150: 0 | R150: 2 | S150: 13 | T150: 17 | U150: 6 | V150: 3 | W150: 1 | X150: 2 | Y150: 0 | Z150: 0
A151: 03051800 | B151: 40 | C151: 20 | D151: 20 | E151: 0 | F151: 0 | G151: 0 | H151: 0 | I151: 0 | J151: 1 | K151: 1 | L151: 0 | M151: 3 | N151: 1 | O151: 1 | P151: 0 | Q151: 1 | R151: 0 | S151: 8 | T151: 10 | U151: 4 | V151: 2 | W151: 1 | X151: 3 | Y151: 1 | Z151: 3
A152: 03051900 | B152: 5 | C152: 2 | D152: 3 | E152: 0 | F152: 0 | G152: 0 | H152: 0 | I152: 0 | J152: 0 | K152: 0 | L152: 0 | M152: 0 | N152: 0 | O152: 0 | P152: 0 | Q152: 0 | R152: 0 | S152: 0 | T152: 1 | U152: 0 | V152: 0 | W152: 1 | X152: 1 | Y152: 1 | Z152: 1
A153: 03052100 | B153: 23 | C153: 11 | D153: 12 | E153: 0 | F153: 0 | G153: 0 | H153: 0 | I153: 0 | J153: 2 | K153: 0 | L153: 0 | M153: 0 | N153: 0 | O153: 1 | P153: 0 | Q153: 0 | R153: 0 | S153: 9 | T153: 9 | U153: 1 | V153: 1 | W153: 0 | X153: 0 | Y153: 0 | Z153: 0
A154: 03052200 | B154: 14 | C154: 9 | D154: 5 | E154: 0 | F154: 0 | G154: 0 | H154: 0 | I154: 0 | J154: 0 | K154: 0 | L154: 0 | M154: 0 | N154: 0 | O154: 0 | P154: 0 | Q154: 0 | R154: 0 | S154: 3 | T154: 2 | U154: 0 | V154: 2 | W154: 2 | X154: 0 | Y154: 4 | Z154: 1
A155: 03052300 | B155: 19 | C155: 10 | D155: 9 | E155: 0 | F155: 0 | G155: 0 | H155: 0 | I155: 2 | J155: 0 | K155: 2 | L155: 0 | M155: 0 | N155: 0 | O155: 1 | P155: 0 | Q155: 0 | R155: 0 | S155: 2 | T155: 7 | U155: 1 | V155: 1 | W155: 2 | X155: 1 | Y155: 0 | Z155: 0
A156: 03052400 | B156: 2 | C156: 1 | D156: 1 | E156: 0 | F156: 0 | G156: 0 | H156: 0 | I156: 0 | J156: 0 | K156: 0 | L156: 0 | M156: 0 | N156: 0 | O156: 0 | P156: 0 | Q156: 0 | R156: 0 | S156: 0 | T156: 0 | U156: 1 | V156: 1 | W156: 0 | X156: 0 | Y156: 0 | Z156: 0
A157: 03052500 | B157: 1 | C157: 0 | D157: 1 | T157: 1
A158: 03052600 | B158: 88 | C158: 59 | D158: 29 | E158: 0 | F158: 0 | G158: 0 | H158: 0 | I158: 16 | J158: 2 | K158: 10 | L158: 4 | M158: 10 | N158: 6 | O158: 8 | P158: 2 | Q158: 2 | R158: 2 | S158: 10 | T158: 12 | U158: 2 | V158: 0 | W158: 1 | X158: 0 | Y158: 0 | Z158: 1
A159: 03052700 | B159: 177 | C159: 117 | D159: 60 | E159: 2 | F159: 0 | G159: 2 | H159: 1 | I159: 21 | J159: 8 | K159: 48 | L159: 16 | M159: 21 | N159: 8 | O159: 5 | P159: 7 | Q159: 0 | R159: 3 | S159: 10 | T159: 13 | U159: 1 | V159: 1 | W159: 5 | X159: 1 | Y159: 2 | Z159: 2
A160: 03052800 | B160: 303 | C160: 174 | D160: 129 | E160: 1 | F160: 0 | G160: 2 | H160: 5 | I160: 54 | J160: 15 | K160: 50 | L160: 21 | M160: 21 | N160: 6 | O160: 13 | P160: 7 | Q160: 3 | R160: 2 | S160: 13 | T160: 22 | U160: 3 | V160: 3 | W160: 2 | X160: 8 | Y160: 12 | Z160: 40
A161: 03052900 | B161: 20 | C161: 3 | D161: 17 | E161: 0 | F161: 0 | G161: 0 | H161: 0 | I161: 0 | J161: 1 | K161: 1 | L161: 0 | M161: 0 | N161: 0 | O161: 0 | P161: 0 | Q161: 0 | R161: 0 | S161: 0 | T161: 4 | U161: 0 | V161: 0 | W161: 0 | X161: 3 | Y161: 2 | Z161: 9
A162: 03053100 | B162: 25 | C162: 13 | D162: 12 | E162: 0 | F162: 0 | G162: 2 | H162: 0 | I162: 0 | J162: 0 | K162: 2 | L162: 3 | M162: 2 | N162: 4 | O162: 2 | P162: 3 | Q162: 2 | R162: 1 | S162: 3 | T162: 1 | U162: 0 | V162: 0 | W162: 0 | X162: 0 | Y162: 0 | Z162: 0
A163: 03053200 | B163: 33 | C163: 20 | D163: 13 | E163: 1 | F163: 0 | G163: 0 | H163: 0 | I163: 1 | J163: 3 | K163: 7 | L163: 1 | M163: 5 | N163: 2 | O163: 1 | P163: 2 | Q163: 2 | R163: 1 | S163: 2 | T163: 3 | U163: 1 | V163: 0 | W163: 0 | X163: 0 | Y163: 0 | Z163: 1
A164: 03053300 | B164: 47 | C164: 35 | D164: 12 | E164: 0 | F164: 0 | G164: 0 | H164: 1 | I164: 5 | J164: 0 | K164: 10 | L164: 3 | M164: 5 | N164: 1 | O164: 4 | P164: 2 | Q164: 1 | R164: 0 | S164: 6 | T164: 2 | U164: 3 | V164: 0 | W164: 0 | X164: 1 | Y164: 1 | Z164: 2
A165: 03053400 | B165: 11 | C165: 6 | D165: 5 | E165: 0 | F165: 0 | G165: 0 | H165: 0 | I165: 2 | J165: 1 | K165: 1 | L165: 1 | M165: 0 | N165: 0 | O165: 0 | P165: 0 | Q165: 0 | R165: 0 | S165: 1 | T165: 1 | U165: 1 | V165: 0 | W165: 0 | X165: 1 | Y165: 1 | Z165: 1
A166: 03053500 | B166: 1 | C166: 1 | D166: 0 | S166: 1
A167: 03053600 | B167: 14 | C167: 11 | D167: 3 | E167: 0 | F167: 0 | G167: 0 | H167: 0 | I167: 4 | J167: 0 | K167: 0 | L167: 1 | M167: 1 | N167: 0 | O167: 1 | P167: 0 | Q167: 0 | R167: 0 | S167: 3 | T167: 2 | U167: 1 | V167: 0 | W167: 1 | X167: 0 | Y167: 0 | Z167: 0
A168: 03053700 | B168: 38 | C168: 15 | D168: 23 | E168: 0 | F168: 0 | G168: 1 | H168: 0 | I168: 1 | J168: 1 | K168: 2 | L168: 3 | M168: 1 | N168: 1 | O168: 2 | P168: 0 | Q168: 0 | R168: 0 | S168: 5 | T168: 17 | U168: 2 | V168: 0 | W168: 0 | X168: 1 | Y168: 1 | Z168: 0
A169: 03053800 | B169: 192 | C169: 95 | D169: 97 | E169: 1 | F169: 0 | G169: 0 | H169: 1 | I169: 6 | J169: 2 | K169: 12 | L169: 11 | M169: 6 | N169: 9 | O169: 17 | P169: 7 | Q169: 4 | R169: 3 | S169: 27 | T169: 38 | U169: 14 | V169: 2 | W169: 4 | X169: 10 | Y169: 4 | Z169: 14
A170: 03053900 | B170: 40 | C170: 16 | D170: 24 | E170: 0 | F170: 0 | G170: 0 | H170: 0 | I170: 3 | J170: 1 | K170: 3 | L170: 0 | M170: 0 | N170: 1 | O170: 1 | P170: 1 | Q170: 0 | R170: 0 | S170: 4 | T170: 5 | U170: 1 | V170: 1 | W170: 2 | X170: 2 | Y170: 2 | Z170: 13
A171: 03500020 | B171: 9777 | C171: 4739 | D171: 5038 | E171: 3 | F171: 13 | G171: 63 | H171: 60 | I171: 4 | J171: 10 | K171: 71 | L171: 98 | M171: 1749 | N171: 1845 | O171: 70 | P171: 73 | Q171: 13 | R171: 14 | S171: 59 | T171: 53 | U171: 1608 | V171: 1600 | W171: 1099 | X171: 1272
A172: 03500030 | B172: 1191 | C172: 722 | D172: 469 | E172: 0 | F172: 1 | G172: 0 | H172: 0 | I172: 0 | J172: 0 | K172: 2 | L172: 1 | M172: 83 | N172: 66 | O172: 5 | P172: 4 | Q172: 1 | R172: 3 | S172: 6 | T172: 6 | U172: 236 | V172: 145 | W172: 389 | X172: 244
A173: 03500040 | B173: 3079 | C173: 1509 | D173: 1570 | E173: 1274 | F173: 1308 | G173: 235 | H173: 262
A174: 03500050 | B174: 557 | C174: 293 | D174: 264 | E174: 227 | F174: 203 | G174: 66 | H174: 61
A175: 03500060 | B175: 50 | C175: 28 | D175: 22 | E175: 23 | F175: 16 | G175: 5 | H175: 6
A176: 03500120 | B176: 254
A177: 03500130 | B177: 256
A178: 03500140 | B178: 148
A179: 03500150 | B179: 14
A180: 03500160 | B180: 4633 | D180: 437 | E180: 421
A181: 03500170 | B181: 70 | D181: 25 | E181: 12
A182: 03500200 | B182: 3426 | C182: 519 | E182: 392
A183: 03500210 | B183: 3278 | C183: 500 | E183: 360
A184: 03500290 | B184: 2903 | C184: 1214 | D184: 1689 | E184: 28 | F184: 35 | G184: 124 | H184: 132 | I184: 123 | J184: 202 | K184: 427 | L184: 697 | M184: 311 | N184: 415 | O184: 94 | P184: 82 | Q184: 88 | R184: 104 | S184: 19 | T184: 22
A185: 03500300 | B185: 571 | C185: 327 | D185: 244 | E185: 23 | F185: 24 | G185: 71 | H185: 58 | I185: 19 | J185: 13 | K185: 80 | L185: 62 | M185: 91 | N185: 55 | O185: 18 | P185: 24 | Q185: 23 | R185: 5 | S185: 2 | T185: 3
A186: 03500331 | B186: 115 | C186: 77 | D186: 38 | E186: 0 | F186: 0 | G186: 10 | H186: 7 | I186: 11 | J186: 5 | K186: 26 | L186: 14 | M186: 28 | N186: 11 | O186: 3 | P186: 2 | Q186: 0 | R186: 0
A187: 03500332 | B187: 117 | C187: 92 | D187: 25 | E187: 0 | F187: 2 | G187: 2 | H187: 2 | I187: 9 | J187: 1 | K187: 46 | L187: 14 | M187: 29 | N187: 5 | O187: 6 | P187: 2 | Q187: 0 | R187: 1
A188: 03500333 | B188: 3 | C188: 1 | D188: 2 | E188: 0 | F188: 0 | G188: 0 | H188: 1 | I188: 0 | J188: 0 | K188: 1 | L188: 1 | M188: 0 | N188: 0 | O188: 0 | P188: 0 | Q188: 0 | R188: 0
A189: 03500334 | B189: 12 | C189: 9 | D189: 3 | E189: 0 | F189: 0 | G189: 0 | H189: 0 | I189: 3 | J189: 0 | K189: 5 | L189: 1 | M189: 1 | N189: 1 | O189: 0 | P189: 1 | Q189: 0 | R189: 0
A190: 03500335 | B190: 1 | C190: 1 | D190: 0 | G190: 1 | Q190: 0 | R190: 0
A191: 03500336 | B191: 176 | C191: 90 | D191: 86 | E191: 0 | F191: 0 | G191: 0 | H191: 0 | I191: 8 | J191: 2 | K191: 19 | L191: 7 | M191: 9 | N191: 5 | O191: 6 | P191: 2 | Q191: 2 | R191: 2 | S191: 26 | T191: 37 | U191: 9 | V191: 7 | W191: 9 | X191: 11 | Y191: 2 | Z191: 13
A192: 03500337 | B192: 135 | C192: 76 | D192: 59 | E192: 0 | F192: 0 | G192: 0 | H192: 0 | I192: 5 | J192: 2 | K192: 1 | L192: 2 | M192: 3 | N192: 2 | O192: 1 | P192: 1 | Q192: 2 | R192: 5 | S192: 45 | T192: 42 | U192: 11 | V192: 2 | W192: 5 | X192: 3 | Y192: 3 | Z192: 0
A193: 03500338 | B193: 180 | C193: 91 | D193: 89 | E193: 1 | F193: 1 | G193: 1 | H193: 1 | I193: 11 | J193: 6 | K193: 21 | L193: 7 | M193: 8 | N193: 5 | O193: 3 | P193: 5 | Q193: 1 | R193: 2 | S193: 32 | T193: 38 | U193: 6 | V193: 15 | W193: 5 | X193: 4 | Y193: 2 | Z193: 5
A194: 03500339 | B194: 256 | C194: 143 | D194: 113 | E194: 0 | F194: 0 | G194: 1 | H194: 3 | I194: 27 | J194: 6 | K194: 28 | L194: 18 | M194: 14 | N194: 8 | O194: 14 | P194: 4 | Q194: 4 | R194: 2 | S194: 29 | T194: 49 | U194: 6 | V194: 5 | W194: 10 | X194: 5 | Y194: 10 | Z194: 13
A195: 03500340 | B195: 27 | C195: 12 | D195: 15 | E195: 0 | F195: 0 | G195: 0 | H195: 0 | I195: 2 | J195: 1 | K195: 0 | L195: 1 | M195: 0 | N195: 0 | O195: 1 | P195: 0 | Q195: 0 | R195: 0 | S195: 5 | T195: 2 | U195: 0 | V195: 0 | W195: 1 | X195: 2 | Y195: 3 | Z195: 9
A196: 03500341 | B196: 18 | C196: 8 | D196: 10 | E196: 0 | F196: 0 | G196: 0 | H196: 0 | I196: 1 | J196: 2 | K196: 0 | L196: 0 | M196: 0 | N196: 0 | O196: 1 | P196: 1 | Q196: 0 | R196: 0 | S196: 2 | T196: 3 | U196: 3 | V196: 1 | W196: 1 | X196: 2 | Y196: 0 | Z196: 1
A197: 03500342 | B197: 49 | C197: 27 | D197: 22 | E197: 0 | F197: 0 | G197: 0 | H197: 0 | I197: 2 | J197: 2 | K197: 1 | L197: 0 | M197: 1 | N197: 1 | O197: 2 | P197: 1 | Q197: 1 | R197: 0 | S197: 8 | T197: 11 | U197: 8 | V197: 3 | W197: 4 | X197: 3 | Y197: 0 | Z197: 1
A198: 03500343 | B198: 65 | C198: 27 | D198: 38 | E198: 0 | F198: 0 | G198: 0 | H198: 0 | I198: 1 | J198: 1 | K198: 7 | L198: 3 | M198: 1 | N198: 2 | O198: 1 | P198: 0 | Q198: 0 | R198: 1 | S198: 11 | T198: 21 | U198: 2 | V198: 6 | W198: 3 | X198: 4 | Y198: 1 | Z198: 0
A199: 03500344 | B199: 83 | C199: 42 | D199: 41 | E199: 0 | F199: 0 | G199: 0 | H199: 0 | I199: 3 | J199: 1 | K199: 13 | L199: 5 | M199: 4 | N199: 3 | O199: 3 | P199: 2 | Q199: 1 | R199: 1 | S199: 9 | T199: 10 | U199: 3 | V199: 2 | W199: 4 | X199: 7 | Y199: 2 | Z199: 10
A200: 03500345 | B200: 11 | C200: 4 | D200: 7 | E200: 0 | F200: 0 | G200: 0 | H200: 0 | I200: 0 | J200: 1 | K200: 1 | L200: 0 | M200: 3 | N200: 0 | O200: 0 | P200: 0 | Q200: 0 | R200: 0 | S200: 0 | T200: 1 | U200: 0 | V200: 0 | W200: 0 | X200: 1 | Y200: 0 | Z200: 4
A201: 03500346 | B201: 29540 | C201: 9986 | D201: 19554 | G201: 134 | H201: 238 | I201: 587 | J201: 1483 | K201: 2829 | L201: 6758 | M201: 2435 | N201: 4664 | O201: 1096 | P201: 1889 | Q201: 1889 | R201: 2826 | S201: 1016 | T201: 1696
... 2390 more rows

Sheet A01_
B1: SERVICIO DE SALUD
B2: =CONCATENATE("COMUNA: ",NOMBRE!B2," - ","( ",NOMBRE!C2,NOMBRE!D2,NOMBRE!E2,NOMBRE!F2,NOMBRE!G2," )") -> COMUNA: - ( )
B3: =CONCATENATE("ESTABLECIMIENTO/ESTRATEGIA: ",NOMBRE!B3," - ","( ",NOMBRE!C3,NOMBRE!D3,NOMBRE!E3,NOMBRE!F3,NOMBRE!G3,NOMBRE!H3," )") -> ESTABLECIMIENTO/ESTRATEGIA: - ( )
B4: =CONCATENATE("MES: ",NOMBRE!B6," - ","( ",NOMBRE!C6,NOMBRE!D6," )") -> MES: - ( )
B5: =CONCATENATE("AÑO: ",NOMBRE!B7) -> AÑO: 2023
B6: REM-A01. CONTROLES DE SALUD
B9: SECCIÓN A: CONTROLES DE SALUD SEXUAL Y REPRODUCTIVA
B10: TIPO DE CONTROL | C10: PROFESIONAL | D10: TOTAL | E10: POR EDAD | V10: SEXO | X10: Control con pareja familiar u otro | Y10: Control de diada con presencia del padre | Z10: Espacios Amigables/ Adolescentes | AA10: Niños, Niñas, Adolescentes y Jóvenes SENAME | AB10: Niños, Niñas, Adolescentes y Jóvenes Mejor Niñez | AC10: Pueblos Originarios | AD10: Migrantes
E11: Menor de 4 años | F11: 5 - 9 años | G11: 10 - 14 años | H11: 15 a 19 años | I11: 20 - 24 años | J11: 25 - 29 años | K11: 30 - 34 años | L11: 35 - 39 años | M11: 40 - 44 años | N11: 45 - 49 años | O11: 50 - 54 años | P11: 55 - 59 años | Q11: 60 - 64 años | R11: 65 - 69 años | S11: 70 - 74 años | T11: 75 - 79 años | U11: 80 y más años | V11: HOMBRES | W11: MUJERES
A12: 01010101 | B12: PRE- CONCEPCIONAL | C12: MÉDICO/A | D12: =SUM(G12:P12) -> 7 | E12: =IFERROR(VLOOKUP($A12,Filtro!$A$5:$AW$2591,3,FALSE),0) -> 0 | F12: =IFERROR(VLOOKUP($A12,Filtro!$A$5:$AW$2591,4,FALSE),0) -> 0 | G12: =IFERROR(VLOOKUP($A12,Filtro!$A$5:$AW$2591,5,FALSE),0) -> 0 | H12: =IFERROR(VLOOKUP($A12,Filtro!$A$5:$AW$2591,6,FALSE),0) -> 0 | I12: =IFERROR(VLOOKUP($A12,Filtro!$A$5:$AW$2591,7,FALSE),0) -> 0 | J12: =IFERROR(VLOOKUP($A12,Filtro!$A$5:$AW$2591,8,FALSE),0) -> 4 | K12: =IFERROR(VLOOKUP($A12,Filtro!$A$5:$AW$2591,9,FALSE),0) -> 2 | L12: =IFERROR(VLOOKUP($A12,Filtro!$A$5:$AW$2591,10,FALSE),0) -> 0 | M12: =IFERROR(VLOOKUP($A12,Filtro!$A$5:$AW$2591,11,FALSE),0) -> 1 | N12: =IFERROR(VLOOKUP($A12,Filtro!$A$5:$AW$2591,12,FALSE),0) -> 0 | O12: =IFERROR(VLOOKUP($A12,Filtro!$A$5:$AW$2591,13,FALSE),0) -> 0 | P12: =IFERROR(VLOOKUP($A12,Filtro!$A$5:$AW$2591,14,FALSE),0) -> 0 | Q12: =IFERROR(VLOOKUP($A12,Filtro!$A$5:$AW$2591,15,FALSE),0) -> 0 | R12: =IFERROR(VLOOKUP($A12,Filtro!$A$5:$AW$2591,16,FALSE),0) -> 0 | S12: =IFERROR(VLOOKUP($A12,Filtro!$A$5:$AW$2591,17,FALSE),0) -> 0 | T12: =IFERROR(VLOOKUP($A12,Filtro!$A$5:$AW$2591,18,FALSE),0) -> 0 | U12: =IFERROR(VLOOKUP($A12,Filtro!$A$5:$AW$2591,19,FALSE),0) -> 0 | V12: =IFERROR(VLOOKUP($A12,Filtro!$A$5:$AW$2591,20,FALSE),0) -> 0 | W12: =IFERROR(VLOOKUP($A12,Filtro!$A$5:$AW$2591,21,FALSE),0) -> 7 | X12: =IFERROR(VLOOKUP($A12,Filtro!$A$5:$AW$2591,22,FALSE),0) -> 0 | Y12: =IFERROR(VLOOKUP($A12,Filtro!$A$5:$AW$2591,23,FALSE),0) -> 0 | Z12: =IFERROR(VLOOKUP($A12,Filtro!$A$5:$AW$2591,24,FALSE),0) -> 0 | AA12: =IFERROR(VLOOKUP($A12,Filtro!$A$5:$AW$2591,25,FALSE),0) -> 0 | AB12: =IFERROR(VLOOKUP($A12,Filtro!$A$5:$AW$2591,26,FALSE),0) -> 0 | AC12: =IFERROR(VLOOKUP($A12,Filtro!$A$5:$AW$2591,27,FALSE),0) -> 0 | AD12: =IFERROR(VLOOKUP($A12,Filtro!$A$5:$AW$2591,28,FALSE),0) -> 0 | CA12: * El número de Sexo Hombres y mujeres debe ser igual al total. | DA12: 1 | DB12: 0 | DE12: 0 | DF12: 0 | DG12: 0 | DH12: 0 | DI12: 0 | DJ12: 0 | DK12: 0 | DL12: 0 | DM12: 0 | DN12: 0 | DO12: 0 | DP12: 0 | DQ12: 0
A13: 01010103 | C13: MATRONA/ÓN | D13: =SUM(G13:P13) -> 1261 | E13: =IFERROR(VLOOKUP($A13,Filtro!$A$5:$AW$2591,3,FALSE),0) -> 0 | F13: =IFERROR(VLOOKUP($A13,Filtro!$A$5:$AW$2591,4,FALSE),0) -> 0 | G13: =IFERROR(VLOOKUP($A13,Filtro!$A$5:$AW$2591,5,FALSE),0) -> 3 | H13: =IFERROR(VLOOKUP($A13,Filtro!$A$5:$AW$2591,6,FALSE),0) -> 52 | I13: =IFERROR(VLOOKUP($A13,Filtro!$A$5:$AW$2591,7,FALSE),0) -> 200 | J13: =IFERROR(VLOOKUP($A13,Filtro!$A$5:$AW$2591,8,FALSE),0) -> 348 | K13: =IFERROR(VLOOKUP($A13,Filtro!$A$5:$AW$2591,9,FALSE),0) -> 329 | L13: =IFERROR(VLOOKUP($A13,Filtro!$A$5:$AW$2591,10,FALSE),0) -> 224 | M13: =IFERROR(VLOOKUP($A13,Filtro!$A$5:$AW$2591,11,FALSE),0) -> 89 | N13: =IFERROR(VLOOKUP($A13,Filtro!$A$5:$AW$2591,12,FALSE),0) -> 16 | O13: =IFERROR(VLOOKUP($A13,Filtro!$A$5:$AW$2591,13,FALSE),0) -> 0 | P13: =IFERROR(VLOOKUP($A13,Filtro!$A$5:$AW$2591,14,FALSE),0) -> 0 | Q13: =IFERROR(VLOOKUP($A13,Filtro!$A$5:$AW$2591,15,FALSE),0) -> 0 | R13: =IFERROR(VLOOKUP($A13,Filtro!$A$5:$AW$2591,16,FALSE),0) -> 0 | S13: =IFERROR(VLOOKUP($A13,Filtro!$A$5:$AW$2591,17,FALSE),0) -> 0 | T13: =IFERROR(VLOOKUP($A13,Filtro!$A$5:$AW$2591,18,FALSE),0) -> 0 | U13: =IFERROR(VLOOKUP($A13,Filtro!$A$5:$AW$2591,19,FALSE),0) -> 0 | V13: =IFERROR(VLOOKUP($A13,Filtro!$A$5:$AW$2591,20,FALSE),0) -> 7 | W13: =IFERROR(VLOOKUP($A13,Filtro!$A$5:$AW$2591,21,FALSE),0) -> 1240 | X13: =IFERROR(VLOOKUP($A13,Filtro!$A$5:$AW$2591,22,FALSE),0) -> 0 | Y13: =IFERROR(VLOOKUP($A13,Filtro!$A$5:$AW$2591,23,FALSE),0) -> 0 | Z13: =IFERROR(VLOOKUP($A13,Filtro!$A$5:$AW$2591,24,FALSE),0) -> 11 | AA13: =IFERROR(VLOOKUP($A13,Filtro!$A$5:$AW$2591,25,FALSE),0) -> 0 | AB13: =IFERROR(VLOOKUP($A13,Filtro!$A$5:$AW$2591,26,FALSE),0) -> 0 | AC13: =IFERROR(VLOOKUP($A13,Filtro!$A$5:$AW$2591,27,FALSE),0) -> 10 | AD13: =IFERROR(VLOOKUP($A13,Filtro!$A$5:$AW$2591,28,FALSE),0) -> 50 | CA13: * El número de Sexo Hombres y mujeres debe ser igual al total. | DA13: 1 | DB13: 0 | DE13: 0 | DF13: 0 | DG13: 0 | DH13: 0 | DI13: 0 | DJ13: 0 | DK13: 0 | DL13: 0 | DM13: 0 | DN13: 0 | DO13: 0 | DP13: 0 | DQ13: 0
A14: 01010201 | B14: PRENATAL | C14: MÉDICO/A | D14: =SUM(G14:P14) -> 240 | E14: =IFERROR(VLOOKUP($A14,Filtro!$A$5:$AW$2591,3,FALSE),0) -> 0 | F14: =IFERROR(VLOOKUP($A14,Filtro!$A$5:$AW$2591,4,FALSE),0) -> 0 | G14: =IFERROR(VLOOKUP($A14,Filtro!$A$5:$AW$2591,5,FALSE),0) -> 0 | H14: =IFERROR(VLOOKUP($A14,Filtro!$A$5:$AW$2591,6,FALSE),0) -> 15 | I14: =IFERROR(VLOOKUP($A14,Filtro!$A$5:$AW$2591,7,FALSE),0) -> 55 | J14: =IFERROR(VLOOKUP($A14,Filtro!$A$5:$AW$2591,8,FALSE),0) -> 59 | K14: =IFERROR(VLOOKUP($A14,Filtro!$A$5:$AW$2591,9,FALSE),0) -> 56 | L14: =IFERROR(VLOOKUP($A14,Filtro!$A$5:$AW$2591,10,FALSE),0) -> 43 | M14: =IFERROR(VLOOKUP($A14,Filtro!$A$5:$AW$2591,11,FALSE),0) -> 4 | N14: =IFERROR(VLOOKUP($A14,Filtro!$A$5:$AW$2591,12,FALSE),0) -> 3 | O14: =IFERROR(VLOOKUP($A14,Filtro!$A$5:$AW$2591,13,FALSE),0) -> 3 | P14: =IFERROR(VLOOKUP($A14,Filtro!$A$5:$AW$2591,14,FALSE),0) -> 2 | Q14: =IFERROR(VLOOKUP($A14,Filtro!$A$5:$AW$2591,15,FALSE),0) -> 0 | R14: =IFERROR(VLOOKUP($A14,Filtro!$A$5:$AW$2591,16,FALSE),0) -> 0 | S14: =IFERROR(VLOOKUP($A14,Filtro!$A$5:$AW$2591,17,FALSE),0) -> 0 | T14: =IFERROR(VLOOKUP($A14,Filtro!$A$5:$AW$2591,18,FALSE),0) -> 0 | U14: =IFERROR(VLOOKUP($A14,Filtro!$A$5:$AW$2591,19,FALSE),0) -> 0 | V14: =IFERROR(VLOOKUP($A14,Filtro!$A$5:$AW$2591,20,FALSE),0) -> 0 | W14: =IFERROR(VLOOKUP($A14,Filtro!$A$5:$AW$2591,21,FALSE),0) -> 242 | X14: =IFERROR(VLOOKUP($A14,Filtro!$A$5:$AW$2591,22,FALSE),0) -> 13 | Y14: =IFERROR(VLOOKUP($A14,Filtro!$A$5:$AW$2591,23,FALSE),0) -> 0 | Z14: =IFERROR(VLOOKUP($A14,Filtro!$A$5:$AW$2591,24,FALSE),0) -> 0 | AA14: =IFERROR(VLOOKUP($A14,Filtro!$A$5:$AW$2591,25,FALSE),0) -> 0 | AB14: =IFERROR(VLOOKUP($A14,Filtro!$A$5:$AW$2591,26,FALSE),0) -> 0 | AC14: =IFERROR(VLOOKUP($A14,Filtro!$A$5:$AW$2591,27,FALSE),0) -> 2 | AD14: =IFERROR(VLOOKUP($A14,Filtro!$A$5:$AW$2591,28,FALSE),0) -> 1 | CA14: * El número de Sexo Hombres y mujeres debe ser igual al total. | DA14: 1 | DB14: 0 | DC14: 0 | DE14: 0 | DF14: 0 | DG14: 0 | DH14: 0 | DI14: 0 | DJ14: 0 | DK14: 0 | DL14: 0 | DM14: 0 | DN14: 0 | DO14: 0 | DP14: 0 | DQ14: 0
A15: 01010203 | C15: MATRONA/ÓN | D15: 30956 | E15: =IFERROR(VLOOKUP($A15,Filtro!$A$5:$AW$2591,3,FALSE),0) -> 0 | F15: =IFERROR(VLOOKUP($A15,Filtro!$A$5:$AW$2591,4,FALSE),0) -> 0 | G15: =IFERROR(VLOOKUP($A15,Filtro!$A$5:$AW$2591,5,FALSE),0) -> 93 | H15: =IFERROR(VLOOKUP($A15,Filtro!$A$5:$AW$2591,6,FALSE),0) -> 1776 | I15: =IFERROR(VLOOKUP($A15,Filtro!$A$5:$AW$2591,7,FALSE),0) -> 6922 | J15: =IFERROR(VLOOKUP($A15,Filtro!$A$5:$AW$2591,8,FALSE),0) -> 9112 | K15: =IFERROR(VLOOKUP($A15,Filtro!$A$5:$AW$2591,9,FALSE),0) -> 7980 | L15: =IFERROR(VLOOKUP($A15,Filtro!$A$5:$AW$2591,10,FALSE),0) -> 3923 | M15: =IFERROR(VLOOKUP($A15,Filtro!$A$5:$AW$2591,11,FALSE),0) -> 1100 | N15: =IFERROR(VLOOKUP($A15,Filtro!$A$5:$AW$2591,12,FALSE),0) -> 47 | O15: =IFERROR(VLOOKUP($A15,Filtro!$A$5:$AW$2591,13,FALSE),0) -> 2 | P15: =IFERROR(VLOOKUP($A15,Filtro!$A$5:$AW$2591,14,FALSE),0) -> 1 | Q15: =IFERROR(VLOOKUP($A15,Filtro!$A$5:$AW$2591,15,FALSE),0) -> 0 | R15: =IFERROR(VLOOKUP($A15,Filtro!$A$5:$AW$2591,16,FALSE),0) -> 0 | S15: =IFERROR(VLOOKUP($A15,Filtro!$A$5:$AW$2591,17,FALSE),0) -> 0 | T15: =IFERROR(VLOOKUP($A15,Filtro!$A$5:$AW$2591,18,FALSE),0) -> 0 | U15: =IFERROR(VLOOKUP($A15,Filtro!$A$5:$AW$2591,19,FALSE),0) -> 0 | V15: =IFERROR(VLOOKUP($A15,Filtro!$A$5:$AW$2591,20,FALSE),0) -> 0 | W15: =IFERROR(VLOOKUP($A15,Filtro!$A$5:$AW$2591,21,FALSE),0) -> 30667 | X15: =IFERROR(VLOOKUP($A15,Filtro!$A$5:$AW$2591,22,FALSE),0) -> 8657 | Y15: =IFERROR(VLOOKUP($A15,Filtro!$A$5:$AW$2591,23,FALSE),0) -> 0 | Z15: =IFERROR(VLOOKUP($A15,Filtro!$A$5:$AW$2591,24,FALSE),0) -> 0 | AA15: =IFERROR(VLOOKUP($A15,Filtro!$A$5:$AW$2591,25,FALSE),0) -> 30 | AB15: =IFERROR(VLOOKUP($A15,Filtro!$A$5:$AW$2591,26,FALSE),0) -> 33 | AC15: =IFERROR(VLOOKUP($A15,Filtro!$A$5:$AW$2591,27,FALSE),0) -> 342 | AD15: =IFERROR(VLOOKUP($A15,Filtro!$A$5:$AW$2591,28,FALSE),0) -> 2220 | CA15: * El número de Sexo Hombres y mujeres debe ser igual al total. | DA15: 1 | DB15: 0 | DC15: 0 | DE15: 0 | DF15: 0 | DG15: 0 | DH15: 0 | DI15: 0 | DJ15: 0 | DK15: 0 | DL15: 0 | DM15: 0 | DN15: 0 | DO15: 0 | DP15: 0 | DQ15: 0
A16: 01501050 | B16: POST PARTO | C16: MÉDICO/A | D16: 4 | E16: =IFERROR(VLOOKUP($A16,Filtro!$A$5:$AW$2591,3,FALSE),0) -> 0 | F16: =IFERROR(VLOOKUP($A16,Filtro!$A$5:$AW$2591,4,FALSE),0) -> 0 | G16: =IFERROR(VLOOKUP($A16,Filtro!$A$5:$AW$2591,5,FALSE),0) -> 0 | H16: =IFERROR(VLOOKUP($A16,Filtro!$A$5:$AW$2591,6,FALSE),0) -> 0 | I16: =IFERROR(VLOOKUP($A16,Filtro!$A$5:$AW$2591,7,FALSE),0) -> 3 | J16: =IFERROR(VLOOKUP($A16,Filtro!$A$5:$AW$2591,8,FALSE),0) -> 0 | K16: =IFERROR(VLOOKUP($A16,Filtro!$A$5:$AW$2591,9,FALSE),0) -> 0 | L16: =IFERROR(VLOOKUP($A16,Filtro!$A$5:$AW$2591,10,FALSE),0) -> 1 | M16: =IFERROR(VLOOKUP($A16,Filtro!$A$5:$AW$2591,11,FALSE),0) -> 0 | N16: =IFERROR(VLOOKUP($A16,Filtro!$A$5:$AW$2591,12,FALSE),0) -> 0 | O16: =IFERROR(VLOOKUP($A16,Filtro!$A$5:$AW$2591,13,FALSE),0) -> 0 | P16: =IFERROR(VLOOKUP($A16,Filtro!$A$5:$AW$2591,14,FALSE),0) -> 0 | Q16: =IFERROR(VLOOKUP($A16,Filtro!$A$5:$AW$2591,15,FALSE),0) -> 0 | R16: =IFERROR(VLOOKUP($A16,Filtro!$A$5:$AW$2591,16,FALSE),0) -> 0 | S16: =IFERROR(VLOOKUP($A16,Filtro!$A$5:$AW$2591,17,FALSE),0) -> 0 | T16: =IFERROR(VLOOKUP($A16,Filtro!$A$5:$AW$2591,18,FALSE),0) -> 0 | U16: =IFERROR(VLOOKUP($A16,Filtro!$A$5:$AW$2591,19,FALSE),0) -> 0 | V16: =IFERROR(VLOOKUP($A16,Filtro!$A$5:$AW$2591,20,FALSE),0) -> 0 | W16: =IFERROR(VLOOKUP($A16,Filtro!$A$5:$AW$2591,21,FALSE),0) -> 4 | X16: =IFERROR(VLOOKUP($A16,Filtro!$A$5:$AW$2591,22,FALSE),0) -> 0 | Y16: =IFERROR(VLOOKUP($A16,Filtro!$A$5:$AW$2591,23,FALSE),0) -> 0 | Z16: =IFERROR(VLOOKUP($A16,Filtro!$A$5:$AW$2591,24,FALSE),0) -> 0 | AA16: =IFERROR(VLOOKUP($A16,Filtro!$A$5:$AW$2591,25,FALSE),0) -> 0 | AB16: =IFERROR(VLOOKUP($A16,Filtro!$A$5:$AW$2591,26,FALSE),0) -> 0 | AC16: =IFERROR(VLOOKUP($A16,Filtro!$A$5:$AW$2591,27,FALSE),0) -> 0 | AD16: =IFERROR(VLOOKUP($A16,Filtro!$A$5:$AW$2591,28,FALSE),0) -> 0 | CA16: * El número de Sexo Hombres y mujeres debe ser igual al total. | DA16: 1 | DB16: 0 | DE16: 0 | DF16: 0 | DG16: 0 | DH16: 0 | DI16: 0 | DJ16: 0 | DK16: 0 | DL16: 0 | DM16: 0 | DN16: 0 | DO16: 0 | DP16: 0 | DQ16: 0
A17: 01501060 | C17: MATRONA/ÓN | D17: 344 | E17: =IFERROR(VLOOKUP($A17,Filtro!$A$5:$AW$2591,3,FALSE),0) -> 0 | F17: =IFERROR(VLOOKUP($A17,Filtro!$A$5:$AW$2591,4,FALSE),0) -> 0 | G17: =IFERROR(VLOOKUP($A17,Filtro!$A$5:$AW$2591,5,FALSE),0) -> 0 | H17: =IFERROR(VLOOKUP($A17,Filtro!$A$5:$AW$2591,6,FALSE),0) -> 11 | I17: =IFERROR(VLOOKUP($A17,Filtro!$A$5:$AW$2591,7,FALSE),0) -> 78 | J17: =IFERROR(VLOOKUP($A17,Filtro!$A$5:$AW$2591,8,FALSE),0) -> 87 | K17: =IFERROR(VLOOKUP($A17,Filtro!$A$5:$AW$2591,9,FALSE),0) -> 91 | L17: =IFERROR(VLOOKUP($A17,Filtro!$A$5:$AW$2591,10,FALSE),0) -> 56 | M17: =IFERROR(VLOOKUP($A17,Filtro!$A$5:$AW$2591,11,FALSE),0) -> 19 | N17: =IFERROR(VLOOKUP($A17,Filtro!$A$5:$AW$2591,12,FALSE),0) -> 1 | O17: =IFERROR(VLOOKUP($A17,Filtro!$A$5:$AW$2591,13,FALSE),0) -> 0 | P17: =IFERROR(VLOOKUP($A17,Filtro!$A$5:$AW$2591,14,FALSE),0) -> 1 | Q17: =IFERROR(VLOOKUP($A17,Filtro!$A$5:$AW$2591,15,FALSE),0) -> 0 | R17: =IFERROR(VLOOKUP($A17,Filtro!$A$5:$AW$2591,16,FALSE),0) -> 0 | S17: =IFERROR(VLOOKUP($A17,Filtro!$A$5:$AW$2591,17,FALSE),0) -> 0 | T17: =IFERROR(VLOOKUP($A17,Filtro!$A$5:$AW$2591,18,FALSE),0) -> 0 | U17: =IFERROR(VLOOKUP($A17,Filtro!$A$5:$AW$2591,19,FALSE),0) -> 0 | V17: =IFERROR(VLOOKUP($A17,Filtro!$A$5:$AW$2591,20,FALSE),0) -> 0 | W17: =IFERROR(VLOOKUP($A17,Filtro!$A$5:$AW$2591,21,FALSE),0) -> 345 | X17: =IFERROR(VLOOKUP($A17,Filtro!$A$5:$AW$2591,22,FALSE),0) -> 0 | Y17: =IFERROR(VLOOKUP($A17,Filtro!$A$5:$AW$2591,23,FALSE),0) -> 0 | Z17: =IFERROR(VLOOKUP($A17,Filtro!$A$5:$AW$2591,24,FALSE),0) -> 0 | AA17: =IFERROR(VLOOKUP($A17,Filtro!$A$5:$AW$2591,25,FALSE),0) -> 1 | AB17: =IFERROR(VLOOKUP($A17,Filtro!$A$5:$AW$2591,26,FALSE),0) -> 0 | AC17: =IFERROR(VLOOKUP($A17,Filtro!$A$5:$AW$2591,27,FALSE),0) -> 2 | AD17: =IFERROR(VLOOKUP($A17,Filtro!$A$5:$AW$2591,28,FALSE),0) -> 21 | CA17: * El número de Sexo Hombres y mujeres debe ser igual al total. | DA17: 1 | DB17: 0 | DE17: 0 | DF17: 0 | DG17: 0 | DH17: 0 | DI17: 0 | DJ17: 0 | DK17: 0 | DL17: 0 | DM17: 0 | DN17: 0 | DO17: 0 | DP17: 0 | DQ17: 0
A18: 01501070 | B18: POST ABORTO | C18: MÉDICO/A | D18: 4 | E18: =IFERROR(VLOOKUP($A18,Filtro!$A$5:$AW$2591,3,FALSE),0) -> 0 | F18: =IFERROR(VLOOKUP($A18,Filtro!$A$5:$AW$2591,4,FALSE),0) -> 0 | G18: =IFERROR(VLOOKUP($A18,Filtro!$A$5:$AW$2591,5,FALSE),0) -> 0 | H18: =IFERROR(VLOOKUP($A18,Filtro!$A$5:$AW$2591,6,FALSE),0) -> 0 | I18: =IFERROR(VLOOKUP($A18,Filtro!$A$5:$AW$2591,7,FALSE),0) -> 1 | J18: =IFERROR(VLOOKUP($A18,Filtro!$A$5:$AW$2591,8,FALSE),0) -> 1 | K18: =IFERROR(VLOOKUP($A18,Filtro!$A$5:$AW$2591,9,FALSE),0) -> 0 | L18: =IFERROR(VLOOKUP($A18,Filtro!$A$5:$AW$2591,10,FALSE),0) -> 2 | M18: =IFERROR(VLOOKUP($A18,Filtro!$A$5:$AW$2591,11,FALSE),0) -> 0 | N18: =IFERROR(VLOOKUP($A18,Filtro!$A$5:$AW$2591,12,FALSE),0) -> 0 | O18: =IFERROR(VLOOKUP($A18,Filtro!$A$5:$AW$2591,13,FALSE),0) -> 0 | P18: =IFERROR(VLOOKUP($A18,Filtro!$A$5:$AW$2591,14,FALSE),0) -> 0 | Q18: =IFERROR(VLOOKUP($A18,Filtro!$A$5:$AW$2591,15,FALSE),0) -> 0 | R18: =IFERROR(VLOOKUP($A18,Filtro!$A$5:$AW$2591,16,FALSE),0) -> 0 | S18: =IFERROR(VLOOKUP($A18,Filtro!$A$5:$AW$2591,17,FALSE),0) -> 0 | T18: =IFERROR(VLOOKUP($A18,Filtro!$A$5:$AW$2591,18,FALSE),0) -> 0 | U18: =IFERROR(VLOOKUP($A18,Filtro!$A$5:$AW$2591,19,FALSE),0) -> 0 | V18: =IFERROR(VLOOKUP($A18,Filtro!$A$5:$AW$2591,20,FALSE),0) -> 0 | W18: =IFERROR(VLOOKUP($A18,Filtro!$A$5:$AW$2591,21,FALSE),0) -> 4 | X18: =IFERROR(VLOOKUP($A18,Filtro!$A$5:$AW$2591,22,FALSE),0) -> 0 | Y18: =IFERROR(VLOOKUP($A18,Filtro!$A$5:$AW$2591,23,FALSE),0) -> 0 | Z18: =IFERROR(VLOOKUP($A18,Filtro!$A$5:$AW$2591,24,FALSE),0) -> 0 | AA18: =IFERROR(VLOOKUP($A18,Filtro!$A$5:$AW$2591,25,FALSE),0) -> 0 | AB18: =IFERROR(VLOOKUP($A18,Filtro!$A$5:$AW$2591,26,FALSE),0) -> 0 | AC18: =IFERROR(VLOOKUP($A18,Filtro!$A$5:$AW$2591,27,FALSE),0) -> 0 | AD18: =IFERROR(VLOOKUP($A18,Filtro!$A$5:$AW$2591,28,FALSE),0) -> 0 | CA18: * El número de Sexo Hombres y mujeres debe ser igual al total. | DA18: 1 | DB18: 0 | DE18: 0 | DF18: 0 | DG18: 0 | DH18: 0 | DI18: 0 | DJ18: 0 | DK18: 0 | DL18: 0 | DM18: 0 | DN18: 0 | DO18: 0 | DP18: 0 | DQ18: 0
A19: 01501080 | C19: MATRONA/ÓN | D19: 146 | E19: =IFERROR(VLOOKUP($A19,Filtro!$A$5:$AW$2591,3,FALSE),0) -> 0 | F19: =IFERROR(VLOOKUP($A19,Filtro!$A$5:$AW$2591,4,FALSE),0) -> 0 | G19: =IFERROR(VLOOKUP($A19,Filtro!$A$5:$AW$2591,5,FALSE),0) -> 0 | H19: =IFERROR(VLOOKUP($A19,Filtro!$A$5:$AW$2591,6,FALSE),0) -> 8 | I19: =IFERROR(VLOOKUP($A19,Filtro!$A$5:$AW$2591,7,FALSE),0) -> 28 | J19: =IFERROR(VLOOKUP($A19,Filtro!$A$5:$AW$2591,8,FALSE),0) -> 25 | K19: =IFERROR(VLOOKUP($A19,Filtro!$A$5:$AW$2591,9,FALSE),0) -> 41 | L19: =IFERROR(VLOOKUP($A19,Filtro!$A$5:$AW$2591,10,FALSE),0) -> 30 | M19: =IFERROR(VLOOKUP($A19,Filtro!$A$5:$AW$2591,11,FALSE),0) -> 12 | N19: =IFERROR(VLOOKUP($A19,Filtro!$A$5:$AW$2591,12,FALSE),0) -> 2 | O19: =IFERROR(VLOOKUP($A19,Filtro!$A$5:$AW$2591,13,FALSE),0) -> 0 | P19: =IFERROR(VLOOKUP($A19,Filtro!$A$5:$AW$2591,14,FALSE),0) -> 0 | Q19: =IFERROR(VLOOKUP($A19,Filtro!$A$5:$AW$2591,15,FALSE),0) -> 0 | R19: =IFERROR(VLOOKUP($A19,Filtro!$A$5:$AW$2591,16,FALSE),0) -> 0 | S19: =IFERROR(VLOOKUP($A19,Filtro!$A$5:$AW$2591,17,FALSE),0) -> 0 | T19: =IFERROR(VLOOKUP($A19,Filtro!$A$5:$AW$2591,18,FALSE),0) -> 0 | U19: =IFERROR(VLOOKUP($A19,Filtro!$A$5:$AW$2591,19,FALSE),0) -> 0 | V19: =IFERROR(VLOOKUP($A19,Filtro!$A$5:$AW$2591,20,FALSE),0) -> 0 | W19: =IFERROR(VLOOKUP($A19,Filtro!$A$5:$AW$2591,21,FALSE),0) -> 140 | X19: =IFERROR(VLOOKUP($A19,Filtro!$A$5:$AW$2591,22,FALSE),0) -> 0 | Y19: =IFERROR(VLOOKUP($A19,Filtro!$A$5:$AW$2591,23,FALSE),0) -> 0 | Z19: =IFERROR(VLOOKUP($A19,Filtro!$A$5:$AW$2591,24,FALSE),0) -> 0 | AA19: =IFERROR(VLOOKUP($A19,Filtro!$A$5:$AW$2591,25,FALSE),0) -> 0 | AB19: =IFERROR(VLOOKUP($A19,Filtro!$A$5:$AW$2591,26,FALSE),0) -> 0 | AC19: =IFERROR(VLOOKUP($A19,Filtro!$A$5:$AW$2591,27,FALSE),0) -> 3 | AD19: =IFERROR(VLOOKUP($A19,Filtro!$A$5:$AW$2591,28,FALSE),0) -> 9 | CA19: * El número de Sexo Hombres y mujeres debe ser igual al total. | DA19: 1 | DB19: 0 | DE19: 0 | DF19: 0 | DG19: 0 | DH19: 0 | DI19: 0 | DJ19: 0 | DK19: 0 | DL19: 0 | DM19: 0 | DN19: 0 | DO19: 0 | DP19: 0 | DQ19: 0
A20: 01110106 | B20: PUÉRPERA CON RECIÉN NACIDO HASTA 10 DÍAS DE VIDA | C20: MÉDICO/A | D20: 38 | E20: =IFERROR(VLOOKUP($A20,Filtro!$A$5:$AW$2591,3,FALSE),0) -> 0 | F20: =IFERROR(VLOOKUP($A20,Filtro!$A$5:$AW$2591,4,FALSE),0) -> 0 | G20: =IFERROR(VLOOKUP($A20,Filtro!$A$5:$AW$2591,5,FALSE),0) -> 0 | H20: =IFERROR(VLOOKUP($A20,Filtro!$A$5:$AW$2591,6,FALSE),0) -> 2 | I20: =IFERROR(VLOOKUP($A20,Filtro!$A$5:$AW$2591,7,FALSE),0) -> 8 | J20: =IFERROR(VLOOKUP($A20,Filtro!$A$5:$AW$2591,8,FALSE),0) -> 10 | K20: =IFERROR(VLOOKUP($A20,Filtro!$A$5:$AW$2591,9,FALSE),0) -> 7 | L20: =IFERROR(VLOOKUP($A20,Filtro!$A$5:$AW$2591,10,FALSE),0) -> 6 | M20: =IFERROR(VLOOKUP($A20,Filtro!$A$5:$AW$2591,11,FALSE),0) -> 5 | N20: =IFERROR(VLOOKUP($A20,Filtro!$A$5:$AW$2591,12,FALSE),0) -> 0 | O20: =IFERROR(VLOOKUP($A20,Filtro!$A$5:$AW$2591,13,FALSE),0) -> 0 | P20: =IFERROR(VLOOKUP($A20,Filtro!$A$5:$AW$2591,14,FALSE),0) -> 0 | Q20: =IFERROR(VLOOKUP($A20,Filtro!$A$5:$AW$2591,15,FALSE),0) -> 0 | R20: =IFERROR(VLOOKUP($A20,Filtro!$A$5:$AW$2591,16,FALSE),0) -> 0 | S20: =IFERROR(VLOOKUP($A20,Filtro!$A$5:$AW$2591,17,FALSE),0) -> 0 | T20: =IFERROR(VLOOKUP($A20,Filtro!$A$5:$AW$2591,18,FALSE),0) -> 0 | U20: =IFERROR(VLOOKUP($A20,Filtro!$A$5:$AW$2591,19,FALSE),0) -> 0 | V20: =IFERROR(VLOOKUP($A20,Filtro!$A$5:$AW$2591,20,FALSE),0) -> 0 | W20: =IFERROR(VLOOKUP($A20,Filtro!$A$5:$AW$2591,21,FALSE),0) -> 35 | X20: =IFERROR(VLOOKUP($A20,Filtro!$A$5:$AW$2591,22,FALSE),0) -> 1 | Y20: =IFERROR(VLOOKUP($A20,Filtro!$A$5:$AW$2591,23,FALSE),0) -> 19 | Z20: =IFERROR(VLOOKUP($A20,Filtro!$A$5:$AW$2591,24,FALSE),0) -> 0 | AA20: =IFERROR(VLOOKUP($A20,Filtro!$A$5:$AW$2591,25,FALSE),0) -> 0 | AB20: =IFERROR(VLOOKUP($A20,Filtro!$A$5:$AW$2591,26,FALSE),0) -> 0 | AC20: =IFERROR(VLOOKUP($A20,Filtro!$A$5:$AW$2591,27,FALSE),0) -> 1 | AD20: =IFERROR(VLOOKUP($A20,Filtro!$A$5:$AW$2591,28,FALSE),0) -> 4 | CA20: * El número de Sexo Hombres y mujeres debe ser igual al total. | CD20: =IF(AND(C20<>0,'A05'!C81=""),"* No olvide registrar ingresos a control de salud de los respectivos RN, en REM A05-sección E. ","") ->  | DA20: 1 | DB20: 0 | DC20: 0 | DD20: 0 | DE20: 0 | DF20: 0 | DG20: 0 | DH20: 0 | DI20: 0 | DJ20: 0 | DK20: 0 | DL20: 0 | DM20: 0 | DN20: 0 | DO20: 0 | DP20: 0 | DQ20: 0
A21: 01110107 | C21: MATRONA/ÓN | D21: 2626 | E21: =IFERROR(VLOOKUP($A21,Filtro!$A$5:$AW$2591,3,FALSE),0) -> 0 | F21: =IFERROR(VLOOKUP($A21,Filtro!$A$5:$AW$2591,4,FALSE),0) -> 0 | G21: =IFERROR(VLOOKUP($A21,Filtro!$A$5:$AW$2591,5,FALSE),0) -> 6 | H21: =IFERROR(VLOOKUP($A21,Filtro!$A$5:$AW$2591,6,FALSE),0) -> 140 | I21: =IFERROR(VLOOKUP($A21,Filtro!$A$5:$AW$2591,7,FALSE),0) -> 523 | J21: =IFERROR(VLOOKUP($A21,Filtro!$A$5:$AW$2591,8,FALSE),0) -> 772 | K21: =IFERROR(VLOOKUP($A21,Filtro!$A$5:$AW$2591,9,FALSE),0) -> 706 | L21: =IFERROR(VLOOKUP($A21,Filtro!$A$5:$AW$2591,10,FALSE),0) -> 364 | M21: =IFERROR(VLOOKUP($A21,Filtro!$A$5:$AW$2591,11,FALSE),0) -> 109 | N21: =IFERROR(VLOOKUP($A21,Filtro!$A$5:$AW$2591,12,FALSE),0) -> 5 | O21: =IFERROR(VLOOKUP($A21,Filtro!$A$5:$AW$2591,13,FALSE),0) -> 0 | P21: =IFERROR(VLOOKUP($A21,Filtro!$A$5:$AW$2591,14,FALSE),0) -> 1 | Q21: =IFERROR(VLOOKUP($A21,Filtro!$A$5:$AW$2591,15,FALSE),0) -> 0 | R21: =IFERROR(VLOOKUP($A21,Filtro!$A$5:$AW$2591,16,FALSE),0) -> 0 | S21: =IFERROR(VLOOKUP($A21,Filtro!$A$5:$AW$2591,17,FALSE),0) -> 0 | T21: =IFERROR(VLOOKUP($A21,Filtro!$A$5:$AW$2591,18,FALSE),0) -> 0 | U21: =IFERROR(VLOOKUP($A21,Filtro!$A$5:$AW$2591,19,FALSE),0) -> 0 | V21: =IFERROR(VLOOKUP($A21,Filtro!$A$5:$AW$2591,20,FALSE),0) -> 0 | W21: =IFERROR(VLOOKUP($A21,Filtro!$A$5:$AW$2591,21,FALSE),0) -> 2588 | X21: =IFERROR(VLOOKUP($A21,Filtro!$A$5:$AW$2591,22,FALSE),0) -> 470 | Y21: =IFERROR(VLOOKUP($A21,Filtro!$A$5:$AW$2591,23,FALSE),0) -> 1206 | Z21: =IFERROR(VLOOKUP($A21,Filtro!$A$5:$AW$2591,24,FALSE),0) -> 0 | AA21: =IFERROR(VLOOKUP($A21,Filtro!$A$5:$AW$2591,25,FALSE),0) -> 2 | AB21: =IFERROR(VLOOKUP($A21,Filtro!$A$5:$AW$2591,26,FALSE),0) -> 1 | AC21: =IFERROR(VLOOKUP($A21,Filtro!$A$5:$AW$2591,27,FALSE),0) -> 22 | AD21: =IFERROR(VLOOKUP($A21,Filtro!$A$5:$AW$2591,28,FALSE),0) -> 170 | CA21: * El número de Sexo Hombres y mujeres debe ser igual al total. | CD21: =IF(AND(C21<>0,'A05'!C81=""),"* No olvide registrar ingresos a control de salud de los respectivos RN, en REM A05-sección E. ","") ->  | DA21: 1 | DB21: 0 | DC21: 0 | DD21: 0 | DE21: 0 | DF21: 0 | DG21: 0 | DH21: 0 | DI21: 0 | DJ21: 0 | DK21: 0 | DL21: 0 | DM21: 0 | DN21: 0 | DO21: 0 | DP21: 0 | DQ21: 0
A22: 01080030 | B22: PUÉRPERA CON RECIÉN NACIDO ENTRE 11 y 28 DÍAS | C22: MÉDICO/A | D22: 5 | E22: =IFERROR(VLOOKUP($A22,Filtro!$A$5:$AW$2591,3,FALSE),0) -> 0 | F22: =IFERROR(VLOOKUP($A22,Filtro!$A$5:$AW$2591,4,FALSE),0) -> 0 | G22: =IFERROR(VLOOKUP($A22,Filtro!$A$5:$AW$2591,5,FALSE),0) -> 0 | H22: =IFERROR(VLOOKUP($A22,Filtro!$A$5:$AW$2591,6,FALSE),0) -> 0 | I22: =IFERROR(VLOOKUP($A22,Filtro!$A$5:$AW$2591,7,FALSE),0) -> 1 | J22: =IFERROR(VLOOKUP($A22,Filtro!$A$5:$AW$2591,8,FALSE),0) -> 2 | K22: =IFERROR(VLOOKUP($A22,Filtro!$A$5:$AW$2591,9,FALSE),0) -> 2 | L22: =IFERROR(VLOOKUP($A22,Filtro!$A$5:$AW$2591,10,FALSE),0) -> 0 | M22: =IFERROR(VLOOKUP($A22,Filtro!$A$5:$AW$2591,11,FALSE),0) -> 0 | N22: =IFERROR(VLOOKUP($A22,Filtro!$A$5:$AW$2591,12,FALSE),0) -> 0 | O22: =IFERROR(VLOOKUP($A22,Filtro!$A$5:$AW$2591,13,FALSE),0) -> 0 | P22: =IFERROR(VLOOKUP($A22,Filtro!$A$5:$AW$2591,14,FALSE),0) -> 0 | Q22: =IFERROR(VLOOKUP($A22,Filtro!$A$5:$AW$2591,15,FALSE),0) -> 0 | R22: =IFERROR(VLOOKUP($A22,Filtro!$A$5:$AW$2591,16,FALSE),0) -> 0 | S22: =IFERROR(VLOOKUP($A22,Filtro!$A$5:$AW$2591,17,FALSE),0) -> 0 | T22: =IFERROR(VLOOKUP($A22,Filtro!$A$5:$AW$2591,18,FALSE),0) -> 0 | U22: =IFERROR(VLOOKUP($A22,Filtro!$A$5:$AW$2591,19,FALSE),0) -> 0 | V22: =IFERROR(VLOOKUP($A22,Filtro!$A$5:$AW$2591,20,FALSE),0) -> 0 | W22: =IFERROR(VLOOKUP($A22,Filtro!$A$5:$AW$2591,21,FALSE),0) -> 10 | X22: =IFERROR(VLOOKUP($A22,Filtro!$A$5:$AW$2591,22,FALSE),0) -> 1 | Y22: =IFERROR(VLOOKUP($A22,Filtro!$A$5:$AW$2591,23,FALSE),0) -> 8 | Z22: =IFERROR(VLOOKUP($A22,Filtro!$A$5:$AW$2591,24,FALSE),0) -> 0 | AA22: =IFERROR(VLOOKUP($A22,Filtro!$A$5:$AW$2591,25,FALSE),0) -> 0 | AB22: =IFERROR(VLOOKUP($A22,Filtro!$A$5:$AW$2591,26,FALSE),0) -> 0 | AC22: =IFERROR(VLOOKUP($A22,Filtro!$A$5:$AW$2591,27,FALSE),0) -> 0 | AD22: =IFERROR(VLOOKUP($A22,Filtro!$A$5:$AW$2591,28,FALSE),0) -> 3 | CA22: * El número de Sexo Hombres y mujeres debe ser igual al total. | CD22: =IF(AND(C22<>0,'A05'!C81=""),"* No olvide registrar ingresos a control de salud de los respectivos RN, en REM A05-sección E. ","") ->  | DA22: 1 | DB22: 0 | DC22: 0 | DD22: 0 | DE22: 0 | DF22: 0 | DG22: 0 | DH22: 0 | DI22: 0 | DJ22: 0 | DK22: 0 | DL22: 0 | DM22: 0 | DN22: 0 | DO22: 0 | DP22: 0 | DQ22: 0
A23: 01080040 | C23: MATRONA/ÓN | D23: 1347 | E23: =IFERROR(VLOOKUP($A23,Filtro!$A$5:$AW$2591,3,FALSE),0) -> 0 | F23: =IFERROR(VLOOKUP($A23,Filtro!$A$5:$AW$2591,4,FALSE),0) -> 0 | G23: =IFERROR(VLOOKUP($A23,Filtro!$A$5:$AW$2591,5,FALSE),0) -> 1 | H23: =IFERROR(VLOOKUP($A23,Filtro!$A$5:$AW$2591,6,FALSE),0) -> 84 | I23: =IFERROR(VLOOKUP($A23,Filtro!$A$5:$AW$2591,7,FALSE),0) -> 266 | J23: =IFERROR(VLOOKUP($A23,Filtro!$A$5:$AW$2591,8,FALSE),0) -> 390 | K23: =IFERROR(VLOOKUP($A23,Filtro!$A$5:$AW$2591,9,FALSE),0) -> 349 | L23: =IFERROR(VLOOKUP($A23,Filtro!$A$5:$AW$2591,10,FALSE),0) -> 192 | M23: =IFERROR(VLOOKUP($A23,Filtro!$A$5:$AW$2591,11,FALSE),0) -> 63 | N23: =IFERROR(VLOOKUP($A23,Filtro!$A$5:$AW$2591,12,FALSE),0) -> 1 | O23: =IFERROR(VLOOKUP($A23,Filtro!$A$5:$AW$2591,13,FALSE),0) -> 0 | P23: =IFERROR(VLOOKUP($A23,Filtro!$A$5:$AW$2591,14,FALSE),0) -> 1 | Q23: =IFERROR(VLOOKUP($A23,Filtro!$A$5:$AW$2591,15,FALSE),0) -> 0 | R23: =IFERROR(VLOOKUP($A23,Filtro!$A$5:$AW$2591,16,FALSE),0) -> 0 | S23: =IFERROR(VLOOKUP($A23,Filtro!$A$5:$AW$2591,17,FALSE),0) -> 0 | T23: =IFERROR(VLOOKUP($A23,Filtro!$A$5:$AW$2591,18,FALSE),0) -> 0 | U23: =IFERROR(VLOOKUP($A23,Filtro!$A$5:$AW$2591,19,FALSE),0) -> 0 | V23: =IFERROR(VLOOKUP($A23,Filtro!$A$5:$AW$2591,20,FALSE),0) -> 0 | W23: =IFERROR(VLOOKUP($A23,Filtro!$A$5:$AW$2591,21,FALSE),0) -> 1313 | X23: =IFERROR(VLOOKUP($A23,Filtro!$A$5:$AW$2591,22,FALSE),0) -> 194 | Y23: =IFERROR(VLOOKUP($A23,Filtro!$A$5:$AW$2591,23,FALSE),0) -> 456 | Z23: =IFERROR(VLOOKUP($A23,Filtro!$A$5:$AW$2591,24,FALSE),0) -> 0 | AA23: =IFERROR(VLOOKUP($A23,Filtro!$A$5:$AW$2591,25,FALSE),0) -> 3 | AB23: =IFERROR(VLOOKUP($A23,Filtro!$A$5:$AW$2591,26,FALSE),0) -> 0 | AC23: =IFERROR(VLOOKUP($A23,Filtro!$A$5:$AW$2591,27,FALSE),0) -> 13 | AD23: =IFERROR(VLOOKUP($A23,Filtro!$A$5:$AW$2591,28,FALSE),0) -> 61 | CA23: * El número de Sexo Hombres y mujeres debe ser igual al total. | CD23: =IF(AND(C23<>0,'A05'!C81=""),"* No olvide registrar ingresos a control de salud de los respectivos RN, en REM A05-sección E. ","") ->  | DA23: 1 | DB23: 0 | DC23: 0 | DD23: 0 | DE23: 0 | DF23: 0 | DG23: 0 | DH23: 0 | DI23: 0 | DJ23: 0 | DK23: 0 | DL23: 0 | DM23: 0 | DN23: 0 | DO23: 0 | DP23: 0 | DQ23: 0
A24: 01501090 | B24: RECIÉN NACIDO HASTA 10 DÍAS DE VIDA | C24: MÉDICO | D24: =SUM(E24) -> 0 | E24: =IFERROR(VLOOKUP($A24,Filtro!$A$5:$AW$2591,3,FALSE),0) -> 0 | F24: =IFERROR(VLOOKUP($A24,Filtro!$A$5:$AW$2591,4,FALSE),0) -> 0 | G24: =IFERROR(VLOOKUP($A24,Filtro!$A$5:$AW$2591,5,FALSE),0) -> 0 | H24: =IFERROR(VLOOKUP($A24,Filtro!$A$5:$AW$2591,6,FALSE),0) -> 0 | I24: =IFERROR(VLOOKUP($A24,Filtro!$A$5:$AW$2591,7,FALSE),0) -> 0 | J24: =IFERROR(VLOOKUP($A24,Filtro!$A$5:$AW$2591,8,FALSE),0) -> 0 | K24: =IFERROR(VLOOKUP($A24,Filtro!$A$5:$AW$2591,9,FALSE),0) -> 0 | L24: =IFERROR(VLOOKUP($A24,Filtro!$A$5:$AW$2591,10,FALSE),0) -> 0 | M24: =IFERROR(VLOOKUP($A24,Filtro!$A$5:$AW$2591,11,FALSE),0) -> 0 | N24: =IFERROR(VLOOKUP($A24,Filtro!$A$5:$AW$2591,12,FALSE),0) -> 0 | O24: =IFERROR(VLOOKUP($A24,Filtro!$A$5:$AW$2591,13,FALSE),0) -> 0 | P24: =IFERROR(VLOOKUP($A24,Filtro!$A$5:$AW$2591,14,FALSE),0) -> 0 | Q24: =IFERROR(VLOOKUP($A24,Filtro!$A$5:$AW$2591,15,FALSE),0) -> 0 | R24: =IFERROR(VLOOKUP($A24,Filtro!$A$5:$AW$2591,16,FALSE),0) -> 0 | S24: =IFERROR(VLOOKUP($A24,Filtro!$A$5:$AW$2591,17,FALSE),0) -> 0 | T24: =IFERROR(VLOOKUP($A24,Filtro!$A$5:$AW$2591,18,FALSE),0) -> 0 | U24: =IFERROR(VLOOKUP($A24,Filtro!$A$5:$AW$2591,19,FALSE),0) -> 0 | V24: =IFERROR(VLOOKUP($A24,Filtro!$A$5:$AW$2591,20,FALSE),0) -> 0 | W24: =IFERROR(VLOOKUP($A24,Filtro!$A$5:$AW$2591,21,FALSE),0) -> 0 | X24: =IFERROR(VLOOKUP($A24,Filtro!$A$5:$AW$2591,22,FALSE),0) -> 0 | Y24: =IFERROR(VLOOKUP($A24,Filtro!$A$5:$AW$2591,23,FALSE),0) -> 0 | Z24: =IFERROR(VLOOKUP($A24,Filtro!$A$5:$AW$2591,24,FALSE),0) -> 0 | AA24: =IFERROR(VLOOKUP($A24,Filtro!$A$5:$AW$2591,25,FALSE),0) -> 0 | AB24: =IFERROR(VLOOKUP($A24,Filtro!$A$5:$AW$2591,26,FALSE),0) -> 0 | AC24: =IFERROR(VLOOKUP($A24,Filtro!$A$5:$AW$2591,27,FALSE),0) -> 0 | AD24: =IFERROR(VLOOKUP($A24,Filtro!$A$5:$AW$2591,28,FALSE),0) -> 0 | CA24: * El número de Sexo Hombres y mujeres debe ser igual al total. | DA24: 1 | DB24: 0 | DE24: 0 | DF24: 0 | DG24: 0 | DH24: 0 | DI24: 0 | DJ24: 0 | DK24: 0 | DL24: 0 | DM24: 0 | DN24: 0 | DO24: 0 | DP24: 0 | DQ24: 0
A25: 01502000 | C25: MATRONA /ÓN | D25: =SUM(E25) -> 969 | E25: =IFERROR(VLOOKUP($A25,Filtro!$A$5:$AW$2591,3,FALSE),0) -> 969 | F25: =IFERROR(VLOOKUP($A25,Filtro!$A$5:$AW$2591,4,FALSE),0) -> 0 | G25: =IFERROR(VLOOKUP($A25,Filtro!$A$5:$AW$2591,5,FALSE),0) -> 0 | H25: =IFERROR(VLOOKUP($A25,Filtro!$A$5:$AW$2591,6,FALSE),0) -> 0 | I25: =IFERROR(VLOOKUP($A25,Filtro!$A$5:$AW$2591,7,FALSE),0) -> 0 | J25: =IFERROR(VLOOKUP($A25,Filtro!$A$5:$AW$2591,8,FALSE),0) -> 0 | K25: =IFERROR(VLOOKUP($A25,Filtro!$A$5:$AW$2591,9,FALSE),0) -> 0 | L25: =IFERROR(VLOOKUP($A25,Filtro!$A$5:$AW$2591,10,FALSE),0) -> 0 | M25: =IFERROR(VLOOKUP($A25,Filtro!$A$5:$AW$2591,11,FALSE),0) -> 0 | N25: =IFERROR(VLOOKUP($A25,Filtro!$A$5:$AW$2591,12,FALSE),0) -> 0 | O25: =IFERROR(VLOOKUP($A25,Filtro!$A$5:$AW$2591,13,FALSE),0) -> 0 | P25: =IFERROR(VLOOKUP($A25,Filtro!$A$5:$AW$2591,14,FALSE),0) -> 0 | Q25: =IFERROR(VLOOKUP($A25,Filtro!$A$5:$AW$2591,15,FALSE),0) -> 0 | R25: =IFERROR(VLOOKUP($A25,Filtro!$A$5:$AW$2591,16,FALSE),0) -> 0 | S25: =IFERROR(VLOOKUP($A25,Filtro!$A$5:$AW$2591,17,FALSE),0) -> 0 | T25: =IFERROR(VLOOKUP($A25,Filtro!$A$5:$AW$2591,18,FALSE),0) -> 0 | U25: =IFERROR(VLOOKUP($A25,Filtro!$A$5:$AW$2591,19,FALSE),0) -> 0 | V25: =IFERROR(VLOOKUP($A25,Filtro!$A$5:$AW$2591,20,FALSE),0) -> 427 | W25: =IFERROR(VLOOKUP($A25,Filtro!$A$5:$AW$2591,21,FALSE),0) -> 520 | X25: =IFERROR(VLOOKUP($A25,Filtro!$A$5:$AW$2591,22,FALSE),0) -> 234 | Y25: =IFERROR(VLOOKUP($A25,Filtro!$A$5:$AW$2591,23,FALSE),0) -> 472 | Z25: =IFERROR(VLOOKUP($A25,Filtro!$A$5:$AW$2591,24,FALSE),0) -> 0 | AA25: =IFERROR(VLOOKUP($A25,Filtro!$A$5:$AW$2591,25,FALSE),0) -> 1 | AB25: =IFERROR(VLOOKUP($A25,Filtro!$A$5:$AW$2591,26,FALSE),0) -> 0 | AC25: =IFERROR(VLOOKUP($A25,Filtro!$A$5:$AW$2591,27,FALSE),0) -> 2 | AD25: =IFERROR(VLOOKUP($A25,Filtro!$A$5:$AW$2591,28,FALSE),0) -> 11 | CA25: * El número de Sexo Hombres y mujeres debe ser igual al total. | DA25: 1 | DB25: 0 | DE25: 0 | DF25: 0 | DG25: 0 | DH25: 0 | DI25: 0 | DJ25: 0 | DK25: 0 | DL25: 0 | DM25: 0 | DN25: 0 | DO25: 0 | DP25: 0 | DQ25: 0
A26: 01502010 | B26: RECIÉN NACIDO ENTRE 11 y 28 DÍAS | C26: MÉDICO | D26: =SUM(E26) -> 1 | E26: =IFERROR(VLOOKUP($A26,Filtro!$A$5:$AW$2591,3,FALSE),0) -> 1 | F26: =IFERROR(VLOOKUP($A26,Filtro!$A$5:$AW$2591,4,FALSE),0) -> 0 | G26: =IFERROR(VLOOKUP($A26,Filtro!$A$5:$AW$2591,5,FALSE),0) -> 0 | H26: =IFERROR(VLOOKUP($A26,Filtro!$A$5:$AW$2591,6,FALSE),0) -> 0 | I26: =IFERROR(VLOOKUP($A26,Filtro!$A$5:$AW$2591,7,FALSE),0) -> 0 | J26: =IFERROR(VLOOKUP($A26,Filtro!$A$5:$AW$2591,8,FALSE),0) -> 0 | K26: =IFERROR(VLOOKUP($A26,Filtro!$A$5:$AW$2591,9,FALSE),0) -> 0 | L26: =IFERROR(VLOOKUP($A26,Filtro!$A$5:$AW$2591,10,FALSE),0) -> 0 | M26: =IFERROR(VLOOKUP($A26,Filtro!$A$5:$AW$2591,11,FALSE),0) -> 0 | N26: =IFERROR(VLOOKUP($A26,Filtro!$A$5:$AW$2591,12,FALSE),0) -> 0 | O26: =IFERROR(VLOOKUP($A26,Filtro!$A$5:$AW$2591,13,FALSE),0) -> 0 | P26: =IFERROR(VLOOKUP($A26,Filtro!$A$5:$AW$2591,14,FALSE),0) -> 0 | Q26: =IFERROR(VLOOKUP($A26,Filtro!$A$5:$AW$2591,15,FALSE),0) -> 0 | R26: =IFERROR(VLOOKUP($A26,Filtro!$A$5:$AW$2591,16,FALSE),0) -> 0 | S26: =IFERROR(VLOOKUP($A26,Filtro!$A$5:$AW$2591,17,FALSE),0) -> 0 | T26: =IFERROR(VLOOKUP($A26,Filtro!$A$5:$AW$2591,18,FALSE),0) -> 0 | U26: =IFERROR(VLOOKUP($A26,Filtro!$A$5:$AW$2591,19,FALSE),0) -> 0 | V26: =IFERROR(VLOOKUP($A26,Filtro!$A$5:$AW$2591,20,FALSE),0) -> 0 | W26: =IFERROR(VLOOKUP($A26,Filtro!$A$5:$AW$2591,21,FALSE),0) -> 1 | X26: =IFERROR(VLOOKUP($A26,Filtro!$A$5:$AW$2591,22,FALSE),0) -> 0 | Y26: =IFERROR(VLOOKUP($A26,Filtro!$A$5:$AW$2591,23,FALSE),0) -> 0 | Z26: =IFERROR(VLOOKUP($A26,Filtro!$A$5:$AW$2591,24,FALSE),0) -> 0 | AA26: =IFERROR(VLOOKUP($A26,Filtro!$A$5:$AW$2591,25,FALSE),0) -> 0 | AB26: =IFERROR(VLOOKUP($A26,Filtro!$A$5:$AW$2591,26,FALSE),0) -> 0 | AC26: =IFERROR(VLOOKUP($A26,Filtro!$A$5:$AW$2591,27,FALSE),0) -> 0 | AD26: =IFERROR(VLOOKUP($A26,Filtro!$A$5:$AW$2591,28,FALSE),0) -> 0 | CA26: * El número de Sexo Hombres y mujeres debe ser igual al total. | DA26: 1 | DB26: 0 | DE26: 0 | DF26: 0 | DG26: 0 | DH26: 0 | DI26: 0 | DJ26: 0 | DK26: 0 | DL26: 0 | DM26: 0 | DN26: 0 | DO26: 0 | DP26: 0 | DQ26: 0
A27: 01502020 | C27: MATRONA /ÓN | D27: =SUM(E27) -> 436 | E27: =IFERROR(VLOOKUP($A27,Filtro!$A$5:$AW$2591,3,FALSE),0) -> 436 | F27: =IFERROR(VLOOKUP($A27,Filtro!$A$5:$AW$2591,4,FALSE),0) -> 0 | G27: =IFERROR(VLOOKUP($A27,Filtro!$A$5:$AW$2591,5,FALSE),0) -> 0 | H27: =IFERROR(VLOOKUP($A27,Filtro!$A$5:$AW$2591,6,FALSE),0) -> 0 | I27: =IFERROR(VLOOKUP($A27,Filtro!$A$5:$AW$2591,7,FALSE),0) -> 0 | J27: =IFERROR(VLOOKUP($A27,Filtro!$A$5:$AW$2591,8,FALSE),0) -> 0 | K27: =IFERROR(VLOOKUP($A27,Filtro!$A$5:$AW$2591,9,FALSE),0) -> 0 | L27: =IFERROR(VLOOKUP($A27,Filtro!$A$5:$AW$2591,10,FALSE),0) -> 0 | M27: =IFERROR(VLOOKUP($A27,Filtro!$A$5:$AW$2591,11,FALSE),0) -> 0 | N27: =IFERROR(VLOOKUP($A27,Filtro!$A$5:$AW$2591,12,FALSE),0) -> 0 | O27: =IFERROR(VLOOKUP($A27,Filtro!$A$5:$AW$2591,13,FALSE),0) -> 0 | P27: =IFERROR(VLOOKUP($A27,Filtro!$A$5:$AW$2591,14,FALSE),0) -> 0 | Q27: =IFERROR(VLOOKUP($A27,Filtro!$A$5:$AW$2591,15,FALSE),0) -> 0 | R27: =IFERROR(VLOOKUP($A27,Filtro!$A$5:$AW$2591,16,FALSE),0) -> 0 | S27: =IFERROR(VLOOKUP($A27,Filtro!$A$5:$AW$2591,17,FALSE),0) -> 0 | T27: =IFERROR(VLOOKUP($A27,Filtro!$A$5:$AW$2591,18,FALSE),0) -> 0 | U27: =IFERROR(VLOOKUP($A27,Filtro!$A$5:$AW$2591,19,FALSE),0) -> 0 | V27: =IFERROR(VLOOKUP($A27,Filtro!$A$5:$AW$2591,20,FALSE),0) -> 194 | W27: =IFERROR(VLOOKUP($A27,Filtro!$A$5:$AW$2591,21,FALSE),0) -> 235 | X27: =IFERROR(VLOOKUP($A27,Filtro!$A$5:$AW$2591,22,FALSE),0) -> 72 | Y27: =IFERROR(VLOOKUP($A27,Filtro!$A$5:$AW$2591,23,FALSE),0) -> 129 | Z27: =IFERROR(VLOOKUP($A27,Filtro!$A$5:$AW$2591,24,FALSE),0) -> 1 | AA27: =IFERROR(VLOOKUP($A27,Filtro!$A$5:$AW$2591,25,FALSE),0) -> 3 | AB27: =IFERROR(VLOOKUP($A27,Filtro!$A$5:$AW$2591,26,FALSE),0) -> 1 | AC27: =IFERROR(VLOOKUP($A27,Filtro!$A$5:$AW$2591,27,FALSE),0) -> 1 | AD27: =IFERROR(VLOOKUP($A27,Filtro!$A$5:$AW$2591,28,FALSE),0) -> 8 | CA27: * El número de Sexo Hombres y mujeres debe ser igual al total. | DA27: 1 | DB27: 0 | DE27: 0 | DF27: 0 | DG27: 0 | DH27: 0 | DI27: 0 | DJ27: 0 | DK27: 0 | DL27: 0 | DM27: 0 | DN27: 0 | DO27: 0 | DP27: 0 | DQ27: 0
A28: 01010601 | B28: GINECOLÓGICO | C28: MÉDICO/A | D28: =SUM(G28:U28) -> 1119 | E28: =IFERROR(VLOOKUP($A28,Filtro!$A$5:$AW$2591,3,FALSE),0) -> 0 | F28: =IFERROR(VLOOKUP($A28,Filtro!$A$5:$AW$2591,4,FALSE),0) -> 0 | G28: =IFERROR(VLOOKUP($A28,Filtro!$A$5:$AW$2591,5,FALSE),0) -> 33 | H28: =IFERROR(VLOOKUP($A28,Filtro!$A$5:$AW$2591,6,FALSE),0) -> 68 | I28: =IFERROR(VLOOKUP($A28,Filtro!$A$5:$AW$2591,7,FALSE),0) -> 62 | J28: =IFERROR(VLOOKUP($A28,Filtro!$A$5:$AW$2591,8,FALSE),0) -> 77 | K28: =IFERROR(VLOOKUP($A28,Filtro!$A$5:$AW$2591,9,FALSE),0) -> 141 | L28: =IFERROR(VLOOKUP($A28,Filtro!$A$5:$AW$2591,10,FALSE),0) -> 142 | M28: =IFERROR(VLOOKUP($A28,Filtro!$A$5:$AW$2591,11,FALSE),0) -> 156 | N28: =IFERROR(VLOOKUP($A28,Filtro!$A$5:$AW$2591,12,FALSE),0) -> 115 | O28: =IFERROR(VLOOKUP($A28,Filtro!$A$5:$AW$2591,13,FALSE),0) -> 100 | P28: =IFERROR(VLOOKUP($A28,Filtro!$A$5:$AW$2591,14,FALSE),0) -> 99 | Q28: =IFERROR(VLOOKUP($A28,Filtro!$A$5:$AW$2591,15,FALSE),0) -> 38 | R28: =IFERROR(VLOOKUP($A28,Filtro!$A$5:$AW$2591,16,FALSE),0) -> 38 | S28: =IFERROR(VLOOKUP($A28,Filtro!$A$5:$AW$2591,17,FALSE),0) -> 24 | T28: =IFERROR(VLOOKUP($A28,Filtro!$A$5:$AW$2591,18,FALSE),0) -> 17 | U28: =IFERROR(VLOOKUP($A28,Filtro!$A$5:$AW$2591,19,FALSE),0) -> 9 | V28: =IFERROR(VLOOKUP($A28,Filtro!$A$5:$AW$2591,20,FALSE),0) -> 0 | W28: =IFERROR(VLOOKUP($A28,Filtro!$A$5:$AW$2591,21,FALSE),0) -> 1194 | X28: =IFERROR(VLOOKUP($A28,Filtro!$A$5:$AW$2591,22,FALSE),0) -> 0 | Y28: =IFERROR(VLOOKUP($A28,Filtro!$A$5:$AW$2591,23,FALSE),0) -> 0 | Z28: =IFERROR(VLOOKUP($A28,Filtro!$A$5:$AW$2591,24,FALSE),0) -> 0 | AA28: =IFERROR(VLOOKUP($A28,Filtro!$A$5:$AW$2591,25,FALSE),0) -> 0 | AB28: =IFERROR(VLOOKUP($A28,Filtro!$A$5:$AW$2591,26,FALSE),0) -> 0 | AC28: =IFERROR(VLOOKUP($A28,Filtro!$A$5:$AW$2591,27,FALSE),0) -> 0 | AD28: =IFERROR(VLOOKUP($A28,Filtro!$A$5:$AW$2591,28,FALSE),0) -> 45 | CA28: * El número de Sexo Hombres y mujeres debe ser igual al total. | DA28: 1 | DB28: 0 | DE28: 0 | DF28: 0 | DG28: 0 | DH28: 0 | DI28: 0 | DJ28: 0 | DK28: 0 | DL28: 0 | DM28: 0 | DN28: 0 | DO28: 0 | DP28: 0 | DQ28: 0
A29: 01010603 | C29: MATRONA/ÓN | D29: =SUM(G29:U29) -> 41561 | E29: =IFERROR(VLOOKUP($A29,Filtro!$A$5:$AW$2591,3,FALSE),0) -> 0 | F29: =IFERROR(VLOOKUP($A29,Filtro!$A$5:$AW$2591,4,FALSE),0) -> 0 | G29: =IFERROR(VLOOKUP($A29,Filtro!$A$5:$AW$2591,5,FALSE),0) -> 249 | H29: =IFERROR(VLOOKUP($A29,Filtro!$A$5:$AW$2591,6,FALSE),0) -> 555 | I29: =IFERROR(VLOOKUP($A29,Filtro!$A$5:$AW$2591,7,FALSE),0) -> 1841 | J29: =IFERROR(VLOOKUP($A29,Filtro!$A$5:$AW$2591,8,FALSE),0) -> 3454 | K29: =IFERROR(VLOOKUP($A29,Filtro!$A$5:$AW$2591,9,FALSE),0) -> 4221 | L29: =IFERROR(VLOOKUP($A29,Filtro!$A$5:$AW$2591,10,FALSE),0) -> 4366 | M29: =IFERROR(VLOOKUP($A29,Filtro!$A$5:$AW$2591,11,FALSE),0) -> 4894 | N29: =IFERROR(VLOOKUP($A29,Filtro!$A$5:$AW$2591,12,FALSE),0) -> 5032 | O29: =IFERROR(VLOOKUP($A29,Filtro!$A$5:$AW$2591,13,FALSE),0) -> 5145 | P29: =IFERROR(VLOOKUP($A29,Filtro!$A$5:$AW$2591,14,FALSE),0) -> 4711 | Q29: =IFERROR(VLOOKUP($A29,Filtro!$A$5:$AW$2591,15,FALSE),0) -> 3859 | R29: =IFERROR(VLOOKUP($A29,Filtro!$A$5:$AW$2591,16,FALSE),0) -> 1946 | S29: =IFERROR(VLOOKUP($A29,Filtro!$A$5:$AW$2591,17,FALSE),0) -> 812 | T29: =IFERROR(VLOOKUP($A29,Filtro!$A$5:$AW$2591,18,FALSE),0) -> 329 | U29: =IFERROR(VLOOKUP($A29,Filtro!$A$5:$AW$2591,19,FALSE),0) -> 147 | V29: =IFERROR(VLOOKUP($A29,Filtro!$A$5:$AW$2591,20,FALSE),0) -> 0 | W29: =IFERROR(VLOOKUP($A29,Filtro!$A$5:$AW$2591,21,FALSE),0) -> 40982 | X29: =IFERROR(VLOOKUP($A29,Filtro!$A$5:$AW$2591,22,FALSE),0) -> 0 | Y29: =IFERROR(VLOOKUP($A29,Filtro!$A$5:$AW$2591,23,FALSE),0) -> 0 | Z29: =IFERROR(VLOOKUP($A29,Filtro!$A$5:$AW$2591,24,FALSE),0) -> 36 | AA29: =IFERROR(VLOOKUP($A29,Filtro!$A$5:$AW$2591,25,FALSE),0) -> 7 | AB29: =IFERROR(VLOOKUP($A29,Filtro!$A$5:$AW$2591,26,FALSE),0) -> 1 | AC29: =IFERROR(VLOOKUP($A29,Filtro!$A$5:$AW$2591,27,FALSE),0) -> 168 | AD29: =IFERROR(VLOOKUP($A29,Filtro!$A$5:$AW$2591,28,FALSE),0) -> 1342 | CA29: * El número de Sexo Hombres y mujeres debe ser igual al total. | DA29: 1 | DB29: 0 | DE29: 0 | DF29: 0 | DG29: 0 | DH29: 0 | DI29: 0 | DJ29: 0 | DK29: 0 | DL29: 0 | DM29: 0 | DN29: 0 | DO29: 0 | DP29: 0 | DQ29: 0
A30: 01010901 | B30: CLIMATERIO | C30: MÉDICO/A | D30: =SUM(N30:Q30) -> 364 | E30: =IFERROR(VLOOKUP($A30,Filtro!$A$5:$AW$2591,3,FALSE),0) -> 0 | F30: =IFERROR(VLOOKUP($A30,Filtro!$A$5:$AW$2591,4,FALSE),0) -> 0 | G30: =IFERROR(VLOOKUP($A30,Filtro!$A$5:$AW$2591,5,FALSE),0) -> 0 | H30: =IFERROR(VLOOKUP($A30,Filtro!$A$5:$AW$2591,6,FALSE),0) -> 0 | I30: =IFERROR(VLOOKUP($A30,Filtro!$A$5:$AW$2591,7,FALSE),0) -> 0 | J30: =IFERROR(VLOOKUP($A30,Filtro!$A$5:$AW$2591,8,FALSE),0) -> 0 | K30: =IFERROR(VLOOKUP($A30,Filtro!$A$5:$AW$2591,9,FALSE),0) -> 0 | L30: =IFERROR(VLOOKUP($A30,Filtro!$A$5:$AW$2591,10,FALSE),0) -> 0 | M30: =IFERROR(VLOOKUP($A30,Filtro!$A$5:$AW$2591,11,FALSE),0) -> 0 | N30: =IFERROR(VLOOKUP($A30,Filtro!$A$5:$AW$2591,12,FALSE),0) -> 114 | O30: =IFERROR(VLOOKUP($A30,Filtro!$A$5:$AW$2591,13,FALSE),0) -> 114 | P30: =IFERROR(VLOOKUP($A30,Filtro!$A$5:$AW$2591,14,FALSE),0) -> 94 | Q30: =IFERROR(VLOOKUP($A30,Filtro!$A$5:$AW$2591,15,FALSE),0) -> 42 | R30: =IFERROR(VLOOKUP($A30,Filtro!$A$5:$AW$2591,16,FALSE),0) -> 0 | S30: =IFERROR(VLOOKUP($A30,Filtro!$A$5:$AW$2591,17,FALSE),0) -> 0 | T30: =IFERROR(VLOOKUP($A30,Filtro!$A$5:$AW$2591,18,FALSE),0) -> 0 | U30: =IFERROR(VLOOKUP($A30,Filtro!$A$5:$AW$2591,19,FALSE),0) -> 0 | V30: =IFERROR(VLOOKUP($A30,Filtro!$A$5:$AW$2591,20,FALSE),0) -> 0 | W30: =IFERROR(VLOOKUP($A30,Filtro!$A$5:$AW$2591,21,FALSE),0) -> 364 | X30: =IFERROR(VLOOKUP($A30,Filtro!$A$5:$AW$2591,22,FALSE),0) -> 0 | Y30: =IFERROR(VLOOKUP($A30,Filtro!$A$5:$AW$2591,23,FALSE),0) -> 0 | Z30: =IFERROR(VLOOKUP($A30,Filtro!$A$5:$AW$2591,24,FALSE),0) -> 0 | AA30: =IFERROR(VLOOKUP($A30,Filtro!$A$5:$AW$2591,25,FALSE),0) -> 0 | AB30: =IFERROR(VLOOKUP($A30,Filtro!$A$5:$AW$2591,26,FALSE),0) -> 0 | AC30: =IFERROR(VLOOKUP($A30,Filtro!$A$5:$AW$2591,27,FALSE),0) -> 4 | AD30: =IFERROR(VLOOKUP($A30,Filtro!$A$5:$AW$2591,28,FALSE),0) -> 9 | CA30: * El número de Sexo Hombres y mujeres debe ser igual al total. | DA30: 1 | DB30: 0 | DE30: 0 | DF30: 0 | DG30: 0 | DH30: 0 | DI30: 0 | DJ30: 0 | DK30: 0 | DL30: 0 | DM30: 0 | DN30: 0 | DO30: 0 | DP30: 0 | DQ30: 0
A31: 01010903 | C31: MATRONA/ÓN | D31: =SUM(N31:Q31) -> 3183 | E31: =IFERROR(VLOOKUP($A31,Filtro!$A$5:$AW$2591,3,FALSE),0) -> 0 | F31: =IFERROR(VLOOKUP($A31,Filtro!$A$5:$AW$2591,4,FALSE),0) -> 0 | G31: =IFERROR(VLOOKUP($A31,Filtro!$A$5:$AW$2591,5,FALSE),0) -> 0 | H31: =IFERROR(VLOOKUP($A31,Filtro!$A$5:$AW$2591,6,FALSE),0) -> 0 | I31: =IFERROR(VLOOKUP($A31,Filtro!$A$5:$AW$2591,7,FALSE),0) -> 0 | J31: =IFERROR(VLOOKUP($A31,Filtro!$A$5:$AW$2591,8,FALSE),0) -> 0 | K31: =IFERROR(VLOOKUP($A31,Filtro!$A$5:$AW$2591,9,FALSE),0) -> 0 | L31: =IFERROR(VLOOKUP($A31,Filtro!$A$5:$AW$2591,10,FALSE),0) -> 0 | M31: =IFERROR(VLOOKUP($A31,Filtro!$A$5:$AW$2591,11,FALSE),0) -> 0 | N31: =IFERROR(VLOOKUP($A31,Filtro!$A$5:$AW$2591,12,FALSE),0) -> 860 | O31: =IFERROR(VLOOKUP($A31,Filtro!$A$5:$AW$2591,13,FALSE),0) -> 1229 | P31: =IFERROR(VLOOKUP($A31,Filtro!$A$5:$AW$2591,14,FALSE),0) -> 709 | Q31: =IFERROR(VLOOKUP($A31,Filtro!$A$5:$AW$2591,15,FALSE),0) -> 385 | R31: =IFERROR(VLOOKUP($A31,Filtro!$A$5:$AW$2591,16,FALSE),0) -> 0 | S31: =IFERROR(VLOOKUP($A31,Filtro!$A$5:$AW$2591,17,FALSE),0) -> 0 | T31: =IFERROR(VLOOKUP($A31,Filtro!$A$5:$AW$2591,18,FALSE),0) -> 0 | U31: =IFERROR(VLOOKUP($A31,Filtro!$A$5:$AW$2591,19,FALSE),0) -> 0 | V31: =IFERROR(VLOOKUP($A31,Filtro!$A$5:$AW$2591,20,FALSE),0) -> 0 | W31: =IFERROR(VLOOKUP($A31,Filtro!$A$5:$AW$2591,21,FALSE),0) -> 3194 | X31: =IFERROR(VLOOKUP($A31,Filtro!$A$5:$AW$2591,22,FALSE),0) -> 0 | Y31: =IFERROR(VLOOKUP($A31,Filtro!$A$5:$AW$2591,23,FALSE),0) -> 0 | Z31: =IFERROR(VLOOKUP($A31,Filtro!$A$5:$AW$2591,24,FALSE),0) -> 0 | AA31: =IFERROR(VLOOKUP($A31,Filtro!$A$5:$AW$2591,25,FALSE),0) -> 0 | AB31: =IFERROR(VLOOKUP($A31,Filtro!$A$5:$AW$2591,26,FALSE),0) -> 0 | AC31: =IFERROR(VLOOKUP($A31,Filtro!$A$5:$AW$2591,27,FALSE),0) -> 45 | AD31: =IFERROR(VLOOKUP($A31,Filtro!$A$5:$AW$2591,28,FALSE),0) -> 116 | CA31: * El número de Sexo Hombres y mujeres debe ser igual al total. | DA31: 1 | DB31: 0 | DE31: 0 | DF31: 0 | DG31: 0 | DH31: 0 | DI31: 0 | DJ31: 0 | DK31: 0 | DL31: 0 | DM31: 0 | DN31: 0 | DO31: 0 | DP31: 0 | DQ31: 0
A32: 01010401 | B32: REGULACIÓN DE FECUNDIDAD | C32: MÉDICO/A | D32: =SUM(G32:U32) -> 1 | E32: =IFERROR(VLOOKUP($A32,Filtro!$A$5:$AW$2591,3,FALSE),0) -> 0 | F32: =IFERROR(VLOOKUP($A32,Filtro!$A$5:$AW$2591,4,FALSE),0) -> 0 | G32: =IFERROR(VLOOKUP($A32,Filtro!$A$5:$AW$2591,5,FALSE),0) -> 1 | H32: =IFERROR(VLOOKUP($A32,Filtro!$A$5:$AW$2591,6,FALSE),0) -> 0 | I32: =IFERROR(VLOOKUP($A32,Filtro!$A$5:$AW$2591,7,FALSE),0) -> 0 | J32: =IFERROR(VLOOKUP($A32,Filtro!$A$5:$AW$2591,8,FALSE),0) -> 0 | K32: =IFERROR(VLOOKUP($A32,Filtro!$A$5:$AW$2591,9,FALSE),0) -> 0 | L32: =IFERROR(VLOOKUP($A32,Filtro!$A$5:$AW$2591,10,FALSE),0) -> 0 | M32: =IFERROR(VLOOKUP($A32,Filtro!$A$5:$AW$2591,11,FALSE),0) -> 0 | N32: =IFERROR(VLOOKUP($A32,Filtro!$A$5:$AW$2591,12,FALSE),0) -> 0 | O32: =IFERROR(VLOOKUP($A32,Filtro!$A$5:$AW$2591,13,FALSE),0) -> 0 | P32: =IFERROR(VLOOKUP($A32,Filtro!$A$5:$AW$2591,14,FALSE),0) -> 0 | Q32: =IFERROR(VLOOKUP($A32,Filtro!$A$5:$AW$2591,15,FALSE),0) -> 0 | R32: =IFERROR(VLOOKUP($A32,Filtro!$A$5:$AW$2591,16,FALSE),0) -> 0 | S32: =IFERROR(VLOOKUP($A32,Filtro!$A$5:$AW$2591,17,FALSE),0) -> 0 | T32: =IFERROR(VLOOKUP($A32,Filtro!$A$5:$AW$2591,18,FALSE),0) -> 0 | U32: =IFERROR(VLOOKUP($A32,Filtro!$A$5:$AW$2591,19,FALSE),0) -> 0 | V32: =IFERROR(VLOOKUP($A32,Filtro!$A$5:$AW$2591,20,FALSE),0) -> 0 | W32: =IFERROR(VLOOKUP($A32,Filtro!$A$5:$AW$2591,21,FALSE),0) -> 8 | X32: =IFERROR(VLOOKUP($A32,Filtro!$A$5:$AW$2591,22,FALSE),0) -> 0 | Y32: =IFERROR(VLOOKUP($A32,Filtro!$A$5:$AW$2591,23,FALSE),0) -> 0 | Z32: =IFERROR(VLOOKUP($A32,Filtro!$A$5:$AW$2591,24,FALSE),0) -> 8 | AA32: =IFERROR(VLOOKUP($A32,Filtro!$A$5:$AW$2591,25,FALSE),0) -> 8 | AB32: =IFERROR(VLOOKUP($A32,Filtro!$A$5:$AW$2591,26,FALSE),0) -> 8 | AC32: =IFERROR(VLOOKUP($A32,Filtro!$A$5:$AW$2591,27,FALSE),0) -> 4 | AD32: =IFERROR(VLOOKUP($A32,Filtro!$A$5:$AW$2591,28,FALSE),0) -> 8 | CA32: * El número de Sexo Hombres y mujeres debe ser igual al total. | DA32: 1 | DB32: 0 | DE32: 0 | DF32: 0 | DG32: 0 | DH32: 0 | DI32: 0 | DJ32: 0 | DK32: 0 | DL32: 0 | DM32: 0 | DN32: 0 | DO32: 0 | DP32: 0 | DQ32: 0
A33: 01010403 | C33: MATRONA/ÓN | D33: =SUM(G33:U33) -> 59796 | E33: =IFERROR(VLOOKUP($A33,Filtro!$A$5:$AW$2591,3,FALSE),0) -> 0 | F33: =IFERROR(VLOOKUP($A33,Filtro!$A$5:$AW$2591,4,FALSE),0) -> 0 | G33: =IFERROR(VLOOKUP($A33,Filtro!$A$5:$AW$2591,5,FALSE),0) -> 1361 | H33: =IFERROR(VLOOKUP($A33,Filtro!$A$5:$AW$2591,6,FALSE),0) -> 8714 | I33: =IFERROR(VLOOKUP($A33,Filtro!$A$5:$AW$2591,7,FALSE),0) -> 10230 | J33: =IFERROR(VLOOKUP($A33,Filtro!$A$5:$AW$2591,8,FALSE),0) -> 10598 | K33: =IFERROR(VLOOKUP($A33,Filtro!$A$5:$AW$2591,9,FALSE),0) -> 9640 | L33: =IFERROR(VLOOKUP($A33,Filtro!$A$5:$AW$2591,10,FALSE),0) -> 7498 | M33: =IFERROR(VLOOKUP($A33,Filtro!$A$5:$AW$2591,11,FALSE),0) -> 5874 | N33: =IFERROR(VLOOKUP($A33,Filtro!$A$5:$AW$2591,12,FALSE),0) -> 4236 | O33: =IFERROR(VLOOKUP($A33,Filtro!$A$5:$AW$2591,13,FALSE),0) -> 1437 | P33: =IFERROR(VLOOKUP($A33,Filtro!$A$5:$AW$2591,14,FALSE),0) -> 142 | Q33: =IFERROR(VLOOKUP($A33,Filtro!$A$5:$AW$2591,15,FALSE),0) -> 44 | R33: =IFERROR(VLOOKUP($A33,Filtro!$A$5:$AW$2591,16,FALSE),0) -> 15 | S33: =IFERROR(VLOOKUP($A33,Filtro!$A$5:$AW$2591,17,FALSE),0) -> 4 | T33: =IFERROR(VLOOKUP($A33,Filtro!$A$5:$AW$2591,18,FALSE),0) -> 1 | U33: =IFERROR(VLOOKUP($A33,Filtro!$A$5:$AW$2591,19,FALSE),0) -> 2 | V33: =IFERROR(VLOOKUP($A33,Filtro!$A$5:$AW$2591,20,FALSE),0) -> 385 | W33: =IFERROR(VLOOKUP($A33,Filtro!$A$5:$AW$2591,21,FALSE),0) -> 58716 | X33: =IFERROR(VLOOKUP($A33,Filtro!$A$5:$AW$2591,22,FALSE),0) -> 0 | Y33: =IFERROR(VLOOKUP($A33,Filtro!$A$5:$AW$2591,23,FALSE),0) -> 0 | Z33: =IFERROR(VLOOKUP($A33,Filtro!$A$5:$AW$2591,24,FALSE),0) -> 1321 | AA33: =IFERROR(VLOOKUP($A33,Filtro!$A$5:$AW$2591,25,FALSE),0) -> 46 | AB33: =IFERROR(VLOOKUP($A33,Filtro!$A$5:$AW$2591,26,FALSE),0) -> 33 | AC33: =IFERROR(VLOOKUP($A33,Filtro!$A$5:$AW$2591,27,FALSE),0) -> 407 | AD33: =IFERROR(VLOOKUP($A33,Filtro!$A$5:$AW$2591,28,FALSE),0) -> 1203 | CA33: * El número de Sexo Hombres y mujeres debe ser igual al total. | DA33: 1 | DB33: 0 | DE33: 0 | DF33: 0 | DG33: 0 | DH33: 0 | DI33: 0 | DJ33: 0 | DK33: 0 | DL33: 0 | DM33: 0 | DN33: 0 | DO33: 0 | DP33: 0 | DQ33: 0
B34: SECCIÓN B: CONTROLES DE SALUD SEGÚN CICLO VITAL
B35: TIPO DE CONTROL | C35: PROFESIONAL | D35: TOTAL | G35: POR EDAD | AJ35: Control con Presencia del Padre | AL35: Niños, Niñas, Adolescentes y Jóvenes SENAME | AM35: Niños, Niñas, Adolescentes y Jóvenes Mejor Niñez | AN35: Pueblos Originarios | AO35: Migrantes
D36: Ambos Sexos | E36: Hombres | F36: Mujeres | G36: Menor de 1 mes | H36: 1 mes | I36: 2 meses | J36: 3 meses | K36: 4 meses | L36: 5 meses | M36: 6 meses | N36: 7 - 11 meses | O36: 12 a 17 meses | P36: 18 - 23 meses | Q36: 24 - 47 meses | R36: 48 - 59 meses | S36: 60 - 71 meses | T36: 6 - 9 | U36: 10 - 14 | V36: 15 - 19 | W36: 20 - 24 | X36: 25 - 29 | Y36: 30 - 34 | Z36: 35 - 39 | AA36: 40 - 44 | AB36: 45 - 49 | AC36: 50 - 54 | AD36: 55 - 59 | AE36: 60 - 64 | AF36: 65 - 69 | AG36: 70 - 74 | AH36: 75 - 79 | AI36: 80 y mas | AJ36: menor 1 año | AK36: 1 año a 3 años 11 meses 29 días
A37: 02010101 | B37: DE SALUD | C37: MÉDICO/A | D37: =SUM(G37:AI37) -> 13784 | E37: =IFERROR(VLOOKUP($A37,Filtro!$A$5:$AW$2591,3,FALSE),0) -> 6369 | F37: =IFERROR(VLOOKUP($A37,Filtro!$A$5:$AW$2591,4,FALSE),0) -> 7406 | G37: =IFERROR(VLOOKUP($A37,Filtro!$A$5:$AW$2591,5,FALSE),0) -> 162 | H37: =IFERROR(VLOOKUP($A37,Filtro!$A$5:$AW$2591,6,FALSE),0) -> 3685 | I37: =IFERROR(VLOOKUP($A37,Filtro!$A$5:$AW$2591,7,FALSE),0) -> 317 | J37: =IFERROR(VLOOKUP($A37,Filtro!$A$5:$AW$2591,8,FALSE),0) -> 3599 | K37: =IFERROR(VLOOKUP($A37,Filtro!$A$5:$AW$2591,9,FALSE),0) -> 301 | L37: =IFERROR(VLOOKUP($A37,Filtro!$A$5:$AW$2591,10,FALSE),0) -> 61 | M37: =IFERROR(VLOOKUP($A37,Filtro!$A$5:$AW$2591,11,FALSE),0) -> 40 | N37: =IFERROR(VLOOKUP($A37,Filtro!$A$5:$AW$2591,12,FALSE),0) -> 71 | O37: =IFERROR(VLOOKUP($A37,Filtro!$A$5:$AW$2591,13,FALSE),0) -> 140 | P37: =IFERROR(VLOOKUP($A37,Filtro!$A$5:$AW$2591,14,FALSE),0) -> 52 | Q37: =IFERROR(VLOOKUP($A37,Filtro!$A$5:$AW$2591,15,FALSE),0) -> 129 | R37: =IFERROR(VLOOKUP($A37,Filtro!$A$5:$AW$2591,16,FALSE),0) -> 136 | S37: =IFERROR(VLOOKUP($A37,Filtro!$A$5:$AW$2591,17,FALSE),0) -> 171 | T37: =IFERROR(VLOOKUP($A37,Filtro!$A$5:$AW$2591,18,FALSE),0) -> 961 | U37: =IFERROR(VLOOKUP($A37,Filtro!$A$5:$AW$2591,19,FALSE),0) -> 311 | V37: =IFERROR(VLOOKUP($A37,Filtro!$A$5:$AW$2591,20,FALSE),0) -> 175 | W37: =IFERROR(VLOOKUP($A37,Filtro!$A$5:$AW$2591,21,FALSE),0) -> 42 | X37: =IFERROR(VLOOKUP($A37,Filtro!$A$5:$AW$2591,22,FALSE),0) -> 59 | Y37: =IFERROR(VLOOKUP($A37,Filtro!$A$5:$AW$2591,23,FALSE),0) -> 76 | Z37: =IFERROR(VLOOKUP($A37,Filtro!$A$5:$AW$2591,24,FALSE),0) -> 101 | AA37: =IFERROR(VLOOKUP($A37,Filtro!$A$5:$AW$2591,25,FALSE),0) -> 127 | AB37: =IFERROR(VLOOKUP($A37,Filtro!$A$5:$AW$2591,26,FALSE),0) -> 180 | AC37: =IFERROR(VLOOKUP($A37,Filtro!$A$5:$AW$2591,27,FALSE),0) -> 211 | AD37: =IFERROR(VLOOKUP($A37,Filtro!$A$5:$AW$2591,28,FALSE),0) -> 372 | AE37: =IFERROR(VLOOKUP($A37,Filtro!$A$5:$AW$2591,29,FALSE),0) -> 401 | AF37: =IFERROR(VLOOKUP($A37,Filtro!$A$5:$AW$2591,30,FALSE),0) -> 578 | AG37: =IFERROR(VLOOKUP($A37,Filtro!$A$5:$AW$2591,31,FALSE),0) -> 432 | AH37: =IFERROR(VLOOKUP($A37,Filtro!$A$5:$AW$2591,32,FALSE),0) -> 350 | AI37: =IFERROR(VLOOKUP($A37,Filtro!$A$5:$AW$2591,33,FALSE),0) -> 544 | AJ37: =IFERROR(VLOOKUP($A37,Filtro!$A$5:$AW$2591,34,FALSE),0) -> 1746 | AK37: =IFERROR(VLOOKUP($A37,Filtro!$A$5:$AW$2591,35,FALSE),0) -> 11 | AL37: =IFERROR(VLOOKUP($A37,Filtro!$A$5:$AW$2591,36,FALSE),0) -> 45 | AM37: =IFERROR(VLOOKUP($A37,Filtro!$A$5:$AW$2591,37,FALSE),0) -> 47 | AN37: =IFERROR(VLOOKUP($A37,Filtro!$A$5:$AW$2591,38,FALSE),0) -> 73 | AO37: =IFERROR(VLOOKUP($A37,Filtro!$A$5:$AW$2591,39,FALSE),0) -> 563 | CB37: * El número de controles con presencia de Padre para menor entre 1 año y 3 años NO DEBE ser Mayor a la suma de controles del rango correspondiente. | CC37: * El número de controles según sexo NO DEBE ser diferente al Total. | DA37: 0 | DB37: 1 | DC37: 1 | DD37: 0
A38: 02010201 | C38: ENFERMERA/O | D38: =SUM(G38:AI38) -> 77964 | E38: =IFERROR(VLOOKUP($A38,Filtro!$A$5:$AW$2591,3,FALSE),0) -> 36477 | F38: =IFERROR(VLOOKUP($A38,Filtro!$A$5:$AW$2591,4,FALSE),0) -> 40540 | G38: =IFERROR(VLOOKUP($A38,Filtro!$A$5:$AW$2591,5,FALSE),0) -> 95 | H38: =IFERROR(VLOOKUP($A38,Filtro!$A$5:$AW$2591,6,FALSE),0) -> 71 | I38: =IFERROR(VLOOKUP($A38,Filtro!$A$5:$AW$2591,7,FALSE),0) -> 4098 | J38: =IFERROR(VLOOKUP($A38,Filtro!$A$5:$AW$2591,8,FALSE),0) -> 229 | K38: =IFERROR(VLOOKUP($A38,Filtro!$A$5:$AW$2591,9,FALSE),0) -> 4017 | L38: =IFERROR(VLOOKUP($A38,Filtro!$A$5:$AW$2591,10,FALSE),0) -> 300 | M38: =IFERROR(VLOOKUP($A38,Filtro!$A$5:$AW$2591,11,FALSE),0) -> 3971 | N38: =IFERROR(VLOOKUP($A38,Filtro!$A$5:$AW$2591,12,FALSE),0) -> 4807 | O38: =IFERROR(VLOOKUP($A38,Filtro!$A$5:$AW$2591,13,FALSE),0) -> 4999 | P38: =IFERROR(VLOOKUP($A38,Filtro!$A$5:$AW$2591,14,FALSE),0) -> 4216 | Q38: =IFERROR(VLOOKUP($A38,Filtro!$A$5:$AW$2591,15,FALSE),0) -> 9566 | R38: =IFERROR(VLOOKUP($A38,Filtro!$A$5:$AW$2591,16,FALSE),0) -> 4434 | S38: =IFERROR(VLOOKUP($A38,Filtro!$A$5:$AW$2591,17,FALSE),0) -> 4144 | T38: =IFERROR(VLOOKUP($A38,Filtro!$A$5:$AW$2591,18,FALSE),0) -> 10173 | U38: =IFERROR(VLOOKUP($A38,Filtro!$A$5:$AW$2591,19,FALSE),0) -> 4490 | V38: =IFERROR(VLOOKUP($A38,Filtro!$A$5:$AW$2591,20,FALSE),0) -> 1290 | W38: =IFERROR(VLOOKUP($A38,Filtro!$A$5:$AW$2591,21,FALSE),0) -> 465 | X38: =IFERROR(VLOOKUP($A38,Filtro!$A$5:$AW$2591,22,FALSE),0) -> 594 | Y38: =IFERROR(VLOOKUP($A38,Filtro!$A$5:$AW$2591,23,FALSE),0) -> 648 | Z38: =IFERROR(VLOOKUP($A38,Filtro!$A$5:$AW$2591,24,FALSE),0) -> 660 | AA38: =IFERROR(VLOOKUP($A38,Filtro!$A$5:$AW$2591,25,FALSE),0) -> 676 | AB38: =IFERROR(VLOOKUP($A38,Filtro!$A$5:$AW$2591,26,FALSE),0) -> 776 | AC38: =IFERROR(VLOOKUP($A38,Filtro!$A$5:$AW$2591,27,FALSE),0) -> 850 | AD38: =IFERROR(VLOOKUP($A38,Filtro!$A$5:$AW$2591,28,FALSE),0) -> 990 | AE38: =IFERROR(VLOOKUP($A38,Filtro!$A$5:$AW$2591,29,FALSE),0) -> 1099 | AF38: =IFERROR(VLOOKUP($A38,Filtro!$A$5:$AW$2591,30,FALSE),0) -> 2655 | AG38: =IFERROR(VLOOKUP($A38,Filtro!$A$5:$AW$2591,31,FALSE),0) -> 2596 | AH38: =IFERROR(VLOOKUP($A38,Filtro!$A$5:$AW$2591,32,FALSE),0) -> 2193 | AI38: =IFERROR(VLOOKUP($A38,Filtro!$A$5:$AW$2591,33,FALSE),0) -> 2862 | AJ38: =IFERROR(VLOOKUP($A38,Filtro!$A$5:$AW$2591,34,FALSE),0) -> 3763 | AK38: =IFERROR(VLOOKUP($A38,Filtro!$A$5:$AW$2591,35,FALSE),0) -> 3166 | AL38: =IFERROR(VLOOKUP($A38,Filtro!$A$5:$AW$2591,36,FALSE),0) -> 316 | AM38: =IFERROR(VLOOKUP($A38,Filtro!$A$5:$AW$2591,37,FALSE),0) -> 177 | AN38: =IFERROR(VLOOKUP($A38,Filtro!$A$5:$AW$2591,38,FALSE),0) -> 889 | AO38: =IFERROR(VLOOKUP($A38,Filtro!$A$5:$AW$2591,39,FALSE),0) -> 1255 | CC38: * El número de controles según sexo NO DEBE ser diferente al Total. | DA38: 0 | DB38: 0 | DC38: 1 | DD38: 0
A39: 02010103 | C39: MATRONA/ÓN | D39: =SUM(G39+U39+V39+W39+X39+Y39+Z39+AA39+AB39+AC39+AD39+AE39+AF39+AG39+AH39+AI39) -> 16370 | E39: =IFERROR(VLOOKUP($A39,Filtro!$A$5:$AW$2591,3,FALSE),0) -> 3247 | F39: =IFERROR(VLOOKUP($A39,Filtro!$A$5:$AW$2591,4,FALSE),0) -> 13005 | G39: =IFERROR(VLOOKUP($A39,Filtro!$A$5:$AW$2591,5,FALSE),0) -> 3110 | H39: =IFERROR(VLOOKUP($A39,Filtro!$A$5:$AW$2591,6,FALSE),0) -> 0 | I39: =IFERROR(VLOOKUP($A39,Filtro!$A$5:$AW$2591,7,FALSE),0) -> 0 | J39: =IFERROR(VLOOKUP($A39,Filtro!$A$5:$AW$2591,8,FALSE),0) -> 0 | K39: =IFERROR(VLOOKUP($A39,Filtro!$A$5:$AW$2591,9,FALSE),0) -> 0 | L39: =IFERROR(VLOOKUP($A39,Filtro!$A$5:$AW$2591,10,FALSE),0) -> 0 | M39: =IFERROR(VLOOKUP($A39,Filtro!$A$5:$AW$2591,11,FALSE),0) -> 0 | N39: =IFERROR(VLOOKUP($A39,Filtro!$A$5:$AW$2591,12,FALSE),0) -> 0 | O39: =IFERROR(VLOOKUP($A39,Filtro!$A$5:$AW$2591,13,FALSE),0) -> 0 | P39: =IFERROR(VLOOKUP($A39,Filtro!$A$5:$AW$2591,14,FALSE),0) -> 0 | Q39: =IFERROR(VLOOKUP($A39,Filtro!$A$5:$AW$2591,15,FALSE),0) -> 0 | R39: =IFERROR(VLOOKUP($A39,Filtro!$A$5:$AW$2591,16,FALSE),0) -> 0 | S39: =IFERROR(VLOOKUP($A39,Filtro!$A$5:$AW$2591,17,FALSE),0) -> 0 | T39: =IFERROR(VLOOKUP($A39,Filtro!$A$5:$AW$2591,18,FALSE),0) -> 0 | U39: =IFERROR(VLOOKUP($A39,Filtro!$A$5:$AW$2591,19,FALSE),0) -> 2391 | V39: =IFERROR(VLOOKUP($A39,Filtro!$A$5:$AW$2591,20,FALSE),0) -> 2374 | W39: =IFERROR(VLOOKUP($A39,Filtro!$A$5:$AW$2591,21,FALSE),0) -> 1078 | X39: =IFERROR(VLOOKUP($A39,Filtro!$A$5:$AW$2591,22,FALSE),0) -> 1381 | Y39: =IFERROR(VLOOKUP($A39,Filtro!$A$5:$AW$2591,23,FALSE),0) -> 1320 | Z39: =IFERROR(VLOOKUP($A39,Filtro!$A$5:$AW$2591,24,FALSE),0) -> 1138 | AA39: =IFERROR(VLOOKUP($A39,Filtro!$A$5:$AW$2591,25,FALSE),0) -> 964 | AB39: =IFERROR(VLOOKUP($A39,Filtro!$A$5:$AW$2591,26,FALSE),0) -> 877 | AC39: =IFERROR(VLOOKUP($A39,Filtro!$A$5:$AW$2591,27,FALSE),0) -> 674 | AD39: =IFERROR(VLOOKUP($A39,Filtro!$A$5:$AW$2591,28,FALSE),0) -> 497 | AE39: =IFERROR(VLOOKUP($A39,Filtro!$A$5:$AW$2591,29,FALSE),0) -> 344 | AF39: =IFERROR(VLOOKUP($A39,Filtro!$A$5:$AW$2591,30,FALSE),0) -> 157 | AG39: =IFERROR(VLOOKUP($A39,Filtro!$A$5:$AW$2591,31,FALSE),0) -> 41 | AH39: =IFERROR(VLOOKUP($A39,Filtro!$A$5:$AW$2591,32,FALSE),0) -> 16 | AI39: =IFERROR(VLOOKUP($A39,Filtro!$A$5:$AW$2591,33,FALSE),0) -> 8 | AJ39: =IFERROR(VLOOKUP($A39,Filtro!$A$5:$AW$2591,34,FALSE),0) -> 1388 | AK39: =IFERROR(VLOOKUP($A39,Filtro!$A$5:$AW$2591,35,FALSE),0) -> 0 | AL39: =IFERROR(VLOOKUP($A39,Filtro!$A$5:$AW$2591,36,FALSE),0) -> 13 | AM39: =IFERROR(VLOOKUP($A39,Filtro!$A$5:$AW$2591,37,FALSE),0) -> 18 | AN39: =IFERROR(VLOOKUP($A39,Filtro!$A$5:$AW$2591,38,FALSE),0) -> 110 | AO39: =IFERROR(VLOOKUP($A39,Filtro!$A$5:$AW$2591,39,FALSE),0) -> 275 | CB39: * El número de controles con presencia de Padre para menor entre 1 año y 3 años NO DEBE ser Mayor a la suma de controles del rango correspondiente. | CC39: * El número de controles según sexo NO DEBE ser diferente al Total. | DA39: 0 | DB39: 1 | DC39: 1 | DD39: 0
A40: 02010105 | C40: TÉCNICO EN ENFERMERÍA | D40: =SUM(O40:T40) -> 20 | E40: =IFERROR(VLOOKUP($A40,Filtro!$A$5:$AW$2591,3,FALSE),0) -> 11 | F40: =IFERROR(VLOOKUP($A40,Filtro!$A$5:$AW$2591,4,FALSE),0) -> 8 | G40: =IFERROR(VLOOKUP($A40,Filtro!$A$5:$AW$2591,5,FALSE),0) -> 0 | H40: =IFERROR(VLOOKUP($A40,Filtro!$A$5:$AW$2591,6,FALSE),0) -> 0 | I40: =IFERROR(VLOOKUP($A40,Filtro!$A$5:$AW$2591,7,FALSE),0) -> 0 | J40: =IFERROR(VLOOKUP($A40,Filtro!$A$5:$AW$2591,8,FALSE),0) -> 0 | K40: =IFERROR(VLOOKUP($A40,Filtro!$A$5:$AW$2591,9,FALSE),0) -> 0 | L40: =IFERROR(VLOOKUP($A40,Filtro!$A$5:$AW$2591,10,FALSE),0) -> 0 | M40: =IFERROR(VLOOKUP($A40,Filtro!$A$5:$AW$2591,11,FALSE),0) -> 0 | N40: =IFERROR(VLOOKUP($A40,Filtro!$A$5:$AW$2591,12,FALSE),0) -> 0 | O40: =IFERROR(VLOOKUP($A40,Filtro!$A$5:$AW$2591,13,FALSE),0) -> 1 | P40: =IFERROR(VLOOKUP($A40,Filtro!$A$5:$AW$2591,14,FALSE),0) -> 1 | Q40: =IFERROR(VLOOKUP($A40,Filtro!$A$5:$AW$2591,15,FALSE),0) -> 4 | R40: =IFERROR(VLOOKUP($A40,Filtro!$A$5:$AW$2591,16,FALSE),0) -> 0 | S40: =IFERROR(VLOOKUP($A40,Filtro!$A$5:$AW$2591,17,FALSE),0) -> 2 | T40: =IFERROR(VLOOKUP($A40,Filtro!$A$5:$AW$2591,18,FALSE),0) -> 12 | U40: =IFERROR(VLOOKUP($A40,Filtro!$A$5:$AW$2591,19,FALSE),0) -> 0 | V40: =IFERROR(VLOOKUP($A40,Filtro!$A$5:$AW$2591,20,FALSE),0) -> 0 | W40: =IFERROR(VLOOKUP($A40,Filtro!$A$5:$AW$2591,21,FALSE),0) -> 0 | X40: =IFERROR(VLOOKUP($A40,Filtro!$A$5:$AW$2591,22,FALSE),0) -> 0 | Y40: =IFERROR(VLOOKUP($A40,Filtro!$A$5:$AW$2591,23,FALSE),0) -> 0 | Z40: =IFERROR(VLOOKUP($A40,Filtro!$A$5:$AW$2591,24,FALSE),0) -> 0 | AA40: =IFERROR(VLOOKUP($A40,Filtro!$A$5:$AW$2591,25,FALSE),0) -> 0 | AB40: =IFERROR(VLOOKUP($A40,Filtro!$A$5:$AW$2591,26,FALSE),0) -> 0 | AC40: =IFERROR(VLOOKUP($A40,Filtro!$A$5:$AW$2591,27,FALSE),0) -> 0 | AD40: =IFERROR(VLOOKUP($A40,Filtro!$A$5:$AW$2591,28,FALSE),0) -> 0 | AE40: =IFERROR(VLOOKUP($A40,Filtro!$A$5:$AW$2591,29,FALSE),0) -> 0 | AF40: =IFERROR(VLOOKUP($A40,Filtro!$A$5:$AW$2591,30,FALSE),0) -> 0 | AG40: =IFERROR(VLOOKUP($A40,Filtro!$A$5:$AW$2591,31,FALSE),0) -> 0 | AH40: =IFERROR(VLOOKUP($A40,Filtro!$A$5:$AW$2591,32,FALSE),0) -> 0 | AI40: =IFERROR(VLOOKUP($A40,Filtro!$A$5:$AW$2591,33,FALSE),0) -> 0 | AJ40: =IFERROR(VLOOKUP($A40,Filtro!$A$5:$AW$2591,34,FALSE),0) -> 0 | AK40: =IFERROR(VLOOKUP($A40,Filtro!$A$5:$AW$2591,35,FALSE),0) -> 4 | AL40: =IFERROR(VLOOKUP($A40,Filtro!$A$5:$AW$2591,36,FALSE),0) -> 2 | AM40: =IFERROR(VLOOKUP($A40,Filtro!$A$5:$AW$2591,37,FALSE),0) -> 0 | AN40: =IFERROR(VLOOKUP($A40,Filtro!$A$5:$AW$2591,38,FALSE),0) -> 1 | AO40: =IFERROR(VLOOKUP($A40,Filtro!$A$5:$AW$2591,39,FALSE),0) -> 42 | CC40: * El número de controles según sexo NO DEBE ser diferente al Total. | DC40: 1 | DD40: 0
B41: SECCIÓN C: CONTROLES SEGÚN PROBLEMA DE SALUD
B42: TIPO DE CONTROL | C42: PROFESIONAL | D42: TOTAL | G42: POR EDAD | AO42: Pueblos Originarios | AP42: Migrantes
G43: 0 - 4 años | I43: 5 - 9 años | K43: 10 - 14 años | M43: 15 a 19 años | O43: 20 - 24 años | Q43: 25 - 29 años | S43: 30 - 34 años | U43: 35 - 39 años | W43: 40 - 44 años | Y43: 45 - 49 años | AA43: 50 - 54 años | AC43: 55 - 59 años | AE43: 60 - 64 años | AG43: 65 - 69 años | AI43: 70 - 74 años | AK43: 75 - 79 años | AM43: 80 y más años
D44: Ambos Sexos | E44: Hombres | F44: Mujeres | G44: Hombres | H44: Mujeres | I44: Hombres | J44: Mujeres | K44: Hombres | L44: Mujeres | M44: Hombres | N44: Mujeres | O44: Hombres | P44: Mujeres | Q44: Hombres | R44: Mujeres | S44: Hombres | T44: Mujeres | U44: Hombres | V44: Mujeres | W44: Hombres | X44: Mujeres | Y44: Hombres | Z44: Mujeres | AA44: Hombres | AB44: Mujeres | AC44: Hombres | AD44: Mujeres | AE44: Hombres | AF44: Mujeres | AG44: Hombres | AH44: Mujeres | AI44: Hombres | AJ44: Mujeres | AK44: Hombres | AL44: Mujeres | AM44: Hombres | AN44: Mujeres
A45: 03010501 | B45: DE SALUD CARDIOVASCULAR | C45: MÉDICO/A | D45: =SUM(E45:F45) -> 107291 | E45: =SUM(K45+M45+O45+Q45+S45+U45+W45+Y45+AA45+AC45+AE45+AG45+AI45+AK45+AM45) -> 37139 | F45: 70152 | G45: =IFERROR(VLOOKUP($A45,Filtro!$A$5:$AW$2591,5,FALSE),0) -> 0 | H45: =IFERROR(VLOOKUP($A45,Filtro!$A$5:$AW$2591,6,FALSE),0) -> 0 | I45: =IFERROR(VLOOKUP($A45,Filtro!$A$5:$AW$2591,7,FALSE),0) -> 0 | J45: =IFERROR(VLOOKUP($A45,Filtro!$A$5:$AW$2591,8,FALSE),0) -> 0 | K45: =IFERROR(VLOOKUP($A45,Filtro!$A$5:$AW$2591,9,FALSE),0) -> 0 | L45: =IFERROR(VLOOKUP($A45,Filtro!$A$5:$AW$2591,10,FALSE),0) -> 0 | M45: =IFERROR(VLOOKUP($A45,Filtro!$A$5:$AW$2591,11,FALSE),0) -> 67 | N45: =IFERROR(VLOOKUP($A45,Filtro!$A$5:$AW$2591,12,FALSE),0) -> 113 | O45: =IFERROR(VLOOKUP($A45,Filtro!$A$5:$AW$2591,13,FALSE),0) -> 117 | P45: =IFERROR(VLOOKUP($A45,Filtro!$A$5:$AW$2591,14,FALSE),0) -> 263 | Q45: =IFERROR(VLOOKUP($A45,Filtro!$A$5:$AW$2591,15,FALSE),0) -> 179 | R45: =IFERROR(VLOOKUP($A45,Filtro!$A$5:$AW$2591,16,FALSE),0) -> 471 | S45: =IFERROR(VLOOKUP($A45,Filtro!$A$5:$AW$2591,17,FALSE),0) -> 293 | T45: =IFERROR(VLOOKUP($A45,Filtro!$A$5:$AW$2591,18,FALSE),0) -> 871 | U45: =IFERROR(VLOOKUP($A45,Filtro!$A$5:$AW$2591,19,FALSE),0) -> 531 | V45: =IFERROR(VLOOKUP($A45,Filtro!$A$5:$AW$2591,20,FALSE),0) -> 1491 | W45: =IFERROR(VLOOKUP($A45,Filtro!$A$5:$AW$2591,21,FALSE),0) -> 892 | X45: =IFERROR(VLOOKUP($A45,Filtro!$A$5:$AW$2591,22,FALSE),0) -> 2479 | Y45: =IFERROR(VLOOKUP($A45,Filtro!$A$5:$AW$2591,23,FALSE),0) -> 1433 | Z45: =IFERROR(VLOOKUP($A45,Filtro!$A$5:$AW$2591,24,FALSE),0) -> 3931 | AA45: =IFERROR(VLOOKUP($A45,Filtro!$A$5:$AW$2591,25,FALSE),0) -> 2311 | AB45: =IFERROR(VLOOKUP($A45,Filtro!$A$5:$AW$2591,26,FALSE),0) -> 5935 | AC45: =IFERROR(VLOOKUP($A45,Filtro!$A$5:$AW$2591,27,FALSE),0) -> 3657 | AD45: =IFERROR(VLOOKUP($A45,Filtro!$A$5:$AW$2591,28,FALSE),0) -> 8603 | AE45: =IFERROR(VLOOKUP($A45,Filtro!$A$5:$AW$2591,29,FALSE),0) -> 5198 | AF45: =IFERROR(VLOOKUP($A45,Filtro!$A$5:$AW$2591,30,FALSE),0) -> 10042 | AG45: =IFERROR(VLOOKUP($A45,Filtro!$A$5:$AW$2591,31,FALSE),0) -> 6235 | AH45: =IFERROR(VLOOKUP($A45,Filtro!$A$5:$AW$2591,32,FALSE),0) -> 10446 | AI45: =IFERROR(VLOOKUP($A45,Filtro!$A$5:$AW$2591,33,FALSE),0) -> 5802 | AJ45: =IFERROR(VLOOKUP($A45,Filtro!$A$5:$AW$2591,34,FALSE),0) -> 9118 | AK45: =IFERROR(VLOOKUP($A45,Filtro!$A$5:$AW$2591,35,FALSE),0) -> 4952 | AL45: =IFERROR(VLOOKUP($A45,Filtro!$A$5:$AW$2591,36,FALSE),0) -> 7570 | AM45: =IFERROR(VLOOKUP($A45,Filtro!$A$5:$AW$2591,37,FALSE),0) -> 5472 | AN45: =IFERROR(VLOOKUP($A45,Filtro!$A$5:$AW$2591,38,FALSE),0) -> 8819 | AO45: =IFERROR(VLOOKUP($A45,Filtro!$A$5:$AW$2591,39,FALSE),0) -> 726 | AP45: =IFERROR(VLOOKUP($A45,Filtro!$A$5:$AW$2591,40,FALSE),0) -> 649 | DB45: 0 | DC45: 0 | DD45: 0 | DE45: 0
A46: 03010502 | C46: ENFERMERA/O | D46: =SUM(E46:F46) -> 46991 | E46: 17010 | F46: 29981 | G46: =IFERROR(VLOOKUP($A46,Filtro!$A$5:$AW$2591,5,FALSE),0) -> 0 | H46: =IFERROR(VLOOKUP($A46,Filtro!$A$5:$AW$2591,6,FALSE),0) -> 0 | I46: =IFERROR(VLOOKUP($A46,Filtro!$A$5:$AW$2591,7,FALSE),0) -> 0 | J46: =IFERROR(VLOOKUP($A46,Filtro!$A$5:$AW$2591,8,FALSE),0) -> 0 | K46: =IFERROR(VLOOKUP($A46,Filtro!$A$5:$AW$2591,9,FALSE),0) -> 0 | L46: =IFERROR(VLOOKUP($A46,Filtro!$A$5:$AW$2591,10,FALSE),0) -> 0 | M46: =IFERROR(VLOOKUP($A46,Filtro!$A$5:$AW$2591,11,FALSE),0) -> 32 | N46: =IFERROR(VLOOKUP($A46,Filtro!$A$5:$AW$2591,12,FALSE),0) -> 31 | O46: =IFERROR(VLOOKUP($A46,Filtro!$A$5:$AW$2591,13,FALSE),0) -> 50 | P46: =IFERROR(VLOOKUP($A46,Filtro!$A$5:$AW$2591,14,FALSE),0) -> 87 | Q46: =IFERROR(VLOOKUP($A46,Filtro!$A$5:$AW$2591,15,FALSE),0) -> 69 | R46: =IFERROR(VLOOKUP($A46,Filtro!$A$5:$AW$2591,16,FALSE),0) -> 191 | S46: =IFERROR(VLOOKUP($A46,Filtro!$A$5:$AW$2591,17,FALSE),0) -> 126 | T46: =IFERROR(VLOOKUP($A46,Filtro!$A$5:$AW$2591,18,FALSE),0) -> 343 | U46: =IFERROR(VLOOKUP($A46,Filtro!$A$5:$AW$2591,19,FALSE),0) -> 219 | V46: =IFERROR(VLOOKUP($A46,Filtro!$A$5:$AW$2591,20,FALSE),0) -> 627 | W46: =IFERROR(VLOOKUP($A46,Filtro!$A$5:$AW$2591,21,FALSE),0) -> 399 | X46: =IFERROR(VLOOKUP($A46,Filtro!$A$5:$AW$2591,22,FALSE),0) -> 1030 | Y46: =IFERROR(VLOOKUP($A46,Filtro!$A$5:$AW$2591,23,FALSE),0) -> 649 | Z46: =IFERROR(VLOOKUP($A46,Filtro!$A$5:$AW$2591,24,FALSE),0) -> 1598 | AA46: =IFERROR(VLOOKUP($A46,Filtro!$A$5:$AW$2591,25,FALSE),0) -> 1007 | AB46: =IFERROR(VLOOKUP($A46,Filtro!$A$5:$AW$2591,26,FALSE),0) -> 2460 | AC46: =IFERROR(VLOOKUP($A46,Filtro!$A$5:$AW$2591,27,FALSE),0) -> 1714 | AD46: =IFERROR(VLOOKUP($A46,Filtro!$A$5:$AW$2591,28,FALSE),0) -> 3573 | AE46: =IFERROR(VLOOKUP($A46,Filtro!$A$5:$AW$2591,29,FALSE),0) -> 2211 | AF46: =IFERROR(VLOOKUP($A46,Filtro!$A$5:$AW$2591,30,FALSE),0) -> 4146 | AG46: =IFERROR(VLOOKUP($A46,Filtro!$A$5:$AW$2591,31,FALSE),0) -> 2898 | AH46: =IFERROR(VLOOKUP($A46,Filtro!$A$5:$AW$2591,32,FALSE),0) -> 4579 | AI46: =IFERROR(VLOOKUP($A46,Filtro!$A$5:$AW$2591,33,FALSE),0) -> 2720 | AJ46: =IFERROR(VLOOKUP($A46,Filtro!$A$5:$AW$2591,34,FALSE),0) -> 3981 | AK46: =IFERROR(VLOOKUP($A46,Filtro!$A$5:$AW$2591,35,FALSE),0) -> 2236 | AL46: =IFERROR(VLOOKUP($A46,Filtro!$A$5:$AW$2591,36,FALSE),0) -> 3190 | AM46: =IFERROR(VLOOKUP($A46,Filtro!$A$5:$AW$2591,37,FALSE),0) -> 2680 | AN46: =IFERROR(VLOOKUP($A46,Filtro!$A$5:$AW$2591,38,FALSE),0) -> 4145 | AO46: =IFERROR(VLOOKUP($A46,Filtro!$A$5:$AW$2591,39,FALSE),0) -> 349 | AP46: =IFERROR(VLOOKUP($A46,Filtro!$A$5:$AW$2591,40,FALSE),0) -> 302 | DB46: 0 | DC46: 0 | DD46: 0 | DE46: 0
A47: 03010504 | C47: NUTRICIONISTA | D47: 44645 | E47: 14690 | F47: 29955 | G47: =IFERROR(VLOOKUP($A47,Filtro!$A$5:$AW$2591,5,FALSE),0) -> 0 | H47: =IFERROR(VLOOKUP($A47,Filtro!$A$5:$AW$2591,6,FALSE),0) -> 0 | I47: =IFERROR(VLOOKUP($A47,Filtro!$A$5:$AW$2591,7,FALSE),0) -> 0 | J47: =IFERROR(VLOOKUP($A47,Filtro!$A$5:$AW$2591,8,FALSE),0) -> 0 | K47: =IFERROR(VLOOKUP($A47,Filtro!$A$5:$AW$2591,9,FALSE),0) -> 0 | L47: =IFERROR(VLOOKUP($A47,Filtro!$A$5:$AW$2591,10,FALSE),0) -> 0 | M47: =IFERROR(VLOOKUP($A47,Filtro!$A$5:$AW$2591,11,FALSE),0) -> 33 | N47: =IFERROR(VLOOKUP($A47,Filtro!$A$5:$AW$2591,12,FALSE),0) -> 38 | O47: =IFERROR(VLOOKUP($A47,Filtro!$A$5:$AW$2591,13,FALSE),0) -> 54 | P47: =IFERROR(VLOOKUP($A47,Filtro!$A$5:$AW$2591,14,FALSE),0) -> 124 | Q47: =IFERROR(VLOOKUP($A47,Filtro!$A$5:$AW$2591,15,FALSE),0) -> 80 | R47: =IFERROR(VLOOKUP($A47,Filtro!$A$5:$AW$2591,16,FALSE),0) -> 211 | S47: =IFERROR(VLOOKUP($A47,Filtro!$A$5:$AW$2591,17,FALSE),0) -> 162 | T47: =IFERROR(VLOOKUP($A47,Filtro!$A$5:$AW$2591,18,FALSE),0) -> 436 | U47: =IFERROR(VLOOKUP($A47,Filtro!$A$5:$AW$2591,19,FALSE),0) -> 222 | V47: =IFERROR(VLOOKUP($A47,Filtro!$A$5:$AW$2591,20,FALSE),0) -> 734 | W47: =IFERROR(VLOOKUP($A47,Filtro!$A$5:$AW$2591,21,FALSE),0) -> 376 | X47: =IFERROR(VLOOKUP($A47,Filtro!$A$5:$AW$2591,22,FALSE),0) -> 1177 | Y47: =IFERROR(VLOOKUP($A47,Filtro!$A$5:$AW$2591,23,FALSE),0) -> 623 | Z47: =IFERROR(VLOOKUP($A47,Filtro!$A$5:$AW$2591,24,FALSE),0) -> 1843 | AA47: =IFERROR(VLOOKUP($A47,Filtro!$A$5:$AW$2591,25,FALSE),0) -> 935 | AB47: =IFERROR(VLOOKUP($A47,Filtro!$A$5:$AW$2591,26,FALSE),0) -> 2646 | AC47: =IFERROR(VLOOKUP($A47,Filtro!$A$5:$AW$2591,27,FALSE),0) -> 1415 | AD47: =IFERROR(VLOOKUP($A47,Filtro!$A$5:$AW$2591,28,FALSE),0) -> 3849 | AE47: =IFERROR(VLOOKUP($A47,Filtro!$A$5:$AW$2591,29,FALSE),0) -> 2011 | AF47: =IFERROR(VLOOKUP($A47,Filtro!$A$5:$AW$2591,30,FALSE),0) -> 4325 | AG47: =IFERROR(VLOOKUP($A47,Filtro!$A$5:$AW$2591,31,FALSE),0) -> 2428 | AH47: =IFERROR(VLOOKUP($A47,Filtro!$A$5:$AW$2591,32,FALSE),0) -> 4435 | AI47: =IFERROR(VLOOKUP($A47,Filtro!$A$5:$AW$2591,33,FALSE),0) -> 2343 | AJ47: =IFERROR(VLOOKUP($A47,Filtro!$A$5:$AW$2591,34,FALSE),0) -> 3732 | AK47: =IFERROR(VLOOKUP($A47,Filtro!$A$5:$AW$2591,35,FALSE),0) -> 1828 | AL47: =IFERROR(VLOOKUP($A47,Filtro!$A$5:$AW$2591,36,FALSE),0) -> 3067 | AM47: =IFERROR(VLOOKUP($A47,Filtro!$A$5:$AW$2591,37,FALSE),0) -> 2180 | AN47: =IFERROR(VLOOKUP($A47,Filtro!$A$5:$AW$2591,38,FALSE),0) -> 3338 | AO47: =IFERROR(VLOOKUP($A47,Filtro!$A$5:$AW$2591,39,FALSE),0) -> 730 | AP47: =IFERROR(VLOOKUP($A47,Filtro!$A$5:$AW$2591,40,FALSE),0) -> 313 | DB47: 0 | DC47: 0 | DD47: 0 | DE47: 0
A48: 03010505 | C48: TÉCNICO EN ENFERMERÍA | D48: 574 | E48: 245 | F48: 329 | G48: =IFERROR(VLOOKUP($A48,Filtro!$A$5:$AW$2591,5,FALSE),0) -> 0 | H48: =IFERROR(VLOOKUP($A48,Filtro!$A$5:$AW$2591,6,FALSE),0) -> 0 | I48: =IFERROR(VLOOKUP($A48,Filtro!$A$5:$AW$2591,7,FALSE),0) -> 0 | J48: =IFERROR(VLOOKUP($A48,Filtro!$A$5:$AW$2591,8,FALSE),0) -> 0 | K48: =IFERROR(VLOOKUP($A48,Filtro!$A$5:$AW$2591,9,FALSE),0) -> 0 | L48: =IFERROR(VLOOKUP($A48,Filtro!$A$5:$AW$2591,10,FALSE),0) -> 0 | M48: =IFERROR(VLOOKUP($A48,Filtro!$A$5:$AW$2591,11,FALSE),0) -> 1 | N48: =IFERROR(VLOOKUP($A48,Filtro!$A$5:$AW$2591,12,FALSE),0) -> 0 | O48: =IFERROR(VLOOKUP($A48,Filtro!$A$5:$AW$2591,13,FALSE),0) -> 0 | P48: =IFERROR(VLOOKUP($A48,Filtro!$A$5:$AW$2591,14,FALSE),0) -> 1 | Q48: =IFERROR(VLOOKUP($A48,Filtro!$A$5:$AW$2591,15,FALSE),0) -> 2 | R48: =IFERROR(VLOOKUP($A48,Filtro!$A$5:$AW$2591,16,FALSE),0) -> 1 | S48: =IFERROR(VLOOKUP($A48,Filtro!$A$5:$AW$2591,17,FALSE),0) -> 3 | T48: =IFERROR(VLOOKUP($A48,Filtro!$A$5:$AW$2591,18,FALSE),0) -> 10 | U48: =IFERROR(VLOOKUP($A48,Filtro!$A$5:$AW$2591,19,FALSE),0) -> 4 | V48: =IFERROR(VLOOKUP($A48,Filtro!$A$5:$AW$2591,20,FALSE),0) -> 5 | W48: =IFERROR(VLOOKUP($A48,Filtro!$A$5:$AW$2591,21,FALSE),0) -> 9 | X48: =IFERROR(VLOOKUP($A48,Filtro!$A$5:$AW$2591,22,FALSE),0) -> 13 | Y48: =IFERROR(VLOOKUP($A48,Filtro!$A$5:$AW$2591,23,FALSE),0) -> 23 | Z48: =IFERROR(VLOOKUP($A48,Filtro!$A$5:$AW$2591,24,FALSE),0) -> 21 | AA48: =IFERROR(VLOOKUP($A48,Filtro!$A$5:$AW$2591,25,FALSE),0) -> 10 | AB48: =IFERROR(VLOOKUP($A48,Filtro!$A$5:$AW$2591,26,FALSE),0) -> 43 | AC48: =IFERROR(VLOOKUP($A48,Filtro!$A$5:$AW$2591,27,FALSE),0) -> 31 | AD48: =IFERROR(VLOOKUP($A48,Filtro!$A$5:$AW$2591,28,FALSE),0) -> 37 | AE48: =IFERROR(VLOOKUP($A48,Filtro!$A$5:$AW$2591,29,FALSE),0) -> 31 | AF48: =IFERROR(VLOOKUP($A48,Filtro!$A$5:$AW$2591,30,FALSE),0) -> 36 | AG48: =IFERROR(VLOOKUP($A48,Filtro!$A$5:$AW$2591,31,FALSE),0) -> 31 | AH48: =IFERROR(VLOOKUP($A48,Filtro!$A$5:$AW$2591,32,FALSE),0) -> 48 | AI48: =IFERROR(VLOOKUP($A48,Filtro!$A$5:$AW$2591,33,FALSE),0) -> 30 | AJ48: =IFERROR(VLOOKUP($A48,Filtro!$A$5:$AW$2591,34,FALSE),0) -> 39 | AK48: =IFERROR(VLOOKUP($A48,Filtro!$A$5:$AW$2591,35,FALSE),0) -> 30 | AL48: =IFERROR(VLOOKUP($A48,Filtro!$A$5:$AW$2591,36,FALSE),0) -> 35 | AM48: =IFERROR(VLOOKUP($A48,Filtro!$A$5:$AW$2591,37,FALSE),0) -> 40 | AN48: =IFERROR(VLOOKUP($A48,Filtro!$A$5:$AW$2591,38,FALSE),0) -> 40 | AO48: =IFERROR(VLOOKUP($A48,Filtro!$A$5:$AW$2591,39,FALSE),0) -> 44 | AP48: =IFERROR(VLOOKUP($A48,Filtro!$A$5:$AW$2591,40,FALSE),0) -> 8 | DB48: 0 | DC48: 0 | DD48: 0 | DE48: 0
A49: 01030100A | B49: SEGUIMIENTO AUTOVALENTE CON RIESGO | C49: MÉDICO/A | D49: 99 | E49: =SUM(AG49+AI49+AK49+AM49) -> 40 | F49: =SUM(AH49+AJ49+AL49+AN49) -> 59 | G49: =IFERROR(VLOOKUP($A49,Filtro!$A$5:$AW$2591,5,FALSE),0) -> 0 | H49: =IFERROR(VLOOKUP($A49,Filtro!$A$5:$AW$2591,6,FALSE),0) -> 0 | I49: =IFERROR(VLOOKUP($A49,Filtro!$A$5:$AW$2591,7,FALSE),0) -> 0 | J49: =IFERROR(VLOOKUP($A49,Filtro!$A$5:$AW$2591,8,FALSE),0) -> 0 | K49: =IFERROR(VLOOKUP($A49,Filtro!$A$5:$AW$2591,9,FALSE),0) -> 0 | L49: =IFERROR(VLOOKUP($A49,Filtro!$A$5:$AW$2591,10,FALSE),0) -> 0 | M49: =IFERROR(VLOOKUP($A49,Filtro!$A$5:$AW$2591,11,FALSE),0) -> 0 | N49: =IFERROR(VLOOKUP($A49,Filtro!$A$5:$AW$2591,12,FALSE),0) -> 0 | O49: =IFERROR(VLOOKUP($A49,Filtro!$A$5:$AW$2591,13,FALSE),0) -> 0 | P49: =IFERROR(VLOOKUP($A49,Filtro!$A$5:$AW$2591,14,FALSE),0) -> 0 | Q49: =IFERROR(VLOOKUP($A49,Filtro!$A$5:$AW$2591,15,FALSE),0) -> 0 | R49: =IFERROR(VLOOKUP($A49,Filtro!$A$5:$AW$2591,16,FALSE),0) -> 0 | S49: =IFERROR(VLOOKUP($A49,Filtro!$A$5:$AW$2591,17,FALSE),0) -> 0 | T49: =IFERROR(VLOOKUP($A49,Filtro!$A$5:$AW$2591,18,FALSE),0) -> 0 | U49: =IFERROR(VLOOKUP($A49,Filtro!$A$5:$AW$2591,19,FALSE),0) -> 0 | V49: =IFERROR(VLOOKUP($A49,Filtro!$A$5:$AW$2591,20,FALSE),0) -> 0 | W49: =IFERROR(VLOOKUP($A49,Filtro!$A$5:$AW$2591,21,FALSE),0) -> 0 | X49: =IFERROR(VLOOKUP($A49,Filtro!$A$5:$AW$2591,22,FALSE),0) -> 0 | Y49: =IFERROR(VLOOKUP($A49,Filtro!$A$5:$AW$2591,23,FALSE),0) -> 0 | Z49: =IFERROR(VLOOKUP($A49,Filtro!$A$5:$AW$2591,24,FALSE),0) -> 0 | AA49: =IFERROR(VLOOKUP($A49,Filtro!$A$5:$AW$2591,25,FALSE),0) -> 0 | AB49: =IFERROR(VLOOKUP($A49,Filtro!$A$5:$AW$2591,26,FALSE),0) -> 0 | AC49: =IFERROR(VLOOKUP($A49,Filtro!$A$5:$AW$2591,27,FALSE),0) -> 0 | AD49: =IFERROR(VLOOKUP($A49,Filtro!$A$5:$AW$2591,28,FALSE),0) -> 0 | AE49: =IFERROR(VLOOKUP($A49,Filtro!$A$5:$AW$2591,29,FALSE),0) -> 0 | AF49: =IFERROR(VLOOKUP($A49,Filtro!$A$5:$AW$2591,30,FALSE),0) -> 0 | AG49: =IFERROR(VLOOKUP($A49,Filtro!$A$5:$AW$2591,31,FALSE),0) -> 9 | AH49: =IFERROR(VLOOKUP($A49,Filtro!$A$5:$AW$2591,32,FALSE),0) -> 13 | AI49: =IFERROR(VLOOKUP($A49,Filtro!$A$5:$AW$2591,33,FALSE),0) -> 12 | AJ49: =IFERROR(VLOOKUP($A49,Filtro!$A$5:$AW$2591,34,FALSE),0) -> 12 | AK49: =IFERROR(VLOOKUP($A49,Filtro!$A$5:$AW$2591,35,FALSE),0) -> 8 | AL49: =IFERROR(VLOOKUP($A49,Filtro!$A$5:$AW$2591,36,FALSE),0) -> 19 | AM49: =IFERROR(VLOOKUP($A49,Filtro!$A$5:$AW$2591,37,FALSE),0) -> 11 | AN49: =IFERROR(VLOOKUP($A49,Filtro!$A$5:$AW$2591,38,FALSE),0) -> 15 | AO49: =IFERROR(VLOOKUP($A49,Filtro!$A$5:$AW$2591,39,FALSE),0) -> 8 | AP49: =IFERROR(VLOOKUP($A49,Filtro!$A$5:$AW$2591,40,FALSE),0) -> 8 | DB49: 0 | DC49: 0 | DD49: 0 | DE49: 0
A50: 01030200B | C50: ENFERMERA/O | D50: 1297 | E50: =SUM(AG50+AI50+AK50+AM50) -> 497 | F50: =SUM(AH50+AJ50+AL50+AN50) -> 800 | G50: =IFERROR(VLOOKUP($A50,Filtro!$A$5:$AW$2591,5,FALSE),0) -> 0 | H50: =IFERROR(VLOOKUP($A50,Filtro!$A$5:$AW$2591,6,FALSE),0) -> 0 | I50: =IFERROR(VLOOKUP($A50,Filtro!$A$5:$AW$2591,7,FALSE),0) -> 0 | J50: =IFERROR(VLOOKUP($A50,Filtro!$A$5:$AW$2591,8,FALSE),0) -> 0 | K50: =IFERROR(VLOOKUP($A50,Filtro!$A$5:$AW$2591,9,FALSE),0) -> 0 | L50: =IFERROR(VLOOKUP($A50,Filtro!$A$5:$AW$2591,10,FALSE),0) -> 0 | M50: =IFERROR(VLOOKUP($A50,Filtro!$A$5:$AW$2591,11,FALSE),0) -> 0 | N50: =IFERROR(VLOOKUP($A50,Filtro!$A$5:$AW$2591,12,FALSE),0) -> 0 | O50: =IFERROR(VLOOKUP($A50,Filtro!$A$5:$AW$2591,13,FALSE),0) -> 0 | P50: =IFERROR(VLOOKUP($A50,Filtro!$A$5:$AW$2591,14,FALSE),0) -> 0 | Q50: =IFERROR(VLOOKUP($A50,Filtro!$A$5:$AW$2591,15,FALSE),0) -> 0 | R50: =IFERROR(VLOOKUP($A50,Filtro!$A$5:$AW$2591,16,FALSE),0) -> 0 | S50: =IFERROR(VLOOKUP($A50,Filtro!$A$5:$AW$2591,17,FALSE),0) -> 0 | T50: =IFERROR(VLOOKUP($A50,Filtro!$A$5:$AW$2591,18,FALSE),0) -> 0 | U50: =IFERROR(VLOOKUP($A50,Filtro!$A$5:$AW$2591,19,FALSE),0) -> 0 | V50: =IFERROR(VLOOKUP($A50,Filtro!$A$5:$AW$2591,20,FALSE),0) -> 0 | W50: =IFERROR(VLOOKUP($A50,Filtro!$A$5:$AW$2591,21,FALSE),0) -> 0 | X50: =IFERROR(VLOOKUP($A50,Filtro!$A$5:$AW$2591,22,FALSE),0) -> 0 | Y50: =IFERROR(VLOOKUP($A50,Filtro!$A$5:$AW$2591,23,FALSE),0) -> 0 | Z50: =IFERROR(VLOOKUP($A50,Filtro!$A$5:$AW$2591,24,FALSE),0) -> 0 | AA50: =IFERROR(VLOOKUP($A50,Filtro!$A$5:$AW$2591,25,FALSE),0) -> 0 | AB50: =IFERROR(VLOOKUP($A50,Filtro!$A$5:$AW$2591,26,FALSE),0) -> 0 | AC50: =IFERROR(VLOOKUP($A50,Filtro!$A$5:$AW$2591,27,FALSE),0) -> 0 | AD50: =IFERROR(VLOOKUP($A50,Filtro!$A$5:$AW$2591,28,FALSE),0) -> 0 | AE50: =IFERROR(VLOOKUP($A50,Filtro!$A$5:$AW$2591,29,FALSE),0) -> 0 | AF50: =IFERROR(VLOOKUP($A50,Filtro!$A$5:$AW$2591,30,FALSE),0) -> 0 | AG50: =IFERROR(VLOOKUP($A50,Filtro!$A$5:$AW$2591,31,FALSE),0) -> 103 | AH50: =IFERROR(VLOOKUP($A50,Filtro!$A$5:$AW$2591,32,FALSE),0) -> 195 | AI50: =IFERROR(VLOOKUP($A50,Filtro!$A$5:$AW$2591,33,FALSE),0) -> 145 | AJ50: =IFERROR(VLOOKUP($A50,Filtro!$A$5:$AW$2591,34,FALSE),0) -> 231 | AK50: =IFERROR(VLOOKUP($A50,Filtro!$A$5:$AW$2591,35,FALSE),0) -> 123 | AL50: =IFERROR(VLOOKUP($A50,Filtro!$A$5:$AW$2591,36,FALSE),0) -> 185 | AM50: =IFERROR(VLOOKUP($A50,Filtro!$A$5:$AW$2591,37,FALSE),0) -> 126 | AN50: =IFERROR(VLOOKUP($A50,Filtro!$A$5:$AW$2591,38,FALSE),0) -> 189 | AO50: =IFERROR(VLOOKUP($A50,Filtro!$A$5:$AW$2591,39,FALSE),0) -> 9 | AP50: =IFERROR(VLOOKUP($A50,Filtro!$A$5:$AW$2591,40,FALSE),0) -> 9 | DB50: 0 | DC50: 0 | DD50: 0 | DE50: 0
A51: 09600204 | C51: OTROS PROFESIONALES DEBIDAMENTE CAPACITADOS | D51: 153 | E51: 63 | F51: 90 | G51: =IFERROR(VLOOKUP($A51,Filtro!$A$5:$AW$2591,5,FALSE),0) -> 0 | H51: =IFERROR(VLOOKUP($A51,Filtro!$A$5:$AW$2591,6,FALSE),0) -> 0 | I51: =IFERROR(VLOOKUP($A51,Filtro!$A$5:$AW$2591,7,FALSE),0) -> 0 | J51: =IFERROR(VLOOKUP($A51,Filtro!$A$5:$AW$2591,8,FALSE),0) -> 0 | K51: =IFERROR(VLOOKUP($A51,Filtro!$A$5:$AW$2591,9,FALSE),0) -> 0 | L51: =IFERROR(VLOOKUP($A51,Filtro!$A$5:$AW$2591,10,FALSE),0) -> 0 | M51: =IFERROR(VLOOKUP($A51,Filtro!$A$5:$AW$2591,11,FALSE),0) -> 0 | N51: =IFERROR(VLOOKUP($A51,Filtro!$A$5:$AW$2591,12,FALSE),0) -> 0 | O51: =IFERROR(VLOOKUP($A51,Filtro!$A$5:$AW$2591,13,FALSE),0) -> 0 | P51: =IFERROR(VLOOKUP($A51,Filtro!$A$5:$AW$2591,14,FALSE),0) -> 0 | Q51: =IFERROR(VLOOKUP($A51,Filtro!$A$5:$AW$2591,15,FALSE),0) -> 0 | R51: =IFERROR(VLOOKUP($A51,Filtro!$A$5:$AW$2591,16,FALSE),0) -> 0 | S51: =IFERROR(VLOOKUP($A51,Filtro!$A$5:$AW$2591,17,FALSE),0) -> 0 | T51: =IFERROR(VLOOKUP($A51,Filtro!$A$5:$AW$2591,18,FALSE),0) -> 0 | U51: =IFERROR(VLOOKUP($A51,Filtro!$A$5:$AW$2591,19,FALSE),0) -> 0 | V51: =IFERROR(VLOOKUP($A51,Filtro!$A$5:$AW$2591,20,FALSE),0) -> 0 | W51: =IFERROR(VLOOKUP($A51,Filtro!$A$5:$AW$2591,21,FALSE),0) -> 0 | X51: =IFERROR(VLOOKUP($A51,Filtro!$A$5:$AW$2591,22,FALSE),0) -> 0 | Y51: =IFERROR(VLOOKUP($A51,Filtro!$A$5:$AW$2591,23,FALSE),0) -> 0 | Z51: =IFERROR(VLOOKUP($A51,Filtro!$A$5:$AW$2591,24,FALSE),0) -> 0 | AA51: =IFERROR(VLOOKUP($A51,Filtro!$A$5:$AW$2591,25,FALSE),0) -> 0 | AB51: =IFERROR(VLOOKUP($A51,Filtro!$A$5:$AW$2591,26,FALSE),0) -> 0 | AC51: =IFERROR(VLOOKUP($A51,Filtro!$A$5:$AW$2591,27,FALSE),0) -> 0 | AD51: =IFERROR(VLOOKUP($A51,Filtro!$A$5:$AW$2591,28,FALSE),0) -> 0 | AE51: =IFERROR(VLOOKUP($A51,Filtro!$A$5:$AW$2591,29,FALSE),0) -> 0 | AF51: =IFERROR(VLOOKUP($A51,Filtro!$A$5:$AW$2591,30,FALSE),0) -> 0 | AG51: =IFERROR(VLOOKUP($A51,Filtro!$A$5:$AW$2591,31,FALSE),0) -> 13 | AH51: =IFERROR(VLOOKUP($A51,Filtro!$A$5:$AW$2591,32,FALSE),0) -> 24 | AI51: =IFERROR(VLOOKUP($A51,Filtro!$A$5:$AW$2591,33,FALSE),0) -> 18 | AJ51: =IFERROR(VLOOKUP($A51,Filtro!$A$5:$AW$2591,34,FALSE),0) -> 31 | AK51: =IFERROR(VLOOKUP($A51,Filtro!$A$5:$AW$2591,35,FALSE),0) -> 16 | AL51: =IFERROR(VLOOKUP($A51,Filtro!$A$5:$AW$2591,36,FALSE),0) -> 17 | AM51: =IFERROR(VLOOKUP($A51,Filtro!$A$5:$AW$2591,37,FALSE),0) -> 16 | AN51: =IFERROR(VLOOKUP($A51,Filtro!$A$5:$AW$2591,38,FALSE),0) -> 18 | AO51: =IFERROR(VLOOKUP($A51,Filtro!$A$5:$AW$2591,39,FALSE),0) -> 8 | AP51: =IFERROR(VLOOKUP($A51,Filtro!$A$5:$AW$2591,40,FALSE),0) -> 8 | DB51: 0 | DC51: 0 | DD51: 0 | DE51: 0
A52: 01030300C | B52: SEGUIMIENTO RIESGO DEPENDENCIA | C52: MÉDICO/A | D52: 96 | E52: 46 | F52: 50 | G52: =IFERROR(VLOOKUP($A52,Filtro!$A$5:$AW$2591,5,FALSE),0) -> 0 | H52: =IFERROR(VLOOKUP($A52,Filtro!$A$5:$AW$2591,6,FALSE),0) -> 0 | I52: =IFERROR(VLOOKUP($A52,Filtro!$A$5:$AW$2591,7,FALSE),0) -> 0 | J52: =IFERROR(VLOOKUP($A52,Filtro!$A$5:$AW$2591,8,FALSE),0) -> 0 | K52: =IFERROR(VLOOKUP($A52,Filtro!$A$5:$AW$2591,9,FALSE),0) -> 0 | L52: =IFERROR(VLOOKUP($A52,Filtro!$A$5:$AW$2591,10,FALSE),0) -> 0 | M52: =IFERROR(VLOOKUP($A52,Filtro!$A$5:$AW$2591,11,FALSE),0) -> 0 | N52: =IFERROR(VLOOKUP($A52,Filtro!$A$5:$AW$2591,12,FALSE),0) -> 0 | O52: =IFERROR(VLOOKUP($A52,Filtro!$A$5:$AW$2591,13,FALSE),0) -> 0 | P52: =IFERROR(VLOOKUP($A52,Filtro!$A$5:$AW$2591,14,FALSE),0) -> 0 | Q52: =IFERROR(VLOOKUP($A52,Filtro!$A$5:$AW$2591,15,FALSE),0) -> 0 | R52: =IFERROR(VLOOKUP($A52,Filtro!$A$5:$AW$2591,16,FALSE),0) -> 0 | S52: =IFERROR(VLOOKUP($A52,Filtro!$A$5:$AW$2591,17,FALSE),0) -> 0 | T52: =IFERROR(VLOOKUP($A52,Filtro!$A$5:$AW$2591,18,FALSE),0) -> 0 | U52: =IFERROR(VLOOKUP($A52,Filtro!$A$5:$AW$2591,19,FALSE),0) -> 0 | V52: =IFERROR(VLOOKUP($A52,Filtro!$A$5:$AW$2591,20,FALSE),0) -> 0 | W52: =IFERROR(VLOOKUP($A52,Filtro!$A$5:$AW$2591,21,FALSE),0) -> 0 | X52: =IFERROR(VLOOKUP($A52,Filtro!$A$5:$AW$2591,22,FALSE),0) -> 0 | Y52: =IFERROR(VLOOKUP($A52,Filtro!$A$5:$AW$2591,23,FALSE),0) -> 0 | Z52: =IFERROR(VLOOKUP($A52,Filtro!$A$5:$AW$2591,24,FALSE),0) -> 0 | AA52: =IFERROR(VLOOKUP($A52,Filtro!$A$5:$AW$2591,25,FALSE),0) -> 0 | AB52: =IFERROR(VLOOKUP($A52,Filtro!$A$5:$AW$2591,26,FALSE),0) -> 0 | AC52: =IFERROR(VLOOKUP($A52,Filtro!$A$5:$AW$2591,27,FALSE),0) -> 0 | AD52: =IFERROR(VLOOKUP($A52,Filtro!$A$5:$AW$2591,28,FALSE),0) -> 0 | AE52: =IFERROR(VLOOKUP($A52,Filtro!$A$5:$AW$2591,29,FALSE),0) -> 0 | AF52: =IFERROR(VLOOKUP($A52,Filtro!$A$5:$AW$2591,30,FALSE),0) -> 0 | AG52: =IFERROR(VLOOKUP($A52,Filtro!$A$5:$AW$2591,31,FALSE),0) -> 10 | AH52: =IFERROR(VLOOKUP($A52,Filtro!$A$5:$AW$2591,32,FALSE),0) -> 15 | AI52: =IFERROR(VLOOKUP($A52,Filtro!$A$5:$AW$2591,33,FALSE),0) -> 13 | AJ52: =IFERROR(VLOOKUP($A52,Filtro!$A$5:$AW$2591,34,FALSE),0) -> 10 | AK52: =IFERROR(VLOOKUP($A52,Filtro!$A$5:$AW$2591,35,FALSE),0) -> 11 | AL52: =IFERROR(VLOOKUP($A52,Filtro!$A$5:$AW$2591,36,FALSE),0) -> 11 | AM52: =IFERROR(VLOOKUP($A52,Filtro!$A$5:$AW$2591,37,FALSE),0) -> 12 | AN52: =IFERROR(VLOOKUP($A52,Filtro!$A$5:$AW$2591,38,FALSE),0) -> 14 | AO52: =IFERROR(VLOOKUP($A52,Filtro!$A$5:$AW$2591,39,FALSE),0) -> 9 | AP52: =IFERROR(VLOOKUP($A52,Filtro!$A$5:$AW$2591,40,FALSE),0) -> 8 | DB52: 0 | DC52: 0 | DD52: 0 | DE52: 0
A53: 01030400D | C53: ENFERMERA/O | D53: 595 | E53: =SUM(AG53+AI53+AK53+AM53) -> 220 | F53: =SUM(AH53+AJ53+AL53+AN53) -> 375 | G53: =IFERROR(VLOOKUP($A53,Filtro!$A$5:$AW$2591,5,FALSE),0) -> 0 | H53: =IFERROR(VLOOKUP($A53,Filtro!$A$5:$AW$2591,6,FALSE),0) -> 0 | I53: =IFERROR(VLOOKUP($A53,Filtro!$A$5:$AW$2591,7,FALSE),0) -> 0 | J53: =IFERROR(VLOOKUP($A53,Filtro!$A$5:$AW$2591,8,FALSE),0) -> 0 | K53: =IFERROR(VLOOKUP($A53,Filtro!$A$5:$AW$2591,9,FALSE),0) -> 0 | L53: =IFERROR(VLOOKUP($A53,Filtro!$A$5:$AW$2591,10,FALSE),0) -> 0 | M53: =IFERROR(VLOOKUP($A53,Filtro!$A$5:$AW$2591,11,FALSE),0) -> 0 | N53: =IFERROR(VLOOKUP($A53,Filtro!$A$5:$AW$2591,12,FALSE),0) -> 0 | O53: =IFERROR(VLOOKUP($A53,Filtro!$A$5:$AW$2591,13,FALSE),0) -> 0 | P53: =IFERROR(VLOOKUP($A53,Filtro!$A$5:$AW$2591,14,FALSE),0) -> 0 | Q53: =IFERROR(VLOOKUP($A53,Filtro!$A$5:$AW$2591,15,FALSE),0) -> 0 | R53: =IFERROR(VLOOKUP($A53,Filtro!$A$5:$AW$2591,16,FALSE),0) -> 0 | S53: =IFERROR(VLOOKUP($A53,Filtro!$A$5:$AW$2591,17,FALSE),0) -> 0 | T53: =IFERROR(VLOOKUP($A53,Filtro!$A$5:$AW$2591,18,FALSE),0) -> 0 | U53: =IFERROR(VLOOKUP($A53,Filtro!$A$5:$AW$2591,19,FALSE),0) -> 0 | V53: =IFERROR(VLOOKUP($A53,Filtro!$A$5:$AW$2591,20,FALSE),0) -> 0 | W53: =IFERROR(VLOOKUP($A53,Filtro!$A$5:$AW$2591,21,FALSE),0) -> 0 | X53: =IFERROR(VLOOKUP($A53,Filtro!$A$5:$AW$2591,22,FALSE),0) -> 0 | Y53: =IFERROR(VLOOKUP($A53,Filtro!$A$5:$AW$2591,23,FALSE),0) -> 0 | Z53: =IFERROR(VLOOKUP($A53,Filtro!$A$5:$AW$2591,24,FALSE),0) -> 0 | AA53: =IFERROR(VLOOKUP($A53,Filtro!$A$5:$AW$2591,25,FALSE),0) -> 0 | AB53: =IFERROR(VLOOKUP($A53,Filtro!$A$5:$AW$2591,26,FALSE),0) -> 0 | AC53: =IFERROR(VLOOKUP($A53,Filtro!$A$5:$AW$2591,27,FALSE),0) -> 0 | AD53: =IFERROR(VLOOKUP($A53,Filtro!$A$5:$AW$2591,28,FALSE),0) -> 0 | AE53: =IFERROR(VLOOKUP($A53,Filtro!$A$5:$AW$2591,29,FALSE),0) -> 0 | AF53: =IFERROR(VLOOKUP($A53,Filtro!$A$5:$AW$2591,30,FALSE),0) -> 0 | AG53: =IFERROR(VLOOKUP($A53,Filtro!$A$5:$AW$2591,31,FALSE),0) -> 28 | AH53: =IFERROR(VLOOKUP($A53,Filtro!$A$5:$AW$2591,32,FALSE),0) -> 39 | AI53: =IFERROR(VLOOKUP($A53,Filtro!$A$5:$AW$2591,33,FALSE),0) -> 43 | AJ53: =IFERROR(VLOOKUP($A53,Filtro!$A$5:$AW$2591,34,FALSE),0) -> 87 | AK53: =IFERROR(VLOOKUP($A53,Filtro!$A$5:$AW$2591,35,FALSE),0) -> 45 | AL53: =IFERROR(VLOOKUP($A53,Filtro!$A$5:$AW$2591,36,FALSE),0) -> 75 | AM53: =IFERROR(VLOOKUP($A53,Filtro!$A$5:$AW$2591,37,FALSE),0) -> 104 | AN53: =IFERROR(VLOOKUP($A53,Filtro!$A$5:$AW$2591,38,FALSE),0) -> 174 | AO53: =IFERROR(VLOOKUP($A53,Filtro!$A$5:$AW$2591,39,FALSE),0) -> 14 | AP53: =IFERROR(VLOOKUP($A53,Filtro!$A$5:$AW$2591,40,FALSE),0) -> 8 | DB53: 0 | DC53: 0 | DD53: 0 | DE53: 0
A54: 09600205 | C54: OTROS PROFESIONALES DEBIDAMENTE CAPACITADOS | D54: 102 | E54: 47 | F54: 55 | G54: =IFERROR(VLOOKUP($A54,Filtro!$A$5:$AW$2591,5,FALSE),0) -> 0 | H54: =IFERROR(VLOOKUP($A54,Filtro!$A$5:$AW$2591,6,FALSE),0) -> 0 | I54: =IFERROR(VLOOKUP($A54,Filtro!$A$5:$AW$2591,7,FALSE),0) -> 0 | J54: =IFERROR(VLOOKUP($A54,Filtro!$A$5:$AW$2591,8,FALSE),0) -> 0 | K54: =IFERROR(VLOOKUP($A54,Filtro!$A$5:$AW$2591,9,FALSE),0) -> 0 | L54: =IFERROR(VLOOKUP($A54,Filtro!$A$5:$AW$2591,10,FALSE),0) -> 0 | M54: =IFERROR(VLOOKUP($A54,Filtro!$A$5:$AW$2591,11,FALSE),0) -> 0 | N54: =IFERROR(VLOOKUP($A54,Filtro!$A$5:$AW$2591,12,FALSE),0) -> 0 | O54: =IFERROR(VLOOKUP($A54,Filtro!$A$5:$AW$2591,13,FALSE),0) -> 0 | P54: =IFERROR(VLOOKUP($A54,Filtro!$A$5:$AW$2591,14,FALSE),0) -> 0 | Q54: =IFERROR(VLOOKUP($A54,Filtro!$A$5:$AW$2591,15,FALSE),0) -> 0 | R54: =IFERROR(VLOOKUP($A54,Filtro!$A$5:$AW$2591,16,FALSE),0) -> 0 | S54: =IFERROR(VLOOKUP($A54,Filtro!$A$5:$AW$2591,17,FALSE),0) -> 0 | T54: =IFERROR(VLOOKUP($A54,Filtro!$A$5:$AW$2591,18,FALSE),0) -> 0 | U54: =IFERROR(VLOOKUP($A54,Filtro!$A$5:$AW$2591,19,FALSE),0) -> 0 | V54: =IFERROR(VLOOKUP($A54,Filtro!$A$5:$AW$2591,20,FALSE),0) -> 0 | W54: =IFERROR(VLOOKUP($A54,Filtro!$A$5:$AW$2591,21,FALSE),0) -> 0 | X54: =IFERROR(VLOOKUP($A54,Filtro!$A$5:$AW$2591,22,FALSE),0) -> 0 | Y54: =IFERROR(VLOOKUP($A54,Filtro!$A$5:$AW$2591,23,FALSE),0) -> 0 | Z54: =IFERROR(VLOOKUP($A54,Filtro!$A$5:$AW$2591,24,FALSE),0) -> 0 | AA54: =IFERROR(VLOOKUP($A54,Filtro!$A$5:$AW$2591,25,FALSE),0) -> 0 | AB54: =IFERROR(VLOOKUP($A54,Filtro!$A$5:$AW$2591,26,FALSE),0) -> 0 | AC54: =IFERROR(VLOOKUP($A54,Filtro!$A$5:$AW$2591,27,FALSE),0) -> 0 | AD54: =IFERROR(VLOOKUP($A54,Filtro!$A$5:$AW$2591,28,FALSE),0) -> 0 | AE54: =IFERROR(VLOOKUP($A54,Filtro!$A$5:$AW$2591,29,FALSE),0) -> 0 | AF54: =IFERROR(VLOOKUP($A54,Filtro!$A$5:$AW$2591,30,FALSE),0) -> 0 | AG54: =IFERROR(VLOOKUP($A54,Filtro!$A$5:$AW$2591,31,FALSE),0) -> 9 | AH54: =IFERROR(VLOOKUP($A54,Filtro!$A$5:$AW$2591,32,FALSE),0) -> 11 | AI54: =IFERROR(VLOOKUP($A54,Filtro!$A$5:$AW$2591,33,FALSE),0) -> 11 | AJ54: =IFERROR(VLOOKUP($A54,Filtro!$A$5:$AW$2591,34,FALSE),0) -> 15 | AK54: =IFERROR(VLOOKUP($A54,Filtro!$A$5:$AW$2591,35,FALSE),0) -> 14 | AL54: =IFERROR(VLOOKUP($A54,Filtro!$A$5:$AW$2591,36,FALSE),0) -> 13 | AM54: =IFERROR(VLOOKUP($A54,Filtro!$A$5:$AW$2591,37,FALSE),0) -> 13 | AN54: =IFERROR(VLOOKUP($A54,Filtro!$A$5:$AW$2591,38,FALSE),0) -> 16 | AO54: =IFERROR(VLOOKUP($A54,Filtro!$A$5:$AW$2591,39,FALSE),0) -> 8 | AP54: =IFERROR(VLOOKUP($A54,Filtro!$A$5:$AW$2591,40,FALSE),0) -> 8 | DB54: 0 | DC54: 0 | DD54: 0 | DE54: 0
A55: 01200010 | B55: DE INFECCIÓN TRANSMISIÓN SEXUAL | C55: MÉDICO/A | D55: 50 | E55: =SUM(G55+I55+K55+M55+O55+Q55+S55+U55+W55+Y55+AA55+AC55+AE55+AG55+AI55+AK55+AM55) -> 15 | F55: =SUM(H55+J55+L55+N55+P55+R55+T55+V55+X55+Z55+AB55+AD55+AF55+AH55+AJ55+AL55+AN55) -> 35 | G55: =IFERROR(VLOOKUP($A55,Filtro!$A$5:$AW$2591,5,FALSE),0) -> 0 | H55: =IFERROR(VLOOKUP($A55,Filtro!$A$5:$AW$2591,6,FALSE),0) -> 0 | I55: =IFERROR(VLOOKUP($A55,Filtro!$A$5:$AW$2591,7,FALSE),0) -> 0 | J55: =IFERROR(VLOOKUP($A55,Filtro!$A$5:$AW$2591,8,FALSE),0) -> 0 | K55: =IFERROR(VLOOKUP($A55,Filtro!$A$5:$AW$2591,9,FALSE),0) -> 0 | L55: =IFERROR(VLOOKUP($A55,Filtro!$A$5:$AW$2591,10,FALSE),0) -> 0 | M55: =IFERROR(VLOOKUP($A55,Filtro!$A$5:$AW$2591,11,FALSE),0) -> 1 | N55: =IFERROR(VLOOKUP($A55,Filtro!$A$5:$AW$2591,12,FALSE),0) -> 1 | O55: =IFERROR(VLOOKUP($A55,Filtro!$A$5:$AW$2591,13,FALSE),0) -> 1 | P55: =IFERROR(VLOOKUP($A55,Filtro!$A$5:$AW$2591,14,FALSE),0) -> 1 | Q55: =IFERROR(VLOOKUP($A55,Filtro!$A$5:$AW$2591,15,FALSE),0) -> 1 | R55: =IFERROR(VLOOKUP($A55,Filtro!$A$5:$AW$2591,16,FALSE),0) -> 0 | S55: =IFERROR(VLOOKUP($A55,Filtro!$A$5:$AW$2591,17,FALSE),0) -> 1 | T55: =IFERROR(VLOOKUP($A55,Filtro!$A$5:$AW$2591,18,FALSE),0) -> 1 | U55: =IFERROR(VLOOKUP($A55,Filtro!$A$5:$AW$2591,19,FALSE),0) -> 1 | V55: =IFERROR(VLOOKUP($A55,Filtro!$A$5:$AW$2591,20,FALSE),0) -> 0 | W55: =IFERROR(VLOOKUP($A55,Filtro!$A$5:$AW$2591,21,FALSE),0) -> 0 | X55: =IFERROR(VLOOKUP($A55,Filtro!$A$5:$AW$2591,22,FALSE),0) -> 0 | Y55: =IFERROR(VLOOKUP($A55,Filtro!$A$5:$AW$2591,23,FALSE),0) -> 0 | Z55: =IFERROR(VLOOKUP($A55,Filtro!$A$5:$AW$2591,24,FALSE),0) -> 1 | AA55: =IFERROR(VLOOKUP($A55,Filtro!$A$5:$AW$2591,25,FALSE),0) -> 0 | AB55: =IFERROR(VLOOKUP($A55,Filtro!$A$5:$AW$2591,26,FALSE),0) -> 2 | AC55: =IFERROR(VLOOKUP($A55,Filtro!$A$5:$AW$2591,27,FALSE),0) -> 1 | AD55: =IFERROR(VLOOKUP($A55,Filtro!$A$5:$AW$2591,28,FALSE),0) -> 4 | AE55: =IFERROR(VLOOKUP($A55,Filtro!$A$5:$AW$2591,29,FALSE),0) -> 0 | AF55: =IFERROR(VLOOKUP($A55,Filtro!$A$5:$AW$2591,30,FALSE),0) -> 9 | AG55: =IFERROR(VLOOKUP($A55,Filtro!$A$5:$AW$2591,31,FALSE),0) -> 2 | AH55: =IFERROR(VLOOKUP($A55,Filtro!$A$5:$AW$2591,32,FALSE),0) -> 5 | AI55: =IFERROR(VLOOKUP($A55,Filtro!$A$5:$AW$2591,33,FALSE),0) -> 4 | AJ55: =IFERROR(VLOOKUP($A55,Filtro!$A$5:$AW$2591,34,FALSE),0) -> 5 | AK55: =IFERROR(VLOOKUP($A55,Filtro!$A$5:$AW$2591,35,FALSE),0) -> 2 | AL55: =IFERROR(VLOOKUP($A55,Filtro!$A$5:$AW$2591,36,FALSE),0) -> 2 | AM55: =IFERROR(VLOOKUP($A55,Filtro!$A$5:$AW$2591,37,FALSE),0) -> 1 | AN55: =IFERROR(VLOOKUP($A55,Filtro!$A$5:$AW$2591,38,FALSE),0) -> 4 | AO55: =IFERROR(VLOOKUP($A55,Filtro!$A$5:$AW$2591,39,FALSE),0) -> 0 | AP55: =IFERROR(VLOOKUP($A55,Filtro!$A$5:$AW$2591,40,FALSE),0) -> 0 | DB55: 0 | DC55: 0 | DD55: 0 | DE55: 0
A56: 01200020 | C56: ENFERMERA/O | D56: 222 | E56: =SUM(G56+I56+K56+M56+O56+Q56+S56+U56+W56+Y56+AA56+AC56+AE56+AG56+AI56+AK56+AM56) -> 68 | F56: 154 | G56: =IFERROR(VLOOKUP($A56,Filtro!$A$5:$AW$2591,5,FALSE),0) -> 0 | H56: =IFERROR(VLOOKUP($A56,Filtro!$A$5:$AW$2591,6,FALSE),0) -> 0 | I56: =IFERROR(VLOOKUP($A56,Filtro!$A$5:$AW$2591,7,FALSE),0) -> 2 | J56: =IFERROR(VLOOKUP($A56,Filtro!$A$5:$AW$2591,8,FALSE),0) -> 1 | K56: =IFERROR(VLOOKUP($A56,Filtro!$A$5:$AW$2591,9,FALSE),0) -> 0 | L56: =IFERROR(VLOOKUP($A56,Filtro!$A$5:$AW$2591,10,FALSE),0) -> 4 | M56: =IFERROR(VLOOKUP($A56,Filtro!$A$5:$AW$2591,11,FALSE),0) -> 0 | N56: =IFERROR(VLOOKUP($A56,Filtro!$A$5:$AW$2591,12,FALSE),0) -> 1 | O56: =IFERROR(VLOOKUP($A56,Filtro!$A$5:$AW$2591,13,FALSE),0) -> 0 | P56: =IFERROR(VLOOKUP($A56,Filtro!$A$5:$AW$2591,14,FALSE),0) -> 2 | Q56: =IFERROR(VLOOKUP($A56,Filtro!$A$5:$AW$2591,15,FALSE),0) -> 0 | R56: =IFERROR(VLOOKUP($A56,Filtro!$A$5:$AW$2591,16,FALSE),0) -> 4 | S56: =IFERROR(VLOOKUP($A56,Filtro!$A$5:$AW$2591,17,FALSE),0) -> 2 | T56: =IFERROR(VLOOKUP($A56,Filtro!$A$5:$AW$2591,18,FALSE),0) -> 4 | U56: =IFERROR(VLOOKUP($A56,Filtro!$A$5:$AW$2591,19,FALSE),0) -> 1 | V56: =IFERROR(VLOOKUP($A56,Filtro!$A$5:$AW$2591,20,FALSE),0) -> 10 | W56: =IFERROR(VLOOKUP($A56,Filtro!$A$5:$AW$2591,21,FALSE),0) -> 0 | X56: =IFERROR(VLOOKUP($A56,Filtro!$A$5:$AW$2591,22,FALSE),0) -> 17 | Y56: =IFERROR(VLOOKUP($A56,Filtro!$A$5:$AW$2591,23,FALSE),0) -> 1 | Z56: =IFERROR(VLOOKUP($A56,Filtro!$A$5:$AW$2591,24,FALSE),0) -> 7 | AA56: =IFERROR(VLOOKUP($A56,Filtro!$A$5:$AW$2591,25,FALSE),0) -> 2 | AB56: =IFERROR(VLOOKUP($A56,Filtro!$A$5:$AW$2591,26,FALSE),0) -> 12 | AC56: =IFERROR(VLOOKUP($A56,Filtro!$A$5:$AW$2591,27,FALSE),0) -> 8 | AD56: =IFERROR(VLOOKUP($A56,Filtro!$A$5:$AW$2591,28,FALSE),0) -> 16 | AE56: =IFERROR(VLOOKUP($A56,Filtro!$A$5:$AW$2591,29,FALSE),0) -> 16 | AF56: =IFERROR(VLOOKUP($A56,Filtro!$A$5:$AW$2591,30,FALSE),0) -> 12 | AG56: =IFERROR(VLOOKUP($A56,Filtro!$A$5:$AW$2591,31,FALSE),0) -> 11 | AH56: =IFERROR(VLOOKUP($A56,Filtro!$A$5:$AW$2591,32,FALSE),0) -> 20 | AI56: =IFERROR(VLOOKUP($A56,Filtro!$A$5:$AW$2591,33,FALSE),0) -> 10 | AJ56: =IFERROR(VLOOKUP($A56,Filtro!$A$5:$AW$2591,34,FALSE),0) -> 17 | AK56: =IFERROR(VLOOKUP($A56,Filtro!$A$5:$AW$2591,35,FALSE),0) -> 8 | AL56: =IFERROR(VLOOKUP($A56,Filtro!$A$5:$AW$2591,36,FALSE),0) -> 13 | AM56: =IFERROR(VLOOKUP($A56,Filtro!$A$5:$AW$2591,37,FALSE),0) -> 7 | AN56: =IFERROR(VLOOKUP($A56,Filtro!$A$5:$AW$2591,38,FALSE),0) -> 14 | AO56: =IFERROR(VLOOKUP($A56,Filtro!$A$5:$AW$2591,39,FALSE),0) -> 6 | AP56: =IFERROR(VLOOKUP($A56,Filtro!$A$5:$AW$2591,40,FALSE),0) -> 2 | DB56: 0 | DC56: 0 | DD56: 0 | DE56: 0
A57: 01200030 | C57: MATRONA/ÓN | D57: 219 | E57: =SUM(G57+I57+K57+M57+O57+Q57+S57+U57+W57+Y57+AA57+AC57+AE57+AG57+AI57+AK57+AM57) -> 45 | F57: 174 | G57: =IFERROR(VLOOKUP($A57,Filtro!$A$5:$AW$2591,5,FALSE),0) -> 0 | H57: =IFERROR(VLOOKUP($A57,Filtro!$A$5:$AW$2591,6,FALSE),0) -> 1 | I57: =IFERROR(VLOOKUP($A57,Filtro!$A$5:$AW$2591,7,FALSE),0) -> 0 | J57: =IFERROR(VLOOKUP($A57,Filtro!$A$5:$AW$2591,8,FALSE),0) -> 0 | K57: =IFERROR(VLOOKUP($A57,Filtro!$A$5:$AW$2591,9,FALSE),0) -> 0 | L57: =IFERROR(VLOOKUP($A57,Filtro!$A$5:$AW$2591,10,FALSE),0) -> 0 | M57: =IFERROR(VLOOKUP($A57,Filtro!$A$5:$AW$2591,11,FALSE),0) -> 2 | N57: =IFERROR(VLOOKUP($A57,Filtro!$A$5:$AW$2591,12,FALSE),0) -> 3 | O57: =IFERROR(VLOOKUP($A57,Filtro!$A$5:$AW$2591,13,FALSE),0) -> 9 | P57: =IFERROR(VLOOKUP($A57,Filtro!$A$5:$AW$2591,14,FALSE),0) -> 51 | Q57: =IFERROR(VLOOKUP($A57,Filtro!$A$5:$AW$2591,15,FALSE),0) -> 7 | R57: =IFERROR(VLOOKUP($A57,Filtro!$A$5:$AW$2591,16,FALSE),0) -> 30 | S57: =IFERROR(VLOOKUP($A57,Filtro!$A$5:$AW$2591,17,FALSE),0) -> 7 | T57: =IFERROR(VLOOKUP($A57,Filtro!$A$5:$AW$2591,18,FALSE),0) -> 24 | U57: =IFERROR(VLOOKUP($A57,Filtro!$A$5:$AW$2591,19,FALSE),0) -> 9 | V57: =IFERROR(VLOOKUP($A57,Filtro!$A$5:$AW$2591,20,FALSE),0) -> 17 | W57: =IFERROR(VLOOKUP($A57,Filtro!$A$5:$AW$2591,21,FALSE),0) -> 6 | X57: =IFERROR(VLOOKUP($A57,Filtro!$A$5:$AW$2591,22,FALSE),0) -> 17 | Y57: =IFERROR(VLOOKUP($A57,Filtro!$A$5:$AW$2591,23,FALSE),0) -> 3 | Z57: =IFERROR(VLOOKUP($A57,Filtro!$A$5:$AW$2591,24,FALSE),0) -> 6 | AA57: =IFERROR(VLOOKUP($A57,Filtro!$A$5:$AW$2591,25,FALSE),0) -> 1 | AB57: =IFERROR(VLOOKUP($A57,Filtro!$A$5:$AW$2591,26,FALSE),0) -> 10 | AC57: =IFERROR(VLOOKUP($A57,Filtro!$A$5:$AW$2591,27,FALSE),0) -> 0 | AD57: =IFERROR(VLOOKUP($A57,Filtro!$A$5:$AW$2591,28,FALSE),0) -> 5 | AE57: =IFERROR(VLOOKUP($A57,Filtro!$A$5:$AW$2591,29,FALSE),0) -> 0 | AF57: =IFERROR(VLOOKUP($A57,Filtro!$A$5:$AW$2591,30,FALSE),0) -> 1 | AG57: =IFERROR(VLOOKUP($A57,Filtro!$A$5:$AW$2591,31,FALSE),0) -> 1 | AH57: =IFERROR(VLOOKUP($A57,Filtro!$A$5:$AW$2591,32,FALSE),0) -> 2 | AI57: =IFERROR(VLOOKUP($A57,Filtro!$A$5:$AW$2591,33,FALSE),0) -> 0 | AJ57: =IFERROR(VLOOKUP($A57,Filtro!$A$5:$AW$2591,34,FALSE),0) -> 1 | AK57: =IFERROR(VLOOKUP($A57,Filtro!$A$5:$AW$2591,35,FALSE),0) -> 0 | AL57: =IFERROR(VLOOKUP($A57,Filtro!$A$5:$AW$2591,36,FALSE),0) -> 5 | AM57: =IFERROR(VLOOKUP($A57,Filtro!$A$5:$AW$2591,37,FALSE),0) -> 0 | AN57: =IFERROR(VLOOKUP($A57,Filtro!$A$5:$AW$2591,38,FALSE),0) -> 1 | AO57: =IFERROR(VLOOKUP($A57,Filtro!$A$5:$AW$2591,39,FALSE),0) -> 1 | AP57: =IFERROR(VLOOKUP($A57,Filtro!$A$5:$AW$2591,40,FALSE),0) -> 17 | DB57: 0 | DC57: 0 | DD57: 0 | DE57: 0
A58: 03030140 | B58: OTROS PROBLEMAS DE SALUD | C58: MÉDICO/A | D58: 22135 | E58: =SUM(G58+I58+K58+M58+O58+Q58+S58+U58+W58+Y58+AA58+AC58+AE58+AG58+AI58+AK58+AM58) -> 6594 | F58: 15541 | G58: =IFERROR(VLOOKUP($A58,Filtro!$A$5:$AW$2591,5,FALSE),0) -> 61 | H58: =IFERROR(VLOOKUP($A58,Filtro!$A$5:$AW$2591,6,FALSE),0) -> 55 | I58: =IFERROR(VLOOKUP($A58,Filtro!$A$5:$AW$2591,7,FALSE),0) -> 104 | J58: =IFERROR(VLOOKUP($A58,Filtro!$A$5:$AW$2591,8,FALSE),0) -> 66 | K58: =IFERROR(VLOOKUP($A58,Filtro!$A$5:$AW$2591,9,FALSE),0) -> 91 | L58: =IFERROR(VLOOKUP($A58,Filtro!$A$5:$AW$2591,10,FALSE),0) -> 83 | M58: =IFERROR(VLOOKUP($A58,Filtro!$A$5:$AW$2591,11,FALSE),0) -> 110 | N58: =IFERROR(VLOOKUP($A58,Filtro!$A$5:$AW$2591,12,FALSE),0) -> 180 | O58: =IFERROR(VLOOKUP($A58,Filtro!$A$5:$AW$2591,13,FALSE),0) -> 98 | P58: =IFERROR(VLOOKUP($A58,Filtro!$A$5:$AW$2591,14,FALSE),0) -> 259 | Q58: =IFERROR(VLOOKUP($A58,Filtro!$A$5:$AW$2591,15,FALSE),0) -> 96 | R58: =IFERROR(VLOOKUP($A58,Filtro!$A$5:$AW$2591,16,FALSE),0) -> 291 | S58: =IFERROR(VLOOKUP($A58,Filtro!$A$5:$AW$2591,17,FALSE),0) -> 116 | T58: =IFERROR(VLOOKUP($A58,Filtro!$A$5:$AW$2591,18,FALSE),0) -> 481 | U58: =IFERROR(VLOOKUP($A58,Filtro!$A$5:$AW$2591,19,FALSE),0) -> 154 | V58: =IFERROR(VLOOKUP($A58,Filtro!$A$5:$AW$2591,20,FALSE),0) -> 588 | W58: =IFERROR(VLOOKUP($A58,Filtro!$A$5:$AW$2591,21,FALSE),0) -> 176 | X58: =IFERROR(VLOOKUP($A58,Filtro!$A$5:$AW$2591,22,FALSE),0) -> 683 | Y58: =IFERROR(VLOOKUP($A58,Filtro!$A$5:$AW$2591,23,FALSE),0) -> 175 | Z58: =IFERROR(VLOOKUP($A58,Filtro!$A$5:$AW$2591,24,FALSE),0) -> 972 | AA58: =IFERROR(VLOOKUP($A58,Filtro!$A$5:$AW$2591,25,FALSE),0) -> 342 | AB58: =IFERROR(VLOOKUP($A58,Filtro!$A$5:$AW$2591,26,FALSE),0) -> 1210 | AC58: =IFERROR(VLOOKUP($A58,Filtro!$A$5:$AW$2591,27,FALSE),0) -> 506 | AD58: =IFERROR(VLOOKUP($A58,Filtro!$A$5:$AW$2591,28,FALSE),0) -> 1703 | AE58: =IFERROR(VLOOKUP($A58,Filtro!$A$5:$AW$2591,29,FALSE),0) -> 762 | AF58: =IFERROR(VLOOKUP($A58,Filtro!$A$5:$AW$2591,30,FALSE),0) -> 1979 | AG58: =IFERROR(VLOOKUP($A58,Filtro!$A$5:$AW$2591,31,FALSE),0) -> 825 | AH58: =IFERROR(VLOOKUP($A58,Filtro!$A$5:$AW$2591,32,FALSE),0) -> 1921 | AI58: =IFERROR(VLOOKUP($A58,Filtro!$A$5:$AW$2591,33,FALSE),0) -> 947 | AJ58: =IFERROR(VLOOKUP($A58,Filtro!$A$5:$AW$2591,34,FALSE),0) -> 1740 | AK58: =IFERROR(VLOOKUP($A58,Filtro!$A$5:$AW$2591,35,FALSE),0) -> 783 | AL58: =IFERROR(VLOOKUP($A58,Filtro!$A$5:$AW$2591,36,FALSE),0) -> 1443 | AM58: =IFERROR(VLOOKUP($A58,Filtro!$A$5:$AW$2591,37,FALSE),0) -> 1248 | AN58: =IFERROR(VLOOKUP($A58,Filtro!$A$5:$AW$2591,38,FALSE),0) -> 1887 | AO58: =IFERROR(VLOOKUP($A58,Filtro!$A$5:$AW$2591,39,FALSE),0) -> 81 | AP58: =IFERROR(VLOOKUP($A58,Filtro!$A$5:$AW$2591,40,FALSE),0) -> 107 | DB58: 0 | DC58: 0 | DD58: 0 | DE58: 0
A59: 03030150 | C59: ENFERMERA/O | D59: 1761 | E59: 491 | F59: 1270 | G59: =IFERROR(VLOOKUP($A59,Filtro!$A$5:$AW$2591,5,FALSE),0) -> 9 | H59: =IFERROR(VLOOKUP($A59,Filtro!$A$5:$AW$2591,6,FALSE),0) -> 4 | I59: =IFERROR(VLOOKUP($A59,Filtro!$A$5:$AW$2591,7,FALSE),0) -> 3 | J59: =IFERROR(VLOOKUP($A59,Filtro!$A$5:$AW$2591,8,FALSE),0) -> 2 | K59: =IFERROR(VLOOKUP($A59,Filtro!$A$5:$AW$2591,9,FALSE),0) -> 7 | L59: =IFERROR(VLOOKUP($A59,Filtro!$A$5:$AW$2591,10,FALSE),0) -> 12 | M59: =IFERROR(VLOOKUP($A59,Filtro!$A$5:$AW$2591,11,FALSE),0) -> 6 | N59: =IFERROR(VLOOKUP($A59,Filtro!$A$5:$AW$2591,12,FALSE),0) -> 7 | O59: =IFERROR(VLOOKUP($A59,Filtro!$A$5:$AW$2591,13,FALSE),0) -> 6 | P59: =IFERROR(VLOOKUP($A59,Filtro!$A$5:$AW$2591,14,FALSE),0) -> 23 | Q59: =IFERROR(VLOOKUP($A59,Filtro!$A$5:$AW$2591,15,FALSE),0) -> 5 | R59: =IFERROR(VLOOKUP($A59,Filtro!$A$5:$AW$2591,16,FALSE),0) -> 19 | S59: =IFERROR(VLOOKUP($A59,Filtro!$A$5:$AW$2591,17,FALSE),0) -> 2 | T59: =IFERROR(VLOOKUP($A59,Filtro!$A$5:$AW$2591,18,FALSE),0) -> 52 | U59: =IFERROR(VLOOKUP($A59,Filtro!$A$5:$AW$2591,19,FALSE),0) -> 14 | V59: =IFERROR(VLOOKUP($A59,Filtro!$A$5:$AW$2591,20,FALSE),0) -> 57 | W59: =IFERROR(VLOOKUP($A59,Filtro!$A$5:$AW$2591,21,FALSE),0) -> 14 | X59: =IFERROR(VLOOKUP($A59,Filtro!$A$5:$AW$2591,22,FALSE),0) -> 81 | Y59: =IFERROR(VLOOKUP($A59,Filtro!$A$5:$AW$2591,23,FALSE),0) -> 17 | Z59: =IFERROR(VLOOKUP($A59,Filtro!$A$5:$AW$2591,24,FALSE),0) -> 79 | AA59: =IFERROR(VLOOKUP($A59,Filtro!$A$5:$AW$2591,25,FALSE),0) -> 27 | AB59: =IFERROR(VLOOKUP($A59,Filtro!$A$5:$AW$2591,26,FALSE),0) -> 122 | AC59: =IFERROR(VLOOKUP($A59,Filtro!$A$5:$AW$2591,27,FALSE),0) -> 47 | AD59: =IFERROR(VLOOKUP($A59,Filtro!$A$5:$AW$2591,28,FALSE),0) -> 136 | AE59: =IFERROR(VLOOKUP($A59,Filtro!$A$5:$AW$2591,29,FALSE),0) -> 58 | AF59: =IFERROR(VLOOKUP($A59,Filtro!$A$5:$AW$2591,30,FALSE),0) -> 148 | AG59: =IFERROR(VLOOKUP($A59,Filtro!$A$5:$AW$2591,31,FALSE),0) -> 75 | AH59: =IFERROR(VLOOKUP($A59,Filtro!$A$5:$AW$2591,32,FALSE),0) -> 139 | AI59: =IFERROR(VLOOKUP($A59,Filtro!$A$5:$AW$2591,33,FALSE),0) -> 68 | AJ59: =IFERROR(VLOOKUP($A59,Filtro!$A$5:$AW$2591,34,FALSE),0) -> 134 | AK59: =IFERROR(VLOOKUP($A59,Filtro!$A$5:$AW$2591,35,FALSE),0) -> 50 | AL59: =IFERROR(VLOOKUP($A59,Filtro!$A$5:$AW$2591,36,FALSE),0) -> 114 | AM59: =IFERROR(VLOOKUP($A59,Filtro!$A$5:$AW$2591,37,FALSE),0) -> 83 | AN59: =IFERROR(VLOOKUP($A59,Filtro!$A$5:$AW$2591,38,FALSE),0) -> 141 | AO59: =IFERROR(VLOOKUP($A59,Filtro!$A$5:$AW$2591,39,FALSE),0) -> 8 | AP59: =IFERROR(VLOOKUP($A59,Filtro!$A$5:$AW$2591,40,FALSE),0) -> 5 | DB59: 0 | DD59: 0
A60: 03030170 | C60: MATRONA/ÓN | D60: 177 | E60: 12 | F60: 165 | G60: =IFERROR(VLOOKUP($A60,Filtro!$A$5:$AW$2591,5,FALSE),0) -> 3 | H60: =IFERROR(VLOOKUP($A60,Filtro!$A$5:$AW$2591,6,FALSE),0) -> 3 | I60: =IFERROR(VLOOKUP($A60,Filtro!$A$5:$AW$2591,7,FALSE),0) -> 0 | J60: =IFERROR(VLOOKUP($A60,Filtro!$A$5:$AW$2591,8,FALSE),0) -> 1 | K60: =IFERROR(VLOOKUP($A60,Filtro!$A$5:$AW$2591,9,FALSE),0) -> 0 | L60: =IFERROR(VLOOKUP($A60,Filtro!$A$5:$AW$2591,10,FALSE),0) -> 3 | M60: =IFERROR(VLOOKUP($A60,Filtro!$A$5:$AW$2591,11,FALSE),0) -> 0 | N60: =IFERROR(VLOOKUP($A60,Filtro!$A$5:$AW$2591,12,FALSE),0) -> 13 | O60: =IFERROR(VLOOKUP($A60,Filtro!$A$5:$AW$2591,13,FALSE),0) -> 0 | P60: =IFERROR(VLOOKUP($A60,Filtro!$A$5:$AW$2591,14,FALSE),0) -> 24 | Q60: =IFERROR(VLOOKUP($A60,Filtro!$A$5:$AW$2591,15,FALSE),0) -> 2 | R60: =IFERROR(VLOOKUP($A60,Filtro!$A$5:$AW$2591,16,FALSE),0) -> 21 | S60: =IFERROR(VLOOKUP($A60,Filtro!$A$5:$AW$2591,17,FALSE),0) -> 0 | T60: =IFERROR(VLOOKUP($A60,Filtro!$A$5:$AW$2591,18,FALSE),0) -> 26 | U60: =IFERROR(VLOOKUP($A60,Filtro!$A$5:$AW$2591,19,FALSE),0) -> 0 | V60: =IFERROR(VLOOKUP($A60,Filtro!$A$5:$AW$2591,20,FALSE),0) -> 19 | W60: =IFERROR(VLOOKUP($A60,Filtro!$A$5:$AW$2591,21,FALSE),0) -> 0 | X60: =IFERROR(VLOOKUP($A60,Filtro!$A$5:$AW$2591,22,FALSE),0) -> 8 | Y60: =IFERROR(VLOOKUP($A60,Filtro!$A$5:$AW$2591,23,FALSE),0) -> 0 | Z60: =IFERROR(VLOOKUP($A60,Filtro!$A$5:$AW$2591,24,FALSE),0) -> 3 | AA60: =IFERROR(VLOOKUP($A60,Filtro!$A$5:$AW$2591,25,FALSE),0) -> 0 | AB60: =IFERROR(VLOOKUP($A60,Filtro!$A$5:$AW$2591,26,FALSE),0) -> 8 | AC60: =IFERROR(VLOOKUP($A60,Filtro!$A$5:$AW$2591,27,FALSE),0) -> 0 | AD60: =IFERROR(VLOOKUP($A60,Filtro!$A$5:$AW$2591,28,FALSE),0) -> 10 | AE60: =IFERROR(VLOOKUP($A60,Filtro!$A$5:$AW$2591,29,FALSE),0) -> 1 | AF60: =IFERROR(VLOOKUP($A60,Filtro!$A$5:$AW$2591,30,FALSE),0) -> 6 | AG60: =IFERROR(VLOOKUP($A60,Filtro!$A$5:$AW$2591,31,FALSE),0) -> 0 | AH60: =IFERROR(VLOOKUP($A60,Filtro!$A$5:$AW$2591,32,FALSE),0) -> 2 | AI60: =IFERROR(VLOOKUP($A60,Filtro!$A$5:$AW$2591,33,FALSE),0) -> 0 | AJ60: =IFERROR(VLOOKUP($A60,Filtro!$A$5:$AW$2591,34,FALSE),0) -> 4 | AK60: =IFERROR(VLOOKUP($A60,Filtro!$A$5:$AW$2591,35,FALSE),0) -> 1 | AL60: =IFERROR(VLOOKUP($A60,Filtro!$A$5:$AW$2591,36,FALSE),0) -> 3 | AM60: =IFERROR(VLOOKUP($A60,Filtro!$A$5:$AW$2591,37,FALSE),0) -> 5 | AN60: =IFERROR(VLOOKUP($A60,Filtro!$A$5:$AW$2591,38,FALSE),0) -> 11 | AO60: =IFERROR(VLOOKUP($A60,Filtro!$A$5:$AW$2591,39,FALSE),0) -> 0 | AP60: =IFERROR(VLOOKUP($A60,Filtro!$A$5:$AW$2591,40,FALSE),0) -> 9 | DB60: 0 | DD60: 0
A61: 03030160 | C61: NUTRICIONISTA | D61: 2669 | E61: 728 | F61: 1941 | G61: =IFERROR(VLOOKUP($A61,Filtro!$A$5:$AW$2591,5,FALSE),0) -> 169 | H61: =IFERROR(VLOOKUP($A61,Filtro!$A$5:$AW$2591,6,FALSE),0) -> 147 | I61: =IFERROR(VLOOKUP($A61,Filtro!$A$5:$AW$2591,7,FALSE),0) -> 74 | J61: =IFERROR(VLOOKUP($A61,Filtro!$A$5:$AW$2591,8,FALSE),0) -> 73 | K61: =IFERROR(VLOOKUP($A61,Filtro!$A$5:$AW$2591,9,FALSE),0) -> 47 | L61: =IFERROR(VLOOKUP($A61,Filtro!$A$5:$AW$2591,10,FALSE),0) -> 59 | M61: =IFERROR(VLOOKUP($A61,Filtro!$A$5:$AW$2591,11,FALSE),0) -> 27 | N61: =IFERROR(VLOOKUP($A61,Filtro!$A$5:$AW$2591,12,FALSE),0) -> 80 | O61: =IFERROR(VLOOKUP($A61,Filtro!$A$5:$AW$2591,13,FALSE),0) -> 35 | P61: =IFERROR(VLOOKUP($A61,Filtro!$A$5:$AW$2591,14,FALSE),0) -> 142 | Q61: =IFERROR(VLOOKUP($A61,Filtro!$A$5:$AW$2591,15,FALSE),0) -> 27 | R61: =IFERROR(VLOOKUP($A61,Filtro!$A$5:$AW$2591,16,FALSE),0) -> 138 | S61: =IFERROR(VLOOKUP($A61,Filtro!$A$5:$AW$2591,17,FALSE),0) -> 20 | T61: =IFERROR(VLOOKUP($A61,Filtro!$A$5:$AW$2591,18,FALSE),0) -> 154 | U61: =IFERROR(VLOOKUP($A61,Filtro!$A$5:$AW$2591,19,FALSE),0) -> 24 | V61: =IFERROR(VLOOKUP($A61,Filtro!$A$5:$AW$2591,20,FALSE),0) -> 145 | W61: =IFERROR(VLOOKUP($A61,Filtro!$A$5:$AW$2591,21,FALSE),0) -> 33 | X61: =IFERROR(VLOOKUP($A61,Filtro!$A$5:$AW$2591,22,FALSE),0) -> 141 | Y61: =IFERROR(VLOOKUP($A61,Filtro!$A$5:$AW$2591,23,FALSE),0) -> 31 | Z61: =IFERROR(VLOOKUP($A61,Filtro!$A$5:$AW$2591,24,FALSE),0) -> 149 | AA61: =IFERROR(VLOOKUP($A61,Filtro!$A$5:$AW$2591,25,FALSE),0) -> 34 | AB61: =IFERROR(VLOOKUP($A61,Filtro!$A$5:$AW$2591,26,FALSE),0) -> 164 | AC61: =IFERROR(VLOOKUP($A61,Filtro!$A$5:$AW$2591,27,FALSE),0) -> 38 | AD61: =IFERROR(VLOOKUP($A61,Filtro!$A$5:$AW$2591,28,FALSE),0) -> 149 | AE61: =IFERROR(VLOOKUP($A61,Filtro!$A$5:$AW$2591,29,FALSE),0) -> 30 | AF61: =IFERROR(VLOOKUP($A61,Filtro!$A$5:$AW$2591,30,FALSE),0) -> 136 | AG61: =IFERROR(VLOOKUP($A61,Filtro!$A$5:$AW$2591,31,FALSE),0) -> 38 | AH61: =IFERROR(VLOOKUP($A61,Filtro!$A$5:$AW$2591,32,FALSE),0) -> 92 | AI61: =IFERROR(VLOOKUP($A61,Filtro!$A$5:$AW$2591,33,FALSE),0) -> 35 | AJ61: =IFERROR(VLOOKUP($A61,Filtro!$A$5:$AW$2591,34,FALSE),0) -> 77 | AK61: =IFERROR(VLOOKUP($A61,Filtro!$A$5:$AW$2591,35,FALSE),0) -> 34 | AL61: =IFERROR(VLOOKUP($A61,Filtro!$A$5:$AW$2591,36,FALSE),0) -> 55 | AM61: =IFERROR(VLOOKUP($A61,Filtro!$A$5:$AW$2591,37,FALSE),0) -> 32 | AN61: =IFERROR(VLOOKUP($A61,Filtro!$A$5:$AW$2591,38,FALSE),0) -> 40 | AO61: =IFERROR(VLOOKUP($A61,Filtro!$A$5:$AW$2591,39,FALSE),0) -> 28 | AP61: =IFERROR(VLOOKUP($A61,Filtro!$A$5:$AW$2591,40,FALSE),0) -> 56 | DB61: 0 | DD61: 0
A62: 03030180 | C62: TÉCNICO EN ENFERMERÍA | D62: 285 | E62: 128 | F62: 157 | G62: =IFERROR(VLOOKUP($A62,Filtro!$A$5:$AW$2591,5,FALSE),0) -> 7 | H62: =IFERROR(VLOOKUP($A62,Filtro!$A$5:$AW$2591,6,FALSE),0) -> 3 | I62: =IFERROR(VLOOKUP($A62,Filtro!$A$5:$AW$2591,7,FALSE),0) -> 7 | J62: =IFERROR(VLOOKUP($A62,Filtro!$A$5:$AW$2591,8,FALSE),0) -> 3 | K62: =IFERROR(VLOOKUP($A62,Filtro!$A$5:$AW$2591,9,FALSE),0) -> 3 | L62: =IFERROR(VLOOKUP($A62,Filtro!$A$5:$AW$2591,10,FALSE),0) -> 4 | M62: =IFERROR(VLOOKUP($A62,Filtro!$A$5:$AW$2591,11,FALSE),0) -> 5 | N62: =IFERROR(VLOOKUP($A62,Filtro!$A$5:$AW$2591,12,FALSE),0) -> 2 | O62: =IFERROR(VLOOKUP($A62,Filtro!$A$5:$AW$2591,13,FALSE),0) -> 7 | P62: =IFERROR(VLOOKUP($A62,Filtro!$A$5:$AW$2591,14,FALSE),0) -> 18 | Q62: =IFERROR(VLOOKUP($A62,Filtro!$A$5:$AW$2591,15,FALSE),0) -> 3 | R62: =IFERROR(VLOOKUP($A62,Filtro!$A$5:$AW$2591,16,FALSE),0) -> 10 | S62: =IFERROR(VLOOKUP($A62,Filtro!$A$5:$AW$2591,17,FALSE),0) -> 6 | T62: =IFERROR(VLOOKUP($A62,Filtro!$A$5:$AW$2591,18,FALSE),0) -> 22 | U62: =IFERROR(VLOOKUP($A62,Filtro!$A$5:$AW$2591,19,FALSE),0) -> 6 | V62: =IFERROR(VLOOKUP($A62,Filtro!$A$5:$AW$2591,20,FALSE),0) -> 15 | W62: =IFERROR(VLOOKUP($A62,Filtro!$A$5:$AW$2591,21,FALSE),0) -> 16 | X62: =IFERROR(VLOOKUP($A62,Filtro!$A$5:$AW$2591,22,FALSE),0) -> 13 | Y62: =IFERROR(VLOOKUP($A62,Filtro!$A$5:$AW$2591,23,FALSE),0) -> 13 | Z62: =IFERROR(VLOOKUP($A62,Filtro!$A$5:$AW$2591,24,FALSE),0) -> 3 | AA62: =IFERROR(VLOOKUP($A62,Filtro!$A$5:$AW$2591,25,FALSE),0) -> 5 | AB62: =IFERROR(VLOOKUP($A62,Filtro!$A$5:$AW$2591,26,FALSE),0) -> 12 | AC62: =IFERROR(VLOOKUP($A62,Filtro!$A$5:$AW$2591,27,FALSE),0) -> 11 | AD62: =IFERROR(VLOOKUP($A62,Filtro!$A$5:$AW$2591,28,FALSE),0) -> 14 | AE62: =IFERROR(VLOOKUP($A62,Filtro!$A$5:$AW$2591,29,FALSE),0) -> 10 | AF62: =IFERROR(VLOOKUP($A62,Filtro!$A$5:$AW$2591,30,FALSE),0) -> 6 | AG62: =IFERROR(VLOOKUP($A62,Filtro!$A$5:$AW$2591,31,FALSE),0) -> 10 | AH62: =IFERROR(VLOOKUP($A62,Filtro!$A$5:$AW$2591,32,FALSE),0) -> 7 | AI62: =IFERROR(VLOOKUP($A62,Filtro!$A$5:$AW$2591,33,FALSE),0) -> 9 | AJ62: =IFERROR(VLOOKUP($A62,Filtro!$A$5:$AW$2591,34,FALSE),0) -> 5 | AK62: =IFERROR(VLOOKUP($A62,Filtro!$A$5:$AW$2591,35,FALSE),0) -> 4 | AL62: =IFERROR(VLOOKUP($A62,Filtro!$A$5:$AW$2591,36,FALSE),0) -> 7 | AM62: =IFERROR(VLOOKUP($A62,Filtro!$A$5:$AW$2591,37,FALSE),0) -> 6 | AN62: =IFERROR(VLOOKUP($A62,Filtro!$A$5:$AW$2591,38,FALSE),0) -> 13 | AO62: =IFERROR(VLOOKUP($A62,Filtro!$A$5:$AW$2591,39,FALSE),0) -> 8 | AP62: =IFERROR(VLOOKUP($A62,Filtro!$A$5:$AW$2591,40,FALSE),0) -> 0 | DB62: 0 | DD62: 0
A63: 09600206 | C63: OTROS PROFESIONALES DEBIDAMENTE CAPACITADOS | D63: =SUM(E63:F63) -> 0 | E63: =SUM(G63+I63+K63+M63+O63+Q63+S63+U63+W63+Y63+AA63+AC63+AE63+AG63+AI63+AK63+AM63) -> 0 | F63: =SUM(H63+J63+L63+N63+P63+R63+T63+V63+X63+Z63+AB63+AD63+AF63+AH63+AJ63+AL63+AN63) -> 0 | G63: =IFERROR(VLOOKUP($A63,Filtro!$A$5:$AW$2591,5,FALSE),0) -> 0 | H63: =IFERROR(VLOOKUP($A63,Filtro!$A$5:$AW$2591,6,FALSE),0) -> 0 | I63: =IFERROR(VLOOKUP($A63,Filtro!$A$5:$AW$2591,7,FALSE),0) -> 0 | J63: =IFERROR(VLOOKUP($A63,Filtro!$A$5:$AW$2591,8,FALSE),0) -> 0 | K63: =IFERROR(VLOOKUP($A63,Filtro!$A$5:$AW$2591,9,FALSE),0) -> 0 | L63: =IFERROR(VLOOKUP($A63,Filtro!$A$5:$AW$2591,10,FALSE),0) -> 0 | M63: =IFERROR(VLOOKUP($A63,Filtro!$A$5:$AW$2591,11,FALSE),0) -> 0 | N63: =IFERROR(VLOOKUP($A63,Filtro!$A$5:$AW$2591,12,FALSE),0) -> 0 | O63: =IFERROR(VLOOKUP($A63,Filtro!$A$5:$AW$2591,13,FALSE),0) -> 0 | P63: =IFERROR(VLOOKUP($A63,Filtro!$A$5:$AW$2591,14,FALSE),0) -> 0 | Q63: =IFERROR(VLOOKUP($A63,Filtro!$A$5:$AW$2591,15,FALSE),0) -> 0 | R63: =IFERROR(VLOOKUP($A63,Filtro!$A$5:$AW$2591,16,FALSE),0) -> 0 | S63: =IFERROR(VLOOKUP($A63,Filtro!$A$5:$AW$2591,17,FALSE),0) -> 0 | T63: =IFERROR(VLOOKUP($A63,Filtro!$A$5:$AW$2591,18,FALSE),0) -> 0 | U63: =IFERROR(VLOOKUP($A63,Filtro!$A$5:$AW$2591,19,FALSE),0) -> 0 | V63: =IFERROR(VLOOKUP($A63,Filtro!$A$5:$AW$2591,20,FALSE),0) -> 0 | W63: =IFERROR(VLOOKUP($A63,Filtro!$A$5:$AW$2591,21,FALSE),0) -> 0 | X63: =IFERROR(VLOOKUP($A63,Filtro!$A$5:$AW$2591,22,FALSE),0) -> 0 | Y63: =IFERROR(VLOOKUP($A63,Filtro!$A$5:$AW$2591,23,FALSE),0) -> 0 | Z63: =IFERROR(VLOOKUP($A63,Filtro!$A$5:$AW$2591,24,FALSE),0) -> 0 | AA63: =IFERROR(VLOOKUP($A63,Filtro!$A$5:$AW$2591,25,FALSE),0) -> 0 | AB63: =IFERROR(VLOOKUP($A63,Filtro!$A$5:$AW$2591,26,FALSE),0) -> 0 | AC63: =IFERROR(VLOOKUP($A63,Filtro!$A$5:$AW$2591,27,FALSE),0) -> 0 | AD63: =IFERROR(VLOOKUP($A63,Filtro!$A$5:$AW$2591,28,FALSE),0) -> 0 | AE63: =IFERROR(VLOOKUP($A63,Filtro!$A$5:$AW$2591,29,FALSE),0) -> 0 | AF63: =IFERROR(VLOOKUP($A63,Filtro!$A$5:$AW$2591,30,FALSE),0) -> 0 | AG63: =IFERROR(VLOOKUP($A63,Filtro!$A$5:$AW$2591,31,FALSE),0) -> 0 | AH63: =IFERROR(VLOOKUP($A63,Filtro!$A$5:$AW$2591,32,FALSE),0) -> 0 | AI63: =IFERROR(VLOOKUP($A63,Filtro!$A$5:$AW$2591,33,FALSE),0) -> 0 | AJ63: =IFERROR(VLOOKUP($A63,Filtro!$A$5:$AW$2591,34,FALSE),0) -> 0 | AK63: =IFERROR(VLOOKUP($A63,Filtro!$A$5:$AW$2591,35,FALSE),0) -> 0 | AL63: =IFERROR(VLOOKUP($A63,Filtro!$A$5:$AW$2591,36,FALSE),0) -> 0 | AM63: =IFERROR(VLOOKUP($A63,Filtro!$A$5:$AW$2591,37,FALSE),0) -> 0 | AN63: =IFERROR(VLOOKUP($A63,Filtro!$A$5:$AW$2591,38,FALSE),0) -> 0 | AO63: =IFERROR(VLOOKUP($A63,Filtro!$A$5:$AW$2591,39,FALSE),0) -> 0 | AP63: =IFERROR(VLOOKUP($A63,Filtro!$A$5:$AW$2591,40,FALSE),0) -> 0 | DB63: 0 | DD63: 0
A64: 01200031 | B64: NIÑOS CON NECESIDADES ESPECIALES | C64: MÉDICO/A | D64: 76 | E64: =SUM(G64+I64+K64+M64) -> 47 | F64: =SUM(H64+J64+L64+N64) -> 29 | G64: =IFERROR(VLOOKUP($A64,Filtro!$A$5:$AW$2591,5,FALSE),0) -> 30 | H64: =IFERROR(VLOOKUP($A64,Filtro!$A$5:$AW$2591,6,FALSE),0) -> 19 | I64: =IFERROR(VLOOKUP($A64,Filtro!$A$5:$AW$2591,7,FALSE),0) -> 10 | J64: =IFERROR(VLOOKUP($A64,Filtro!$A$5:$AW$2591,8,FALSE),0) -> 6 | K64: =IFERROR(VLOOKUP($A64,Filtro!$A$5:$AW$2591,9,FALSE),0) -> 5 | L64: =IFERROR(VLOOKUP($A64,Filtro!$A$5:$AW$2591,10,FALSE),0) -> 3 | M64: =IFERROR(VLOOKUP($A64,Filtro!$A$5:$AW$2591,11,FALSE),0) -> 2 | N64: =IFERROR(VLOOKUP($A64,Filtro!$A$5:$AW$2591,12,FALSE),0) -> 1 | O64: =IFERROR(VLOOKUP($A64,Filtro!$A$5:$AW$2591,13,FALSE),0) -> 0 | P64: =IFERROR(VLOOKUP($A64,Filtro!$A$5:$AW$2591,14,FALSE),0) -> 0 | Q64: =IFERROR(VLOOKUP($A64,Filtro!$A$5:$AW$2591,15,FALSE),0) -> 0 | R64: =IFERROR(VLOOKUP($A64,Filtro!$A$5:$AW$2591,16,FALSE),0) -> 0 | S64: =IFERROR(VLOOKUP($A64,Filtro!$A$5:$AW$2591,17,FALSE),0) -> 0 | T64: =IFERROR(VLOOKUP($A64,Filtro!$A$5:$AW$2591,18,FALSE),0) -> 0 | U64: =IFERROR(VLOOKUP($A64,Filtro!$A$5:$AW$2591,19,FALSE),0) -> 0 | V64: =IFERROR(VLOOKUP($A64,Filtro!$A$5:$AW$2591,20,FALSE),0) -> 0 | W64: =IFERROR(VLOOKUP($A64,Filtro!$A$5:$AW$2591,21,FALSE),0) -> 0 | X64: =IFERROR(VLOOKUP($A64,Filtro!$A$5:$AW$2591,22,FALSE),0) -> 0 | Y64: =IFERROR(VLOOKUP($A64,Filtro!$A$5:$AW$2591,23,FALSE),0) -> 0 | Z64: =IFERROR(VLOOKUP($A64,Filtro!$A$5:$AW$2591,24,FALSE),0) -> 0 | AA64: =IFERROR(VLOOKUP($A64,Filtro!$A$5:$AW$2591,25,FALSE),0) -> 0 | AB64: =IFERROR(VLOOKUP($A64,Filtro!$A$5:$AW$2591,26,FALSE),0) -> 0 | AC64: =IFERROR(VLOOKUP($A64,Filtro!$A$5:$AW$2591,27,FALSE),0) -> 0 | AD64: =IFERROR(VLOOKUP($A64,Filtro!$A$5:$AW$2591,28,FALSE),0) -> 0 | AE64: =IFERROR(VLOOKUP($A64,Filtro!$A$5:$AW$2591,29,FALSE),0) -> 0 | AF64: =IFERROR(VLOOKUP($A64,Filtro!$A$5:$AW$2591,30,FALSE),0) -> 0 | AG64: =IFERROR(VLOOKUP($A64,Filtro!$A$5:$AW$2591,31,FALSE),0) -> 0 | AH64: =IFERROR(VLOOKUP($A64,Filtro!$A$5:$AW$2591,32,FALSE),0) -> 0 | AI64: =IFERROR(VLOOKUP($A64,Filtro!$A$5:$AW$2591,33,FALSE),0) -> 0 | AJ64: =IFERROR(VLOOKUP($A64,Filtro!$A$5:$AW$2591,34,FALSE),0) -> 0 | AK64: =IFERROR(VLOOKUP($A64,Filtro!$A$5:$AW$2591,35,FALSE),0) -> 0 | AL64: =IFERROR(VLOOKUP($A64,Filtro!$A$5:$AW$2591,36,FALSE),0) -> 0 | AM64: =IFERROR(VLOOKUP($A64,Filtro!$A$5:$AW$2591,37,FALSE),0) -> 0 | AN64: =IFERROR(VLOOKUP($A64,Filtro!$A$5:$AW$2591,38,FALSE),0) -> 0 | AO64: =IFERROR(VLOOKUP($A64,Filtro!$A$5:$AW$2591,39,FALSE),0) -> 0 | AP64: =IFERROR(VLOOKUP($A64,Filtro!$A$5:$AW$2591,40,FALSE),0) -> 0 | DB64: 0 | DC64: 0 | DD64: 0 | DE64: 0
A65: 01200032 | C65: ENFERMERA/O | D65: 678 | E65: 428 | F65: =SUM(H65+J65+L65+N65) -> 250 | G65: =IFERROR(VLOOKUP($A65,Filtro!$A$5:$AW$2591,5,FALSE),0) -> 284 | H65: =IFERROR(VLOOKUP($A65,Filtro!$A$5:$AW$2591,6,FALSE),0) -> 175 | I65: =IFERROR(VLOOKUP($A65,Filtro!$A$5:$AW$2591,7,FALSE),0) -> 107 | J65: =IFERROR(VLOOKUP($A65,Filtro!$A$5:$AW$2591,8,FALSE),0) -> 50 | K65: =IFERROR(VLOOKUP($A65,Filtro!$A$5:$AW$2591,9,FALSE),0) -> 25 | L65: =IFERROR(VLOOKUP($A65,Filtro!$A$5:$AW$2591,10,FALSE),0) -> 16 | M65: =IFERROR(VLOOKUP($A65,Filtro!$A$5:$AW$2591,11,FALSE),0) -> 12 | N65: =IFERROR(VLOOKUP($A65,Filtro!$A$5:$AW$2591,12,FALSE),0) -> 9 | O65: =IFERROR(VLOOKUP($A65,Filtro!$A$5:$AW$2591,13,FALSE),0) -> 0 | P65: =IFERROR(VLOOKUP($A65,Filtro!$A$5:$AW$2591,14,FALSE),0) -> 0 | Q65: =IFERROR(VLOOKUP($A65,Filtro!$A$5:$AW$2591,15,FALSE),0) -> 0 | R65: =IFERROR(VLOOKUP($A65,Filtro!$A$5:$AW$2591,16,FALSE),0) -> 0 | S65: =IFERROR(VLOOKUP($A65,Filtro!$A$5:$AW$2591,17,FALSE),0) -> 0 | T65: =IFERROR(VLOOKUP($A65,Filtro!$A$5:$AW$2591,18,FALSE),0) -> 0 | U65: =IFERROR(VLOOKUP($A65,Filtro!$A$5:$AW$2591,19,FALSE),0) -> 0 | V65: =IFERROR(VLOOKUP($A65,Filtro!$A$5:$AW$2591,20,FALSE),0) -> 0 | W65: =IFERROR(VLOOKUP($A65,Filtro!$A$5:$AW$2591,21,FALSE),0) -> 0 | X65: =IFERROR(VLOOKUP($A65,Filtro!$A$5:$AW$2591,22,FALSE),0) -> 0 | Y65: =IFERROR(VLOOKUP($A65,Filtro!$A$5:$AW$2591,23,FALSE),0) -> 0 | Z65: =IFERROR(VLOOKUP($A65,Filtro!$A$5:$AW$2591,24,FALSE),0) -> 0 | AA65: =IFERROR(VLOOKUP($A65,Filtro!$A$5:$AW$2591,25,FALSE),0) -> 0 | AB65: =IFERROR(VLOOKUP($A65,Filtro!$A$5:$AW$2591,26,FALSE),0) -> 0 | AC65: =IFERROR(VLOOKUP($A65,Filtro!$A$5:$AW$2591,27,FALSE),0) -> 0 | AD65: =IFERROR(VLOOKUP($A65,Filtro!$A$5:$AW$2591,28,FALSE),0) -> 0 | AE65: =IFERROR(VLOOKUP($A65,Filtro!$A$5:$AW$2591,29,FALSE),0) -> 0 | AF65: =IFERROR(VLOOKUP($A65,Filtro!$A$5:$AW$2591,30,FALSE),0) -> 0 | AG65: =IFERROR(VLOOKUP($A65,Filtro!$A$5:$AW$2591,31,FALSE),0) -> 0 | AH65: =IFERROR(VLOOKUP($A65,Filtro!$A$5:$AW$2591,32,FALSE),0) -> 0 | AI65: =IFERROR(VLOOKUP($A65,Filtro!$A$5:$AW$2591,33,FALSE),0) -> 0 | AJ65: =IFERROR(VLOOKUP($A65,Filtro!$A$5:$AW$2591,34,FALSE),0) -> 0 | AK65: =IFERROR(VLOOKUP($A65,Filtro!$A$5:$AW$2591,35,FALSE),0) -> 0 | AL65: =IFERROR(VLOOKUP($A65,Filtro!$A$5:$AW$2591,36,FALSE),0) -> 0 | AM65: =IFERROR(VLOOKUP($A65,Filtro!$A$5:$AW$2591,37,FALSE),0) -> 0 | AN65: =IFERROR(VLOOKUP($A65,Filtro!$A$5:$AW$2591,38,FALSE),0) -> 0 | AO65: =IFERROR(VLOOKUP($A65,Filtro!$A$5:$AW$2591,39,FALSE),0) -> 2 | AP65: =IFERROR(VLOOKUP($A65,Filtro!$A$5:$AW$2591,40,FALSE),0) -> 0 | DB65: 0 | DD65: 0
A66: 01200033 | C66: MATRONA/ÓN | D66: 7 | E66: 2 | F66: 5 | G66: =IFERROR(VLOOKUP($A66,Filtro!$A$5:$AW$2591,5,FALSE),0) -> 1 | H66: =IFERROR(VLOOKUP($A66,Filtro!$A$5:$AW$2591,6,FALSE),0) -> 3 | I66: =IFERROR(VLOOKUP($A66,Filtro!$A$5:$AW$2591,7,FALSE),0) -> 1 | J66: =IFERROR(VLOOKUP($A66,Filtro!$A$5:$AW$2591,8,FALSE),0) -> 1 | K66: =IFERROR(VLOOKUP($A66,Filtro!$A$5:$AW$2591,9,FALSE),0) -> 0 | L66: =IFERROR(VLOOKUP($A66,Filtro!$A$5:$AW$2591,10,FALSE),0) -> 1 | M66: =IFERROR(VLOOKUP($A66,Filtro!$A$5:$AW$2591,11,FALSE),0) -> 0 | N66: =IFERROR(VLOOKUP($A66,Filtro!$A$5:$AW$2591,12,FALSE),0) -> 0 | O66: =IFERROR(VLOOKUP($A66,Filtro!$A$5:$AW$2591,13,FALSE),0) -> 0 | P66: =IFERROR(VLOOKUP($A66,Filtro!$A$5:$AW$2591,14,FALSE),0) -> 0 | Q66: =IFERROR(VLOOKUP($A66,Filtro!$A$5:$AW$2591,15,FALSE),0) -> 0 | R66: =IFERROR(VLOOKUP($A66,Filtro!$A$5:$AW$2591,16,FALSE),0) -> 0 | S66: =IFERROR(VLOOKUP($A66,Filtro!$A$5:$AW$2591,17,FALSE),0) -> 0 | T66: =IFERROR(VLOOKUP($A66,Filtro!$A$5:$AW$2591,18,FALSE),0) -> 0 | U66: =IFERROR(VLOOKUP($A66,Filtro!$A$5:$AW$2591,19,FALSE),0) -> 0 | V66: =IFERROR(VLOOKUP($A66,Filtro!$A$5:$AW$2591,20,FALSE),0) -> 0 | W66: =IFERROR(VLOOKUP($A66,Filtro!$A$5:$AW$2591,21,FALSE),0) -> 0 | X66: =IFERROR(VLOOKUP($A66,Filtro!$A$5:$AW$2591,22,FALSE),0) -> 0 | Y66: =IFERROR(VLOOKUP($A66,Filtro!$A$5:$AW$2591,23,FALSE),0) -> 0 | Z66: =IFERROR(VLOOKUP($A66,Filtro!$A$5:$AW$2591,24,FALSE),0) -> 0 | AA66: =IFERROR(VLOOKUP($A66,Filtro!$A$5:$AW$2591,25,FALSE),0) -> 0 | AB66: =IFERROR(VLOOKUP($A66,Filtro!$A$5:$AW$2591,26,FALSE),0) -> 0 | AC66: =IFERROR(VLOOKUP($A66,Filtro!$A$5:$AW$2591,27,FALSE),0) -> 0 | AD66: =IFERROR(VLOOKUP($A66,Filtro!$A$5:$AW$2591,28,FALSE),0) -> 0 | AE66: =IFERROR(VLOOKUP($A66,Filtro!$A$5:$AW$2591,29,FALSE),0) -> 0 | AF66: =IFERROR(VLOOKUP($A66,Filtro!$A$5:$AW$2591,30,FALSE),0) -> 0 | AG66: =IFERROR(VLOOKUP($A66,Filtro!$A$5:$AW$2591,31,FALSE),0) -> 0 | AH66: =IFERROR(VLOOKUP($A66,Filtro!$A$5:$AW$2591,32,FALSE),0) -> 0 | AI66: =IFERROR(VLOOKUP($A66,Filtro!$A$5:$AW$2591,33,FALSE),0) -> 0 | AJ66: =IFERROR(VLOOKUP($A66,Filtro!$A$5:$AW$2591,34,FALSE),0) -> 0 | AK66: =IFERROR(VLOOKUP($A66,Filtro!$A$5:$AW$2591,35,FALSE),0) -> 0 | AL66: =IFERROR(VLOOKUP($A66,Filtro!$A$5:$AW$2591,36,FALSE),0) -> 0 | AM66: =IFERROR(VLOOKUP($A66,Filtro!$A$5:$AW$2591,37,FALSE),0) -> 0 | AN66: =IFERROR(VLOOKUP($A66,Filtro!$A$5:$AW$2591,38,FALSE),0) -> 0 | AO66: =IFERROR(VLOOKUP($A66,Filtro!$A$5:$AW$2591,39,FALSE),0) -> 0 | AP66: =IFERROR(VLOOKUP($A66,Filtro!$A$5:$AW$2591,40,FALSE),0) -> 0 | DB66: 0 | DD66: 0
A67: 01200034 | C67: NUTRICIONISTA | D67: 180 | E67: 126 | F67: 54 | G67: =IFERROR(VLOOKUP($A67,Filtro!$A$5:$AW$2591,5,FALSE),0) -> 82 | H67: =IFERROR(VLOOKUP($A67,Filtro!$A$5:$AW$2591,6,FALSE),0) -> 36 | I67: =IFERROR(VLOOKUP($A67,Filtro!$A$5:$AW$2591,7,FALSE),0) -> 25 | J67: =IFERROR(VLOOKUP($A67,Filtro!$A$5:$AW$2591,8,FALSE),0) -> 15 | K67: =IFERROR(VLOOKUP($A67,Filtro!$A$5:$AW$2591,9,FALSE),0) -> 15 | L67: =IFERROR(VLOOKUP($A67,Filtro!$A$5:$AW$2591,10,FALSE),0) -> 2 | M67: =IFERROR(VLOOKUP($A67,Filtro!$A$5:$AW$2591,11,FALSE),0) -> 4 | N67: =IFERROR(VLOOKUP($A67,Filtro!$A$5:$AW$2591,12,FALSE),0) -> 1 | O67: =IFERROR(VLOOKUP($A67,Filtro!$A$5:$AW$2591,13,FALSE),0) -> 0 | P67: =IFERROR(VLOOKUP($A67,Filtro!$A$5:$AW$2591,14,FALSE),0) -> 0 | Q67: =IFERROR(VLOOKUP($A67,Filtro!$A$5:$AW$2591,15,FALSE),0) -> 0 | R67: =IFERROR(VLOOKUP($A67,Filtro!$A$5:$AW$2591,16,FALSE),0) -> 0 | S67: =IFERROR(VLOOKUP($A67,Filtro!$A$5:$AW$2591,17,FALSE),0) -> 0 | T67: =IFERROR(VLOOKUP($A67,Filtro!$A$5:$AW$2591,18,FALSE),0) -> 0 | U67: =IFERROR(VLOOKUP($A67,Filtro!$A$5:$AW$2591,19,FALSE),0) -> 0 | V67: =IFERROR(VLOOKUP($A67,Filtro!$A$5:$AW$2591,20,FALSE),0) -> 0 | W67: =IFERROR(VLOOKUP($A67,Filtro!$A$5:$AW$2591,21,FALSE),0) -> 0 | X67: =IFERROR(VLOOKUP($A67,Filtro!$A$5:$AW$2591,22,FALSE),0) -> 0 | Y67: =IFERROR(VLOOKUP($A67,Filtro!$A$5:$AW$2591,23,FALSE),0) -> 0 | Z67: =IFERROR(VLOOKUP($A67,Filtro!$A$5:$AW$2591,24,FALSE),0) -> 0 | AA67: =IFERROR(VLOOKUP($A67,Filtro!$A$5:$AW$2591,25,FALSE),0) -> 0 | AB67: =IFERROR(VLOOKUP($A67,Filtro!$A$5:$AW$2591,26,FALSE),0) -> 0 | AC67: =IFERROR(VLOOKUP($A67,Filtro!$A$5:$AW$2591,27,FALSE),0) -> 0 | AD67: =IFERROR(VLOOKUP($A67,Filtro!$A$5:$AW$2591,28,FALSE),0) -> 0 | AE67: =IFERROR(VLOOKUP($A67,Filtro!$A$5:$AW$2591,29,FALSE),0) -> 0 | AF67: =IFERROR(VLOOKUP($A67,Filtro!$A$5:$AW$2591,30,FALSE),0) -> 0 | AG67: =IFERROR(VLOOKUP($A67,Filtro!$A$5:$AW$2591,31,FALSE),0) -> 0 | AH67: =IFERROR(VLOOKUP($A67,Filtro!$A$5:$AW$2591,32,FALSE),0) -> 0 | AI67: =IFERROR(VLOOKUP($A67,Filtro!$A$5:$AW$2591,33,FALSE),0) -> 0 | AJ67: =IFERROR(VLOOKUP($A67,Filtro!$A$5:$AW$2591,34,FALSE),0) -> 0 | AK67: =IFERROR(VLOOKUP($A67,Filtro!$A$5:$AW$2591,35,FALSE),0) -> 0 | AL67: =IFERROR(VLOOKUP($A67,Filtro!$A$5:$AW$2591,36,FALSE),0) -> 0 | AM67: =IFERROR(VLOOKUP($A67,Filtro!$A$5:$AW$2591,37,FALSE),0) -> 0 | AN67: =IFERROR(VLOOKUP($A67,Filtro!$A$5:$AW$2591,38,FALSE),0) -> 0 | AO67: =IFERROR(VLOOKUP($A67,Filtro!$A$5:$AW$2591,39,FALSE),0) -> 0 | AP67: =IFERROR(VLOOKUP($A67,Filtro!$A$5:$AW$2591,40,FALSE),0) -> 1 | DB67: 0 | DD67: 0
B68: SECCIÓN D: CONTROL DE SALUD INTEGRAL DE ADOLESCENTES (incluidos en sección B)
B69: LUGAR DEL CONTROL, SEGÚN EDAD | D69: 10 A 14 AÑOS | I69: 15 A 19 AÑOS | N69: Niños, Niñas, Adolescentes y Jóvenes SENAME | O69: Niños, Niñas, Adolescentes y Jóvenes Mejor Niñez
D70: Ambos Sexos | E70: Hombres | F70: Mujeres | G70: Pueblos Originarios | H70: Migrantes | I70: Ambos Sexos | J70: Hombres | K70: Mujeres | L70: Pueblos Originarios | M70: Migrantes
A71: 01030500 | B71: EN ESPACIO AMIGABLE | D71: =SUM(E71:F71) -> 820 | E71: =IFERROR(VLOOKUP($A71,Filtro!$A$5:$AW$2591,3,FALSE),0) -> 310 | F71: =IFERROR(VLOOKUP($A71,Filtro!$A$5:$AW$2591,4,FALSE),0) -> 510 | G71: =IFERROR(VLOOKUP($A71,Filtro!$A$5:$AW$2591,5,FALSE),0) -> 29 | H71: =IFERROR(VLOOKUP($A71,Filtro!$A$5:$AW$2591,6,FALSE),0) -> 21 | I71: =SUM(J71:K71) -> 853 | J71: =IFERROR(VLOOKUP($A71,Filtro!$A$5:$AW$2591,8,FALSE),0) -> 259 | K71: =IFERROR(VLOOKUP($A71,Filtro!$A$5:$AW$2591,9,FALSE),0) -> 594 | L71: =IFERROR(VLOOKUP($A71,Filtro!$A$5:$AW$2591,10,FALSE),0) -> 36 | M71: =IFERROR(VLOOKUP($A71,Filtro!$A$5:$AW$2591,11,FALSE),0) -> 37 | N71: =IFERROR(VLOOKUP($A71,Filtro!$A$5:$AW$2591,12,FALSE),0) -> 9 | O71: =IFERROR(VLOOKUP($A71,Filtro!$A$5:$AW$2591,13,FALSE),0) -> 40 | CB71: * Niños, Niñas, Adolescentes y Jóvenes SENAME NO DEBE ser mayor al Total. | CF71: * Pueblos Originarios NO DEBE ser mayor al Total de controles de adolescentes de 10 a 14 años. | CH71: * Migrantes NO DEBE ser mayor al Total de controles de adolescentes de 10 a 14 años. | CJ71: * Pueblos Originarios NO DEBE ser mayor al Total de controles de adolescentes de 15 a 19 años. | CL71: * Migrantes NO DEBE ser mayor al Total de controles de adolescentes de 15 a 19 años. | DB71: 1 | DF71: 1 | DH71: 1 | DJ71: 1 | DL71: 1
A72: 01030600 | B72: EN OTROS ESPACIOS DEL ESTABLECIMIENTO DE SALUD | D72: =SUM(E72:F72) -> 2955 | E72: =IFERROR(VLOOKUP($A72,Filtro!$A$5:$AW$2591,3,FALSE),0) -> 1305 | F72: =IFERROR(VLOOKUP($A72,Filtro!$A$5:$AW$2591,4,FALSE),0) -> 1650 | G72: =IFERROR(VLOOKUP($A72,Filtro!$A$5:$AW$2591,5,FALSE),0) -> 193 | H72: =IFERROR(VLOOKUP($A72,Filtro!$A$5:$AW$2591,6,FALSE),0) -> 142 | I72: =SUM(J72:K72) -> 1244 | J72: =IFERROR(VLOOKUP($A72,Filtro!$A$5:$AW$2591,8,FALSE),0) -> 439 | K72: =IFERROR(VLOOKUP($A72,Filtro!$A$5:$AW$2591,9,FALSE),0) -> 805 | L72: =IFERROR(VLOOKUP($A72,Filtro!$A$5:$AW$2591,10,FALSE),0) -> 99 | M72: =IFERROR(VLOOKUP($A72,Filtro!$A$5:$AW$2591,11,FALSE),0) -> 73 | N72: =IFERROR(VLOOKUP($A72,Filtro!$A$5:$AW$2591,12,FALSE),0) -> 49 | O72: =IFERROR(VLOOKUP($A72,Filtro!$A$5:$AW$2591,13,FALSE),0) -> 62 | CF72: * Pueblos Originarios NO DEBE ser mayor al Total de controles de adolescentes de 10 a 14 años. | CH72: * Migrantes NO DEBE ser mayor al Total de controles de adolescentes de 10 a 14 años. | CJ72: * Pueblos Originarios NO DEBE ser mayor al Total de controles de adolescentes de 15 a 19 años. | DF72: 1 | DH72: 1 | DJ72: 1
A73: 01030700 | B73: EN ESTABLECIMIENTOS EDUCACIONALES | D73: =SUM(E73:F73) -> 3032 | E73: =IFERROR(VLOOKUP($A73,Filtro!$A$5:$AW$2591,3,FALSE),0) -> 1446 | F73: =IFERROR(VLOOKUP($A73,Filtro!$A$5:$AW$2591,4,FALSE),0) -> 1586 | G73: =IFERROR(VLOOKUP($A73,Filtro!$A$5:$AW$2591,5,FALSE),0) -> 114 | H73: =IFERROR(VLOOKUP($A73,Filtro!$A$5:$AW$2591,6,FALSE),0) -> 104 | I73: =SUM(J73:K73) -> 812 | J73: =IFERROR(VLOOKUP($A73,Filtro!$A$5:$AW$2591,8,FALSE),0) -> 369 | K73: =IFERROR(VLOOKUP($A73,Filtro!$A$5:$AW$2591,9,FALSE),0) -> 443 | L73: =IFERROR(VLOOKUP($A73,Filtro!$A$5:$AW$2591,10,FALSE),0) -> 52 | M73: =IFERROR(VLOOKUP($A73,Filtro!$A$5:$AW$2591,11,FALSE),0) -> 26 | N73: =IFERROR(VLOOKUP($A73,Filtro!$A$5:$AW$2591,12,FALSE),0) -> 3 | O73: =IFERROR(VLOOKUP($A73,Filtro!$A$5:$AW$2591,13,FALSE),0) -> 4 | CF73: * Pueblos Originarios NO DEBE ser mayor al Total de controles de adolescentes de 10 a 14 años. | CH73: * Migrantes NO DEBE ser mayor al Total de controles de adolescentes de 10 a 14 años. | CJ73: * Pueblos Originarios NO DEBE ser mayor al Total de controles de adolescentes de 15 a 19 años. | DF73: 1 | DH73: 1 | DJ73: 1
A74: 01030800 | B74: EN OTROS LUGARES FUERA DEL ESTABLECIMIENTO DE SALUD | D74: =SUM(E74:F74) -> 246 | E74: =IFERROR(VLOOKUP($A74,Filtro!$A$5:$AW$2591,3,FALSE),0) -> 112 | F74: =IFERROR(VLOOKUP($A74,Filtro!$A$5:$AW$2591,4,FALSE),0) -> 134 | G74: =IFERROR(VLOOKUP($A74,Filtro!$A$5:$AW$2591,5,FALSE),0) -> 8 | H74: =IFERROR(VLOOKUP($A74,Filtro!$A$5:$AW$2591,6,FALSE),0) -> 4 | I74: =SUM(J74:K74) -> 72 | J74: =IFERROR(VLOOKUP($A74,Filtro!$A$5:$AW$2591,8,FALSE),0) -> 43 | K74: =IFERROR(VLOOKUP($A74,Filtro!$A$5:$AW$2591,9,FALSE),0) -> 29 | L74: =IFERROR(VLOOKUP($A74,Filtro!$A$5:$AW$2591,10,FALSE),0) -> 6 | M74: =IFERROR(VLOOKUP($A74,Filtro!$A$5:$AW$2591,11,FALSE),0) -> 0 | N74: =IFERROR(VLOOKUP($A74,Filtro!$A$5:$AW$2591,12,FALSE),0) -> 40 | O74: =IFERROR(VLOOKUP($A74,Filtro!$A$5:$AW$2591,13,FALSE),0) -> 92 | CD74: * Niños, Niñas, Adolescentes y Jóvenes Mejor Niñez NO DEBE ser mayor al Total. | CF74: * Pueblos Originarios NO DEBE ser mayor al Total de controles de adolescentes de 10 a 14 años. | CH74: * Migrantes NO DEBE ser mayor al Total de controles de adolescentes de 10 a 14 años. | CJ74: * Pueblos Originarios NO DEBE ser mayor al Total de controles de adolescentes de 15 a 19 años. | CL74: * Migrantes NO DEBE ser mayor al Total de controles de adolescentes de 15 a 19 años. | DD74: 1 | DF74: 1 | DH74: 1 | DJ74: 1 | DL74: 1
B75: TOTAL | D75: =SUM(D71:D74) -> 7053 | E75: 3173 | F75: 3880 | G75: 344 | H75: =SUM(H71:H74) -> 271 | I75: 2981 | J75: 1110 | K75: 1871 | L75: 193 | M75: 136 | N75: =SUM(N71:N74) -> 101 | O75: =SUM(O71:O74) -> 198
B76: SECCIÓN E: CONTROLES DE SALUD EN ESTABLECIMIENTOS EDUCACIONALES
B77: SECCIÓN E1: CONTROLES INDIVIDUALES
B78: CURSO | C78: TOTAL | D78: SEXO | F78: Pueblos Originarios | G78: Migrantes | H78: Niños, Niñas, Adolescentes y Jóvenes SENAME | I78: Niños, Niñas, Adolescentes y Jóvenes Mejor Niñez
D79: Hombres | E79: Mujeres
A80: 01031000 | B80: KÍNDER | C80: =SUM(D80:E80) -> 375 | D80: =IFERROR(VLOOKUP($A80,Filtro!$A$5:$AW$2591,3,FALSE),0) -> 161 | E80: =IFERROR(VLOOKUP($A80,Filtro!$A$5:$AW$2591,4,FALSE),0) -> 214 | F80: =IFERROR(VLOOKUP($A80,Filtro!$A$5:$AW$2591,5,FALSE),0) -> 0 | G80: =IFERROR(VLOOKUP($A80,Filtro!$A$5:$AW$2591,6,FALSE),0) -> 1 | H80: =IFERROR(VLOOKUP($A80,Filtro!$A$5:$AW$2591,7,FALSE),0) -> 0 | I80: =IFERROR(VLOOKUP($A80,Filtro!$A$5:$AW$2591,8,FALSE),0) -> 0
A81: 01031100 | B81: PRIMERO BÁSICO | C81: =SUM(D81:E81) -> 569 | D81: =IFERROR(VLOOKUP($A81,Filtro!$A$5:$AW$2591,3,FALSE),0) -> 282 | E81: =IFERROR(VLOOKUP($A81,Filtro!$A$5:$AW$2591,4,FALSE),0) -> 287 | F81: =IFERROR(VLOOKUP($A81,Filtro!$A$5:$AW$2591,5,FALSE),0) -> 4 | G81: =IFERROR(VLOOKUP($A81,Filtro!$A$5:$AW$2591,6,FALSE),0) -> 5 | H81: =IFERROR(VLOOKUP($A81,Filtro!$A$5:$AW$2591,7,FALSE),0) -> 1 | I81: =IFERROR(VLOOKUP($A81,Filtro!$A$5:$AW$2591,8,FALSE),0) -> 0
A82: 01031200 | B82: SEGUNDO BÁSICO | C82: =SUM(D82:E82) -> 700 | D82: =IFERROR(VLOOKUP($A82,Filtro!$A$5:$AW$2591,3,FALSE),0) -> 324 | E82: =IFERROR(VLOOKUP($A82,Filtro!$A$5:$AW$2591,4,FALSE),0) -> 376 | F82: =IFERROR(VLOOKUP($A82,Filtro!$A$5:$AW$2591,5,FALSE),0) -> 0 | G82: =IFERROR(VLOOKUP($A82,Filtro!$A$5:$AW$2591,6,FALSE),0) -> 6 | H82: =IFERROR(VLOOKUP($A82,Filtro!$A$5:$AW$2591,7,FALSE),0) -> 0 | I82: =IFERROR(VLOOKUP($A82,Filtro!$A$5:$AW$2591,8,FALSE),0) -> 0
A83: 01031300 | B83: TERCERO BÁSICO | C83: =SUM(D83:E83) -> 762 | D83: =IFERROR(VLOOKUP($A83,Filtro!$A$5:$AW$2591,3,FALSE),0) -> 369 | E83: =IFERROR(VLOOKUP($A83,Filtro!$A$5:$AW$2591,4,FALSE),0) -> 393 | F83: =IFERROR(VLOOKUP($A83,Filtro!$A$5:$AW$2591,5,FALSE),0) -> 4 | G83: =IFERROR(VLOOKUP($A83,Filtro!$A$5:$AW$2591,6,FALSE),0) -> 2 | H83: =IFERROR(VLOOKUP($A83,Filtro!$A$5:$AW$2591,7,FALSE),0) -> 0 | I83: =IFERROR(VLOOKUP($A83,Filtro!$A$5:$AW$2591,8,FALSE),0) -> 0
A84: 01031400 | B84: CUARTO BÁSICO | C84: =SUM(D84:E84) -> 695 | D84: =IFERROR(VLOOKUP($A84,Filtro!$A$5:$AW$2591,3,FALSE),0) -> 330 | E84: =IFERROR(VLOOKUP($A84,Filtro!$A$5:$AW$2591,4,FALSE),0) -> 365 | F84: =IFERROR(VLOOKUP($A84,Filtro!$A$5:$AW$2591,5,FALSE),0) -> 3 | G84: =IFERROR(VLOOKUP($A84,Filtro!$A$5:$AW$2591,6,FALSE),0) -> 0 | H84: =IFERROR(VLOOKUP($A84,Filtro!$A$5:$AW$2591,7,FALSE),0) -> 1 | I84: =IFERROR(VLOOKUP($A84,Filtro!$A$5:$AW$2591,8,FALSE),0) -> 0
B85: SECCIÓN E2: CONTROLES GRUPALES
B86: CURSO | C86: TOTAL DE GRUPOS | D86: TOTAL | E86: SEXO | G86: Pueblos Originarios | H86: Migrantes | I86: Niños, Niñas, Adolescentes y Jóvenes SENAME | J86: Niños, Niñas, Adolescentes y Jóvenes Mejor Niñez
E87: Hombres | F87: Mujeres
A88: 01031500 | B88: KÍNDER | C88: =IFERROR(VLOOKUP($A88,Filtro!$A$5:$AW$2591,2,FALSE),0) -> 0 | D88: =SUM(E88:F88) -> 0 | E88: =IFERROR(VLOOKUP($A88,Filtro!$A$5:$AW$2591,4,FALSE),0) -> 0 | F88: =IFERROR(VLOOKUP($A88,Filtro!$A$5:$AW$2591,5,FALSE),0) -> 0 | G88: =IFERROR(VLOOKUP($A88,Filtro!$A$5:$AW$2591,6,FALSE),0) -> 0 | H88: =IFERROR(VLOOKUP($A88,Filtro!$A$5:$AW$2591,7,FALSE),0) -> 0 | I88: =IFERROR(VLOOKUP($A88,Filtro!$A$5:$AW$2591,8,FALSE),0) -> 0 | J88: =IFERROR(VLOOKUP($A88,Filtro!$A$5:$AW$2591,9,FALSE),0) -> 0
A89: 01031600 | B89: PRIMERO BÁSICO | C89: =IFERROR(VLOOKUP($A89,Filtro!$A$5:$AW$2591,2,FALSE),0) -> 0 | D89: =SUM(E89:F89) -> 0 | E89: =IFERROR(VLOOKUP($A89,Filtro!$A$5:$AW$2591,4,FALSE),0) -> 0 | F89: =IFERROR(VLOOKUP($A89,Filtro!$A$5:$AW$2591,5,FALSE),0) -> 0 | G89: =IFERROR(VLOOKUP($A89,Filtro!$A$5:$AW$2591,6,FALSE),0) -> 0 | H89: =IFERROR(VLOOKUP($A89,Filtro!$A$5:$AW$2591,7,FALSE),0) -> 0 | I89: =IFERROR(VLOOKUP($A89,Filtro!$A$5:$AW$2591,8,FALSE),0) -> 0 | J89: =IFERROR(VLOOKUP($A89,Filtro!$A$5:$AW$2591,9,FALSE),0) -> 0
A90: 01031700 | B90: SEGUNDO BÁSICO | C90: =IFERROR(VLOOKUP($A90,Filtro!$A$5:$AW$2591,2,FALSE),0) -> 0 | D90: =SUM(E90:F90) -> 0 | E90: =IFERROR(VLOOKUP($A90,Filtro!$A$5:$AW$2591,4,FALSE),0) -> 0 | F90: =IFERROR(VLOOKUP($A90,Filtro!$A$5:$AW$2591,5,FALSE),0) -> 0 | G90: =IFERROR(VLOOKUP($A90,Filtro!$A$5:$AW$2591,6,FALSE),0) -> 0 | H90: =IFERROR(VLOOKUP($A90,Filtro!$A$5:$AW$2591,7,FALSE),0) -> 0 | I90: =IFERROR(VLOOKUP($A90,Filtro!$A$5:$AW$2591,8,FALSE),0) -> 0 | J90: =IFERROR(VLOOKUP($A90,Filtro!$A$5:$AW$2591,9,FALSE),0) -> 0
A91: 01031800 | B91: TERCERO BÁSICO | C91: =IFERROR(VLOOKUP($A91,Filtro!$A$5:$AW$2591,2,FALSE),0) -> 0 | D91: =SUM(E91:F91) -> 0 | E91: =IFERROR(VLOOKUP($A91,Filtro!$A$5:$AW$2591,4,FALSE),0) -> 0 | F91: =IFERROR(VLOOKUP($A91,Filtro!$A$5:$AW$2591,5,FALSE),0) -> 0 | G91: =IFERROR(VLOOKUP($A91,Filtro!$A$5:$AW$2591,6,FALSE),0) -> 0 | H91: =IFERROR(VLOOKUP($A91,Filtro!$A$5:$AW$2591,7,FALSE),0) -> 0 | I91: =IFERROR(VLOOKUP($A91,Filtro!$A$5:$AW$2591,8,FALSE),0) -> 0 | J91: =IFERROR(VLOOKUP($A91,Filtro!$A$5:$AW$2591,9,FALSE),0) -> 0
A92: 01031900 | B92: CUARTO BÁSICO | C92: =IFERROR(VLOOKUP($A92,Filtro!$A$5:$AW$2591,2,FALSE),0) -> 0 | D92: =SUM(E92:F92) -> 0 | E92: =IFERROR(VLOOKUP($A92,Filtro!$A$5:$AW$2591,4,FALSE),0) -> 0 | F92: =IFERROR(VLOOKUP($A92,Filtro!$A$5:$AW$2591,5,FALSE),0) -> 0 | G92: =IFERROR(VLOOKUP($A92,Filtro!$A$5:$AW$2591,6,FALSE),0) -> 0 | H92: =IFERROR(VLOOKUP($A92,Filtro!$A$5:$AW$2591,7,FALSE),0) -> 1 | I92: =IFERROR(VLOOKUP($A92,Filtro!$A$5:$AW$2591,8,FALSE),0) -> 0 | J92: =IFERROR(VLOOKUP($A92,Filtro!$A$5:$AW$2591,9,FALSE),0) -> 0 | CB92: * Niños, Niñas, Adolescentes y Jóvenes SENAME NO DEBE ser mayor al Total. | DB92: 1
B93: SECCIÓN F: CONTROLES INTEGRALES DE PERSONAS CON CONDICIONES CRÓNICAS (incluidos en Secciones B y C)
B94: TIPO DE CONTROL | C94: TOTAL | F94: POR EDAD | AH94: Migrantes | AI94: Pueblos Originarios
F95: 15 - 19 años | H95: 20 - 24 años | J95: 25 - 29 años | L95: 30 - 34 años | N95: 35 - 39 años | P95: 40 - 44 años | R95: 45 - 49 años | T95: 50 - 54 años | V95: 55 - 59 años | X95: 60 - 64 años | Z95: 65 - 69 años | AB95: 70 - 74 años | AD95: 75 - 79 años | AF95: 80 y más años
C96: Ambos Sexos | D96: Hombres | E96: Mujeres | F96: Hombres | G96: Mujeres | H96: Hombres | I96: Mujeres | J96: Hombres | K96: Mujeres | L96: Hombres | M96: Mujeres | N96: Hombres | O96: Mujeres | P96: Hombres | Q96: Mujeres | R96: Hombres | S96: Mujeres | T96: Hombres | U96: Mujeres | V96: Hombres | W96: Mujeres | X96: Hombres | Y96: Mujeres | Z96: Hombres | AA96: Mujeres | AB96: Hombres | AC96: Mujeres | AD96: Hombres | AE96: Mujeres | AF96: Hombres | AG96: Mujeres
A97: 01501010 | B97: CONTROL INTEGRAL CON RIESGO LEVE (G1) | C97: =SUM(D97:E97) -> 363 | D97: =SUM(F97+H97+J97+L97+N97+P97+R97+T97+V97+X97+Z97+AB97+AD97+AF97) -> 122 | E97: =SUM(+G97+I97+K97+M97+O97+Q97+S97+U97+W97+Y97+AA97+AC97+AE97+AG97) -> 241 | F97: =IFERROR(VLOOKUP($A97,Filtro!$A$5:$AW$2591,5,FALSE),0) -> 2 | G97: =IFERROR(VLOOKUP($A97,Filtro!$A$5:$AW$2591,6,FALSE),0) -> 0 | H97: =IFERROR(VLOOKUP($A97,Filtro!$A$5:$AW$2591,7,FALSE),0) -> 2 | I97: =IFERROR(VLOOKUP($A97,Filtro!$A$5:$AW$2591,8,FALSE),0) -> 1 | J97: =IFERROR(VLOOKUP($A97,Filtro!$A$5:$AW$2591,9,FALSE),0) -> 4 | K97: =IFERROR(VLOOKUP($A97,Filtro!$A$5:$AW$2591,10,FALSE),0) -> 1 | L97: =IFERROR(VLOOKUP($A97,Filtro!$A$5:$AW$2591,11,FALSE),0) -> 5 | M97: =IFERROR(VLOOKUP($A97,Filtro!$A$5:$AW$2591,12,FALSE),0) -> 6 | N97: =IFERROR(VLOOKUP($A97,Filtro!$A$5:$AW$2591,13,FALSE),0) -> 1 | O97: =IFERROR(VLOOKUP($A97,Filtro!$A$5:$AW$2591,14,FALSE),0) -> 11 | P97: =IFERROR(VLOOKUP($A97,Filtro!$A$5:$AW$2591,15,FALSE),0) -> 5 | Q97: =IFERROR(VLOOKUP($A97,Filtro!$A$5:$AW$2591,16,FALSE),0) -> 16 | R97: =IFERROR(VLOOKUP($A97,Filtro!$A$5:$AW$2591,17,FALSE),0) -> 7 | S97: =IFERROR(VLOOKUP($A97,Filtro!$A$5:$AW$2591,18,FALSE),0) -> 21 | T97: =IFERROR(VLOOKUP($A97,Filtro!$A$5:$AW$2591,19,FALSE),0) -> 17 | U97: =IFERROR(VLOOKUP($A97,Filtro!$A$5:$AW$2591,20,FALSE),0) -> 26 | V97: =IFERROR(VLOOKUP($A97,Filtro!$A$5:$AW$2591,21,FALSE),0) -> 15 | W97: =IFERROR(VLOOKUP($A97,Filtro!$A$5:$AW$2591,22,FALSE),0) -> 37 | X97: =IFERROR(VLOOKUP($A97,Filtro!$A$5:$AW$2591,23,FALSE),0) -> 21 | Y97: =IFERROR(VLOOKUP($A97,Filtro!$A$5:$AW$2591,24,FALSE),0) -> 32 | Z97: =IFERROR(VLOOKUP($A97,Filtro!$A$5:$AW$2591,25,FALSE),0) -> 14 | AA97: =IFERROR(VLOOKUP($A97,Filtro!$A$5:$AW$2591,26,FALSE),0) -> 32 | AB97: =IFERROR(VLOOKUP($A97,Filtro!$A$5:$AW$2591,27,FALSE),0) -> 8 | AC97: =IFERROR(VLOOKUP($A97,Filtro!$A$5:$AW$2591,28,FALSE),0) -> 14 | AD97: =IFERROR(VLOOKUP($A97,Filtro!$A$5:$AW$2591,29,FALSE),0) -> 8 | AE97: =IFERROR(VLOOKUP($A97,Filtro!$A$5:$AW$2591,30,FALSE),0) -> 20 | AF97: =IFERROR(VLOOKUP($A97,Filtro!$A$5:$AW$2591,31,FALSE),0) -> 13 | AG97: =IFERROR(VLOOKUP($A97,Filtro!$A$5:$AW$2591,32,FALSE),0) -> 24 | AH97: =IFERROR(VLOOKUP($A97,Filtro!$A$5:$AW$2591,33,FALSE),0) -> 0 | AI97: =IFERROR(VLOOKUP($A97,Filtro!$A$5:$AW$2591,34,FALSE),0) -> 0 | DA97: 0 | DB97: 0
A98: 01501020 | B98: CONTROL INTEGRAL CON RIESGO MODERADO (G2) | C98: 316 | D98: 104 | E98: 212 | F98: =IFERROR(VLOOKUP($A98,Filtro!$A$5:$AW$2591,5,FALSE),0) -> 1 | G98: =IFERROR(VLOOKUP($A98,Filtro!$A$5:$AW$2591,6,FALSE),0) -> 0 | H98: =IFERROR(VLOOKUP($A98,Filtro!$A$5:$AW$2591,7,FALSE),0) -> 0 | I98: =IFERROR(VLOOKUP($A98,Filtro!$A$5:$AW$2591,8,FALSE),0) -> 1 | J98: =IFERROR(VLOOKUP($A98,Filtro!$A$5:$AW$2591,9,FALSE),0) -> 3 | K98: =IFERROR(VLOOKUP($A98,Filtro!$A$5:$AW$2591,10,FALSE),0) -> 3 | L98: =IFERROR(VLOOKUP($A98,Filtro!$A$5:$AW$2591,11,FALSE),0) -> 0 | M98: =IFERROR(VLOOKUP($A98,Filtro!$A$5:$AW$2591,12,FALSE),0) -> 0 | N98: =IFERROR(VLOOKUP($A98,Filtro!$A$5:$AW$2591,13,FALSE),0) -> 2 | O98: =IFERROR(VLOOKUP($A98,Filtro!$A$5:$AW$2591,14,FALSE),0) -> 5 | P98: =IFERROR(VLOOKUP($A98,Filtro!$A$5:$AW$2591,15,FALSE),0) -> 2 | Q98: =IFERROR(VLOOKUP($A98,Filtro!$A$5:$AW$2591,16,FALSE),0) -> 9 | R98: =IFERROR(VLOOKUP($A98,Filtro!$A$5:$AW$2591,17,FALSE),0) -> 9 | S98: =IFERROR(VLOOKUP($A98,Filtro!$A$5:$AW$2591,18,FALSE),0) -> 13 | T98: =IFERROR(VLOOKUP($A98,Filtro!$A$5:$AW$2591,19,FALSE),0) -> 7 | U98: =IFERROR(VLOOKUP($A98,Filtro!$A$5:$AW$2591,20,FALSE),0) -> 9 | V98: =IFERROR(VLOOKUP($A98,Filtro!$A$5:$AW$2591,21,FALSE),0) -> 13 | W98: =IFERROR(VLOOKUP($A98,Filtro!$A$5:$AW$2591,22,FALSE),0) -> 46 | X98: =IFERROR(VLOOKUP($A98,Filtro!$A$5:$AW$2591,23,FALSE),0) -> 17 | Y98: =IFERROR(VLOOKUP($A98,Filtro!$A$5:$AW$2591,24,FALSE),0) -> 27 | Z98: =IFERROR(VLOOKUP($A98,Filtro!$A$5:$AW$2591,25,FALSE),0) -> 17 | AA98: =IFERROR(VLOOKUP($A98,Filtro!$A$5:$AW$2591,26,FALSE),0) -> 22 | AB98: =IFERROR(VLOOKUP($A98,Filtro!$A$5:$AW$2591,27,FALSE),0) -> 19 | AC98: =IFERROR(VLOOKUP($A98,Filtro!$A$5:$AW$2591,28,FALSE),0) -> 25 | AD98: =IFERROR(VLOOKUP($A98,Filtro!$A$5:$AW$2591,29,FALSE),0) -> 7 | AE98: =IFERROR(VLOOKUP($A98,Filtro!$A$5:$AW$2591,30,FALSE),0) -> 15 | AF98: =IFERROR(VLOOKUP($A98,Filtro!$A$5:$AW$2591,31,FALSE),0) -> 7 | AG98: =IFERROR(VLOOKUP($A98,Filtro!$A$5:$AW$2591,32,FALSE),0) -> 37 | AH98: =IFERROR(VLOOKUP($A98,Filtro!$A$5:$AW$2591,33,FALSE),0) -> 0 | AI98: =IFERROR(VLOOKUP($A98,Filtro!$A$5:$AW$2591,34,FALSE),0) -> 0 | DA98: 0 | DB98: 0
A99: 01501030 | B99: CONTROL INTEGRAL CON RIESGO ALTO (G3) | C99: 1159 | D99: 379 | E99: 780 | F99: =IFERROR(VLOOKUP($A99,Filtro!$A$5:$AW$2591,5,FALSE),0) -> 0 | G99: =IFERROR(VLOOKUP($A99,Filtro!$A$5:$AW$2591,6,FALSE),0) -> 0 | H99: =IFERROR(VLOOKUP($A99,Filtro!$A$5:$AW$2591,7,FALSE),0) -> 0 | I99: =IFERROR(VLOOKUP($A99,Filtro!$A$5:$AW$2591,8,FALSE),0) -> 2 | J99: =IFERROR(VLOOKUP($A99,Filtro!$A$5:$AW$2591,9,FALSE),0) -> 0 | K99: =IFERROR(VLOOKUP($A99,Filtro!$A$5:$AW$2591,10,FALSE),0) -> 1 | L99: =IFERROR(VLOOKUP($A99,Filtro!$A$5:$AW$2591,11,FALSE),0) -> 0 | M99: =IFERROR(VLOOKUP($A99,Filtro!$A$5:$AW$2591,12,FALSE),0) -> 3 | N99: =IFERROR(VLOOKUP($A99,Filtro!$A$5:$AW$2591,13,FALSE),0) -> 5 | O99: =IFERROR(VLOOKUP($A99,Filtro!$A$5:$AW$2591,14,FALSE),0) -> 9 | P99: =IFERROR(VLOOKUP($A99,Filtro!$A$5:$AW$2591,15,FALSE),0) -> 2 | Q99: =IFERROR(VLOOKUP($A99,Filtro!$A$5:$AW$2591,16,FALSE),0) -> 12 | R99: =IFERROR(VLOOKUP($A99,Filtro!$A$5:$AW$2591,17,FALSE),0) -> 12 | S99: =IFERROR(VLOOKUP($A99,Filtro!$A$5:$AW$2591,18,FALSE),0) -> 25 | T99: =IFERROR(VLOOKUP($A99,Filtro!$A$5:$AW$2591,19,FALSE),0) -> 19 | U99: =IFERROR(VLOOKUP($A99,Filtro!$A$5:$AW$2591,20,FALSE),0) -> 51 | V99: =IFERROR(VLOOKUP($A99,Filtro!$A$5:$AW$2591,21,FALSE),0) -> 24 | W99: =IFERROR(VLOOKUP($A99,Filtro!$A$5:$AW$2591,22,FALSE),0) -> 94 | X99: =IFERROR(VLOOKUP($A99,Filtro!$A$5:$AW$2591,23,FALSE),0) -> 47 | Y99: =IFERROR(VLOOKUP($A99,Filtro!$A$5:$AW$2591,24,FALSE),0) -> 112 | Z99: =IFERROR(VLOOKUP($A99,Filtro!$A$5:$AW$2591,25,FALSE),0) -> 100 | AA99: =IFERROR(VLOOKUP($A99,Filtro!$A$5:$AW$2591,26,FALSE),0) -> 140 | AB99: =IFERROR(VLOOKUP($A99,Filtro!$A$5:$AW$2591,27,FALSE),0) -> 60 | AC99: =IFERROR(VLOOKUP($A99,Filtro!$A$5:$AW$2591,28,FALSE),0) -> 126 | AD99: =IFERROR(VLOOKUP($A99,Filtro!$A$5:$AW$2591,29,FALSE),0) -> 50 | AE99: =IFERROR(VLOOKUP($A99,Filtro!$A$5:$AW$2591,30,FALSE),0) -> 98 | AF99: =IFERROR(VLOOKUP($A99,Filtro!$A$5:$AW$2591,31,FALSE),0) -> 60 | AG99: =IFERROR(VLOOKUP($A99,Filtro!$A$5:$AW$2591,32,FALSE),0) -> 107 | AH99: =IFERROR(VLOOKUP($A99,Filtro!$A$5:$AW$2591,33,FALSE),0) -> 2 | AI99: =IFERROR(VLOOKUP($A99,Filtro!$A$5:$AW$2591,34,FALSE),0) -> 0 | DA99: 0 | DB99: 0
A100: 01502030 | B100: SEGUIMIENTO A DISTANCIA CON RIESGO LEVE (G1) | C100: 0 | D100: 0 | E100: 0 | F100: =IFERROR(VLOOKUP($A100,Filtro!$A$5:$AW$2591,5,FALSE),0) -> 0 | G100: =IFERROR(VLOOKUP($A100,Filtro!$A$5:$AW$2591,6,FALSE),0) -> 0 | H100: =IFERROR(VLOOKUP($A100,Filtro!$A$5:$AW$2591,7,FALSE),0) -> 0 | I100: =IFERROR(VLOOKUP($A100,Filtro!$A$5:$AW$2591,8,FALSE),0) -> 0 | J100: =IFERROR(VLOOKUP($A100,Filtro!$A$5:$AW$2591,9,FALSE),0) -> 0 | K100: =IFERROR(VLOOKUP($A100,Filtro!$A$5:$AW$2591,10,FALSE),0) -> 0 | L100: =IFERROR(VLOOKUP($A100,Filtro!$A$5:$AW$2591,11,FALSE),0) -> 0 | M100: =IFERROR(VLOOKUP($A100,Filtro!$A$5:$AW$2591,12,FALSE),0) -> 0 | N100: =IFERROR(VLOOKUP($A100,Filtro!$A$5:$AW$2591,13,FALSE),0) -> 0 | O100: =IFERROR(VLOOKUP($A100,Filtro!$A$5:$AW$2591,14,FALSE),0) -> 0 | P100: =IFERROR(VLOOKUP($A100,Filtro!$A$5:$AW$2591,15,FALSE),0) -> 0 | Q100: =IFERROR(VLOOKUP($A100,Filtro!$A$5:$AW$2591,16,FALSE),0) -> 0 | R100: =IFERROR(VLOOKUP($A100,Filtro!$A$5:$AW$2591,17,FALSE),0) -> 0 | S100: =IFERROR(VLOOKUP($A100,Filtro!$A$5:$AW$2591,18,FALSE),0) -> 0 | T100: =IFERROR(VLOOKUP($A100,Filtro!$A$5:$AW$2591,19,FALSE),0) -> 0 | U100: =IFERROR(VLOOKUP($A100,Filtro!$A$5:$AW$2591,20,FALSE),0) -> 0 | V100: =IFERROR(VLOOKUP($A100,Filtro!$A$5:$AW$2591,21,FALSE),0) -> 0 | W100: =IFERROR(VLOOKUP($A100,Filtro!$A$5:$AW$2591,22,FALSE),0) -> 0 | X100: =IFERROR(VLOOKUP($A100,Filtro!$A$5:$AW$2591,23,FALSE),0) -> 0 | Y100: =IFERROR(VLOOKUP($A100,Filtro!$A$5:$AW$2591,24,FALSE),0) -> 0 | Z100: =IFERROR(VLOOKUP($A100,Filtro!$A$5:$AW$2591,25,FALSE),0) -> 0 | AA100: =IFERROR(VLOOKUP($A100,Filtro!$A$5:$AW$2591,26,FALSE),0) -> 0 | AB100: =IFERROR(VLOOKUP($A100,Filtro!$A$5:$AW$2591,27,FALSE),0) -> 0 | AC100: =IFERROR(VLOOKUP($A100,Filtro!$A$5:$AW$2591,28,FALSE),0) -> 0 | AD100: =IFERROR(VLOOKUP($A100,Filtro!$A$5:$AW$2591,29,FALSE),0) -> 0 | AE100: =IFERROR(VLOOKUP($A100,Filtro!$A$5:$AW$2591,30,FALSE),0) -> 0 | AF100: =IFERROR(VLOOKUP($A100,Filtro!$A$5:$AW$2591,31,FALSE),0) -> 0 | AG100: =IFERROR(VLOOKUP($A100,Filtro!$A$5:$AW$2591,32,FALSE),0) -> 0 | AH100: =IFERROR(VLOOKUP($A100,Filtro!$A$5:$AW$2591,33,FALSE),0) -> 0 | AI100: =IFERROR(VLOOKUP($A100,Filtro!$A$5:$AW$2591,34,FALSE),0) -> 0 | DA100: 0 | DB100: 0
A101: 01502040 | B101: SEGUIMIENTO A DISTANCIA CON RIESGO MODERADO (G2) | C101: 5 | D101: 0 | E101: 5 | F101: =IFERROR(VLOOKUP($A101,Filtro!$A$5:$AW$2591,5,FALSE),0) -> 0 | G101: =IFERROR(VLOOKUP($A101,Filtro!$A$5:$AW$2591,6,FALSE),0) -> 0 | H101: =IFERROR(VLOOKUP($A101,Filtro!$A$5:$AW$2591,7,FALSE),0) -> 0 | I101: =IFERROR(VLOOKUP($A101,Filtro!$A$5:$AW$2591,8,FALSE),0) -> 0 | J101: =IFERROR(VLOOKUP($A101,Filtro!$A$5:$AW$2591,9,FALSE),0) -> 0 | K101: =IFERROR(VLOOKUP($A101,Filtro!$A$5:$AW$2591,10,FALSE),0) -> 1 | L101: =IFERROR(VLOOKUP($A101,Filtro!$A$5:$AW$2591,11,FALSE),0) -> 0 | M101: =IFERROR(VLOOKUP($A101,Filtro!$A$5:$AW$2591,12,FALSE),0) -> 0 | N101: =IFERROR(VLOOKUP($A101,Filtro!$A$5:$AW$2591,13,FALSE),0) -> 0 | O101: =IFERROR(VLOOKUP($A101,Filtro!$A$5:$AW$2591,14,FALSE),0) -> 0 | P101: =IFERROR(VLOOKUP($A101,Filtro!$A$5:$AW$2591,15,FALSE),0) -> 0 | Q101: =IFERROR(VLOOKUP($A101,Filtro!$A$5:$AW$2591,16,FALSE),0) -> 0 | R101: =IFERROR(VLOOKUP($A101,Filtro!$A$5:$AW$2591,17,FALSE),0) -> 0 | S101: =IFERROR(VLOOKUP($A101,Filtro!$A$5:$AW$2591,18,FALSE),0) -> 1 | T101: =IFERROR(VLOOKUP($A101,Filtro!$A$5:$AW$2591,19,FALSE),0) -> 0 | U101: =IFERROR(VLOOKUP($A101,Filtro!$A$5:$AW$2591,20,FALSE),0) -> 0 | V101: =IFERROR(VLOOKUP($A101,Filtro!$A$5:$AW$2591,21,FALSE),0) -> 0 | W101: =IFERROR(VLOOKUP($A101,Filtro!$A$5:$AW$2591,22,FALSE),0) -> 0 | X101: =IFERROR(VLOOKUP($A101,Filtro!$A$5:$AW$2591,23,FALSE),0) -> 0 | Y101: =IFERROR(VLOOKUP($A101,Filtro!$A$5:$AW$2591,24,FALSE),0) -> 0 | Z101: =IFERROR(VLOOKUP($A101,Filtro!$A$5:$AW$2591,25,FALSE),0) -> 0 | AA101: =IFERROR(VLOOKUP($A101,Filtro!$A$5:$AW$2591,26,FALSE),0) -> 0 | AB101: =IFERROR(VLOOKUP($A101,Filtro!$A$5:$AW$2591,27,FALSE),0) -> 0 | AC101: =IFERROR(VLOOKUP($A101,Filtro!$A$5:$AW$2591,28,FALSE),0) -> 0 | AD101: =IFERROR(VLOOKUP($A101,Filtro!$A$5:$AW$2591,29,FALSE),0) -> 0 | AE101: =IFERROR(VLOOKUP($A101,Filtro!$A$5:$AW$2591,30,FALSE),0) -> 3 | AF101: =IFERROR(VLOOKUP($A101,Filtro!$A$5:$AW$2591,31,FALSE),0) -> 0 | AG101: =IFERROR(VLOOKUP($A101,Filtro!$A$5:$AW$2591,32,FALSE),0) -> 0 | AH101: =IFERROR(VLOOKUP($A101,Filtro!$A$5:$AW$2591,33,FALSE),0) -> 0 | AI101: =IFERROR(VLOOKUP($A101,Filtro!$A$5:$AW$2591,34,FALSE),0) -> 0 | DA101: 0 | DB101: 0
A102: 01501040 | B102: SEGUIMIENTO A DISTANCIA CON RIESGO ALTO (G3) | C102: 1399 | D102: 414 | E102: 985 | F102: =IFERROR(VLOOKUP($A102,Filtro!$A$5:$AW$2591,5,FALSE),0) -> 0 | G102: =IFERROR(VLOOKUP($A102,Filtro!$A$5:$AW$2591,6,FALSE),0) -> 0 | H102: =IFERROR(VLOOKUP($A102,Filtro!$A$5:$AW$2591,7,FALSE),0) -> 0 | I102: =IFERROR(VLOOKUP($A102,Filtro!$A$5:$AW$2591,8,FALSE),0) -> 4 | J102: =IFERROR(VLOOKUP($A102,Filtro!$A$5:$AW$2591,9,FALSE),0) -> 0 | K102: =IFERROR(VLOOKUP($A102,Filtro!$A$5:$AW$2591,10,FALSE),0) -> 0 | L102: =IFERROR(VLOOKUP($A102,Filtro!$A$5:$AW$2591,11,FALSE),0) -> 2 | M102: =IFERROR(VLOOKUP($A102,Filtro!$A$5:$AW$2591,12,FALSE),0) -> 3 | N102: =IFERROR(VLOOKUP($A102,Filtro!$A$5:$AW$2591,13,FALSE),0) -> 0 | O102: =IFERROR(VLOOKUP($A102,Filtro!$A$5:$AW$2591,14,FALSE),0) -> 11 | P102: =IFERROR(VLOOKUP($A102,Filtro!$A$5:$AW$2591,15,FALSE),0) -> 0 | Q102: =IFERROR(VLOOKUP($A102,Filtro!$A$5:$AW$2591,16,FALSE),0) -> 19 | R102: =IFERROR(VLOOKUP($A102,Filtro!$A$5:$AW$2591,17,FALSE),0) -> 3 | S102: =IFERROR(VLOOKUP($A102,Filtro!$A$5:$AW$2591,18,FALSE),0) -> 13 | T102: =IFERROR(VLOOKUP($A102,Filtro!$A$5:$AW$2591,19,FALSE),0) -> 11 | U102: =IFERROR(VLOOKUP($A102,Filtro!$A$5:$AW$2591,20,FALSE),0) -> 91 | V102: =IFERROR(VLOOKUP($A102,Filtro!$A$5:$AW$2591,21,FALSE),0) -> 22 | W102: =IFERROR(VLOOKUP($A102,Filtro!$A$5:$AW$2591,22,FALSE),0) -> 125 | X102: =IFERROR(VLOOKUP($A102,Filtro!$A$5:$AW$2591,23,FALSE),0) -> 65 | Y102: =IFERROR(VLOOKUP($A102,Filtro!$A$5:$AW$2591,24,FALSE),0) -> 176 | Z102: =IFERROR(VLOOKUP($A102,Filtro!$A$5:$AW$2591,25,FALSE),0) -> 116 | AA102: =IFERROR(VLOOKUP($A102,Filtro!$A$5:$AW$2591,26,FALSE),0) -> 214 | AB102: =IFERROR(VLOOKUP($A102,Filtro!$A$5:$AW$2591,27,FALSE),0) -> 86 | AC102: =IFERROR(VLOOKUP($A102,Filtro!$A$5:$AW$2591,28,FALSE),0) -> 157 | AD102: =IFERROR(VLOOKUP($A102,Filtro!$A$5:$AW$2591,29,FALSE),0) -> 49 | AE102: =IFERROR(VLOOKUP($A102,Filtro!$A$5:$AW$2591,30,FALSE),0) -> 80 | AF102: =IFERROR(VLOOKUP($A102,Filtro!$A$5:$AW$2591,31,FALSE),0) -> 60 | AG102: =IFERROR(VLOOKUP($A102,Filtro!$A$5:$AW$2591,32,FALSE),0) -> 92 | AH102: =IFERROR(VLOOKUP($A102,Filtro!$A$5:$AW$2591,33,FALSE),0) -> 2 | AI102: =IFERROR(VLOOKUP($A102,Filtro!$A$5:$AW$2591,34,FALSE),0) -> 2 | DA102: 0 | DB102: 0
A105: CODIGOS NUEVOS
A106: 09600204
A107: 09600205
A108: 09600206
A109: CODIGOS ELIMINADOS
A110: 01200035
B193: =SUM(D12:D33,V32:W33,Y20:Y23,X14:X15,D37:D40,E37:F40,D45:F67,D71:D75,I71:I75,C80:C84,D88:D92,C97:C99) -> 914688 | C193: =SUM(DB1:EA99) -> 23

Sheet A02_
B1: SERVICIO DE SALUD
B2: =CONCATENATE("COMUNA: ",NOMBRE!B2," - ","( ",NOMBRE!C2,NOMBRE!D2,NOMBRE!E2,NOMBRE!F2,NOMBRE!G2," )") -> COMUNA: - ( )
B3: =CONCATENATE("ESTABLECIMIENTO/ESTRATEGIA: ",NOMBRE!B3," - ","( ",NOMBRE!C3,NOMBRE!D3,NOMBRE!E3,NOMBRE!F3,NOMBRE!G3,NOMBRE!H3," )") -> ESTABLECIMIENTO/ESTRATEGIA: - ( )
B4: =CONCATENATE("MES: ",NOMBRE!B6," - ","( ",NOMBRE!C6,NOMBRE!D6," )") -> MES: - ( )
B5: =CONCATENATE("AÑO: ",NOMBRE!B7) -> AÑO: 2023
B6: REM-A02. EXAMEN DE MEDICINA PREVENTIVA EN MAYORES DE 15 AÑOS
B8: SECCIÓN A: EMP REALIZADO POR PROFESIONAL
B9: PROFESIONAL | C9: TOTAL | F9: Pueblos Originarios | G9: Migrantes
C10: Ambos Sexos | D10: Hombres | E10: Mujeres
B11: TOTAL | C11: =SUM(C12:C17) -> 75590 | D11: =SUM(D12:D17) -> 26927 | E11: =SUM(E12:E17) -> 48663 | F11: =SUM(F12:F17) -> 228 | G11: =SUM(G12:G17) -> 942
A12: 03030101 | B12: MÉDICO/A | C12: =SUM(D12:E12) -> 636 | D12: =IFERROR(VLOOKUP($A12,Filtro!$A$5:$AW$2591,3,FALSE),0) -> 245 | E12: =IFERROR(VLOOKUP($A12,Filtro!$A$5:$AW$2591,4,FALSE),0) -> 391 | F12: =IFERROR(VLOOKUP($A12,Filtro!$A$5:$AW$2591,5,FALSE),0) -> 0 | G12: =IFERROR(VLOOKUP($A12,Filtro!$A$5:$AW$2591,6,FALSE),0) -> 1
A13: 03030102 | B13: ENFERMERA/O | C13: 46018 | D13: =IFERROR(VLOOKUP($A13,Filtro!$A$5:$AW$2591,3,FALSE),0) -> 17359 | E13: =IFERROR(VLOOKUP($A13,Filtro!$A$5:$AW$2591,4,FALSE),0) -> 28659 | F13: =IFERROR(VLOOKUP($A13,Filtro!$A$5:$AW$2591,5,FALSE),0) -> 125 | G13: =IFERROR(VLOOKUP($A13,Filtro!$A$5:$AW$2591,6,FALSE),0) -> 430
A14: 03030103 | B14: MATRONA/ÓN | C14: 2585 | D14: =IFERROR(VLOOKUP($A14,Filtro!$A$5:$AW$2591,3,FALSE),0) -> 181 | E14: =IFERROR(VLOOKUP($A14,Filtro!$A$5:$AW$2591,4,FALSE),0) -> 2404 | F14: =IFERROR(VLOOKUP($A14,Filtro!$A$5:$AW$2591,5,FALSE),0) -> 8 | G14: =IFERROR(VLOOKUP($A14,Filtro!$A$5:$AW$2591,6,FALSE),0) -> 39
A15: 03030104 | B15: NUTRICIONISTA | C15: 4974 | D15: =IFERROR(VLOOKUP($A15,Filtro!$A$5:$AW$2591,3,FALSE),0) -> 1691 | E15: =IFERROR(VLOOKUP($A15,Filtro!$A$5:$AW$2591,4,FALSE),0) -> 3283 | F15: =IFERROR(VLOOKUP($A15,Filtro!$A$5:$AW$2591,5,FALSE),0) -> 4 | G15: =IFERROR(VLOOKUP($A15,Filtro!$A$5:$AW$2591,6,FALSE),0) -> 104
A16: 03030350 | B16: OTRO PROFESIONAL (capacitados en EMP Y EMPAM) | C16: 8559 | D16: =IFERROR(VLOOKUP($A16,Filtro!$A$5:$AW$2591,3,FALSE),0) -> 3185 | E16: =IFERROR(VLOOKUP($A16,Filtro!$A$5:$AW$2591,4,FALSE),0) -> 5374 | F16: =IFERROR(VLOOKUP($A16,Filtro!$A$5:$AW$2591,5,FALSE),0) -> 18 | G16: =IFERROR(VLOOKUP($A16,Filtro!$A$5:$AW$2591,6,FALSE),0) -> 130
A17: 03030110 | B17: TÉCNICO EN ENFERMERÍA | C17: 12818 | D17: =IFERROR(VLOOKUP($A17,Filtro!$A$5:$AW$2591,3,FALSE),0) -> 4266 | E17: =IFERROR(VLOOKUP($A17,Filtro!$A$5:$AW$2591,4,FALSE),0) -> 8552 | F17: =IFERROR(VLOOKUP($A17,Filtro!$A$5:$AW$2591,5,FALSE),0) -> 73 | G17: =IFERROR(VLOOKUP($A17,Filtro!$A$5:$AW$2591,6,FALSE),0) -> 238
B18: SECCIÓN B: EMP SEGÚN RESULTADO DEL ESTADO NUTRICIONAL
B19: ESTADO NUTRICIONAL | C19: TOTAL | F19: 15 a 19 años | H19: 20 a 24 años | J19: 25 a 29 años | L19: 30 a 34 años | N19: 35 a 39 años | P19: 40 a 44 años | R19: 45 a 49 años | T19: 50 a 54 años | V19: 55 a 59 años | X19: 60 a 64 años | Z19: 65 a 69 años | AB19: 70 a 74 años | AD19: 75 a 79 años | AF19: 80 y más años | AH19: Pueblos Originarios | AI19: Migrantes
C20: Ambos Sexos | D20: Hombres | E20: Mujeres | F20: Hombres | G20: Mujeres | H20: Hombres | I20: Mujeres | J20: Hombres | K20: Mujeres | L20: Hombres | M20: Mujeres | N20: Hombres | O20: Mujeres | P20: Hombres | Q20: Mujeres | R20: Hombres | S20: Mujeres | T20: Hombres | U20: Mujeres | V20: Hombres | W20: Mujeres | X20: Hombres | Y20: Mujeres | Z20: Hombres | AA20: Mujeres | AB20: Hombres | AC20: Mujeres | AD20: Hombres | AE20: Mujeres | AF20: Hombres | AG20: Mujeres
B21: TOTAL | C21: =SUM(C22:C25) -> 75332 | D21: =SUM(D22:D25) -> 26753 | E21: =SUM(E22:E25) -> 48579 | F21: =SUM(F22:F25) -> 241 | G21: 449 | H21: 1715 | I21: 3535 | J21: 1821 | K21: 3897 | L21: 1938 | M21: 4350 | N21: 1719 | O21: 3980 | P21: 1705 | Q21: 3572 | R21: 1586 | S21: 3322 | T21: 1585 | U21: 2906 | V21: 1461 | W21: 2288 | X21: 1204 | Y21: 1748 | Z21: 2946 | AA21: 4942 | AB21: 2948 | AC21: 4460 | AD21: 2585 | AE21: 3764 | AF21: 3299 | AG21: 5366 | AH21: =SUM(AH22:AH25) -> 217 | AI21: =SUM(AI22:AI25) -> 841 | CA21: * Debe coincidir el total de EMP según Estado Nutricional con EMP realizado según profesional. | DA21: 1
A22: 03030330 | B22: NORMAL | C22: =SUM(D22:E22) -> 22913 | D22: =SUM(F22+H22+J22+L22+N22+P22+R22+T22+V22+X22+Z22+AB22+AD22+AF22) -> 8882 | E22: =SUM(G22+I22+K22+M22+O22+Q22+S22+U22+W22+Y22+AA22+AC22+AE22+AG22) -> 14031 | F22: =IFERROR(VLOOKUP($A22,Filtro!$A$5:$AW$2591,5,FALSE),0) -> 114 | G22: =IFERROR(VLOOKUP($A22,Filtro!$A$5:$AW$2591,6,FALSE),0) -> 203 | H22: =IFERROR(VLOOKUP($A22,Filtro!$A$5:$AW$2591,7,FALSE),0) -> 762 | I22: =IFERROR(VLOOKUP($A22,Filtro!$A$5:$AW$2591,8,FALSE),0) -> 1301 | J22: =IFERROR(VLOOKUP($A22,Filtro!$A$5:$AW$2591,9,FALSE),0) -> 589 | K22: =IFERROR(VLOOKUP($A22,Filtro!$A$5:$AW$2591,10,FALSE),0) -> 1132 | L22: =IFERROR(VLOOKUP($A22,Filtro!$A$5:$AW$2591,11,FALSE),0) -> 505 | M22: =IFERROR(VLOOKUP($A22,Filtro!$A$5:$AW$2591,12,FALSE),0) -> 1131 | N22: =IFERROR(VLOOKUP($A22,Filtro!$A$5:$AW$2591,13,FALSE),0) -> 376 | O22: =IFERROR(VLOOKUP($A22,Filtro!$A$5:$AW$2591,14,FALSE),0) -> 904 | P22: =IFERROR(VLOOKUP($A22,Filtro!$A$5:$AW$2591,15,FALSE),0) -> 348 | Q22: =IFERROR(VLOOKUP($A22,Filtro!$A$5:$AW$2591,16,FALSE),0) -> 774 | R22: =IFERROR(VLOOKUP($A22,Filtro!$A$5:$AW$2591,17,FALSE),0) -> 323 | S22: =IFERROR(VLOOKUP($A22,Filtro!$A$5:$AW$2591,18,FALSE),0) -> 697 | T22: =IFERROR(VLOOKUP($A22,Filtro!$A$5:$AW$2591,19,FALSE),0) -> 295 | U22: =IFERROR(VLOOKUP($A22,Filtro!$A$5:$AW$2591,20,FALSE),0) -> 532 | V22: =IFERROR(VLOOKUP($A22,Filtro!$A$5:$AW$2591,21,FALSE),0) -> 280 | W22: =IFERROR(VLOOKUP($A22,Filtro!$A$5:$AW$2591,22,FALSE),0) -> 502 | X22: =IFERROR(VLOOKUP($A22,Filtro!$A$5:$AW$2591,23,FALSE),0) -> 266 | Y22: =IFERROR(VLOOKUP($A22,Filtro!$A$5:$AW$2591,24,FALSE),0) -> 421 | Z22: =IFERROR(VLOOKUP($A22,Filtro!$A$5:$AW$2591,25,FALSE),0) -> 1095 | AA22: =IFERROR(VLOOKUP($A22,Filtro!$A$5:$AW$2591,26,FALSE),0) -> 1515 | AB22: =IFERROR(VLOOKUP($A22,Filtro!$A$5:$AW$2591,27,FALSE),0) -> 1168 | AC22: =IFERROR(VLOOKUP($A22,Filtro!$A$5:$AW$2591,28,FALSE),0) -> 1443 | AD22: =IFERROR(VLOOKUP($A22,Filtro!$A$5:$AW$2591,29,FALSE),0) -> 1128 | AE22: =IFERROR(VLOOKUP($A22,Filtro!$A$5:$AW$2591,30,FALSE),0) -> 1313 | AF22: =IFERROR(VLOOKUP($A22,Filtro!$A$5:$AW$2591,31,FALSE),0) -> 1633 | AG22: =IFERROR(VLOOKUP($A22,Filtro!$A$5:$AW$2591,32,FALSE),0) -> 2163 | AH22: =IFERROR(VLOOKUP($A22,Filtro!$A$5:$AW$2591,33,FALSE),0) -> 59 | AI22: =IFERROR(VLOOKUP($A22,Filtro!$A$5:$AW$2591,34,FALSE),0) -> 230
A23: 03030340 | B23: BAJO PESO | C23: =SUM(D23:E23) -> 3447 | D23: =SUM(F23+H23+J23+L23+N23+P23+R23+T23+V23+X23+Z23+AB23+AD23+AF23) -> 1352 | E23: 2095 | F23: =IFERROR(VLOOKUP($A23,Filtro!$A$5:$AW$2591,5,FALSE),0) -> 32 | G23: =IFERROR(VLOOKUP($A23,Filtro!$A$5:$AW$2591,6,FALSE),0) -> 11 | H23: =IFERROR(VLOOKUP($A23,Filtro!$A$5:$AW$2591,7,FALSE),0) -> 43 | I23: =IFERROR(VLOOKUP($A23,Filtro!$A$5:$AW$2591,8,FALSE),0) -> 91 | J23: =IFERROR(VLOOKUP($A23,Filtro!$A$5:$AW$2591,9,FALSE),0) -> 28 | K23: =IFERROR(VLOOKUP($A23,Filtro!$A$5:$AW$2591,10,FALSE),0) -> 42 | L23: =IFERROR(VLOOKUP($A23,Filtro!$A$5:$AW$2591,11,FALSE),0) -> 18 | M23: =IFERROR(VLOOKUP($A23,Filtro!$A$5:$AW$2591,12,FALSE),0) -> 37 | N23: =IFERROR(VLOOKUP($A23,Filtro!$A$5:$AW$2591,13,FALSE),0) -> 9 | O23: =IFERROR(VLOOKUP($A23,Filtro!$A$5:$AW$2591,14,FALSE),0) -> 26 | P23: =IFERROR(VLOOKUP($A23,Filtro!$A$5:$AW$2591,15,FALSE),0) -> 9 | Q23: =IFERROR(VLOOKUP($A23,Filtro!$A$5:$AW$2591,16,FALSE),0) -> 24 | R23: =IFERROR(VLOOKUP($A23,Filtro!$A$5:$AW$2591,17,FALSE),0) -> 11 | S23: =IFERROR(VLOOKUP($A23,Filtro!$A$5:$AW$2591,18,FALSE),0) -> 22 | T23: =IFERROR(VLOOKUP($A23,Filtro!$A$5:$AW$2591,19,FALSE),0) -> 6 | U23: =IFERROR(VLOOKUP($A23,Filtro!$A$5:$AW$2591,20,FALSE),0) -> 20 | V23: =IFERROR(VLOOKUP($A23,Filtro!$A$5:$AW$2591,21,FALSE),0) -> 15 | W23: =IFERROR(VLOOKUP($A23,Filtro!$A$5:$AW$2591,22,FALSE),0) -> 16 | X23: =IFERROR(VLOOKUP($A23,Filtro!$A$5:$AW$2591,23,FALSE),0) -> 14 | Y23: =IFERROR(VLOOKUP($A23,Filtro!$A$5:$AW$2591,24,FALSE),0) -> 23 | Z23: =IFERROR(VLOOKUP($A23,Filtro!$A$5:$AW$2591,25,FALSE),0) -> 170 | AA23: =IFERROR(VLOOKUP($A23,Filtro!$A$5:$AW$2591,26,FALSE),0) -> 267 | AB23: =IFERROR(VLOOKUP($A23,Filtro!$A$5:$AW$2591,27,FALSE),0) -> 242 | AC23: =IFERROR(VLOOKUP($A23,Filtro!$A$5:$AW$2591,28,FALSE),0) -> 308 | AD23: =IFERROR(VLOOKUP($A23,Filtro!$A$5:$AW$2591,29,FALSE),0) -> 243 | AE23: =IFERROR(VLOOKUP($A23,Filtro!$A$5:$AW$2591,30,FALSE),0) -> 335 | AF23: =IFERROR(VLOOKUP($A23,Filtro!$A$5:$AW$2591,31,FALSE),0) -> 512 | AG23: =IFERROR(VLOOKUP($A23,Filtro!$A$5:$AW$2591,32,FALSE),0) -> 873 | AH23: =IFERROR(VLOOKUP($A23,Filtro!$A$5:$AW$2591,33,FALSE),0) -> 15 | AI23: =IFERROR(VLOOKUP($A23,Filtro!$A$5:$AW$2591,34,FALSE),0) -> 53
A24: 03030120 | B24: SOBREPESO | C24: =SUM(D24:E24) -> 26560 | D24: 10083 | E24: 16477 | F24: =IFERROR(VLOOKUP($A24,Filtro!$A$5:$AW$2591,5,FALSE),0) -> 53 | G24: =IFERROR(VLOOKUP($A24,Filtro!$A$5:$AW$2591,6,FALSE),0) -> 119 | H24: =IFERROR(VLOOKUP($A24,Filtro!$A$5:$AW$2591,7,FALSE),0) -> 559 | I24: =IFERROR(VLOOKUP($A24,Filtro!$A$5:$AW$2591,8,FALSE),0) -> 1103 | J24: =IFERROR(VLOOKUP($A24,Filtro!$A$5:$AW$2591,9,FALSE),0) -> 714 | K24: =IFERROR(VLOOKUP($A24,Filtro!$A$5:$AW$2591,10,FALSE),0) -> 1336 | L24: =IFERROR(VLOOKUP($A24,Filtro!$A$5:$AW$2591,11,FALSE),0) -> 841 | M24: =IFERROR(VLOOKUP($A24,Filtro!$A$5:$AW$2591,12,FALSE),0) -> 1532 | N24: =IFERROR(VLOOKUP($A24,Filtro!$A$5:$AW$2591,13,FALSE),0) -> 795 | O24: =IFERROR(VLOOKUP($A24,Filtro!$A$5:$AW$2591,14,FALSE),0) -> 1531 | P24: =IFERROR(VLOOKUP($A24,Filtro!$A$5:$AW$2591,15,FALSE),0) -> 782 | Q24: =IFERROR(VLOOKUP($A24,Filtro!$A$5:$AW$2591,16,FALSE),0) -> 1380 | R24: =IFERROR(VLOOKUP($A24,Filtro!$A$5:$AW$2591,17,FALSE),0) -> 713 | S24: =IFERROR(VLOOKUP($A24,Filtro!$A$5:$AW$2591,18,FALSE),0) -> 1364 | T24: =IFERROR(VLOOKUP($A24,Filtro!$A$5:$AW$2591,19,FALSE),0) -> 750 | U24: =IFERROR(VLOOKUP($A24,Filtro!$A$5:$AW$2591,20,FALSE),0) -> 1222 | V24: =IFERROR(VLOOKUP($A24,Filtro!$A$5:$AW$2591,21,FALSE),0) -> 701 | W24: =IFERROR(VLOOKUP($A24,Filtro!$A$5:$AW$2591,22,FALSE),0) -> 948 | X24: =IFERROR(VLOOKUP($A24,Filtro!$A$5:$AW$2591,23,FALSE),0) -> 586 | Y24: =IFERROR(VLOOKUP($A24,Filtro!$A$5:$AW$2591,24,FALSE),0) -> 669 | Z24: =IFERROR(VLOOKUP($A24,Filtro!$A$5:$AW$2591,25,FALSE),0) -> 1012 | AA24: =IFERROR(VLOOKUP($A24,Filtro!$A$5:$AW$2591,26,FALSE),0) -> 1485 | AB24: =IFERROR(VLOOKUP($A24,Filtro!$A$5:$AW$2591,27,FALSE),0) -> 984 | AC24: =IFERROR(VLOOKUP($A24,Filtro!$A$5:$AW$2591,28,FALSE),0) -> 1342 | AD24: =IFERROR(VLOOKUP($A24,Filtro!$A$5:$AW$2591,29,FALSE),0) -> 808 | AE24: =IFERROR(VLOOKUP($A24,Filtro!$A$5:$AW$2591,30,FALSE),0) -> 1153 | AF24: =IFERROR(VLOOKUP($A24,Filtro!$A$5:$AW$2591,31,FALSE),0) -> 785 | AG24: =IFERROR(VLOOKUP($A24,Filtro!$A$5:$AW$2591,32,FALSE),0) -> 1293 | AH24: =IFERROR(VLOOKUP($A24,Filtro!$A$5:$AW$2591,33,FALSE),0) -> 70 | AI24: =IFERROR(VLOOKUP($A24,Filtro!$A$5:$AW$2591,34,FALSE),0) -> 305
A25: 03030130 | B25: OBESOS | C25: =SUM(D25:E25) -> 22412 | D25: 6436 | E25: 15976 | F25: =IFERROR(VLOOKUP($A25,Filtro!$A$5:$AW$2591,5,FALSE),0) -> 42 | G25: =IFERROR(VLOOKUP($A25,Filtro!$A$5:$AW$2591,6,FALSE),0) -> 116 | H25: =IFERROR(VLOOKUP($A25,Filtro!$A$5:$AW$2591,7,FALSE),0) -> 351 | I25: =IFERROR(VLOOKUP($A25,Filtro!$A$5:$AW$2591,8,FALSE),0) -> 1040 | J25: =IFERROR(VLOOKUP($A25,Filtro!$A$5:$AW$2591,9,FALSE),0) -> 490 | K25: =IFERROR(VLOOKUP($A25,Filtro!$A$5:$AW$2591,10,FALSE),0) -> 1387 | L25: =IFERROR(VLOOKUP($A25,Filtro!$A$5:$AW$2591,11,FALSE),0) -> 574 | M25: =IFERROR(VLOOKUP($A25,Filtro!$A$5:$AW$2591,12,FALSE),0) -> 1650 | N25: =IFERROR(VLOOKUP($A25,Filtro!$A$5:$AW$2591,13,FALSE),0) -> 539 | O25: =IFERROR(VLOOKUP($A25,Filtro!$A$5:$AW$2591,14,FALSE),0) -> 1519 | P25: =IFERROR(VLOOKUP($A25,Filtro!$A$5:$AW$2591,15,FALSE),0) -> 566 | Q25: =IFERROR(VLOOKUP($A25,Filtro!$A$5:$AW$2591,16,FALSE),0) -> 1394 | R25: =IFERROR(VLOOKUP($A25,Filtro!$A$5:$AW$2591,17,FALSE),0) -> 539 | S25: =IFERROR(VLOOKUP($A25,Filtro!$A$5:$AW$2591,18,FALSE),0) -> 1239 | T25: =IFERROR(VLOOKUP($A25,Filtro!$A$5:$AW$2591,19,FALSE),0) -> 534 | U25: =IFERROR(VLOOKUP($A25,Filtro!$A$5:$AW$2591,20,FALSE),0) -> 1132 | V25: =IFERROR(VLOOKUP($A25,Filtro!$A$5:$AW$2591,21,FALSE),0) -> 465 | W25: =IFERROR(VLOOKUP($A25,Filtro!$A$5:$AW$2591,22,FALSE),0) -> 822 | X25: =IFERROR(VLOOKUP($A25,Filtro!$A$5:$AW$2591,23,FALSE),0) -> 338 | Y25: =IFERROR(VLOOKUP($A25,Filtro!$A$5:$AW$2591,24,FALSE),0) -> 635 | Z25: =IFERROR(VLOOKUP($A25,Filtro!$A$5:$AW$2591,25,FALSE),0) -> 669 | AA25: =IFERROR(VLOOKUP($A25,Filtro!$A$5:$AW$2591,26,FALSE),0) -> 1675 | AB25: =IFERROR(VLOOKUP($A25,Filtro!$A$5:$AW$2591,27,FALSE),0) -> 554 | AC25: =IFERROR(VLOOKUP($A25,Filtro!$A$5:$AW$2591,28,FALSE),0) -> 1367 | AD25: =IFERROR(VLOOKUP($A25,Filtro!$A$5:$AW$2591,29,FALSE),0) -> 406 | AE25: =IFERROR(VLOOKUP($A25,Filtro!$A$5:$AW$2591,30,FALSE),0) -> 963 | AF25: =IFERROR(VLOOKUP($A25,Filtro!$A$5:$AW$2591,31,FALSE),0) -> 369 | AG25: =IFERROR(VLOOKUP($A25,Filtro!$A$5:$AW$2591,32,FALSE),0) -> 1037 | AH25: =IFERROR(VLOOKUP($A25,Filtro!$A$5:$AW$2591,33,FALSE),0) -> 73 | AI25: =IFERROR(VLOOKUP($A25,Filtro!$A$5:$AW$2591,34,FALSE),0) -> 253
B26: SECCIÓN C: RESULTADOS DE EMP SEGÚN ESTADO DE SALUD
B27: ESTADO DE SALUD | C27: TOTAL | F27: 15 a 19 años | H27: 20 a 24 años | J27: 25 a 29 años | L27: 30 a 34 años | N27: 35 a 39 años | P27: 40 a 44 años | R27: 45 a 49 años | T27: 50 a 54 años | V27: 55 a 59 años | X27: 60 a 64 años | Z27: 65 a 69 años | AB27: 70 a 74 años | AD27: 75 a 79 años | AF27: 80 y más años | AH27: Pueblos Originarios | AI27: Migrantes
C28: Ambos Sexos | D28: Hombres | E28: Mujeres | F28: Hombres | G28: Mujeres | H28: Hombres | I28: Mujeres | J28: Hombres | K28: Mujeres | L28: Hombres | M28: Mujeres | N28: Hombres | O28: Mujeres | P28: Hombres | Q28: Mujeres | R28: Hombres | S28: Mujeres | T28: Hombres | U28: Mujeres | V28: Hombres | W28: Mujeres | X28: Hombres | Y28: Mujeres | Z28: Hombres | AA28: Mujeres | AB28: Hombres | AC28: Mujeres | AD28: Hombres | AE28: Mujeres | AF28: Hombres | AG28: Mujeres
A29: 02200010 | B29: TABAQUISMO | C29: =SUM(D29:E29) -> 12791 | D29: =SUM(F29+H29+J29+L29+N29+P29+R29+T29+V29+X29+Z29+AB29+AD29+AF29) -> 4869 | E29: =SUM(G29+I29+K29+M29+O29+Q29+S29+U29+W29+Y29+AA29+AC29+AE29+AG29) -> 7922 | F29: =IFERROR(VLOOKUP($A29,Filtro!$A$5:$AW$2591,5,FALSE),0) -> 17 | G29: =IFERROR(VLOOKUP($A29,Filtro!$A$5:$AW$2591,6,FALSE),0) -> 33 | H29: =IFERROR(VLOOKUP($A29,Filtro!$A$5:$AW$2591,7,FALSE),0) -> 466 | I29: =IFERROR(VLOOKUP($A29,Filtro!$A$5:$AW$2591,8,FALSE),0) -> 787 | J29: =IFERROR(VLOOKUP($A29,Filtro!$A$5:$AW$2591,9,FALSE),0) -> 570 | K29: =IFERROR(VLOOKUP($A29,Filtro!$A$5:$AW$2591,10,FALSE),0) -> 903 | L29: =IFERROR(VLOOKUP($A29,Filtro!$A$5:$AW$2591,11,FALSE),0) -> 557 | M29: =IFERROR(VLOOKUP($A29,Filtro!$A$5:$AW$2591,12,FALSE),0) -> 1100 | N29: =IFERROR(VLOOKUP($A29,Filtro!$A$5:$AW$2591,13,FALSE),0) -> 535 | O29: =IFERROR(VLOOKUP($A29,Filtro!$A$5:$AW$2591,14,FALSE),0) -> 1027 | P29: =IFERROR(VLOOKUP($A29,Filtro!$A$5:$AW$2591,15,FALSE),0) -> 563 | Q29: =IFERROR(VLOOKUP($A29,Filtro!$A$5:$AW$2591,16,FALSE),0) -> 947 | R29: =IFERROR(VLOOKUP($A29,Filtro!$A$5:$AW$2591,17,FALSE),0) -> 455 | S29: =IFERROR(VLOOKUP($A29,Filtro!$A$5:$AW$2591,18,FALSE),0) -> 853 | T29: =IFERROR(VLOOKUP($A29,Filtro!$A$5:$AW$2591,19,FALSE),0) -> 466 | U29: =IFERROR(VLOOKUP($A29,Filtro!$A$5:$AW$2591,20,FALSE),0) -> 712 | V29: =IFERROR(VLOOKUP($A29,Filtro!$A$5:$AW$2591,21,FALSE),0) -> 389 | W29: =IFERROR(VLOOKUP($A29,Filtro!$A$5:$AW$2591,22,FALSE),0) -> 466 | X29: =IFERROR(VLOOKUP($A29,Filtro!$A$5:$AW$2591,23,FALSE),0) -> 252 | Y29: =IFERROR(VLOOKUP($A29,Filtro!$A$5:$AW$2591,24,FALSE),0) -> 329 | Z29: =IFERROR(VLOOKUP($A29,Filtro!$A$5:$AW$2591,25,FALSE),0) -> 217 | AA29: =IFERROR(VLOOKUP($A29,Filtro!$A$5:$AW$2591,26,FALSE),0) -> 328 | AB29: =IFERROR(VLOOKUP($A29,Filtro!$A$5:$AW$2591,27,FALSE),0) -> 178 | AC29: =IFERROR(VLOOKUP($A29,Filtro!$A$5:$AW$2591,28,FALSE),0) -> 221 | AD29: =IFERROR(VLOOKUP($A29,Filtro!$A$5:$AW$2591,29,FALSE),0) -> 120 | AE29: =IFERROR(VLOOKUP($A29,Filtro!$A$5:$AW$2591,30,FALSE),0) -> 114 | AF29: =IFERROR(VLOOKUP($A29,Filtro!$A$5:$AW$2591,31,FALSE),0) -> 84 | AG29: =IFERROR(VLOOKUP($A29,Filtro!$A$5:$AW$2591,32,FALSE),0) -> 102 | AH29: =IFERROR(VLOOKUP($A29,Filtro!$A$5:$AW$2591,33,FALSE),0) -> 29 | AI29: =IFERROR(VLOOKUP($A29,Filtro!$A$5:$AW$2591,34,FALSE),0) -> 68
A30: 02200020 | B30: PRESIÓN ARTERIAL ELEVADA (= >140/90 mmHg) | C30: =SUM(D30:E30) -> 11887 | D30: =SUM(F30+H30+J30+L30+N30+P30+R30+T30+V30+X30+Z30+AB30+AD30+AF30) -> 5182 | E30: =SUM(G30+I30+K30+M30+O30+Q30+S30+U30+W30+Y30+AA30+AC30+AE30+AG30) -> 6705 | F30: =IFERROR(VLOOKUP($A30,Filtro!$A$5:$AW$2591,5,FALSE),0) -> 23 | G30: =IFERROR(VLOOKUP($A30,Filtro!$A$5:$AW$2591,6,FALSE),0) -> 27 | H30: =IFERROR(VLOOKUP($A30,Filtro!$A$5:$AW$2591,7,FALSE),0) -> 157 | I30: =IFERROR(VLOOKUP($A30,Filtro!$A$5:$AW$2591,8,FALSE),0) -> 152 | J30: =IFERROR(VLOOKUP($A30,Filtro!$A$5:$AW$2591,9,FALSE),0) -> 185 | K30: =IFERROR(VLOOKUP($A30,Filtro!$A$5:$AW$2591,10,FALSE),0) -> 166 | L30: =IFERROR(VLOOKUP($A30,Filtro!$A$5:$AW$2591,11,FALSE),0) -> 211 | M30: =IFERROR(VLOOKUP($A30,Filtro!$A$5:$AW$2591,12,FALSE),0) -> 248 | N30: =IFERROR(VLOOKUP($A30,Filtro!$A$5:$AW$2591,13,FALSE),0) -> 241 | O30: =IFERROR(VLOOKUP($A30,Filtro!$A$5:$AW$2591,14,FALSE),0) -> 315 | P30: =IFERROR(VLOOKUP($A30,Filtro!$A$5:$AW$2591,15,FALSE),0) -> 287 | Q30: =IFERROR(VLOOKUP($A30,Filtro!$A$5:$AW$2591,16,FALSE),0) -> 384 | R30: =IFERROR(VLOOKUP($A30,Filtro!$A$5:$AW$2591,17,FALSE),0) -> 337 | S30: =IFERROR(VLOOKUP($A30,Filtro!$A$5:$AW$2591,18,FALSE),0) -> 449 | T30: =IFERROR(VLOOKUP($A30,Filtro!$A$5:$AW$2591,19,FALSE),0) -> 411 | U30: =IFERROR(VLOOKUP($A30,Filtro!$A$5:$AW$2591,20,FALSE),0) -> 509 | V30: =IFERROR(VLOOKUP($A30,Filtro!$A$5:$AW$2591,21,FALSE),0) -> 422 | W30: =IFERROR(VLOOKUP($A30,Filtro!$A$5:$AW$2591,22,FALSE),0) -> 382 | X30: =IFERROR(VLOOKUP($A30,Filtro!$A$5:$AW$2591,23,FALSE),0) -> 334 | Y30: =IFERROR(VLOOKUP($A30,Filtro!$A$5:$AW$2591,24,FALSE),0) -> 354 | Z30: =IFERROR(VLOOKUP($A30,Filtro!$A$5:$AW$2591,25,FALSE),0) -> 684 | AA30: =IFERROR(VLOOKUP($A30,Filtro!$A$5:$AW$2591,26,FALSE),0) -> 918 | AB30: =IFERROR(VLOOKUP($A30,Filtro!$A$5:$AW$2591,27,FALSE),0) -> 660 | AC30: =IFERROR(VLOOKUP($A30,Filtro!$A$5:$AW$2591,28,FALSE),0) -> 900 | AD30: =IFERROR(VLOOKUP($A30,Filtro!$A$5:$AW$2591,29,FALSE),0) -> 594 | AE30: =IFERROR(VLOOKUP($A30,Filtro!$A$5:$AW$2591,30,FALSE),0) -> 809 | AF30: =IFERROR(VLOOKUP($A30,Filtro!$A$5:$AW$2591,31,FALSE),0) -> 636 | AG30: =IFERROR(VLOOKUP($A30,Filtro!$A$5:$AW$2591,32,FALSE),0) -> 1092 | AH30: =IFERROR(VLOOKUP($A30,Filtro!$A$5:$AW$2591,33,FALSE),0) -> 39 | AI30: =IFERROR(VLOOKUP($A30,Filtro!$A$5:$AW$2591,34,FALSE),0) -> 78
B31: SECCIÓN D: RESULTADOS DE EMP SEGÚN ESTADO DE SALUD (EXÁMENES DE LABORATORIO)
B32: ESTADO DE SALUD | C32: TOTAL | F32: 15 a 19 años | H32: 20 a 24 años | J32: 25 a 29 años | L32: 30 a 34 años | N32: 35 a 39 años | P32: 40 a 44 años | R32: 45 a 49 años | T32: 50 a 54 años | V32: 55 a 59 años | X32: 60 a 64 años | Z32: 65 a 69 años | AB32: 70 a 74 años | AD32: 75 a 79 años | AF32: 80 y más años | AH32: Pueblos Originarios | AI32: Migrantes
C33: Ambos Sexos | D33: Hombres | E33: Mujeres | F33: Hombres | G33: Mujeres | H33: Hombres | I33: Mujeres | J33: Hombres | K33: Mujeres | L33: Hombres | M33: Mujeres | N33: Hombres | O33: Mujeres | P33: Hombres | Q33: Mujeres | R33: Hombres | S33: Mujeres | T33: Hombres | U33: Mujeres | V33: Hombres | W33: Mujeres | X33: Hombres | Y33: Mujeres | Z33: Hombres | AA33: Mujeres | AB33: Hombres | AC33: Mujeres | AD33: Hombres | AE33: Mujeres | AF33: Hombres | AG33: Mujeres
A34: 02200030 | B34: GLICEMIA ALTERADA (= > a 100 mg/dl) | C34: =SUM(D34:E34) -> 9982 | D34: =SUM(F34+H34+J34+L34+N34+P34+R34+T34+V34+X34+Z34+AB34+AD34+AF34) -> 3458 | E34: =SUM(G34+I34+K34+M34+O34+Q34+S34+U34+W34+Y34+AA34+AC34+AE34+AG34) -> 6524 | F34: =IFERROR(VLOOKUP($A34,Filtro!$A$5:$AW$2591,5,FALSE),0) -> 11 | G34: =IFERROR(VLOOKUP($A34,Filtro!$A$5:$AW$2591,6,FALSE),0) -> 13 | H34: =IFERROR(VLOOKUP($A34,Filtro!$A$5:$AW$2591,7,FALSE),0) -> 170 | I34: =IFERROR(VLOOKUP($A34,Filtro!$A$5:$AW$2591,8,FALSE),0) -> 435 | J34: =IFERROR(VLOOKUP($A34,Filtro!$A$5:$AW$2591,9,FALSE),0) -> 193 | K34: =IFERROR(VLOOKUP($A34,Filtro!$A$5:$AW$2591,10,FALSE),0) -> 500 | L34: =IFERROR(VLOOKUP($A34,Filtro!$A$5:$AW$2591,11,FALSE),0) -> 252 | M34: =IFERROR(VLOOKUP($A34,Filtro!$A$5:$AW$2591,12,FALSE),0) -> 607 | N34: =IFERROR(VLOOKUP($A34,Filtro!$A$5:$AW$2591,13,FALSE),0) -> 279 | O34: =IFERROR(VLOOKUP($A34,Filtro!$A$5:$AW$2591,14,FALSE),0) -> 653 | P34: =IFERROR(VLOOKUP($A34,Filtro!$A$5:$AW$2591,15,FALSE),0) -> 279 | Q34: =IFERROR(VLOOKUP($A34,Filtro!$A$5:$AW$2591,16,FALSE),0) -> 574 | R34: =IFERROR(VLOOKUP($A34,Filtro!$A$5:$AW$2591,17,FALSE),0) -> 280 | S34: =IFERROR(VLOOKUP($A34,Filtro!$A$5:$AW$2591,18,FALSE),0) -> 587 | T34: =IFERROR(VLOOKUP($A34,Filtro!$A$5:$AW$2591,19,FALSE),0) -> 320 | U34: =IFERROR(VLOOKUP($A34,Filtro!$A$5:$AW$2591,20,FALSE),0) -> 534 | V34: =IFERROR(VLOOKUP($A34,Filtro!$A$5:$AW$2591,21,FALSE),0) -> 299 | W34: =IFERROR(VLOOKUP($A34,Filtro!$A$5:$AW$2591,22,FALSE),0) -> 464 | X34: =IFERROR(VLOOKUP($A34,Filtro!$A$5:$AW$2591,23,FALSE),0) -> 237 | Y34: =IFERROR(VLOOKUP($A34,Filtro!$A$5:$AW$2591,24,FALSE),0) -> 364 | Z34: =IFERROR(VLOOKUP($A34,Filtro!$A$5:$AW$2591,25,FALSE),0) -> 344 | AA34: =IFERROR(VLOOKUP($A34,Filtro!$A$5:$AW$2591,26,FALSE),0) -> 554 | AB34: =IFERROR(VLOOKUP($A34,Filtro!$A$5:$AW$2591,27,FALSE),0) -> 302 | AC34: =IFERROR(VLOOKUP($A34,Filtro!$A$5:$AW$2591,28,FALSE),0) -> 444 | AD34: =IFERROR(VLOOKUP($A34,Filtro!$A$5:$AW$2591,29,FALSE),0) -> 233 | AE34: =IFERROR(VLOOKUP($A34,Filtro!$A$5:$AW$2591,30,FALSE),0) -> 375 | AF34: =IFERROR(VLOOKUP($A34,Filtro!$A$5:$AW$2591,31,FALSE),0) -> 259 | AG34: =IFERROR(VLOOKUP($A34,Filtro!$A$5:$AW$2591,32,FALSE),0) -> 420 | AH34: =IFERROR(VLOOKUP($A34,Filtro!$A$5:$AW$2591,33,FALSE),0) -> 41 | AI34: =IFERROR(VLOOKUP($A34,Filtro!$A$5:$AW$2591,34,FALSE),0) -> 146
A35: 02200040 | B35: COLESTEROL ELEVADO (= > 200 mg/dl) | C35: =SUM(D35:E35) -> 3773 | D35: =SUM(F35+H35+J35+L35+N35+P35+R35+T35+V35+X35+Z35+AB35+AD35+AF35) -> 1244 | E35: =SUM(G35+I35+K35+M35+O35+Q35+S35+U35+W35+Y35+AA35+AC35+AE35+AG35) -> 2529 | F35: =IFERROR(VLOOKUP($A35,Filtro!$A$5:$AW$2591,5,FALSE),0) -> 3 | G35: =IFERROR(VLOOKUP($A35,Filtro!$A$5:$AW$2591,6,FALSE),0) -> 3 | H35: =IFERROR(VLOOKUP($A35,Filtro!$A$5:$AW$2591,7,FALSE),0) -> 21 | I35: =IFERROR(VLOOKUP($A35,Filtro!$A$5:$AW$2591,8,FALSE),0) -> 45 | J35: =IFERROR(VLOOKUP($A35,Filtro!$A$5:$AW$2591,9,FALSE),0) -> 42 | K35: =IFERROR(VLOOKUP($A35,Filtro!$A$5:$AW$2591,10,FALSE),0) -> 80 | L35: =IFERROR(VLOOKUP($A35,Filtro!$A$5:$AW$2591,11,FALSE),0) -> 59 | M35: =IFERROR(VLOOKUP($A35,Filtro!$A$5:$AW$2591,12,FALSE),0) -> 115 | N35: =IFERROR(VLOOKUP($A35,Filtro!$A$5:$AW$2591,13,FALSE),0) -> 55 | O35: =IFERROR(VLOOKUP($A35,Filtro!$A$5:$AW$2591,14,FALSE),0) -> 132 | P35: =IFERROR(VLOOKUP($A35,Filtro!$A$5:$AW$2591,15,FALSE),0) -> 99 | Q35: =IFERROR(VLOOKUP($A35,Filtro!$A$5:$AW$2591,16,FALSE),0) -> 182 | R35: =IFERROR(VLOOKUP($A35,Filtro!$A$5:$AW$2591,17,FALSE),0) -> 111 | S35: =IFERROR(VLOOKUP($A35,Filtro!$A$5:$AW$2591,18,FALSE),0) -> 222 | T35: =IFERROR(VLOOKUP($A35,Filtro!$A$5:$AW$2591,19,FALSE),0) -> 95 | U35: =IFERROR(VLOOKUP($A35,Filtro!$A$5:$AW$2591,20,FALSE),0) -> 223 | V35: =IFERROR(VLOOKUP($A35,Filtro!$A$5:$AW$2591,21,FALSE),0) -> 116 | W35: =IFERROR(VLOOKUP($A35,Filtro!$A$5:$AW$2591,22,FALSE),0) -> 194 | X35: =IFERROR(VLOOKUP($A35,Filtro!$A$5:$AW$2591,23,FALSE),0) -> 82 | Y35: =IFERROR(VLOOKUP($A35,Filtro!$A$5:$AW$2591,24,FALSE),0) -> 159 | Z35: =IFERROR(VLOOKUP($A35,Filtro!$A$5:$AW$2591,25,FALSE),0) -> 176 | AA35: =IFERROR(VLOOKUP($A35,Filtro!$A$5:$AW$2591,26,FALSE),0) -> 381 | AB35: =IFERROR(VLOOKUP($A35,Filtro!$A$5:$AW$2591,27,FALSE),0) -> 152 | AC35: =IFERROR(VLOOKUP($A35,Filtro!$A$5:$AW$2591,28,FALSE),0) -> 314 | AD35: =IFERROR(VLOOKUP($A35,Filtro!$A$5:$AW$2591,29,FALSE),0) -> 127 | AE35: =IFERROR(VLOOKUP($A35,Filtro!$A$5:$AW$2591,30,FALSE),0) -> 226 | AF35: =IFERROR(VLOOKUP($A35,Filtro!$A$5:$AW$2591,31,FALSE),0) -> 106 | AG35: =IFERROR(VLOOKUP($A35,Filtro!$A$5:$AW$2591,32,FALSE),0) -> 253 | AH35: =IFERROR(VLOOKUP($A35,Filtro!$A$5:$AW$2591,33,FALSE),0) -> 19 | AI35: =IFERROR(VLOOKUP($A35,Filtro!$A$5:$AW$2591,34,FALSE),0) -> 22
B195: =SUM(C12:C17,C21:C25,C29:C30,C34:C35) -> 264687 | C195: =SUM(DB7:EA52) -> 0

Sheet A03
B1: SERVICIO DE SALUD
B2: =CONCATENATE("COMUNA: ",NOMBRE!B2," - ","( ",NOMBRE!C2,NOMBRE!D2,NOMBRE!E2,NOMBRE!F2,NOMBRE!G2," )") -> COMUNA: - ( )
B3: =CONCATENATE("ESTABLECIMIENTO/ESTRATEGIA: ",NOMBRE!B3," - ","( ",NOMBRE!C3,NOMBRE!D3,NOMBRE!E3,NOMBRE!F3,NOMBRE!G3,NOMBRE!H3," )") -> ESTABLECIMIENTO/ESTRATEGIA: - ( )
B4: =CONCATENATE("MES: ",NOMBRE!B6," - ","( ",NOMBRE!C6,NOMBRE!D6," )") -> MES: - ( )
B5: =CONCATENATE("AÑO: ",NOMBRE!B7) -> AÑO: 2023
B6: REM-A03. APLICACIÓN Y RESULTADOS DE ESCALAS DE EVALUACIÓN
B7: SECCIÓN A: APLICACIÓN DE INSTRUMENTO Y RESULTADO EN EL NIÑO (A)
B8: SECCIÓN A.1: APLICACIÓN Y RESULTADOS DE PAUTA BREVE
B9: EVALUACIONES POR EDAD DEL NIÑO | D9: TOTAL | G9: GRUPO DE EDAD
G10: Menor de 1 mes | I10: 1 mes | K10: 2 meses | M10: 3 meses | O10: 4 meses | Q10: 5 meses | S10: 6 meses | U10: 7 - 11 meses | W10: 12 - 17 meses | Y10: 18 - 24 meses
D11: Ambos Sexos | E11: Hombres | F11: Mujeres | G11: Hombres | H11: Mujeres | I11: Hombres | J11: Mujeres | K11: Hombres | L11: Mujeres | M11: Hombres | N11: Mujeres | O11: Hombres | P11: Mujeres | Q11: Hombres | R11: Mujeres | S11: Hombres | T11: Mujeres | U11: Hombres | V11: Mujeres | W11: Hombres | X11: Mujeres | Y11: Hombres | Z11: Mujeres
A12: 02021730 | B12: APLICACIÓN PAUTA BREVE | D12: =SUM(E12+F12) -> 10986 | E12: =SUM(G12+I12+K12+M12+O12+Q12+S12+U12+W12+Y12) -> 5465 | F12: =SUM(H12+J12+L12+N12+P12+R12+T12+V12+X12+Z12) -> 5521 | G12: =IFERROR(VLOOKUP($A12,Filtro!$A$5:$AW$2591,5,FALSE),0) -> 3 | H12: =IFERROR(VLOOKUP($A12,Filtro!$A$5:$AW$2591,6,FALSE),0) -> 14 | I12: =IFERROR(VLOOKUP($A12,Filtro!$A$5:$AW$2591,7,FALSE),0) -> 63 | J12: =IFERROR(VLOOKUP($A12,Filtro!$A$5:$AW$2591,8,FALSE),0) -> 60 | K12: =IFERROR(VLOOKUP($A12,Filtro!$A$5:$AW$2591,9,FALSE),0) -> 4 | L12: =IFERROR(VLOOKUP($A12,Filtro!$A$5:$AW$2591,10,FALSE),0) -> 10 | M12: =IFERROR(VLOOKUP($A12,Filtro!$A$5:$AW$2591,11,FALSE),0) -> 73 | N12: =IFERROR(VLOOKUP($A12,Filtro!$A$5:$AW$2591,12,FALSE),0) -> 99 | O12: =IFERROR(VLOOKUP($A12,Filtro!$A$5:$AW$2591,13,FALSE),0) -> 1834 | P12: =IFERROR(VLOOKUP($A12,Filtro!$A$5:$AW$2591,14,FALSE),0) -> 1914 | Q12: =IFERROR(VLOOKUP($A12,Filtro!$A$5:$AW$2591,15,FALSE),0) -> 75 | R12: =IFERROR(VLOOKUP($A12,Filtro!$A$5:$AW$2591,16,FALSE),0) -> 77 | S12: =IFERROR(VLOOKUP($A12,Filtro!$A$5:$AW$2591,17,FALSE),0) -> 14 | T12: =IFERROR(VLOOKUP($A12,Filtro!$A$5:$AW$2591,18,FALSE),0) -> 18 | U12: =IFERROR(VLOOKUP($A12,Filtro!$A$5:$AW$2591,19,FALSE),0) -> 65 | V12: =IFERROR(VLOOKUP($A12,Filtro!$A$5:$AW$2591,20,FALSE),0) -> 59 | W12: =IFERROR(VLOOKUP($A12,Filtro!$A$5:$AW$2591,21,FALSE),0) -> 1843 | X12: =IFERROR(VLOOKUP($A12,Filtro!$A$5:$AW$2591,22,FALSE),0) -> 1751 | Y12: =IFERROR(VLOOKUP($A12,Filtro!$A$5:$AW$2591,23,FALSE),0) -> 1491 | Z12: =IFERROR(VLOOKUP($A12,Filtro!$A$5:$AW$2591,24,FALSE),0) -> 1519
A13: 03500020 | B13: RESULTADOS | C13: NORMAL | D13: =SUM(E13+F13) -> 9777 | E13: 4739 | F13: =SUM(H13+J13+L13+N13+P13+R13+T13+V13+X13+Z13) -> 5038 | G13: =IFERROR(VLOOKUP($A13,Filtro!$A$5:$AW$2591,5,FALSE),0) -> 3 | H13: =IFERROR(VLOOKUP($A13,Filtro!$A$5:$AW$2591,6,FALSE),0) -> 13 | I13: =IFERROR(VLOOKUP($A13,Filtro!$A$5:$AW$2591,7,FALSE),0) -> 63 | J13: =IFERROR(VLOOKUP($A13,Filtro!$A$5:$AW$2591,8,FALSE),0) -> 60 | K13: =IFERROR(VLOOKUP($A13,Filtro!$A$5:$AW$2591,9,FALSE),0) -> 4 | L13: =IFERROR(VLOOKUP($A13,Filtro!$A$5:$AW$2591,10,FALSE),0) -> 10 | M13: =IFERROR(VLOOKUP($A13,Filtro!$A$5:$AW$2591,11,FALSE),0) -> 71 | N13: =IFERROR(VLOOKUP($A13,Filtro!$A$5:$AW$2591,12,FALSE),0) -> 98 | O13: =IFERROR(VLOOKUP($A13,Filtro!$A$5:$AW$2591,13,FALSE),0) -> 1749 | P13: =IFERROR(VLOOKUP($A13,Filtro!$A$5:$AW$2591,14,FALSE),0) -> 1845 | Q13: =IFERROR(VLOOKUP($A13,Filtro!$A$5:$AW$2591,15,FALSE),0) -> 70 | R13: =IFERROR(VLOOKUP($A13,Filtro!$A$5:$AW$2591,16,FALSE),0) -> 73 | S13: =IFERROR(VLOOKUP($A13,Filtro!$A$5:$AW$2591,17,FALSE),0) -> 13 | T13: =IFERROR(VLOOKUP($A13,Filtro!$A$5:$AW$2591,18,FALSE),0) -> 14 | U13: =IFERROR(VLOOKUP($A13,Filtro!$A$5:$AW$2591,19,FALSE),0) -> 59 | V13: =IFERROR(VLOOKUP($A13,Filtro!$A$5:$AW$2591,20,FALSE),0) -> 53 | W13: =IFERROR(VLOOKUP($A13,Filtro!$A$5:$AW$2591,21,FALSE),0) -> 1608 | X13: =IFERROR(VLOOKUP($A13,Filtro!$A$5:$AW$2591,22,FALSE),0) -> 1600 | Y13: =IFERROR(VLOOKUP($A13,Filtro!$A$5:$AW$2591,23,FALSE),0) -> 1099 | Z13: =IFERROR(VLOOKUP($A13,Filtro!$A$5:$AW$2591,24,FALSE),0) -> 1272 | CF13: * Aplicacion de Pauta Breve en Hombres Menor de 1 mes debe ser igual a la suma de resultados. | CO13: * Aplicacion de Pauta Breve en Mujeres de 4 meses debe ser igual a la suma de resultados. | CP13: * Aplicacion de Pauta Breve en Hombres de 5 meses debe ser igual a la suma de resultados. | CT13: * Aplicacion de Pauta Breve en Hombres de 7 - 11 meses debe ser igual a la suma de resultados. | CW13: * Aplicacion de Pauta Breve en Mujeres de 12 - 17 meses debe ser igual a la suma de resultados. | CX13: * Aplicacion de Pauta Breve en Hombres de 18 - 24 meses debe ser igual a la suma de resultados. | CY13: * Aplicacion de Pauta Breve en Mujeres de 18 - 24 meses debe ser igual a la suma de resultados. | DE13: 0 | DF13: 1 | DG13: 0 | DH13: 0 | DI13: 0 | DJ13: 0 | DK13: 0 | DL13: 0 | DM13: 0 | DN13: 0 | DO13: 1 | DP13: 1 | DQ13: 0 | DR13: 0 | DS13: 0 | DT13: 1 | DU13: 0 | DV13: 0 | DW13: 1 | DX13: 1 | DY13: 1 | DZ13: 0
A14: 03500030 | C14: ALTERADO | D14: =SUM(E14+F14) -> 1192 | E14: 722 | F14: 470 | G14: =IFERROR(VLOOKUP($A14,Filtro!$A$5:$AW$2591,5,FALSE),0) -> 0 | H14: =IFERROR(VLOOKUP($A14,Filtro!$A$5:$AW$2591,6,FALSE),0) -> 1 | I14: =IFERROR(VLOOKUP($A14,Filtro!$A$5:$AW$2591,7,FALSE),0) -> 0 | J14: =IFERROR(VLOOKUP($A14,Filtro!$A$5:$AW$2591,8,FALSE),0) -> 0 | K14: =IFERROR(VLOOKUP($A14,Filtro!$A$5:$AW$2591,9,FALSE),0) -> 0 | L14: =IFERROR(VLOOKUP($A14,Filtro!$A$5:$AW$2591,10,FALSE),0) -> 0 | M14: =IFERROR(VLOOKUP($A14,Filtro!$A$5:$AW$2591,11,FALSE),0) -> 2 | N14: =IFERROR(VLOOKUP($A14,Filtro!$A$5:$AW$2591,12,FALSE),0) -> 1 | O14: =IFERROR(VLOOKUP($A14,Filtro!$A$5:$AW$2591,13,FALSE),0) -> 83 | P14: =IFERROR(VLOOKUP($A14,Filtro!$A$5:$AW$2591,14,FALSE),0) -> 66 | Q14: =IFERROR(VLOOKUP($A14,Filtro!$A$5:$AW$2591,15,FALSE),0) -> 5 | R14: =IFERROR(VLOOKUP($A14,Filtro!$A$5:$AW$2591,16,FALSE),0) -> 4 | S14: =IFERROR(VLOOKUP($A14,Filtro!$A$5:$AW$2591,17,FALSE),0) -> 1 | T14: =IFERROR(VLOOKUP($A14,Filtro!$A$5:$AW$2591,18,FALSE),0) -> 3 | U14: =IFERROR(VLOOKUP($A14,Filtro!$A$5:$AW$2591,19,FALSE),0) -> 6 | V14: =IFERROR(VLOOKUP($A14,Filtro!$A$5:$AW$2591,20,FALSE),0) -> 6 | W14: =IFERROR(VLOOKUP($A14,Filtro!$A$5:$AW$2591,21,FALSE),0) -> 236 | X14: =IFERROR(VLOOKUP($A14,Filtro!$A$5:$AW$2591,22,FALSE),0) -> 145 | Y14: =IFERROR(VLOOKUP($A14,Filtro!$A$5:$AW$2591,23,FALSE),0) -> 389 | Z14: =IFERROR(VLOOKUP($A14,Filtro!$A$5:$AW$2591,24,FALSE),0) -> 244
B15: SECCIÓN A.2: RESULTADOS DE LA APLICACIÓN DE ESCALA DE EVALUACIÓN DEL DESARROLLO PSICOMOTOR
B16: ACTIVIDAD | C16: RESULTADO | D16: TOTAL | G16: POR EDAD | S16: Pueblos Originarios | T16: Migrantes
G17: Menor 7 meses | I17: 7 - 11 meses | K17: 12 - 17 meses | M17: 18 - 23 meses | O17: 24 - 47 meses | Q17: 48 - 59 meses
D18: Ambos Sexos | E18: Hombres | F18: Mujeres | G18: Hombres | H18: Mujeres | I18: Hombres | J18: Mujeres | K18: Hombres | L18: Mujeres | M18: Hombres | N18: Mujeres | O18: Hombres | P18: Mujeres | Q18: Hombres | R18: Mujeres
A19: 02021740 | B19: APLICACIÓN TEST DE DESARROLLO PSICOMOTOR | D19: =SUM(E19+F19) -> 13841 | E19: =SUM(G19+I19+K19+M19+O19+Q19) -> 7123 | F19: =SUM(H19+J19+L19+N19+P19+R19) -> 6718 | G19: =IFERROR(VLOOKUP($A19,Filtro!$A$5:$AW$2591,5,FALSE),0) -> 79 | H19: =IFERROR(VLOOKUP($A19,Filtro!$A$5:$AW$2591,6,FALSE),0) -> 68 | I19: =IFERROR(VLOOKUP($A19,Filtro!$A$5:$AW$2591,7,FALSE),0) -> 2142 | J19: =IFERROR(VLOOKUP($A19,Filtro!$A$5:$AW$2591,8,FALSE),0) -> 2144 | K19: =IFERROR(VLOOKUP($A19,Filtro!$A$5:$AW$2591,9,FALSE),0) -> 543 | L19: =IFERROR(VLOOKUP($A19,Filtro!$A$5:$AW$2591,10,FALSE),0) -> 482 | M19: =IFERROR(VLOOKUP($A19,Filtro!$A$5:$AW$2591,11,FALSE),0) -> 2296 | N19: =IFERROR(VLOOKUP($A19,Filtro!$A$5:$AW$2591,12,FALSE),0) -> 2093 | O19: =IFERROR(VLOOKUP($A19,Filtro!$A$5:$AW$2591,13,FALSE),0) -> 1886 | P19: =IFERROR(VLOOKUP($A19,Filtro!$A$5:$AW$2591,14,FALSE),0) -> 1802 | Q19: =IFERROR(VLOOKUP($A19,Filtro!$A$5:$AW$2591,15,FALSE),0) -> 177 | R19: =IFERROR(VLOOKUP($A19,Filtro!$A$5:$AW$2591,16,FALSE),0) -> 129 | S19: =IFERROR(VLOOKUP($A19,Filtro!$A$5:$AW$2591,17,FALSE),0) -> 59 | T19: =IFERROR(VLOOKUP($A19,Filtro!$A$5:$AW$2591,18,FALSE),0) -> 76 | CH19: * El total de aplicaciones de Pueblos Originarios debe ser IGUAL a los resultados de la totalidad de las aplicaciones de la primera evaluación y la reevaluación. | CJ19: * El total de aplicaciones de Migrantes debe ser IGUAL a los resultados de la totalidad de las aplicaciones de la primera evaluación y la reevaluación. | CL19: 0 | CM19: 0 | CN19: 0 | CO19: 0 | DB19: 0 | DC19: 0 | DD19: 0 | DE19: 0 | DF19: 0 | DG19: 0 | DI19: 0 | DK19: 0
A20: 02010320 | B20: PRIMERA EVALUACIÓN | C20: NORMAL | D20: =SUM(E20+F20) -> 10446 | E20: =SUM(G20+I20+K20+M20+O20+Q20) -> 5041 | F20: 5405 | G20: =IFERROR(VLOOKUP($A20,Filtro!$A$5:$AW$2591,5,FALSE),0) -> 58 | H20: =IFERROR(VLOOKUP($A20,Filtro!$A$5:$AW$2591,6,FALSE),0) -> 55 | I20: =IFERROR(VLOOKUP($A20,Filtro!$A$5:$AW$2591,7,FALSE),0) -> 1881 | J20: =IFERROR(VLOOKUP($A20,Filtro!$A$5:$AW$2591,8,FALSE),0) -> 1917 | K20: =IFERROR(VLOOKUP($A20,Filtro!$A$5:$AW$2591,9,FALSE),0) -> 378 | L20: =IFERROR(VLOOKUP($A20,Filtro!$A$5:$AW$2591,10,FALSE),0) -> 388 | M20: =IFERROR(VLOOKUP($A20,Filtro!$A$5:$AW$2591,11,FALSE),0) -> 1521 | N20: =IFERROR(VLOOKUP($A20,Filtro!$A$5:$AW$2591,12,FALSE),0) -> 1637 | O20: =IFERROR(VLOOKUP($A20,Filtro!$A$5:$AW$2591,13,FALSE),0) -> 1108 | P20: =IFERROR(VLOOKUP($A20,Filtro!$A$5:$AW$2591,14,FALSE),0) -> 1310 | Q20: =IFERROR(VLOOKUP($A20,Filtro!$A$5:$AW$2591,15,FALSE),0) -> 95 | R20: =IFERROR(VLOOKUP($A20,Filtro!$A$5:$AW$2591,16,FALSE),0) -> 98 | S20: =IFERROR(VLOOKUP($A20,Filtro!$A$5:$AW$2591,17,FALSE),0) -> 41 | T20: =IFERROR(VLOOKUP($A20,Filtro!$A$5:$AW$2591,18,FALSE),0) -> 59
A21: 05225303 | C21: NORMAL CON REZAGO | D21: =SUM(E21+F21) -> 771 | E21: 445 | F21: 326 | G21: =IFERROR(VLOOKUP($A21,Filtro!$A$5:$AW$2591,5,FALSE),0) -> 6 | H21: =IFERROR(VLOOKUP($A21,Filtro!$A$5:$AW$2591,6,FALSE),0) -> 1 | I21: =IFERROR(VLOOKUP($A21,Filtro!$A$5:$AW$2591,7,FALSE),0) -> 75 | J21: =IFERROR(VLOOKUP($A21,Filtro!$A$5:$AW$2591,8,FALSE),0) -> 70 | K21: =IFERROR(VLOOKUP($A21,Filtro!$A$5:$AW$2591,9,FALSE),0) -> 39 | L21: =IFERROR(VLOOKUP($A21,Filtro!$A$5:$AW$2591,10,FALSE),0) -> 25 | M21: =IFERROR(VLOOKUP($A21,Filtro!$A$5:$AW$2591,11,FALSE),0) -> 132 | N21: =IFERROR(VLOOKUP($A21,Filtro!$A$5:$AW$2591,12,FALSE),0) -> 76 | O21: =IFERROR(VLOOKUP($A21,Filtro!$A$5:$AW$2591,13,FALSE),0) -> 185 | P21: =IFERROR(VLOOKUP($A21,Filtro!$A$5:$AW$2591,14,FALSE),0) -> 154 | Q21: =IFERROR(VLOOKUP($A21,Filtro!$A$5:$AW$2591,15,FALSE),0) -> 8 | R21: =IFERROR(VLOOKUP($A21,Filtro!$A$5:$AW$2591,16,FALSE),0) -> 0 | S21: =IFERROR(VLOOKUP($A21,Filtro!$A$5:$AW$2591,17,FALSE),0) -> 9 | T21: =IFERROR(VLOOKUP($A21,Filtro!$A$5:$AW$2591,18,FALSE),0) -> 7
A22: 02010321 | C22: RIESGO | D22: 1033 | E22: 635 | F22: 398 | G22: =IFERROR(VLOOKUP($A22,Filtro!$A$5:$AW$2591,5,FALSE),0) -> 10 | H22: =IFERROR(VLOOKUP($A22,Filtro!$A$5:$AW$2591,6,FALSE),0) -> 7 | I22: =IFERROR(VLOOKUP($A22,Filtro!$A$5:$AW$2591,7,FALSE),0) -> 93 | J22: =IFERROR(VLOOKUP($A22,Filtro!$A$5:$AW$2591,8,FALSE),0) -> 74 | K22: =IFERROR(VLOOKUP($A22,Filtro!$A$5:$AW$2591,9,FALSE),0) -> 50 | L22: =IFERROR(VLOOKUP($A22,Filtro!$A$5:$AW$2591,10,FALSE),0) -> 15 | M22: =IFERROR(VLOOKUP($A22,Filtro!$A$5:$AW$2591,11,FALSE),0) -> 240 | N22: =IFERROR(VLOOKUP($A22,Filtro!$A$5:$AW$2591,12,FALSE),0) -> 164 | O22: =IFERROR(VLOOKUP($A22,Filtro!$A$5:$AW$2591,13,FALSE),0) -> 235 | P22: =IFERROR(VLOOKUP($A22,Filtro!$A$5:$AW$2591,14,FALSE),0) -> 134 | Q22: =IFERROR(VLOOKUP($A22,Filtro!$A$5:$AW$2591,15,FALSE),0) -> 7 | R22: =IFERROR(VLOOKUP($A22,Filtro!$A$5:$AW$2591,16,FALSE),0) -> 4 | S22: =IFERROR(VLOOKUP($A22,Filtro!$A$5:$AW$2591,17,FALSE),0) -> 1 | T22: =IFERROR(VLOOKUP($A22,Filtro!$A$5:$AW$2591,18,FALSE),0) -> 8
A23: 02010322 | C23: RETRASO | D23: 337 | E23: 232 | F23: 105 | G23: =IFERROR(VLOOKUP($A23,Filtro!$A$5:$AW$2591,5,FALSE),0) -> 1 | H23: =IFERROR(VLOOKUP($A23,Filtro!$A$5:$AW$2591,6,FALSE),0) -> 1 | I23: =IFERROR(VLOOKUP($A23,Filtro!$A$5:$AW$2591,7,FALSE),0) -> 18 | J23: =IFERROR(VLOOKUP($A23,Filtro!$A$5:$AW$2591,8,FALSE),0) -> 15 | K23: =IFERROR(VLOOKUP($A23,Filtro!$A$5:$AW$2591,9,FALSE),0) -> 10 | L23: =IFERROR(VLOOKUP($A23,Filtro!$A$5:$AW$2591,10,FALSE),0) -> 3 | M23: =IFERROR(VLOOKUP($A23,Filtro!$A$5:$AW$2591,11,FALSE),0) -> 108 | N23: =IFERROR(VLOOKUP($A23,Filtro!$A$5:$AW$2591,12,FALSE),0) -> 49 | O23: =IFERROR(VLOOKUP($A23,Filtro!$A$5:$AW$2591,13,FALSE),0) -> 87 | P23: =IFERROR(VLOOKUP($A23,Filtro!$A$5:$AW$2591,14,FALSE),0) -> 33 | Q23: =IFERROR(VLOOKUP($A23,Filtro!$A$5:$AW$2591,15,FALSE),0) -> 8 | R23: =IFERROR(VLOOKUP($A23,Filtro!$A$5:$AW$2591,16,FALSE),0) -> 4 | S23: =IFERROR(VLOOKUP($A23,Filtro!$A$5:$AW$2591,17,FALSE),0) -> 0 | T23: =IFERROR(VLOOKUP($A23,Filtro!$A$5:$AW$2591,18,FALSE),0) -> 2
A24: 05225304 | B24: REEVALUACIÓN | C24: NORMAL (desde normal con rezago) | D24: 352 | E24: 194 | F24: 158 | G24: =IFERROR(VLOOKUP($A24,Filtro!$A$5:$AW$2591,5,FALSE),0) -> 2 | H24: =IFERROR(VLOOKUP($A24,Filtro!$A$5:$AW$2591,6,FALSE),0) -> 2 | I24: =IFERROR(VLOOKUP($A24,Filtro!$A$5:$AW$2591,7,FALSE),0) -> 31 | J24: =IFERROR(VLOOKUP($A24,Filtro!$A$5:$AW$2591,8,FALSE),0) -> 28 | K24: =IFERROR(VLOOKUP($A24,Filtro!$A$5:$AW$2591,9,FALSE),0) -> 16 | L24: =IFERROR(VLOOKUP($A24,Filtro!$A$5:$AW$2591,10,FALSE),0) -> 22 | M24: =IFERROR(VLOOKUP($A24,Filtro!$A$5:$AW$2591,11,FALSE),0) -> 52 | N24: =IFERROR(VLOOKUP($A24,Filtro!$A$5:$AW$2591,12,FALSE),0) -> 34 | O24: =IFERROR(VLOOKUP($A24,Filtro!$A$5:$AW$2591,13,FALSE),0) -> 79 | P24: =IFERROR(VLOOKUP($A24,Filtro!$A$5:$AW$2591,14,FALSE),0) -> 61 | Q24: =IFERROR(VLOOKUP($A24,Filtro!$A$5:$AW$2591,15,FALSE),0) -> 14 | R24: =IFERROR(VLOOKUP($A24,Filtro!$A$5:$AW$2591,16,FALSE),0) -> 11 | S24: =IFERROR(VLOOKUP($A24,Filtro!$A$5:$AW$2591,17,FALSE),0) -> 4 | T24: =IFERROR(VLOOKUP($A24,Filtro!$A$5:$AW$2591,18,FALSE),0) -> 0
A25: 02010420 | C25: NORMAL (desde riesgo) | D25: 391 | E25: 227 | F25: 164 | G25: =IFERROR(VLOOKUP($A25,Filtro!$A$5:$AW$2591,5,FALSE),0) -> 2 | H25: =IFERROR(VLOOKUP($A25,Filtro!$A$5:$AW$2591,6,FALSE),0) -> 1 | I25: =IFERROR(VLOOKUP($A25,Filtro!$A$5:$AW$2591,7,FALSE),0) -> 22 | J25: =IFERROR(VLOOKUP($A25,Filtro!$A$5:$AW$2591,8,FALSE),0) -> 20 | K25: =IFERROR(VLOOKUP($A25,Filtro!$A$5:$AW$2591,9,FALSE),0) -> 21 | L25: =IFERROR(VLOOKUP($A25,Filtro!$A$5:$AW$2591,10,FALSE),0) -> 12 | M25: =IFERROR(VLOOKUP($A25,Filtro!$A$5:$AW$2591,11,FALSE),0) -> 107 | N25: =IFERROR(VLOOKUP($A25,Filtro!$A$5:$AW$2591,12,FALSE),0) -> 73 | O25: =IFERROR(VLOOKUP($A25,Filtro!$A$5:$AW$2591,13,FALSE),0) -> 63 | P25: =IFERROR(VLOOKUP($A25,Filtro!$A$5:$AW$2591,14,FALSE),0) -> 50 | Q25: =IFERROR(VLOOKUP($A25,Filtro!$A$5:$AW$2591,15,FALSE),0) -> 12 | R25: =IFERROR(VLOOKUP($A25,Filtro!$A$5:$AW$2591,16,FALSE),0) -> 8 | S25: =IFERROR(VLOOKUP($A25,Filtro!$A$5:$AW$2591,17,FALSE),0) -> 0 | T25: =IFERROR(VLOOKUP($A25,Filtro!$A$5:$AW$2591,18,FALSE),0) -> 1
A26: 05225305 | C26: NORMAL (desde retraso) | D26: 52 | E26: 32 | F26: 20 | G26: =IFERROR(VLOOKUP($A26,Filtro!$A$5:$AW$2591,5,FALSE),0) -> 0 | H26: =IFERROR(VLOOKUP($A26,Filtro!$A$5:$AW$2591,6,FALSE),0) -> 0 | I26: =IFERROR(VLOOKUP($A26,Filtro!$A$5:$AW$2591,7,FALSE),0) -> 1 | J26: =IFERROR(VLOOKUP($A26,Filtro!$A$5:$AW$2591,8,FALSE),0) -> 2 | K26: =IFERROR(VLOOKUP($A26,Filtro!$A$5:$AW$2591,9,FALSE),0) -> 0 | L26: =IFERROR(VLOOKUP($A26,Filtro!$A$5:$AW$2591,10,FALSE),0) -> 2 | M26: =IFERROR(VLOOKUP($A26,Filtro!$A$5:$AW$2591,11,FALSE),0) -> 14 | N26: =IFERROR(VLOOKUP($A26,Filtro!$A$5:$AW$2591,12,FALSE),0) -> 7 | O26: =IFERROR(VLOOKUP($A26,Filtro!$A$5:$AW$2591,13,FALSE),0) -> 8 | P26: =IFERROR(VLOOKUP($A26,Filtro!$A$5:$AW$2591,14,FALSE),0) -> 8 | Q26: =IFERROR(VLOOKUP($A26,Filtro!$A$5:$AW$2591,15,FALSE),0) -> 9 | R26: =IFERROR(VLOOKUP($A26,Filtro!$A$5:$AW$2591,16,FALSE),0) -> 1 | S26: =IFERROR(VLOOKUP($A26,Filtro!$A$5:$AW$2591,17,FALSE),0) -> 4 | T26: =IFERROR(VLOOKUP($A26,Filtro!$A$5:$AW$2591,18,FALSE),0) -> 0
A27: 03500366 | C27: NORMAL CON REZAGO (desde riesgo) | D27: 118 | E27: 76 | F27: 42 | G27: =IFERROR(VLOOKUP($A27,Filtro!$A$5:$AW$2591,5,FALSE),0) -> 0 | H27: =IFERROR(VLOOKUP($A27,Filtro!$A$5:$AW$2591,6,FALSE),0) -> 0 | I27: =IFERROR(VLOOKUP($A27,Filtro!$A$5:$AW$2591,7,FALSE),0) -> 3 | J27: =IFERROR(VLOOKUP($A27,Filtro!$A$5:$AW$2591,8,FALSE),0) -> 7 | K27: =IFERROR(VLOOKUP($A27,Filtro!$A$5:$AW$2591,9,FALSE),0) -> 6 | L27: =IFERROR(VLOOKUP($A27,Filtro!$A$5:$AW$2591,10,FALSE),0) -> 3 | M27: =IFERROR(VLOOKUP($A27,Filtro!$A$5:$AW$2591,11,FALSE),0) -> 47 | N27: =IFERROR(VLOOKUP($A27,Filtro!$A$5:$AW$2591,12,FALSE),0) -> 20 | O27: =IFERROR(VLOOKUP($A27,Filtro!$A$5:$AW$2591,13,FALSE),0) -> 17 | P27: =IFERROR(VLOOKUP($A27,Filtro!$A$5:$AW$2591,14,FALSE),0) -> 11 | Q27: =IFERROR(VLOOKUP($A27,Filtro!$A$5:$AW$2591,15,FALSE),0) -> 3 | R27: =IFERROR(VLOOKUP($A27,Filtro!$A$5:$AW$2591,16,FALSE),0) -> 1 | S27: =IFERROR(VLOOKUP($A27,Filtro!$A$5:$AW$2591,17,FALSE),0) -> 0 | T27: =IFERROR(VLOOKUP($A27,Filtro!$A$5:$AW$2591,18,FALSE),0) -> 0
A28: 03500400 | C28: NORMAL CON REZAGO (desde retraso) | D28: 25 | E28: 12 | F28: 13 | G28: =IFERROR(VLOOKUP($A28,Filtro!$A$5:$AW$2591,5,FALSE),0) -> 0 | H28: =IFERROR(VLOOKUP($A28,Filtro!$A$5:$AW$2591,6,FALSE),0) -> 0 | I28: =IFERROR(VLOOKUP($A28,Filtro!$A$5:$AW$2591,7,FALSE),0) -> 1 | J28: =IFERROR(VLOOKUP($A28,Filtro!$A$5:$AW$2591,8,FALSE),0) -> 0 | K28: =IFERROR(VLOOKUP($A28,Filtro!$A$5:$AW$2591,9,FALSE),0) -> 0 | L28: =IFERROR(VLOOKUP($A28,Filtro!$A$5:$AW$2591,10,FALSE),0) -> 1 | M28: =IFERROR(VLOOKUP($A28,Filtro!$A$5:$AW$2591,11,FALSE),0) -> 3 | N28: =IFERROR(VLOOKUP($A28,Filtro!$A$5:$AW$2591,12,FALSE),0) -> 7 | O28: =IFERROR(VLOOKUP($A28,Filtro!$A$5:$AW$2591,13,FALSE),0) -> 6 | P28: =IFERROR(VLOOKUP($A28,Filtro!$A$5:$AW$2591,14,FALSE),0) -> 4 | Q28: =IFERROR(VLOOKUP($A28,Filtro!$A$5:$AW$2591,15,FALSE),0) -> 2 | R28: =IFERROR(VLOOKUP($A28,Filtro!$A$5:$AW$2591,16,FALSE),0) -> 1 | S28: =IFERROR(VLOOKUP($A28,Filtro!$A$5:$AW$2591,17,FALSE),0) -> 0 | T28: =IFERROR(VLOOKUP($A28,Filtro!$A$5:$AW$2591,18,FALSE),0) -> 0
A29: 03500401 | C29: RIESGO (desde retraso) | D29: =SUM(E29:F29) -> 30 | E29: 22 | F29: 8 | G29: =IFERROR(VLOOKUP($A29,Filtro!$A$5:$AW$2591,5,FALSE),0) -> 0 | H29: =IFERROR(VLOOKUP($A29,Filtro!$A$5:$AW$2591,6,FALSE),0) -> 0 | I29: =IFERROR(VLOOKUP($A29,Filtro!$A$5:$AW$2591,7,FALSE),0) -> 0 | J29: =IFERROR(VLOOKUP($A29,Filtro!$A$5:$AW$2591,8,FALSE),0) -> 0 | K29: =IFERROR(VLOOKUP($A29,Filtro!$A$5:$AW$2591,9,FALSE),0) -> 3 | L29: =IFERROR(VLOOKUP($A29,Filtro!$A$5:$AW$2591,10,FALSE),0) -> 0 | M29: =IFERROR(VLOOKUP($A29,Filtro!$A$5:$AW$2591,11,FALSE),0) -> 9 | N29: =IFERROR(VLOOKUP($A29,Filtro!$A$5:$AW$2591,12,FALSE),0) -> 2 | O29: =IFERROR(VLOOKUP($A29,Filtro!$A$5:$AW$2591,13,FALSE),0) -> 9 | P29: =IFERROR(VLOOKUP($A29,Filtro!$A$5:$AW$2591,14,FALSE),0) -> 5 | Q29: =IFERROR(VLOOKUP($A29,Filtro!$A$5:$AW$2591,15,FALSE),0) -> 1 | R29: =IFERROR(VLOOKUP($A29,Filtro!$A$5:$AW$2591,16,FALSE),0) -> 1 | S29: =IFERROR(VLOOKUP($A29,Filtro!$A$5:$AW$2591,17,FALSE),0) -> 0 | T29: =IFERROR(VLOOKUP($A29,Filtro!$A$5:$AW$2591,18,FALSE),0) -> 0
A30: 05225306 | C30: NORMAL CON REZAGO (desde normal con rezago) | D30: =SUM(E30:F30) -> 83 | E30: 65 | F30: 18 | G30: =IFERROR(VLOOKUP($A30,Filtro!$A$5:$AW$2591,5,FALSE),0) -> 0 | H30: =IFERROR(VLOOKUP($A30,Filtro!$A$5:$AW$2591,6,FALSE),0) -> 0 | I30: =IFERROR(VLOOKUP($A30,Filtro!$A$5:$AW$2591,7,FALSE),0) -> 5 | J30: =IFERROR(VLOOKUP($A30,Filtro!$A$5:$AW$2591,8,FALSE),0) -> 1 | K30: =IFERROR(VLOOKUP($A30,Filtro!$A$5:$AW$2591,9,FALSE),0) -> 4 | L30: =IFERROR(VLOOKUP($A30,Filtro!$A$5:$AW$2591,10,FALSE),0) -> 2 | M30: =IFERROR(VLOOKUP($A30,Filtro!$A$5:$AW$2591,11,FALSE),0) -> 17 | N30: =IFERROR(VLOOKUP($A30,Filtro!$A$5:$AW$2591,12,FALSE),0) -> 4 | O30: =IFERROR(VLOOKUP($A30,Filtro!$A$5:$AW$2591,13,FALSE),0) -> 31 | P30: =IFERROR(VLOOKUP($A30,Filtro!$A$5:$AW$2591,14,FALSE),0) -> 10 | Q30: =IFERROR(VLOOKUP($A30,Filtro!$A$5:$AW$2591,15,FALSE),0) -> 8 | R30: =IFERROR(VLOOKUP($A30,Filtro!$A$5:$AW$2591,16,FALSE),0) -> 1 | S30: =IFERROR(VLOOKUP($A30,Filtro!$A$5:$AW$2591,17,FALSE),0) -> 1 | T30: =IFERROR(VLOOKUP($A30,Filtro!$A$5:$AW$2591,18,FALSE),0) -> 0
A31: 02010421 | C31: RIESGO (desde riesgo) | D31: =SUM(E31+F31) -> 91 | E31: 62 | F31: 29 | G31: =IFERROR(VLOOKUP($A31,Filtro!$A$5:$AW$2591,5,FALSE),0) -> 0 | H31: =IFERROR(VLOOKUP($A31,Filtro!$A$5:$AW$2591,6,FALSE),0) -> 0 | I31: =IFERROR(VLOOKUP($A31,Filtro!$A$5:$AW$2591,7,FALSE),0) -> 6 | J31: =IFERROR(VLOOKUP($A31,Filtro!$A$5:$AW$2591,8,FALSE),0) -> 1 | K31: =IFERROR(VLOOKUP($A31,Filtro!$A$5:$AW$2591,9,FALSE),0) -> 11 | L31: =IFERROR(VLOOKUP($A31,Filtro!$A$5:$AW$2591,10,FALSE),0) -> 3 | M31: =IFERROR(VLOOKUP($A31,Filtro!$A$5:$AW$2591,11,FALSE),0) -> 25 | N31: =IFERROR(VLOOKUP($A31,Filtro!$A$5:$AW$2591,12,FALSE),0) -> 14 | O31: =IFERROR(VLOOKUP($A31,Filtro!$A$5:$AW$2591,13,FALSE),0) -> 16 | P31: =IFERROR(VLOOKUP($A31,Filtro!$A$5:$AW$2591,14,FALSE),0) -> 11 | Q31: =IFERROR(VLOOKUP($A31,Filtro!$A$5:$AW$2591,15,FALSE),0) -> 4 | R31: =IFERROR(VLOOKUP($A31,Filtro!$A$5:$AW$2591,16,FALSE),0) -> 0 | S31: =IFERROR(VLOOKUP($A31,Filtro!$A$5:$AW$2591,17,FALSE),0) -> 0 | T31: =IFERROR(VLOOKUP($A31,Filtro!$A$5:$AW$2591,18,FALSE),0) -> 0
A32: 03600110 | C32: RIESGO (desde normal con rezago) | D32: =SUM(E32+F32) -> 25 | E32: 20 | F32: 5 | G32: =IFERROR(VLOOKUP($A32,Filtro!$A$5:$AW$2591,5,FALSE),0) -> 0 | H32: =IFERROR(VLOOKUP($A32,Filtro!$A$5:$AW$2591,6,FALSE),0) -> 0 | I32: =IFERROR(VLOOKUP($A32,Filtro!$A$5:$AW$2591,7,FALSE),0) -> 3 | J32: =IFERROR(VLOOKUP($A32,Filtro!$A$5:$AW$2591,8,FALSE),0) -> 1 | K32: =IFERROR(VLOOKUP($A32,Filtro!$A$5:$AW$2591,9,FALSE),0) -> 4 | L32: =IFERROR(VLOOKUP($A32,Filtro!$A$5:$AW$2591,10,FALSE),0) -> 3 | M32: =IFERROR(VLOOKUP($A32,Filtro!$A$5:$AW$2591,11,FALSE),0) -> 2 | N32: =IFERROR(VLOOKUP($A32,Filtro!$A$5:$AW$2591,12,FALSE),0) -> 1 | O32: =IFERROR(VLOOKUP($A32,Filtro!$A$5:$AW$2591,13,FALSE),0) -> 11 | P32: =IFERROR(VLOOKUP($A32,Filtro!$A$5:$AW$2591,14,FALSE),0) -> 0 | Q32: =IFERROR(VLOOKUP($A32,Filtro!$A$5:$AW$2591,15,FALSE),0) -> 0 | R32: =IFERROR(VLOOKUP($A32,Filtro!$A$5:$AW$2591,16,FALSE),0) -> 0 | S32: =IFERROR(VLOOKUP($A32,Filtro!$A$5:$AW$2591,17,FALSE),0) -> 0 | T32: =IFERROR(VLOOKUP($A32,Filtro!$A$5:$AW$2591,18,FALSE),0) -> 0
A33: 02010422 | C33: RETRASO (desde retraso) | D33: =SUM(E33+F33) -> 30 | E33: 25 | F33: 5 | G33: =IFERROR(VLOOKUP($A33,Filtro!$A$5:$AW$2591,5,FALSE),0) -> 0 | H33: =IFERROR(VLOOKUP($A33,Filtro!$A$5:$AW$2591,6,FALSE),0) -> 0 | I33: =IFERROR(VLOOKUP($A33,Filtro!$A$5:$AW$2591,7,FALSE),0) -> 1 | J33: =IFERROR(VLOOKUP($A33,Filtro!$A$5:$AW$2591,8,FALSE),0) -> 0 | K33: =IFERROR(VLOOKUP($A33,Filtro!$A$5:$AW$2591,9,FALSE),0) -> 0 | L33: =IFERROR(VLOOKUP($A33,Filtro!$A$5:$AW$2591,10,FALSE),0) -> 0 | M33: =IFERROR(VLOOKUP($A33,Filtro!$A$5:$AW$2591,11,FALSE),0) -> 11 | N33: =IFERROR(VLOOKUP($A33,Filtro!$A$5:$AW$2591,12,FALSE),0) -> 3 | O33: =IFERROR(VLOOKUP($A33,Filtro!$A$5:$AW$2591,13,FALSE),0) -> 10 | P33: =IFERROR(VLOOKUP($A33,Filtro!$A$5:$AW$2591,14,FALSE),0) -> 2 | Q33: =IFERROR(VLOOKUP($A33,Filtro!$A$5:$AW$2591,15,FALSE),0) -> 3 | R33: =IFERROR(VLOOKUP($A33,Filtro!$A$5:$AW$2591,16,FALSE),0) -> 0 | S33: =IFERROR(VLOOKUP($A33,Filtro!$A$5:$AW$2591,17,FALSE),0) -> 0 | T33: =IFERROR(VLOOKUP($A33,Filtro!$A$5:$AW$2591,18,FALSE),0) -> 0
A34: 03600120 | C34: RETRASO (desde riesgo) | D34: =SUM(E34+F34) -> 39 | E34: 32 | F34: 7 | G34: =IFERROR(VLOOKUP($A34,Filtro!$A$5:$AW$2591,5,FALSE),0) -> 0 | H34: =IFERROR(VLOOKUP($A34,Filtro!$A$5:$AW$2591,6,FALSE),0) -> 0 | I34: =IFERROR(VLOOKUP($A34,Filtro!$A$5:$AW$2591,7,FALSE),0) -> 0 | J34: =IFERROR(VLOOKUP($A34,Filtro!$A$5:$AW$2591,8,FALSE),0) -> 0 | K34: =IFERROR(VLOOKUP($A34,Filtro!$A$5:$AW$2591,9,FALSE),0) -> 5 | L34: =IFERROR(VLOOKUP($A34,Filtro!$A$5:$AW$2591,10,FALSE),0) -> 1 | M34: =IFERROR(VLOOKUP($A34,Filtro!$A$5:$AW$2591,11,FALSE),0) -> 7 | N34: =IFERROR(VLOOKUP($A34,Filtro!$A$5:$AW$2591,12,FALSE),0) -> 3 | O34: =IFERROR(VLOOKUP($A34,Filtro!$A$5:$AW$2591,13,FALSE),0) -> 16 | P34: =IFERROR(VLOOKUP($A34,Filtro!$A$5:$AW$2591,14,FALSE),0) -> 3 | Q34: =IFERROR(VLOOKUP($A34,Filtro!$A$5:$AW$2591,15,FALSE),0) -> 4 | R34: =IFERROR(VLOOKUP($A34,Filtro!$A$5:$AW$2591,16,FALSE),0) -> 0 | S34: =IFERROR(VLOOKUP($A34,Filtro!$A$5:$AW$2591,17,FALSE),0) -> 0 | T34: =IFERROR(VLOOKUP($A34,Filtro!$A$5:$AW$2591,18,FALSE),0) -> 0
A35: 03600130 | C35: RETRASO (desde normal con rezago) | D35: =SUM(E35+F35) -> 9 | E35: 6 | F35: 3 | G35: =IFERROR(VLOOKUP($A35,Filtro!$A$5:$AW$2591,5,FALSE),0) -> 0 | H35: =IFERROR(VLOOKUP($A35,Filtro!$A$5:$AW$2591,6,FALSE),0) -> 0 | I35: =IFERROR(VLOOKUP($A35,Filtro!$A$5:$AW$2591,7,FALSE),0) -> 0 | J35: =IFERROR(VLOOKUP($A35,Filtro!$A$5:$AW$2591,8,FALSE),0) -> 0 | K35: =IFERROR(VLOOKUP($A35,Filtro!$A$5:$AW$2591,9,FALSE),0) -> 2 | L35: =IFERROR(VLOOKUP($A35,Filtro!$A$5:$AW$2591,10,FALSE),0) -> 1 | M35: =IFERROR(VLOOKUP($A35,Filtro!$A$5:$AW$2591,11,FALSE),0) -> 0 | N35: =IFERROR(VLOOKUP($A35,Filtro!$A$5:$AW$2591,12,FALSE),0) -> 0 | O35: =IFERROR(VLOOKUP($A35,Filtro!$A$5:$AW$2591,13,FALSE),0) -> 4 | P35: =IFERROR(VLOOKUP($A35,Filtro!$A$5:$AW$2591,14,FALSE),0) -> 2 | Q35: =IFERROR(VLOOKUP($A35,Filtro!$A$5:$AW$2591,15,FALSE),0) -> 0 | R35: =IFERROR(VLOOKUP($A35,Filtro!$A$5:$AW$2591,16,FALSE),0) -> 0 | S35: =IFERROR(VLOOKUP($A35,Filtro!$A$5:$AW$2591,17,FALSE),0) -> 0 | T35: =IFERROR(VLOOKUP($A35,Filtro!$A$5:$AW$2591,18,FALSE),0) -> 0
A36: 03500331 | B36: DERIVADOS A ESPECIALIDAD | C36: RIESGO | D36: 117 | E36: =SUM(G36+I36+K36+M36+O36+Q36) -> 78 | F36: 39 | G36: =IFERROR(VLOOKUP($A36,Filtro!$A$5:$AW$2591,5,FALSE),0) -> 0 | H36: =IFERROR(VLOOKUP($A36,Filtro!$A$5:$AW$2591,6,FALSE),0) -> 0 | I36: =IFERROR(VLOOKUP($A36,Filtro!$A$5:$AW$2591,7,FALSE),0) -> 10 | J36: =IFERROR(VLOOKUP($A36,Filtro!$A$5:$AW$2591,8,FALSE),0) -> 7 | K36: =IFERROR(VLOOKUP($A36,Filtro!$A$5:$AW$2591,9,FALSE),0) -> 11 | L36: =IFERROR(VLOOKUP($A36,Filtro!$A$5:$AW$2591,10,FALSE),0) -> 5 | M36: =IFERROR(VLOOKUP($A36,Filtro!$A$5:$AW$2591,11,FALSE),0) -> 26 | N36: =IFERROR(VLOOKUP($A36,Filtro!$A$5:$AW$2591,12,FALSE),0) -> 14 | O36: =IFERROR(VLOOKUP($A36,Filtro!$A$5:$AW$2591,13,FALSE),0) -> 28 | P36: =IFERROR(VLOOKUP($A36,Filtro!$A$5:$AW$2591,14,FALSE),0) -> 11 | Q36: =IFERROR(VLOOKUP($A36,Filtro!$A$5:$AW$2591,15,FALSE),0) -> 3 | R36: =IFERROR(VLOOKUP($A36,Filtro!$A$5:$AW$2591,16,FALSE),0) -> 2 | S36: =IFERROR(VLOOKUP($A36,Filtro!$A$5:$AW$2591,17,FALSE),0) -> 0 | T36: =IFERROR(VLOOKUP($A36,Filtro!$A$5:$AW$2591,18,FALSE),0) -> 0
A37: 03500332 | C37: RETRASO | D37: 118 | E37: 92 | F37: 26 | G37: =IFERROR(VLOOKUP($A37,Filtro!$A$5:$AW$2591,5,FALSE),0) -> 0 | H37: =IFERROR(VLOOKUP($A37,Filtro!$A$5:$AW$2591,6,FALSE),0) -> 2 | I37: =IFERROR(VLOOKUP($A37,Filtro!$A$5:$AW$2591,7,FALSE),0) -> 2 | J37: =IFERROR(VLOOKUP($A37,Filtro!$A$5:$AW$2591,8,FALSE),0) -> 2 | K37: =IFERROR(VLOOKUP($A37,Filtro!$A$5:$AW$2591,9,FALSE),0) -> 9 | L37: =IFERROR(VLOOKUP($A37,Filtro!$A$5:$AW$2591,10,FALSE),0) -> 1 | M37: =IFERROR(VLOOKUP($A37,Filtro!$A$5:$AW$2591,11,FALSE),0) -> 46 | N37: =IFERROR(VLOOKUP($A37,Filtro!$A$5:$AW$2591,12,FALSE),0) -> 14 | O37: =IFERROR(VLOOKUP($A37,Filtro!$A$5:$AW$2591,13,FALSE),0) -> 29 | P37: =IFERROR(VLOOKUP($A37,Filtro!$A$5:$AW$2591,14,FALSE),0) -> 5 | Q37: =IFERROR(VLOOKUP($A37,Filtro!$A$5:$AW$2591,15,FALSE),0) -> 6 | R37: =IFERROR(VLOOKUP($A37,Filtro!$A$5:$AW$2591,16,FALSE),0) -> 2 | S37: =IFERROR(VLOOKUP($A37,Filtro!$A$5:$AW$2591,17,FALSE),0) -> 0 | T37: =IFERROR(VLOOKUP($A37,Filtro!$A$5:$AW$2591,18,FALSE),0) -> 1
A38: 03500333 | B38: TRASLADO DE ESTABLECIMIENTO | C38: NORMAL CON REZAGO | D38: 3 | E38: 1 | F38: 2 | G38: =IFERROR(VLOOKUP($A38,Filtro!$A$5:$AW$2591,5,FALSE),0) -> 0 | H38: =IFERROR(VLOOKUP($A38,Filtro!$A$5:$AW$2591,6,FALSE),0) -> 0 | I38: =IFERROR(VLOOKUP($A38,Filtro!$A$5:$AW$2591,7,FALSE),0) -> 0 | J38: =IFERROR(VLOOKUP($A38,Filtro!$A$5:$AW$2591,8,FALSE),0) -> 1 | K38: =IFERROR(VLOOKUP($A38,Filtro!$A$5:$AW$2591,9,FALSE),0) -> 0 | L38: =IFERROR(VLOOKUP($A38,Filtro!$A$5:$AW$2591,10,FALSE),0) -> 0 | M38: =IFERROR(VLOOKUP($A38,Filtro!$A$5:$AW$2591,11,FALSE),0) -> 1 | N38: =IFERROR(VLOOKUP($A38,Filtro!$A$5:$AW$2591,12,FALSE),0) -> 1 | O38: =IFERROR(VLOOKUP($A38,Filtro!$A$5:$AW$2591,13,FALSE),0) -> 0 | P38: =IFERROR(VLOOKUP($A38,Filtro!$A$5:$AW$2591,14,FALSE),0) -> 0 | Q38: =IFERROR(VLOOKUP($A38,Filtro!$A$5:$AW$2591,15,FALSE),0) -> 0 | R38: =IFERROR(VLOOKUP($A38,Filtro!$A$5:$AW$2591,16,FALSE),0) -> 0 | S38: =IFERROR(VLOOKUP($A38,Filtro!$A$5:$AW$2591,17,FALSE),0) -> 0 | T38: =IFERROR(VLOOKUP($A38,Filtro!$A$5:$AW$2591,18,FALSE),0) -> 0
A39: 03500334 | C39: RIESGO | D39: 12 | E39: 9 | F39: 3 | G39: =IFERROR(VLOOKUP($A39,Filtro!$A$5:$AW$2591,5,FALSE),0) -> 0 | H39: =IFERROR(VLOOKUP($A39,Filtro!$A$5:$AW$2591,6,FALSE),0) -> 0 | I39: =IFERROR(VLOOKUP($A39,Filtro!$A$5:$AW$2591,7,FALSE),0) -> 0 | J39: =IFERROR(VLOOKUP($A39,Filtro!$A$5:$AW$2591,8,FALSE),0) -> 0 | K39: =IFERROR(VLOOKUP($A39,Filtro!$A$5:$AW$2591,9,FALSE),0) -> 3 | L39: =IFERROR(VLOOKUP($A39,Filtro!$A$5:$AW$2591,10,FALSE),0) -> 0 | M39: =IFERROR(VLOOKUP($A39,Filtro!$A$5:$AW$2591,11,FALSE),0) -> 5 | N39: =IFERROR(VLOOKUP($A39,Filtro!$A$5:$AW$2591,12,FALSE),0) -> 1 | O39: =IFERROR(VLOOKUP($A39,Filtro!$A$5:$AW$2591,13,FALSE),0) -> 1 | P39: =IFERROR(VLOOKUP($A39,Filtro!$A$5:$AW$2591,14,FALSE),0) -> 1 | Q39: =IFERROR(VLOOKUP($A39,Filtro!$A$5:$AW$2591,15,FALSE),0) -> 0 | R39: =IFERROR(VLOOKUP($A39,Filtro!$A$5:$AW$2591,16,FALSE),0) -> 1 | S39: =IFERROR(VLOOKUP($A39,Filtro!$A$5:$AW$2591,17,FALSE),0) -> 0 | T39: =IFERROR(VLOOKUP($A39,Filtro!$A$5:$AW$2591,18,FALSE),0) -> 0
A40: 03500335 | C40: RETRASO | D40: 1 | E40: 1 | F40: 0 | G40: =IFERROR(VLOOKUP($A40,Filtro!$A$5:$AW$2591,5,FALSE),0) -> 0 | H40: =IFERROR(VLOOKUP($A40,Filtro!$A$5:$AW$2591,6,FALSE),0) -> 0 | I40: =IFERROR(VLOOKUP($A40,Filtro!$A$5:$AW$2591,7,FALSE),0) -> 1 | J40: =IFERROR(VLOOKUP($A40,Filtro!$A$5:$AW$2591,8,FALSE),0) -> 0 | K40: =IFERROR(VLOOKUP($A40,Filtro!$A$5:$AW$2591,9,FALSE),0) -> 0 | L40: =IFERROR(VLOOKUP($A40,Filtro!$A$5:$AW$2591,10,FALSE),0) -> 0 | M40: =IFERROR(VLOOKUP($A40,Filtro!$A$5:$AW$2591,11,FALSE),0) -> 0 | N40: =IFERROR(VLOOKUP($A40,Filtro!$A$5:$AW$2591,12,FALSE),0) -> 0 | O40: =IFERROR(VLOOKUP($A40,Filtro!$A$5:$AW$2591,13,FALSE),0) -> 0 | P40: =IFERROR(VLOOKUP($A40,Filtro!$A$5:$AW$2591,14,FALSE),0) -> 0 | Q40: =IFERROR(VLOOKUP($A40,Filtro!$A$5:$AW$2591,15,FALSE),0) -> 0 | R40: =IFERROR(VLOOKUP($A40,Filtro!$A$5:$AW$2591,16,FALSE),0) -> 0 | S40: =IFERROR(VLOOKUP($A40,Filtro!$A$5:$AW$2591,17,FALSE),0) -> 0 | T40: =IFERROR(VLOOKUP($A40,Filtro!$A$5:$AW$2591,18,FALSE),0) -> 0
B41: SECCIÓN A.3: NIÑOS Y NIÑAS CON REZAGO, DÉFICIT U OTRA VULNERABILIDAD DERIVADOS A ALGUNA MODALIDAD DE ESTIMULACIÓN EN LA PRIMERA EVALUACIÓN
B42: NIÑO / A | C42: TOTAL | F42: POR EDAD
F43: Menor 7 meses | H43: 7 - 11 meses | J43: 12 - 17 meses | L43: 18 - 23 meses | N43: 24 - 47 meses | P43: 48 - 59 meses
C44: Ambos Sexos | D44: Hombres | E44: Mujeres | F44: Hombres | G44: Mujeres | H44: Hombres | I44: Mujeres | J44: Hombres | K44: Mujeres | L44: Hombres | M44: Mujeres | N44: Hombres | O44: Mujeres | P44: Hombres | Q44: Mujeres
A45: 02021790 | B45: NORMAL CON REZAGO | C45: =SUM(D45+E45) -> 934 | D45: =SUM(F45+H45+J45+L45+N45+P45) -> 520 | E45: =SUM(G45+I45+K45+M45+O45+Q45) -> 414 | F45: =IFERROR(VLOOKUP($A45,Filtro!$A$5:$AW$2591,5,FALSE),0) -> 19 | G45: =IFERROR(VLOOKUP($A45,Filtro!$A$5:$AW$2591,6,FALSE),0) -> 19 | H45: =IFERROR(VLOOKUP($A45,Filtro!$A$5:$AW$2591,7,FALSE),0) -> 71 | I45: =IFERROR(VLOOKUP($A45,Filtro!$A$5:$AW$2591,8,FALSE),0) -> 83 | J45: =IFERROR(VLOOKUP($A45,Filtro!$A$5:$AW$2591,9,FALSE),0) -> 63 | K45: =IFERROR(VLOOKUP($A45,Filtro!$A$5:$AW$2591,10,FALSE),0) -> 34 | L45: =IFERROR(VLOOKUP($A45,Filtro!$A$5:$AW$2591,11,FALSE),0) -> 142 | M45: =IFERROR(VLOOKUP($A45,Filtro!$A$5:$AW$2591,12,FALSE),0) -> 101 | N45: =IFERROR(VLOOKUP($A45,Filtro!$A$5:$AW$2591,13,FALSE),0) -> 212 | O45: =IFERROR(VLOOKUP($A45,Filtro!$A$5:$AW$2591,14,FALSE),0) -> 176 | P45: =IFERROR(VLOOKUP($A45,Filtro!$A$5:$AW$2591,15,FALSE),0) -> 13 | Q45: =IFERROR(VLOOKUP($A45,Filtro!$A$5:$AW$2591,16,FALSE),0) -> 1 | R45: =CB45 ->  | CB45: =IF(C45<#REF!,"* Niños derivados deben ser mayores o iguales al ingreso de niños(as) Normal con Rezago a salas de estimulación REM A05 sección F. ","") ->  | DB45: =IF(C45<#REF!,1,0) -> 
A46: 02021810 | B46: RIESGO | C46: =SUM(D46+E46) -> 982 | D46: =SUM(F46+H46+J46+L46+N46+P46) -> 616 | E46: 366 | F46: =IFERROR(VLOOKUP($A46,Filtro!$A$5:$AW$2591,5,FALSE),0) -> 8 | G46: =IFERROR(VLOOKUP($A46,Filtro!$A$5:$AW$2591,6,FALSE),0) -> 7 | H46: =IFERROR(VLOOKUP($A46,Filtro!$A$5:$AW$2591,7,FALSE),0) -> 80 | I46: =IFERROR(VLOOKUP($A46,Filtro!$A$5:$AW$2591,8,FALSE),0) -> 67 | J46: =IFERROR(VLOOKUP($A46,Filtro!$A$5:$AW$2591,9,FALSE),0) -> 60 | K46: =IFERROR(VLOOKUP($A46,Filtro!$A$5:$AW$2591,10,FALSE),0) -> 24 | L46: =IFERROR(VLOOKUP($A46,Filtro!$A$5:$AW$2591,11,FALSE),0) -> 221 | M46: =IFERROR(VLOOKUP($A46,Filtro!$A$5:$AW$2591,12,FALSE),0) -> 135 | N46: =IFERROR(VLOOKUP($A46,Filtro!$A$5:$AW$2591,13,FALSE),0) -> 233 | O46: =IFERROR(VLOOKUP($A46,Filtro!$A$5:$AW$2591,14,FALSE),0) -> 128 | P46: =IFERROR(VLOOKUP($A46,Filtro!$A$5:$AW$2591,15,FALSE),0) -> 14 | Q46: =IFERROR(VLOOKUP($A46,Filtro!$A$5:$AW$2591,16,FALSE),0) -> 5 | CB46: =IF(C46<#REF!,"* Niños derivados deben ser mayores o iguales al ingreso de niños(as) Normal con Rezago a salas de estimulación REM A05 sección F. ","") ->  | DB46: =IF(C46<#REF!,1,0) -> 
A47: 02021820 | B47: RETRASO | C47: =SUM(D47+E47) -> 316 | D47: 228 | E47: 88 | F47: =IFERROR(VLOOKUP($A47,Filtro!$A$5:$AW$2591,5,FALSE),0) -> 1 | G47: =IFERROR(VLOOKUP($A47,Filtro!$A$5:$AW$2591,6,FALSE),0) -> 1 | H47: =IFERROR(VLOOKUP($A47,Filtro!$A$5:$AW$2591,7,FALSE),0) -> 13 | I47: =IFERROR(VLOOKUP($A47,Filtro!$A$5:$AW$2591,8,FALSE),0) -> 10 | J47: =IFERROR(VLOOKUP($A47,Filtro!$A$5:$AW$2591,9,FALSE),0) -> 14 | K47: =IFERROR(VLOOKUP($A47,Filtro!$A$5:$AW$2591,10,FALSE),0) -> 4 | L47: =IFERROR(VLOOKUP($A47,Filtro!$A$5:$AW$2591,11,FALSE),0) -> 94 | M47: =IFERROR(VLOOKUP($A47,Filtro!$A$5:$AW$2591,12,FALSE),0) -> 42 | N47: =IFERROR(VLOOKUP($A47,Filtro!$A$5:$AW$2591,13,FALSE),0) -> 91 | O47: =IFERROR(VLOOKUP($A47,Filtro!$A$5:$AW$2591,14,FALSE),0) -> 28 | P47: =IFERROR(VLOOKUP($A47,Filtro!$A$5:$AW$2591,15,FALSE),0) -> 15 | Q47: =IFERROR(VLOOKUP($A47,Filtro!$A$5:$AW$2591,16,FALSE),0) -> 3 | CB47: =IF(C47<#REF!,"* Niños derivados deben ser mayores o iguales al ingreso de niños(as) Normal con Rezago a salas de estimulación REM A05 sección F. ","") ->  | DB47: =IF(C47<#REF!,1,0) -> 
A48: 05225307 | B48: OTRA VULNERABILIDAD | C48: =SUM(D48:E48) -> 1657 | D48: 928 | E48: 729 | F48: =IFERROR(VLOOKUP($A48,Filtro!$A$5:$AW$2591,5,FALSE),0) -> 248 | G48: =IFERROR(VLOOKUP($A48,Filtro!$A$5:$AW$2591,6,FALSE),0) -> 250 | H48: =IFERROR(VLOOKUP($A48,Filtro!$A$5:$AW$2591,7,FALSE),0) -> 74 | I48: =IFERROR(VLOOKUP($A48,Filtro!$A$5:$AW$2591,8,FALSE),0) -> 80 | J48: =IFERROR(VLOOKUP($A48,Filtro!$A$5:$AW$2591,9,FALSE),0) -> 103 | K48: =IFERROR(VLOOKUP($A48,Filtro!$A$5:$AW$2591,10,FALSE),0) -> 66 | L48: =IFERROR(VLOOKUP($A48,Filtro!$A$5:$AW$2591,11,FALSE),0) -> 126 | M48: =IFERROR(VLOOKUP($A48,Filtro!$A$5:$AW$2591,12,FALSE),0) -> 100 | N48: =IFERROR(VLOOKUP($A48,Filtro!$A$5:$AW$2591,13,FALSE),0) -> 292 | O48: =IFERROR(VLOOKUP($A48,Filtro!$A$5:$AW$2591,14,FALSE),0) -> 158 | P48: =IFERROR(VLOOKUP($A48,Filtro!$A$5:$AW$2591,15,FALSE),0) -> 85 | Q48: =IFERROR(VLOOKUP($A48,Filtro!$A$5:$AW$2591,16,FALSE),0) -> 75 | CB48: =IF(C48<#REF!,"* Niños derivados deben ser mayores o iguales al ingreso de niños(as) Normal con Rezago a salas de estimulación REM A05 sección F. ","") ->  | DB48: =IF(C48<#REF!,1,0) -> 
B49: SECCIÓN A.4: RESULTADOS DE LA APLICACIÓN DE PROTOCOLO NEUROSENSORIAL
B50: RESULTADOS | C50: TOTAL | F50: POR EDAD
F51: 1 mes | H51: 2 meses
C52: Ambos Sexos | D52: Hombres | E52: Mujeres | F52: Hombres | G52: Mujeres | H52: Hombres | I52: Mujeres
A53: 02021760 | B53: APLICACIÓN DE PROTOCOLO NEUROSENSORIAL (1-2 MESES) | C53: =SUM(D53+E53) -> 3674 | D53: =SUM(F53+H53) -> 1822 | E53: =SUM(G53+I53) -> 1852 | F53: =IFERROR(VLOOKUP($A53,Filtro!$A$5:$AW$2591,5,FALSE),0) -> 1516 | G53: =IFERROR(VLOOKUP($A53,Filtro!$A$5:$AW$2591,6,FALSE),0) -> 1523 | H53: =IFERROR(VLOOKUP($A53,Filtro!$A$5:$AW$2591,7,FALSE),0) -> 306 | I53: =IFERROR(VLOOKUP($A53,Filtro!$A$5:$AW$2591,8,FALSE),0) -> 329
A54: 03500040 | B54: NORMAL | C54: =SUM(D54+E54) -> 3079 | D54: =SUM(F54+H54) -> 1509 | E54: 1570 | F54: =IFERROR(VLOOKUP($A54,Filtro!$A$5:$AW$2591,5,FALSE),0) -> 1274 | G54: =IFERROR(VLOOKUP($A54,Filtro!$A$5:$AW$2591,6,FALSE),0) -> 1308 | H54: =IFERROR(VLOOKUP($A54,Filtro!$A$5:$AW$2591,7,FALSE),0) -> 235 | I54: =IFERROR(VLOOKUP($A54,Filtro!$A$5:$AW$2591,8,FALSE),0) -> 262
A55: 03500050 | B55: ANORMAL | C55: =SUM(D55+E55) -> 557 | D55: =SUM(F55+H55) -> 293 | E55: =SUM(G55+I55) -> 264 | F55: =IFERROR(VLOOKUP($A55,Filtro!$A$5:$AW$2591,5,FALSE),0) -> 227 | G55: =IFERROR(VLOOKUP($A55,Filtro!$A$5:$AW$2591,6,FALSE),0) -> 203 | H55: =IFERROR(VLOOKUP($A55,Filtro!$A$5:$AW$2591,7,FALSE),0) -> 66 | I55: =IFERROR(VLOOKUP($A55,Filtro!$A$5:$AW$2591,8,FALSE),0) -> 61
A56: 03500060 | B56: MUY ANORMAL | C56: =SUM(D56+E56) -> 50 | D56: 28 | E56: 22 | F56: =IFERROR(VLOOKUP($A56,Filtro!$A$5:$AW$2591,5,FALSE),0) -> 23 | G56: =IFERROR(VLOOKUP($A56,Filtro!$A$5:$AW$2591,6,FALSE),0) -> 16 | H56: =IFERROR(VLOOKUP($A56,Filtro!$A$5:$AW$2591,7,FALSE),0) -> 5 | I56: =IFERROR(VLOOKUP($A56,Filtro!$A$5:$AW$2591,8,FALSE),0) -> 6
B57: SECCIÓN A.5: LACTANCIA EN NIÑOS Y NIÑAS CONTROLADOS
B58: TIPO DE ALIMENTACIÓN | D58: TOTAL | E58: SEGÚN CONTROL PROGRAMÁTICO | K58: Pueblos Originarios | L58: Migrantes
E59: Diada | F59: Del 1° mes | G59: Del 3° mes | H59: Del 6° mes | I59: Del 12° mes | J59: Del 24° mes | CB59: 0 | CC59: 0 | CD59: 0 | CE59: 0 | CF59: 0
A60: A0200002 | B60: LACTANCIA MATERNA EXCLUSIVA | D60: =SUM(E60:H60) -> 9538 | E60: =IFERROR(VLOOKUP($A60,Filtro!$A$5:$AW$2591,3,FALSE),0) -> 2585 | F60: =IFERROR(VLOOKUP($A60,Filtro!$A$5:$AW$2591,4,FALSE),0) -> 2423 | G60: =IFERROR(VLOOKUP($A60,Filtro!$A$5:$AW$2591,5,FALSE),0) -> 2346 | H60: =IFERROR(VLOOKUP($A60,Filtro!$A$5:$AW$2591,6,FALSE),0) -> 2184 | I60: =IFERROR(VLOOKUP($A60,Filtro!$A$5:$AW$2591,7,FALSE),0) -> 0 | J60: =IFERROR(VLOOKUP($A60,Filtro!$A$5:$AW$2591,8,FALSE),0) -> 0 | K60: =IFERROR(VLOOKUP($A60,Filtro!$A$5:$AW$2591,9,FALSE),0) -> 35 | L60: =IFERROR(VLOOKUP($A60,Filtro!$A$5:$AW$2591,10,FALSE),0) -> 67 | CD60: * * El campo Migrantes NO PUEDE ser mayor al Total. | CF60: 0 | CG60: 0 | CH60: 0 | DA60: 0 | DB60: 0 | DC60: 0 | DD60: 1 | DE60: 0
A61: 03500359 | B61: LACTANCIA MATERNA / FORMULA LÁCTEA | D61: =SUM(E61:H61) -> 2892 | E61: =IFERROR(VLOOKUP($A61,Filtro!$A$5:$AW$2591,3,FALSE),0) -> 618 | F61: =IFERROR(VLOOKUP($A61,Filtro!$A$5:$AW$2591,4,FALSE),0) -> 917 | G61: =IFERROR(VLOOKUP($A61,Filtro!$A$5:$AW$2591,5,FALSE),0) -> 819 | H61: =IFERROR(VLOOKUP($A61,Filtro!$A$5:$AW$2591,6,FALSE),0) -> 538 | I61: =IFERROR(VLOOKUP($A61,Filtro!$A$5:$AW$2591,7,FALSE),0) -> 0 | J61: =IFERROR(VLOOKUP($A61,Filtro!$A$5:$AW$2591,8,FALSE),0) -> 0 | K61: =IFERROR(VLOOKUP($A61,Filtro!$A$5:$AW$2591,9,FALSE),0) -> 8 | L61: =IFERROR(VLOOKUP($A61,Filtro!$A$5:$AW$2591,10,FALSE),0) -> 19 | DB61: 0 | DC61: 0 | DD61: 0 | DE61: 0
A62: 03500360 | B62: FORMULA LÁCTEA | D62: =SUM(E62:H62) -> 1100 | E62: =IFERROR(VLOOKUP($A62,Filtro!$A$5:$AW$2591,3,FALSE),0) -> 48 | F62: =IFERROR(VLOOKUP($A62,Filtro!$A$5:$AW$2591,4,FALSE),0) -> 227 | G62: =IFERROR(VLOOKUP($A62,Filtro!$A$5:$AW$2591,5,FALSE),0) -> 401 | H62: =IFERROR(VLOOKUP($A62,Filtro!$A$5:$AW$2591,6,FALSE),0) -> 424 | I62: =IFERROR(VLOOKUP($A62,Filtro!$A$5:$AW$2591,7,FALSE),0) -> 0 | J62: =IFERROR(VLOOKUP($A62,Filtro!$A$5:$AW$2591,8,FALSE),0) -> 0 | K62: =IFERROR(VLOOKUP($A62,Filtro!$A$5:$AW$2591,9,FALSE),0) -> 3 | L62: =IFERROR(VLOOKUP($A62,Filtro!$A$5:$AW$2591,10,FALSE),0) -> 6 | DB62: 0 | DC62: 0 | DD62: 0 | DE62: 0
A63: A0200003 | B63: LACTANCIA MATERNA MAS ALIMENTACIÓN COMPLEMENTARIA | D63: =SUM(E63:J63) -> 1686 | E63: =IFERROR(VLOOKUP($A63,Filtro!$A$5:$AW$2591,3,FALSE),0) -> 4 | F63: =IFERROR(VLOOKUP($A63,Filtro!$A$5:$AW$2591,4,FALSE),0) -> 6 | G63: =IFERROR(VLOOKUP($A63,Filtro!$A$5:$AW$2591,5,FALSE),0) -> 12 | H63: =IFERROR(VLOOKUP($A63,Filtro!$A$5:$AW$2591,6,FALSE),0) -> 271 | I63: =IFERROR(VLOOKUP($A63,Filtro!$A$5:$AW$2591,7,FALSE),0) -> 1042 | J63: =IFERROR(VLOOKUP($A63,Filtro!$A$5:$AW$2591,8,FALSE),0) -> 351 | K63: =IFERROR(VLOOKUP($A63,Filtro!$A$5:$AW$2591,9,FALSE),0) -> 14 | L63: =IFERROR(VLOOKUP($A63,Filtro!$A$5:$AW$2591,10,FALSE),0) -> 13 | DB63: 0 | DC63: 0 | DD63: 0 | DE63: 0
A64: 03600140 | B64: LACTANCIA MATERNA/ FÓRMULA LÁCTEA/ ALIMENTACIÓN COMPLEMENTARIA | D64: =SUM(H64:J64)+E64 -> 2012 | E64: =IFERROR(VLOOKUP($A64,Filtro!$A$5:$AW$2591,3,FALSE),0) -> 9 | F64: =IFERROR(VLOOKUP($A64,Filtro!$A$5:$AW$2591,4,FALSE),0) -> 0 | G64: =IFERROR(VLOOKUP($A64,Filtro!$A$5:$AW$2591,5,FALSE),0) -> 0 | H64: =IFERROR(VLOOKUP($A64,Filtro!$A$5:$AW$2591,6,FALSE),0) -> 274 | I64: =IFERROR(VLOOKUP($A64,Filtro!$A$5:$AW$2591,7,FALSE),0) -> 1036 | J64: =IFERROR(VLOOKUP($A64,Filtro!$A$5:$AW$2591,8,FALSE),0) -> 693 | K64: =IFERROR(VLOOKUP($A64,Filtro!$A$5:$AW$2591,9,FALSE),0) -> 11 | L64: =IFERROR(VLOOKUP($A64,Filtro!$A$5:$AW$2591,10,FALSE),0) -> 7 | DA64: 0 | DB64: 0 | DC64: 0 | DD64: 0 | DE64: 0
A65: 03600150 | B65: FORMULA LÁCTEA ALIMENTACIÓN COMPLEMENTARIA | D65: =SUM(H65:J65)+E65 -> 3118 | E65: =IFERROR(VLOOKUP($A65,Filtro!$A$5:$AW$2591,3,FALSE),0) -> 9 | F65: =IFERROR(VLOOKUP($A65,Filtro!$A$5:$AW$2591,4,FALSE),0) -> 0 | G65: =IFERROR(VLOOKUP($A65,Filtro!$A$5:$AW$2591,5,FALSE),0) -> 0 | H65: =IFERROR(VLOOKUP($A65,Filtro!$A$5:$AW$2591,6,FALSE),0) -> 266 | I65: =IFERROR(VLOOKUP($A65,Filtro!$A$5:$AW$2591,7,FALSE),0) -> 1192 | J65: =IFERROR(VLOOKUP($A65,Filtro!$A$5:$AW$2591,8,FALSE),0) -> 1651 | K65: =IFERROR(VLOOKUP($A65,Filtro!$A$5:$AW$2591,9,FALSE),0) -> 14 | L65: =IFERROR(VLOOKUP($A65,Filtro!$A$5:$AW$2591,10,FALSE),0) -> 24 | DA65: 0 | DB65: 0 | DC65: 0 | DD65: 0 | DE65: 0
A66: A0200001 | B66: NÚMERO DE NIÑOS Y NIÑAS CONTROLADOS | D66: =SUM(E66:J66) -> 19355 | E66: =IFERROR(VLOOKUP($A66,Filtro!$A$5:$AW$2591,3,FALSE),0) -> 2664 | F66: =IFERROR(VLOOKUP($A66,Filtro!$A$5:$AW$2591,4,FALSE),0) -> 3309 | G66: =IFERROR(VLOOKUP($A66,Filtro!$A$5:$AW$2591,5,FALSE),0) -> 3394 | H66: =IFERROR(VLOOKUP($A66,Filtro!$A$5:$AW$2591,6,FALSE),0) -> 3954 | I66: =IFERROR(VLOOKUP($A66,Filtro!$A$5:$AW$2591,7,FALSE),0) -> 3250 | J66: =IFERROR(VLOOKUP($A66,Filtro!$A$5:$AW$2591,8,FALSE),0) -> 2784 | K66: =IFERROR(VLOOKUP($A66,Filtro!$A$5:$AW$2591,9,FALSE),0) -> 52 | L66: =IFERROR(VLOOKUP($A66,Filtro!$A$5:$AW$2591,10,FALSE),0) -> 67 | CE66: * El número de menores con lactancia materna Exclusiva o Artificial al control del 6er mes NO debe ser MAYOR al número de menores controlados. | CG66: * El número de menores con lactancia Materna o Artificial mas Solidos al control del 24 meses NO debe ser MAYOR al número de menores controlados. | DA66: 0 | DB66: 0 | DC66: 0 | DD66: 0 | DE66: 1 | DF66: 0 | DG66: 1 | DH66: 0
B67: SECCIÓN A.6: RESULTADOS RADIOGRAFÍA DE PELVIS (CADERA)
B68: RESULTADO | C68: TOTAL | F68: POR EDAD | J68: 3 MESES | L68: 4 MESES
F69: 3 MESES | H69: 4 MESES | J69: Pueblos Originarios | K69: Migrantes | L69: Pueblos Originarios | M69: Migrantes
C70: Ambos Sexos | D70: Hombres | E70: Mujeres | F70: Hombres | G70: Mujeres | H70: Hombres | I70: Mujeres
A71: 09600207 | B71: NORMAL | C71: =SUM(D71:E71) -> 2593 | D71: =+F71+H71 -> 1364 | E71: 1229 | F71: =IFERROR(VLOOKUP($A71,Filtro!$A$5:$AW$2591,5,FALSE),0) -> 982 | G71: =IFERROR(VLOOKUP($A71,Filtro!$A$5:$AW$2591,6,FALSE),0) -> 904 | H71: =IFERROR(VLOOKUP($A71,Filtro!$A$5:$AW$2591,7,FALSE),0) -> 382 | I71: =IFERROR(VLOOKUP($A71,Filtro!$A$5:$AW$2591,8,FALSE),0) -> 325 | J71: =IFERROR(VLOOKUP($A71,Filtro!$A$5:$AW$2591,9,FALSE),0) -> 8 | K71: =IFERROR(VLOOKUP($A71,Filtro!$A$5:$AW$2591,10,FALSE),0) -> 7 | L71: =IFERROR(VLOOKUP($A71,Filtro!$A$5:$AW$2591,11,FALSE),0) -> 2 | M71: =IFERROR(VLOOKUP($A71,Filtro!$A$5:$AW$2591,12,FALSE),0) -> 10 | DA71: 0 | DB71: 0 | DC71: 0 | DD71: 0 | DE71: 0 | DF71: 0 | DG71: 0 | DH71: 0 | DI71: 0
A72: 09600208 | B72: ANORMAL | C72: =SUM(D72:E72) -> 482 | D72: 185 | E72: 297 | F72: =IFERROR(VLOOKUP($A72,Filtro!$A$5:$AW$2591,5,FALSE),0) -> 119 | G72: =IFERROR(VLOOKUP($A72,Filtro!$A$5:$AW$2591,6,FALSE),0) -> 181 | H72: =IFERROR(VLOOKUP($A72,Filtro!$A$5:$AW$2591,7,FALSE),0) -> 66 | I72: =IFERROR(VLOOKUP($A72,Filtro!$A$5:$AW$2591,8,FALSE),0) -> 116 | J72: =IFERROR(VLOOKUP($A72,Filtro!$A$5:$AW$2591,9,FALSE),0) -> 1 | K72: =IFERROR(VLOOKUP($A72,Filtro!$A$5:$AW$2591,10,FALSE),0) -> 1 | L72: =IFERROR(VLOOKUP($A72,Filtro!$A$5:$AW$2591,11,FALSE),0) -> 0 | M72: =IFERROR(VLOOKUP($A72,Filtro!$A$5:$AW$2591,12,FALSE),0) -> 1 | CF72: * * No olvide digitar el campo Pueblos Originarios (4 MESES) (Digite CEROS si no tiene). | CG72: * * No olvide digitar el campo Migrantes (4 MESES) (Digite CEROS si no tiene). | DB72: 0 | DC72: 0 | DD72: 0 | DE72: 0 | DF72: 0 | DG72: 0 | DH72: 0 | DI72: 0
A73: 09600209 | B73: INMADURA | C73: =SUM(D73:E73) -> 536 | D73: 201 | E73: 335 | F73: =IFERROR(VLOOKUP($A73,Filtro!$A$5:$AW$2591,5,FALSE),0) -> 159 | G73: =IFERROR(VLOOKUP($A73,Filtro!$A$5:$AW$2591,6,FALSE),0) -> 255 | H73: =IFERROR(VLOOKUP($A73,Filtro!$A$5:$AW$2591,7,FALSE),0) -> 42 | I73: =IFERROR(VLOOKUP($A73,Filtro!$A$5:$AW$2591,8,FALSE),0) -> 80 | J73: =IFERROR(VLOOKUP($A73,Filtro!$A$5:$AW$2591,9,FALSE),0) -> 3 | K73: =IFERROR(VLOOKUP($A73,Filtro!$A$5:$AW$2591,10,FALSE),0) -> 5 | L73: =IFERROR(VLOOKUP($A73,Filtro!$A$5:$AW$2591,11,FALSE),0) -> 0 | M73: =IFERROR(VLOOKUP($A73,Filtro!$A$5:$AW$2591,12,FALSE),0) -> 4 | CF73: * * No olvide digitar el campo Pueblos Originarios (4 MESES) (Digite CEROS si no tiene). | CG73: * * No olvide digitar el campo Migrantes (4 MESES) (Digite CEROS si no tiene). | DB73: 0 | DC73: 0 | DD73: 0 | DE73: 0 | DF73: 0 | DG73: 0 | DH73: 0 | DI73: 0
B74: SECCION B: EVALUACIÓN, APLICACIÓN Y RESULTADOS DE ESCALAS EN LA MUJER
B75: SECCIÓN B.1: EVALUACIÓN DEL ESTADO NUTRICIONAL A MUJERES CONTROLADAS AL OCTAVO MES POST PARTO
B76: ESTADO NUTRICIONAL | C76: TOTAL
B78: TOTAL | C78: =SUM(C79:C82) -> 672
A79: 03500120 | B79: OBESA | C79: =IFERROR(VLOOKUP($A79,Filtro!$A$5:$AW$2591,2,FALSE),0) -> 254
A80: 03500130 | B80: SOBREPESO | C80: =IFERROR(VLOOKUP($A80,Filtro!$A$5:$AW$2591,2,FALSE),0) -> 256
A81: 03500140 | B81: NORMAL | C81: =IFERROR(VLOOKUP($A81,Filtro!$A$5:$AW$2591,2,FALSE),0) -> 148
A82: 03500150 | B82: BAJO PESO | C82: =IFERROR(VLOOKUP($A82,Filtro!$A$5:$AW$2591,2,FALSE),0) -> 14
B83: SECCIÓN B.2: APLICACIÓN DE ESCALA SEGÚN EVALUACIÓN DE RIESGO PSICOSOCIAL ABREVIADA A GESTANTES
B84: TIPO | C84: Total de Aplicaciones | D84: Riesgo | E84: Derivadas a equipo de cabecera | F84: Violencia Intrafamiliar | CG84: 0
A85: 02021830 | B85: EVALUACIÓN AL INGRESO | C85: =IFERROR(VLOOKUP($A85,Filtro!$A$5:$AW$2591,2,FALSE),0) -> 4649 | D85: =IFERROR(VLOOKUP($A85,Filtro!$A$5:$AW$2591,3,FALSE),0) -> 1298 | E85: =IFERROR(VLOOKUP($A85,Filtro!$A$5:$AW$2591,4,FALSE),0) -> 1053 | F85: =IFERROR(VLOOKUP($A85,Filtro!$A$5:$AW$2591,5,FALSE),0) -> 106 | G85: =CA85&CB85&CC85 ->  | BU85: =IF(CA85=1,"* Las Aplicaciones de EPSA con resultado de Riesgo NO DEBE ser MAYOR que el Total de las aplicaciones. ","") ->  | CA85: =IF(CG85=1,"* Las Aplicaciones de EPSA con resultado de Riesgo NO DEBE ser MAYOR que el Total de las aplicaciones. ","") ->  | CB85: =IF(CH85=1,"* Las Aplicaciones de EPSA con resultado de Riesgo NO DEBE ser MENOR que las Derivaciones a equipo de cabecera. ","") ->  | CC85: =IF(CI85=1,"* Las Aplicaciones de EPSA asociadas a Violencia Intrafamiliar NO DEBEN ser MAYOR al Total de las aplicaciones. ","") ->  | CG85: =IF(C85<D85,1,0) -> 0 | CH85: =IF(D85<E85,1,0) -> 0 | CI85: =IF(F85>C85,1,0) -> 0
A86: 03600160 | B86: EVALUACIÓN AL TERCER TRIMESTRE | C86: =IFERROR(VLOOKUP($A86,Filtro!$A$5:$AW$2591,2,FALSE),0) -> 301 | D86: =IFERROR(VLOOKUP($A86,Filtro!$A$5:$AW$2591,3,FALSE),0) -> 44 | E86: =IFERROR(VLOOKUP($A86,Filtro!$A$5:$AW$2591,4,FALSE),0) -> 33 | F86: =IFERROR(VLOOKUP($A86,Filtro!$A$5:$AW$2591,5,FALSE),0) -> 1 | G86: =CA86&CB86&CC86 ->  | CA86: =IF(CG86=1,"* Las Aplicaciones de EPSA con resultado de Riesgo NO DEBE ser MAYOR que el Total de las aplicaciones. ","") ->  | CB86: =IF(CH86=1,"* Las Aplicaciones de EPSA con resultado de Riesgo NO DEBE ser MENOR que las Derivaciones a equipo de cabecera. ","") ->  | CC86: =IF(CI86=1,"* Las Aplicaciones de EPSA asociadas a Violencia Intrafamiliar NO DEBEN ser MAYOR al Total de las aplicaciones. ","") ->  | CG86: =IF(C86<D86,1,0) -> 0 | CH86: =IF(D86<E86,1,0) -> 0 | CI86: =IF(F86>C86,1,0) -> 0
B87: SECCIÓN B.3: APLICACIÓN DE ESCALA DE EDIMBURGO A GESTANTES Y MUJERES POST PARTO | CH87: 0
B88: CONCEPTO | D88: TOTAL DE APLICACIONES | E88: RESULTADOS 10 O MÁS PTOS. O RESULTADO DISTINTO DE 0 EN PREG 10 . (PUERPERAS) | F88: RESULTADOS 13 O MÁS PTOS O RESULTADO DISTINTO DE 0 EN PREG 10. (GESTANTES) | G88: TOTAL DE CASOS ALTERADOS DERIVADOS A SALUD MENTAL | CH88: 0
A89: 03500160 | B89: EVALUACIÓN A GESTANTES | C89: PRIMERA EVALUACIÓN (2º control prenatal) | D89: =IFERROR(VLOOKUP($A89,Filtro!$A$5:$AW$2591,2,FALSE),0) -> 4633 | E89: =IFERROR(VLOOKUP($A89,Filtro!$A$5:$AW$2591,3,FALSE),0) -> 0 | F89: =IFERROR(VLOOKUP($A89,Filtro!$A$5:$AW$2591,4,FALSE),0) -> 437 | G89: =IFERROR(VLOOKUP($A89,Filtro!$A$5:$AW$2591,5,FALSE),0) -> 421 | CH89: 0 | DA89: 0 | DC89: 0
A90: 03500170 | C90: REEVALUACIÓN (con puntaje elevado en la primera evaluación) | D90: =IFERROR(VLOOKUP($A90,Filtro!$A$5:$AW$2591,2,FALSE),0) -> 70 | E90: =IFERROR(VLOOKUP($A90,Filtro!$A$5:$AW$2591,3,FALSE),0) -> 0 | F90: =IFERROR(VLOOKUP($A90,Filtro!$A$5:$AW$2591,4,FALSE),0) -> 25 | G90: =IFERROR(VLOOKUP($A90,Filtro!$A$5:$AW$2591,5,FALSE),0) -> 12 | CH90: 0 | DC90: 0
A91: 03500200 | B91: EVALUACIÓN A MUJERES POST PARTO O SÍNTOMAS DE DEPRESIÓN | C91: A los 2 meses | D91: =IFERROR(VLOOKUP($A91,Filtro!$A$5:$AW$2591,2,FALSE),0) -> 3426 | E91: =IFERROR(VLOOKUP($A91,Filtro!$A$5:$AW$2591,3,FALSE),0) -> 519 | F91: =IFERROR(VLOOKUP($A91,Filtro!$A$5:$AW$2591,4,FALSE),0) -> 0 | G91: =IFERROR(VLOOKUP($A91,Filtro!$A$5:$AW$2591,5,FALSE),0) -> 392 | CH91: 0 | DB91: 0
A92: 03500210 | C92: A los 6 meses | D92: =IFERROR(VLOOKUP($A92,Filtro!$A$5:$AW$2591,2,FALSE),0) -> 3278 | E92: =IFERROR(VLOOKUP($A92,Filtro!$A$5:$AW$2591,3,FALSE),0) -> 500 | F92: =IFERROR(VLOOKUP($A92,Filtro!$A$5:$AW$2591,4,FALSE),0) -> 0 | G92: =IFERROR(VLOOKUP($A92,Filtro!$A$5:$AW$2591,5,FALSE),0) -> 360 | CH92: 0 | DB92: 0
B93: SECCIÓN C: RESULTADOS DE LA EVALUACIÓN DEL ESTADO NUTRICIONAL DEL ADOLESCENTE CON CONTROL SALUD INTEGRAL
B94: ESTADO NUTRICIONAL | D94: TOTAL | G94: 10 A 14 años | I94: 15 A 19 años
D95: Ambos Sexos | E95: Hombres | F95: Mujeres | G95: Hombres | H95: Mujeres | I95: Hombres | J95: Mujeres
B96: TOTAL | D96: =SUM(D97:D101) -> 9401 | E96: =SUM(E97:E101) -> 4002 | F96: 5399 | G96: =SUM(G97:G101) -> 2889 | H96: =SUM(H97:H101) -> 3530 | I96: 1113 | J96: 1869
A97: 03050400 | B97: NORMAL | D97: =SUM(E97+F97) -> 4127 | E97: =SUM(G97+I97) -> 1720 | F97: =SUM(H97+J97) -> 2407 | G97: =IFERROR(VLOOKUP($A97,Filtro!$A$5:$AW$2591,5,FALSE),0) -> 1188 | H97: =IFERROR(VLOOKUP($A97,Filtro!$A$5:$AW$2591,6,FALSE),0) -> 1605 | I97: =IFERROR(VLOOKUP($A97,Filtro!$A$5:$AW$2591,7,FALSE),0) -> 532 | J97: =IFERROR(VLOOKUP($A97,Filtro!$A$5:$AW$2591,8,FALSE),0) -> 802
A98: 03050500 | B98: BAJO PESO | D98: =SUM(E98+F98) -> 599 | E98: 325 | F98: 274 | G98: =IFERROR(VLOOKUP($A98,Filtro!$A$5:$AW$2591,5,FALSE),0) -> 212 | H98: =IFERROR(VLOOKUP($A98,Filtro!$A$5:$AW$2591,6,FALSE),0) -> 178 | I98: =IFERROR(VLOOKUP($A98,Filtro!$A$5:$AW$2591,7,FALSE),0) -> 113 | J98: =IFERROR(VLOOKUP($A98,Filtro!$A$5:$AW$2591,8,FALSE),0) -> 96
A99: 03050600 | B99: SOBREPESO | D99: =SUM(E99+F99) -> 2395 | E99: 915 | F99: 1480 | G99: =IFERROR(VLOOKUP($A99,Filtro!$A$5:$AW$2591,5,FALSE),0) -> 689 | H99: =IFERROR(VLOOKUP($A99,Filtro!$A$5:$AW$2591,6,FALSE),0) -> 958 | I99: =IFERROR(VLOOKUP($A99,Filtro!$A$5:$AW$2591,7,FALSE),0) -> 226 | J99: =IFERROR(VLOOKUP($A99,Filtro!$A$5:$AW$2591,8,FALSE),0) -> 522
A100: 03050700 | B100: OBESOS | D100: =SUM(E100+F100) -> 1913 | E100: 860 | F100: 1053 | G100: =IFERROR(VLOOKUP($A100,Filtro!$A$5:$AW$2591,5,FALSE),0) -> 666 | H100: =IFERROR(VLOOKUP($A100,Filtro!$A$5:$AW$2591,6,FALSE),0) -> 677 | I100: =IFERROR(VLOOKUP($A100,Filtro!$A$5:$AW$2591,7,FALSE),0) -> 194 | J100: =IFERROR(VLOOKUP($A100,Filtro!$A$5:$AW$2591,8,FALSE),0) -> 376
A101: 03050710 | B101: OBESOS SEVEROS | D101: =SUM(E101+F101) -> 367 | E101: 182 | F101: 185 | G101: =IFERROR(VLOOKUP($A101,Filtro!$A$5:$AW$2591,5,FALSE),0) -> 134 | H101: =IFERROR(VLOOKUP($A101,Filtro!$A$5:$AW$2591,6,FALSE),0) -> 112 | I101: =IFERROR(VLOOKUP($A101,Filtro!$A$5:$AW$2591,7,FALSE),0) -> 48 | J101: =IFERROR(VLOOKUP($A101,Filtro!$A$5:$AW$2591,8,FALSE),0) -> 73
B102: SECCIÓN D: OTRAS EVALUACIONES, APLICACIONES Y RESULTADOS DE ESCALAS EN TODAS LAS EDADES
B103: SECCIÓN D.1: APLICACIÓN DE TAMIZAJE PARA EVALUAR EL NIVEL DE RIESGO DE CONSUMO DE ALCOHOL, TABACO Y OTRAS DROGAS
B104: COMPONENTE | D104: TOTAL | G104: POR EDAD
G105: 10-14 años | I105: 15-19 años | K105: 20-24 años | M105: 25-44 años | O105: 45-64 años | Q105: 65-69 años | S105: 70-79 años | U105: 80 y más años
D106: Ambos Sexos | E106: Hombres | F106: Mujeres | G106: Hombres | H106: Mujeres | I106: Hombres | J106: Mujeres | K106: Hombres | L106: Mujeres | M106: Hombres | N106: Mujeres | O106: Hombres | P106: Mujeres | Q106: Hombres | R106: Mujeres | S106: Hombres | T106: Mujeres | U106: Hombres | V106: Mujeres
A107: 03500346 | B107: Nº DE AUDIT (EMP/EMPAM) | D107: =SUM(E107+F107) -> 29540 | E107: =+I107+K107+M107+O107+Q107+S107+U107 -> 9986 | F107: =+J107+L107+N107+P107+R107+T107+V107 -> 19554 | G107: =IFERROR(VLOOKUP($A107,Filtro!$A$5:$AW$2591,5,FALSE),0) -> 0 | H107: =IFERROR(VLOOKUP($A107,Filtro!$A$5:$AW$2591,6,FALSE),0) -> 0 | I107: =IFERROR(VLOOKUP($A107,Filtro!$A$5:$AW$2591,7,FALSE),0) -> 134 | J107: =IFERROR(VLOOKUP($A107,Filtro!$A$5:$AW$2591,8,FALSE),0) -> 238 | K107: =IFERROR(VLOOKUP($A107,Filtro!$A$5:$AW$2591,9,FALSE),0) -> 587 | L107: =IFERROR(VLOOKUP($A107,Filtro!$A$5:$AW$2591,10,FALSE),0) -> 1483 | M107: =IFERROR(VLOOKUP($A107,Filtro!$A$5:$AW$2591,11,FALSE),0) -> 2829 | N107: =IFERROR(VLOOKUP($A107,Filtro!$A$5:$AW$2591,12,FALSE),0) -> 6758 | O107: =IFERROR(VLOOKUP($A107,Filtro!$A$5:$AW$2591,13,FALSE),0) -> 2435 | P107: =IFERROR(VLOOKUP($A107,Filtro!$A$5:$AW$2591,14,FALSE),0) -> 4664 | Q107: =IFERROR(VLOOKUP($A107,Filtro!$A$5:$AW$2591,15,FALSE),0) -> 1096 | R107: =IFERROR(VLOOKUP($A107,Filtro!$A$5:$AW$2591,16,FALSE),0) -> 1889 | S107: =IFERROR(VLOOKUP($A107,Filtro!$A$5:$AW$2591,17,FALSE),0) -> 1889 | T107: =IFERROR(VLOOKUP($A107,Filtro!$A$5:$AW$2591,18,FALSE),0) -> 2826 | U107: =IFERROR(VLOOKUP($A107,Filtro!$A$5:$AW$2591,19,FALSE),0) -> 1016 | V107: =IFERROR(VLOOKUP($A107,Filtro!$A$5:$AW$2591,20,FALSE),0) -> 1696
A108: 03500347 | B108: Nº DE AUDIT APLICADO | D108: =SUM(E108+F108) -> 21546 | E108: =SUM(K108+M108+O108+Q108+S108+U108) -> 7692 | F108: 13854 | G108: =IFERROR(VLOOKUP($A108,Filtro!$A$5:$AW$2591,5,FALSE),0) -> 0 | H108: =IFERROR(VLOOKUP($A108,Filtro!$A$5:$AW$2591,6,FALSE),0) -> 0 | I108: =IFERROR(VLOOKUP($A108,Filtro!$A$5:$AW$2591,7,FALSE),0) -> 0 | J108: =IFERROR(VLOOKUP($A108,Filtro!$A$5:$AW$2591,8,FALSE),0) -> 0 | K108: =IFERROR(VLOOKUP($A108,Filtro!$A$5:$AW$2591,9,FALSE),0) -> 959 | L108: =IFERROR(VLOOKUP($A108,Filtro!$A$5:$AW$2591,10,FALSE),0) -> 1587 | M108: =IFERROR(VLOOKUP($A108,Filtro!$A$5:$AW$2591,11,FALSE),0) -> 2342 | N108: =IFERROR(VLOOKUP($A108,Filtro!$A$5:$AW$2591,12,FALSE),0) -> 5099 | O108: =IFERROR(VLOOKUP($A108,Filtro!$A$5:$AW$2591,13,FALSE),0) -> 2158 | P108: =IFERROR(VLOOKUP($A108,Filtro!$A$5:$AW$2591,14,FALSE),0) -> 4159 | Q108: =IFERROR(VLOOKUP($A108,Filtro!$A$5:$AW$2591,15,FALSE),0) -> 863 | R108: =IFERROR(VLOOKUP($A108,Filtro!$A$5:$AW$2591,16,FALSE),0) -> 1260 | S108: =IFERROR(VLOOKUP($A108,Filtro!$A$5:$AW$2591,17,FALSE),0) -> 933 | T108: =IFERROR(VLOOKUP($A108,Filtro!$A$5:$AW$2591,18,FALSE),0) -> 1253 | U108: =IFERROR(VLOOKUP($A108,Filtro!$A$5:$AW$2591,19,FALSE),0) -> 437 | V108: =IFERROR(VLOOKUP($A108,Filtro!$A$5:$AW$2591,20,FALSE),0) -> 496
A109: 03500402 | B109: Nº DE ASSIST (EMP/EMPAM) | D109: 1760 | E109: 617 | F109: 1143 | G109: =IFERROR(VLOOKUP($A109,Filtro!$A$5:$AW$2591,5,FALSE),0) -> 0 | H109: =IFERROR(VLOOKUP($A109,Filtro!$A$5:$AW$2591,6,FALSE),0) -> 0 | I109: =IFERROR(VLOOKUP($A109,Filtro!$A$5:$AW$2591,7,FALSE),0) -> 0 | J109: =IFERROR(VLOOKUP($A109,Filtro!$A$5:$AW$2591,8,FALSE),0) -> 0 | K109: =IFERROR(VLOOKUP($A109,Filtro!$A$5:$AW$2591,9,FALSE),0) -> 44 | L109: =IFERROR(VLOOKUP($A109,Filtro!$A$5:$AW$2591,10,FALSE),0) -> 88 | M109: =IFERROR(VLOOKUP($A109,Filtro!$A$5:$AW$2591,11,FALSE),0) -> 167 | N109: =IFERROR(VLOOKUP($A109,Filtro!$A$5:$AW$2591,12,FALSE),0) -> 397 | O109: =IFERROR(VLOOKUP($A109,Filtro!$A$5:$AW$2591,13,FALSE),0) -> 118 | P109: =IFERROR(VLOOKUP($A109,Filtro!$A$5:$AW$2591,14,FALSE),0) -> 282 | Q109: =IFERROR(VLOOKUP($A109,Filtro!$A$5:$AW$2591,15,FALSE),0) -> 112 | R109: =IFERROR(VLOOKUP($A109,Filtro!$A$5:$AW$2591,16,FALSE),0) -> 124 | S109: =IFERROR(VLOOKUP($A109,Filtro!$A$5:$AW$2591,17,FALSE),0) -> 118 | T109: =IFERROR(VLOOKUP($A109,Filtro!$A$5:$AW$2591,18,FALSE),0) -> 171 | U109: =IFERROR(VLOOKUP($A109,Filtro!$A$5:$AW$2591,19,FALSE),0) -> 58 | V109: =IFERROR(VLOOKUP($A109,Filtro!$A$5:$AW$2591,20,FALSE),0) -> 81
A110: 03500348 | B110: N° DE ASSIST APLICADO | D110: 2078 | E110: 543 | F110: 1535 | G110: =IFERROR(VLOOKUP($A110,Filtro!$A$5:$AW$2591,5,FALSE),0) -> 0 | H110: =IFERROR(VLOOKUP($A110,Filtro!$A$5:$AW$2591,6,FALSE),0) -> 0 | I110: =IFERROR(VLOOKUP($A110,Filtro!$A$5:$AW$2591,7,FALSE),0) -> 0 | J110: =IFERROR(VLOOKUP($A110,Filtro!$A$5:$AW$2591,8,FALSE),0) -> 0 | K110: =IFERROR(VLOOKUP($A110,Filtro!$A$5:$AW$2591,9,FALSE),0) -> 45 | L110: =IFERROR(VLOOKUP($A110,Filtro!$A$5:$AW$2591,10,FALSE),0) -> 127 | M110: =IFERROR(VLOOKUP($A110,Filtro!$A$5:$AW$2591,11,FALSE),0) -> 212 | N110: =IFERROR(VLOOKUP($A110,Filtro!$A$5:$AW$2591,12,FALSE),0) -> 602 | O110: =IFERROR(VLOOKUP($A110,Filtro!$A$5:$AW$2591,13,FALSE),0) -> 189 | P110: =IFERROR(VLOOKUP($A110,Filtro!$A$5:$AW$2591,14,FALSE),0) -> 615 | Q110: =IFERROR(VLOOKUP($A110,Filtro!$A$5:$AW$2591,15,FALSE),0) -> 44 | R110: =IFERROR(VLOOKUP($A110,Filtro!$A$5:$AW$2591,16,FALSE),0) -> 82 | S110: =IFERROR(VLOOKUP($A110,Filtro!$A$5:$AW$2591,17,FALSE),0) -> 41 | T110: =IFERROR(VLOOKUP($A110,Filtro!$A$5:$AW$2591,18,FALSE),0) -> 84 | U110: =IFERROR(VLOOKUP($A110,Filtro!$A$5:$AW$2591,19,FALSE),0) -> 12 | V110: =IFERROR(VLOOKUP($A110,Filtro!$A$5:$AW$2591,20,FALSE),0) -> 25
A111: 03600100 | B111: N° DE CRAFFT EN CONTROL DE SALUD INTEGRAL DEL ADOLESCENTE | D111: 3816 | E111: =+G111+I111 -> 1687 | F111: =+H111+J111 -> 2129 | G111: =IFERROR(VLOOKUP($A111,Filtro!$A$5:$AW$2591,5,FALSE),0) -> 1077 | H111: =IFERROR(VLOOKUP($A111,Filtro!$A$5:$AW$2591,6,FALSE),0) -> 1288 | I111: =IFERROR(VLOOKUP($A111,Filtro!$A$5:$AW$2591,7,FALSE),0) -> 610 | J111: =IFERROR(VLOOKUP($A111,Filtro!$A$5:$AW$2591,8,FALSE),0) -> 841 | K111: =IFERROR(VLOOKUP($A111,Filtro!$A$5:$AW$2591,9,FALSE),0) -> 0 | L111: =IFERROR(VLOOKUP($A111,Filtro!$A$5:$AW$2591,10,FALSE),0) -> 0 | M111: =IFERROR(VLOOKUP($A111,Filtro!$A$5:$AW$2591,11,FALSE),0) -> 0 | N111: =IFERROR(VLOOKUP($A111,Filtro!$A$5:$AW$2591,12,FALSE),0) -> 0 | O111: =IFERROR(VLOOKUP($A111,Filtro!$A$5:$AW$2591,13,FALSE),0) -> 0 | P111: =IFERROR(VLOOKUP($A111,Filtro!$A$5:$AW$2591,14,FALSE),0) -> 0 | Q111: =IFERROR(VLOOKUP($A111,Filtro!$A$5:$AW$2591,15,FALSE),0) -> 0 | R111: =IFERROR(VLOOKUP($A111,Filtro!$A$5:$AW$2591,16,FALSE),0) -> 0 | S111: =IFERROR(VLOOKUP($A111,Filtro!$A$5:$AW$2591,17,FALSE),0) -> 0 | T111: =IFERROR(VLOOKUP($A111,Filtro!$A$5:$AW$2591,18,FALSE),0) -> 0 | U111: =IFERROR(VLOOKUP($A111,Filtro!$A$5:$AW$2591,19,FALSE),0) -> 0 | V111: =IFERROR(VLOOKUP($A111,Filtro!$A$5:$AW$2591,20,FALSE),0) -> 0
A112: 03500367 | B112: N° DE CRAFFT APLICADO | D112: 3769 | E112: =+G112+I112 -> 1637 | F112: =+H112+J112 -> 2132 | G112: =IFERROR(VLOOKUP($A112,Filtro!$A$5:$AW$2591,5,FALSE),0) -> 901 | H112: =IFERROR(VLOOKUP($A112,Filtro!$A$5:$AW$2591,6,FALSE),0) -> 1091 | I112: =IFERROR(VLOOKUP($A112,Filtro!$A$5:$AW$2591,7,FALSE),0) -> 736 | J112: =IFERROR(VLOOKUP($A112,Filtro!$A$5:$AW$2591,8,FALSE),0) -> 1041 | K112: =IFERROR(VLOOKUP($A112,Filtro!$A$5:$AW$2591,9,FALSE),0) -> 0 | L112: =IFERROR(VLOOKUP($A112,Filtro!$A$5:$AW$2591,10,FALSE),0) -> 0 | M112: =IFERROR(VLOOKUP($A112,Filtro!$A$5:$AW$2591,11,FALSE),0) -> 0 | N112: =IFERROR(VLOOKUP($A112,Filtro!$A$5:$AW$2591,12,FALSE),0) -> 0 | O112: =IFERROR(VLOOKUP($A112,Filtro!$A$5:$AW$2591,13,FALSE),0) -> 0 | P112: =IFERROR(VLOOKUP($A112,Filtro!$A$5:$AW$2591,14,FALSE),0) -> 0 | Q112: =IFERROR(VLOOKUP($A112,Filtro!$A$5:$AW$2591,15,FALSE),0) -> 0 | R112: =IFERROR(VLOOKUP($A112,Filtro!$A$5:$AW$2591,16,FALSE),0) -> 0 | S112: =IFERROR(VLOOKUP($A112,Filtro!$A$5:$AW$2591,17,FALSE),0) -> 0 | T112: =IFERROR(VLOOKUP($A112,Filtro!$A$5:$AW$2591,18,FALSE),0) -> 0 | U112: =IFERROR(VLOOKUP($A112,Filtro!$A$5:$AW$2591,19,FALSE),0) -> 0 | V112: =IFERROR(VLOOKUP($A112,Filtro!$A$5:$AW$2591,20,FALSE),0) -> 0
A113: 03500349 | B113: RESULTADOS DE EVALUACIÓN | C113: BAJO RIESGO | D113: 56001 | E113: =SUM(G113+I113+K113+M113+O113+Q113+S113+U113) -> 19570 | F113: 36431 | G113: =IFERROR(VLOOKUP($A113,Filtro!$A$5:$AW$2591,5,FALSE),0) -> 1735 | H113: =IFERROR(VLOOKUP($A113,Filtro!$A$5:$AW$2591,6,FALSE),0) -> 2068 | I113: =IFERROR(VLOOKUP($A113,Filtro!$A$5:$AW$2591,7,FALSE),0) -> 1148 | J113: =IFERROR(VLOOKUP($A113,Filtro!$A$5:$AW$2591,8,FALSE),0) -> 1748 | K113: =IFERROR(VLOOKUP($A113,Filtro!$A$5:$AW$2591,9,FALSE),0) -> 1448 | L113: =IFERROR(VLOOKUP($A113,Filtro!$A$5:$AW$2591,10,FALSE),0) -> 2980 | M113: =IFERROR(VLOOKUP($A113,Filtro!$A$5:$AW$2591,11,FALSE),0) -> 4841 | N113: =IFERROR(VLOOKUP($A113,Filtro!$A$5:$AW$2591,12,FALSE),0) -> 11471 | O113: =IFERROR(VLOOKUP($A113,Filtro!$A$5:$AW$2591,13,FALSE),0) -> 4286 | P113: =IFERROR(VLOOKUP($A113,Filtro!$A$5:$AW$2591,14,FALSE),0) -> 8746 | Q113: =IFERROR(VLOOKUP($A113,Filtro!$A$5:$AW$2591,15,FALSE),0) -> 1949 | R113: =IFERROR(VLOOKUP($A113,Filtro!$A$5:$AW$2591,16,FALSE),0) -> 3162 | S113: =IFERROR(VLOOKUP($A113,Filtro!$A$5:$AW$2591,17,FALSE),0) -> 2729 | T113: =IFERROR(VLOOKUP($A113,Filtro!$A$5:$AW$2591,18,FALSE),0) -> 4082 | U113: =IFERROR(VLOOKUP($A113,Filtro!$A$5:$AW$2591,19,FALSE),0) -> 1434 | V113: =IFERROR(VLOOKUP($A113,Filtro!$A$5:$AW$2591,20,FALSE),0) -> 2174
A114: 03500290 | C114: CONSUMO RIESGOSO / INTERMEDIO | D114: 2903 | E114: 1214 | F114: 1689 | G114: =IFERROR(VLOOKUP($A114,Filtro!$A$5:$AW$2591,5,FALSE),0) -> 28 | H114: =IFERROR(VLOOKUP($A114,Filtro!$A$5:$AW$2591,6,FALSE),0) -> 35 | I114: =IFERROR(VLOOKUP($A114,Filtro!$A$5:$AW$2591,7,FALSE),0) -> 124 | J114: =IFERROR(VLOOKUP($A114,Filtro!$A$5:$AW$2591,8,FALSE),0) -> 132 | K114: =IFERROR(VLOOKUP($A114,Filtro!$A$5:$AW$2591,9,FALSE),0) -> 123 | L114: =IFERROR(VLOOKUP($A114,Filtro!$A$5:$AW$2591,10,FALSE),0) -> 202 | M114: =IFERROR(VLOOKUP($A114,Filtro!$A$5:$AW$2591,11,FALSE),0) -> 427 | N114: =IFERROR(VLOOKUP($A114,Filtro!$A$5:$AW$2591,12,FALSE),0) -> 697 | O114: =IFERROR(VLOOKUP($A114,Filtro!$A$5:$AW$2591,13,FALSE),0) -> 311 | P114: =IFERROR(VLOOKUP($A114,Filtro!$A$5:$AW$2591,14,FALSE),0) -> 415 | Q114: =IFERROR(VLOOKUP($A114,Filtro!$A$5:$AW$2591,15,FALSE),0) -> 94 | R114: =IFERROR(VLOOKUP($A114,Filtro!$A$5:$AW$2591,16,FALSE),0) -> 82 | S114: =IFERROR(VLOOKUP($A114,Filtro!$A$5:$AW$2591,17,FALSE),0) -> 88 | T114: =IFERROR(VLOOKUP($A114,Filtro!$A$5:$AW$2591,18,FALSE),0) -> 104 | U114: =IFERROR(VLOOKUP($A114,Filtro!$A$5:$AW$2591,19,FALSE),0) -> 19 | V114: =IFERROR(VLOOKUP($A114,Filtro!$A$5:$AW$2591,20,FALSE),0) -> 22
A115: 03500300 | C115: POSIBLE CONSUMO PERJUDICIAL O DEPENDENCIA | D115: 571 | E115: 327 | F115: 244 | G115: =IFERROR(VLOOKUP($A115,Filtro!$A$5:$AW$2591,5,FALSE),0) -> 23 | H115: =IFERROR(VLOOKUP($A115,Filtro!$A$5:$AW$2591,6,FALSE),0) -> 24 | I115: =IFERROR(VLOOKUP($A115,Filtro!$A$5:$AW$2591,7,FALSE),0) -> 71 | J115: =IFERROR(VLOOKUP($A115,Filtro!$A$5:$AW$2591,8,FALSE),0) -> 58 | K115: =IFERROR(VLOOKUP($A115,Filtro!$A$5:$AW$2591,9,FALSE),0) -> 19 | L115: =IFERROR(VLOOKUP($A115,Filtro!$A$5:$AW$2591,10,FALSE),0) -> 13 | M115: =IFERROR(VLOOKUP($A115,Filtro!$A$5:$AW$2591,11,FALSE),0) -> 80 | N115: =IFERROR(VLOOKUP($A115,Filtro!$A$5:$AW$2591,12,FALSE),0) -> 62 | O115: =IFERROR(VLOOKUP($A115,Filtro!$A$5:$AW$2591,13,FALSE),0) -> 91 | P115: =IFERROR(VLOOKUP($A115,Filtro!$A$5:$AW$2591,14,FALSE),0) -> 55 | Q115: =IFERROR(VLOOKUP($A115,Filtro!$A$5:$AW$2591,15,FALSE),0) -> 18 | R115: =IFERROR(VLOOKUP($A115,Filtro!$A$5:$AW$2591,16,FALSE),0) -> 24 | S115: =IFERROR(VLOOKUP($A115,Filtro!$A$5:$AW$2591,17,FALSE),0) -> 23 | T115: =IFERROR(VLOOKUP($A115,Filtro!$A$5:$AW$2591,18,FALSE),0) -> 5 | U115: =IFERROR(VLOOKUP($A115,Filtro!$A$5:$AW$2591,19,FALSE),0) -> 2 | V115: =IFERROR(VLOOKUP($A115,Filtro!$A$5:$AW$2591,20,FALSE),0) -> 3
B116: SECCIÓN D.2: RESULTADOS DE LA APLICACIÓN DE INSTRUMENTO DE VALORACIÓN DE DESEMPEÑO EN COMUNIDAD (IVADEC-CIF)
B117: ACTIVIDAD | C117: RESULTADO | D117: TOTAL | G117: POR EDAD
G118: 6 -11 meses | I118: 12 - 23 meses | K118: 2 - 4 años | M118: 5 - 9 años | O118: 10 a 14 años | Q118: 15 a 19 años | S118: 20 a 24 años | U118: 25 a 64 años | W118: 65 a 69 años | Y118: 70 a 79 años | AA118: 80 y más años
D119: Ambos Sexos | E119: Hombres | F119: Mujeres | G119: Hombres | H119: Mujeres | I119: Hombres | J119: Mujeres | K119: Hombres | L119: Mujeres | M119: Hombres | N119: Mujeres | O119: Hombres | P119: Mujeres | Q119: Hombres | R119: Mujeres | S119: Hombres | T119: Mujeres | U119: Hombres | V119: Mujeres | W119: Hombres | X119: Mujeres | Y119: Hombres | Z119: Mujeres | AA119: Hombres | AB119: Mujeres
A120: 03051000A | B120: ORIGEN FÍSICO | C120: SIN DISCAPACIDAD | D120: =SUM(E120+F120) -> 9 | E120: =SUM(G120+I120+K120+M120+O120+Q120+S120+U120+W120+Y120+AA120) -> 7 | F120: =SUM(H120+J120+L120+N120+P120+R120+T120+V120+X120+Z120+AB120) -> 2 | G120: =IFERROR(VLOOKUP($A120,Filtro!$A$5:$AW$2591,5,FALSE),0) -> 0 | H120: =IFERROR(VLOOKUP($A120,Filtro!$A$5:$AW$2591,6,FALSE),0) -> 0 | I120: =IFERROR(VLOOKUP($A120,Filtro!$A$5:$AW$2591,7,FALSE),0) -> 0 | J120: =IFERROR(VLOOKUP($A120,Filtro!$A$5:$AW$2591,8,FALSE),0) -> 0 | K120: =IFERROR(VLOOKUP($A120,Filtro!$A$5:$AW$2591,9,FALSE),0) -> 1 | L120: =IFERROR(VLOOKUP($A120,Filtro!$A$5:$AW$2591,10,FALSE),0) -> 0 | M120: =IFERROR(VLOOKUP($A120,Filtro!$A$5:$AW$2591,11,FALSE),0) -> 0 | N120: =IFERROR(VLOOKUP($A120,Filtro!$A$5:$AW$2591,12,FALSE),0) -> 0 | O120: =IFERROR(VLOOKUP($A120,Filtro!$A$5:$AW$2591,13,FALSE),0) -> 0 | P120: =IFERROR(VLOOKUP($A120,Filtro!$A$5:$AW$2591,14,FALSE),0) -> 0 | Q120: =IFERROR(VLOOKUP($A120,Filtro!$A$5:$AW$2591,15,FALSE),0) -> 0 | R120: =IFERROR(VLOOKUP($A120,Filtro!$A$5:$AW$2591,16,FALSE),0) -> 0 | S120: =IFERROR(VLOOKUP($A120,Filtro!$A$5:$AW$2591,17,FALSE),0) -> 0 | T120: =IFERROR(VLOOKUP($A120,Filtro!$A$5:$AW$2591,18,FALSE),0) -> 0 | U120: =IFERROR(VLOOKUP($A120,Filtro!$A$5:$AW$2591,19,FALSE),0) -> 4 | V120: =IFERROR(VLOOKUP($A120,Filtro!$A$5:$AW$2591,20,FALSE),0) -> 1 | W120: =IFERROR(VLOOKUP($A120,Filtro!$A$5:$AW$2591,21,FALSE),0) -> 1 | X120: =IFERROR(VLOOKUP($A120,Filtro!$A$5:$AW$2591,22,FALSE),0) -> 0 | Y120: =IFERROR(VLOOKUP($A120,Filtro!$A$5:$AW$2591,23,FALSE),0) -> 1 | Z120: =IFERROR(VLOOKUP($A120,Filtro!$A$5:$AW$2591,24,FALSE),0) -> 1 | AA120: =IFERROR(VLOOKUP($A120,Filtro!$A$5:$AW$2591,25,FALSE),0) -> 0 | AB120: =IFERROR(VLOOKUP($A120,Filtro!$A$5:$AW$2591,26,FALSE),0) -> 0
A121: 03051100 | C121: DISCAPACIDAD LEVE | D121: 247 | E121: =SUM(G121+I121+K121+M121+O121+Q121+S121+U121+W121+Y121+AA121) -> 133 | F121: 114 | G121: =IFERROR(VLOOKUP($A121,Filtro!$A$5:$AW$2591,5,FALSE),0) -> 2 | H121: =IFERROR(VLOOKUP($A121,Filtro!$A$5:$AW$2591,6,FALSE),0) -> 1 | I121: =IFERROR(VLOOKUP($A121,Filtro!$A$5:$AW$2591,7,FALSE),0) -> 0 | J121: =IFERROR(VLOOKUP($A121,Filtro!$A$5:$AW$2591,8,FALSE),0) -> 0 | K121: =IFERROR(VLOOKUP($A121,Filtro!$A$5:$AW$2591,9,FALSE),0) -> 2 | L121: =IFERROR(VLOOKUP($A121,Filtro!$A$5:$AW$2591,10,FALSE),0) -> 1 | M121: =IFERROR(VLOOKUP($A121,Filtro!$A$5:$AW$2591,11,FALSE),0) -> 5 | N121: =IFERROR(VLOOKUP($A121,Filtro!$A$5:$AW$2591,12,FALSE),0) -> 1 | O121: =IFERROR(VLOOKUP($A121,Filtro!$A$5:$AW$2591,13,FALSE),0) -> 5 | P121: =IFERROR(VLOOKUP($A121,Filtro!$A$5:$AW$2591,14,FALSE),0) -> 2 | Q121: =IFERROR(VLOOKUP($A121,Filtro!$A$5:$AW$2591,15,FALSE),0) -> 1 | R121: =IFERROR(VLOOKUP($A121,Filtro!$A$5:$AW$2591,16,FALSE),0) -> 2 | S121: =IFERROR(VLOOKUP($A121,Filtro!$A$5:$AW$2591,17,FALSE),0) -> 1 | T121: =IFERROR(VLOOKUP($A121,Filtro!$A$5:$AW$2591,18,FALSE),0) -> 5 | U121: =IFERROR(VLOOKUP($A121,Filtro!$A$5:$AW$2591,19,FALSE),0) -> 79 | V121: =IFERROR(VLOOKUP($A121,Filtro!$A$5:$AW$2591,20,FALSE),0) -> 83 | W121: =IFERROR(VLOOKUP($A121,Filtro!$A$5:$AW$2591,21,FALSE),0) -> 18 | X121: =IFERROR(VLOOKUP($A121,Filtro!$A$5:$AW$2591,22,FALSE),0) -> 10 | Y121: =IFERROR(VLOOKUP($A121,Filtro!$A$5:$AW$2591,23,FALSE),0) -> 15 | Z121: =IFERROR(VLOOKUP($A121,Filtro!$A$5:$AW$2591,24,FALSE),0) -> 8 | AA121: =IFERROR(VLOOKUP($A121,Filtro!$A$5:$AW$2591,25,FALSE),0) -> 5 | AB121: =IFERROR(VLOOKUP($A121,Filtro!$A$5:$AW$2591,26,FALSE),0) -> 1
A122: 03051200 | C122: DISCAPACIDAD MODERADA | D122: 304 | E122: 131 | F122: 173 | G122: =IFERROR(VLOOKUP($A122,Filtro!$A$5:$AW$2591,5,FALSE),0) -> 0 | H122: =IFERROR(VLOOKUP($A122,Filtro!$A$5:$AW$2591,6,FALSE),0) -> 1 | I122: =IFERROR(VLOOKUP($A122,Filtro!$A$5:$AW$2591,7,FALSE),0) -> 0 | J122: =IFERROR(VLOOKUP($A122,Filtro!$A$5:$AW$2591,8,FALSE),0) -> 1 | K122: =IFERROR(VLOOKUP($A122,Filtro!$A$5:$AW$2591,9,FALSE),0) -> 0 | L122: =IFERROR(VLOOKUP($A122,Filtro!$A$5:$AW$2591,10,FALSE),0) -> 1 | M122: =IFERROR(VLOOKUP($A122,Filtro!$A$5:$AW$2591,11,FALSE),0) -> 3 | N122: =IFERROR(VLOOKUP($A122,Filtro!$A$5:$AW$2591,12,FALSE),0) -> 1 | O122: =IFERROR(VLOOKUP($A122,Filtro!$A$5:$AW$2591,13,FALSE),0) -> 1 | P122: =IFERROR(VLOOKUP($A122,Filtro!$A$5:$AW$2591,14,FALSE),0) -> 0 | Q122: =IFERROR(VLOOKUP($A122,Filtro!$A$5:$AW$2591,15,FALSE),0) -> 2 | R122: =IFERROR(VLOOKUP($A122,Filtro!$A$5:$AW$2591,16,FALSE),0) -> 1 | S122: =IFERROR(VLOOKUP($A122,Filtro!$A$5:$AW$2591,17,FALSE),0) -> 6 | T122: =IFERROR(VLOOKUP($A122,Filtro!$A$5:$AW$2591,18,FALSE),0) -> 3 | U122: =IFERROR(VLOOKUP($A122,Filtro!$A$5:$AW$2591,19,FALSE),0) -> 85 | V122: =IFERROR(VLOOKUP($A122,Filtro!$A$5:$AW$2591,20,FALSE),0) -> 105 | W122: =IFERROR(VLOOKUP($A122,Filtro!$A$5:$AW$2591,21,FALSE),0) -> 15 | X122: =IFERROR(VLOOKUP($A122,Filtro!$A$5:$AW$2591,22,FALSE),0) -> 31 | Y122: =IFERROR(VLOOKUP($A122,Filtro!$A$5:$AW$2591,23,FALSE),0) -> 13 | Z122: =IFERROR(VLOOKUP($A122,Filtro!$A$5:$AW$2591,24,FALSE),0) -> 21 | AA122: =IFERROR(VLOOKUP($A122,Filtro!$A$5:$AW$2591,25,FALSE),0) -> 6 | AB122: =IFERROR(VLOOKUP($A122,Filtro!$A$5:$AW$2591,26,FALSE),0) -> 8
A123: 03051300 | C123: DISCAPACIDAD SEVERA | D123: 228 | E123: 110 | F123: 118 | G123: =IFERROR(VLOOKUP($A123,Filtro!$A$5:$AW$2591,5,FALSE),0) -> 0 | H123: =IFERROR(VLOOKUP($A123,Filtro!$A$5:$AW$2591,6,FALSE),0) -> 0 | I123: =IFERROR(VLOOKUP($A123,Filtro!$A$5:$AW$2591,7,FALSE),0) -> 2 | J123: =IFERROR(VLOOKUP($A123,Filtro!$A$5:$AW$2591,8,FALSE),0) -> 1 | K123: =IFERROR(VLOOKUP($A123,Filtro!$A$5:$AW$2591,9,FALSE),0) -> 4 | L123: =IFERROR(VLOOKUP($A123,Filtro!$A$5:$AW$2591,10,FALSE),0) -> 1 | M123: =IFERROR(VLOOKUP($A123,Filtro!$A$5:$AW$2591,11,FALSE),0) -> 9 | N123: =IFERROR(VLOOKUP($A123,Filtro!$A$5:$AW$2591,12,FALSE),0) -> 4 | O123: =IFERROR(VLOOKUP($A123,Filtro!$A$5:$AW$2591,13,FALSE),0) -> 5 | P123: =IFERROR(VLOOKUP($A123,Filtro!$A$5:$AW$2591,14,FALSE),0) -> 1 | Q123: =IFERROR(VLOOKUP($A123,Filtro!$A$5:$AW$2591,15,FALSE),0) -> 1 | R123: =IFERROR(VLOOKUP($A123,Filtro!$A$5:$AW$2591,16,FALSE),0) -> 0 | S123: =IFERROR(VLOOKUP($A123,Filtro!$A$5:$AW$2591,17,FALSE),0) -> 1 | T123: =IFERROR(VLOOKUP($A123,Filtro!$A$5:$AW$2591,18,FALSE),0) -> 3 | U123: =IFERROR(VLOOKUP($A123,Filtro!$A$5:$AW$2591,19,FALSE),0) -> 46 | V123: =IFERROR(VLOOKUP($A123,Filtro!$A$5:$AW$2591,20,FALSE),0) -> 62 | W123: =IFERROR(VLOOKUP($A123,Filtro!$A$5:$AW$2591,21,FALSE),0) -> 7 | X123: =IFERROR(VLOOKUP($A123,Filtro!$A$5:$AW$2591,22,FALSE),0) -> 7 | Y123: =IFERROR(VLOOKUP($A123,Filtro!$A$5:$AW$2591,23,FALSE),0) -> 24 | Z123: =IFERROR(VLOOKUP($A123,Filtro!$A$5:$AW$2591,24,FALSE),0) -> 17 | AA123: =IFERROR(VLOOKUP($A123,Filtro!$A$5:$AW$2591,25,FALSE),0) -> 11 | AB123: =IFERROR(VLOOKUP($A123,Filtro!$A$5:$AW$2591,26,FALSE),0) -> 22
A124: 03051400 | C124: DISCAPACIDAD PROFUNDA | D124: 18 | E124: 8 | F124: 10 | G124: =IFERROR(VLOOKUP($A124,Filtro!$A$5:$AW$2591,5,FALSE),0) -> 0 | H124: =IFERROR(VLOOKUP($A124,Filtro!$A$5:$AW$2591,6,FALSE),0) -> 0 | I124: =IFERROR(VLOOKUP($A124,Filtro!$A$5:$AW$2591,7,FALSE),0) -> 0 | J124: =IFERROR(VLOOKUP($A124,Filtro!$A$5:$AW$2591,8,FALSE),0) -> 0 | K124: =IFERROR(VLOOKUP($A124,Filtro!$A$5:$AW$2591,9,FALSE),0) -> 1 | L124: =IFERROR(VLOOKUP($A124,Filtro!$A$5:$AW$2591,10,FALSE),0) -> 1 | M124: =IFERROR(VLOOKUP($A124,Filtro!$A$5:$AW$2591,11,FALSE),0) -> 0 | N124: =IFERROR(VLOOKUP($A124,Filtro!$A$5:$AW$2591,12,FALSE),0) -> 0 | O124: =IFERROR(VLOOKUP($A124,Filtro!$A$5:$AW$2591,13,FALSE),0) -> 0 | P124: =IFERROR(VLOOKUP($A124,Filtro!$A$5:$AW$2591,14,FALSE),0) -> 0 | Q124: =IFERROR(VLOOKUP($A124,Filtro!$A$5:$AW$2591,15,FALSE),0) -> 0 | R124: =IFERROR(VLOOKUP($A124,Filtro!$A$5:$AW$2591,16,FALSE),0) -> 0 | S124: =IFERROR(VLOOKUP($A124,Filtro!$A$5:$AW$2591,17,FALSE),0) -> 0 | T124: =IFERROR(VLOOKUP($A124,Filtro!$A$5:$AW$2591,18,FALSE),0) -> 0 | U124: =IFERROR(VLOOKUP($A124,Filtro!$A$5:$AW$2591,19,FALSE),0) -> 1 | V124: =IFERROR(VLOOKUP($A124,Filtro!$A$5:$AW$2591,20,FALSE),0) -> 1 | W124: =IFERROR(VLOOKUP($A124,Filtro!$A$5:$AW$2591,21,FALSE),0) -> 0 | X124: =IFERROR(VLOOKUP($A124,Filtro!$A$5:$AW$2591,22,FALSE),0) -> 1 | Y124: =IFERROR(VLOOKUP($A124,Filtro!$A$5:$AW$2591,23,FALSE),0) -> 1 | Z124: =IFERROR(VLOOKUP($A124,Filtro!$A$5:$AW$2591,24,FALSE),0) -> 3 | AA124: =IFERROR(VLOOKUP($A124,Filtro!$A$5:$AW$2591,25,FALSE),0) -> 5 | AB124: =IFERROR(VLOOKUP($A124,Filtro!$A$5:$AW$2591,26,FALSE),0) -> 4
A125: 03051500 | B125: ORIGEN SENSORIAL VISUAL | C125: SIN DISCAPACIDAD | D125: 1 | E125: 0 | F125: 1 | G125: =IFERROR(VLOOKUP($A125,Filtro!$A$5:$AW$2591,5,FALSE),0) -> 0 | H125: =IFERROR(VLOOKUP($A125,Filtro!$A$5:$AW$2591,6,FALSE),0) -> 0 | I125: =IFERROR(VLOOKUP($A125,Filtro!$A$5:$AW$2591,7,FALSE),0) -> 0 | J125: =IFERROR(VLOOKUP($A125,Filtro!$A$5:$AW$2591,8,FALSE),0) -> 0 | K125: =IFERROR(VLOOKUP($A125,Filtro!$A$5:$AW$2591,9,FALSE),0) -> 0 | L125: =IFERROR(VLOOKUP($A125,Filtro!$A$5:$AW$2591,10,FALSE),0) -> 0 | M125: =IFERROR(VLOOKUP($A125,Filtro!$A$5:$AW$2591,11,FALSE),0) -> 0 | N125: =IFERROR(VLOOKUP($A125,Filtro!$A$5:$AW$2591,12,FALSE),0) -> 0 | O125: =IFERROR(VLOOKUP($A125,Filtro!$A$5:$AW$2591,13,FALSE),0) -> 0 | P125: =IFERROR(VLOOKUP($A125,Filtro!$A$5:$AW$2591,14,FALSE),0) -> 0 | Q125: =IFERROR(VLOOKUP($A125,Filtro!$A$5:$AW$2591,15,FALSE),0) -> 0 | R125: =IFERROR(VLOOKUP($A125,Filtro!$A$5:$AW$2591,16,FALSE),0) -> 0 | S125: =IFERROR(VLOOKUP($A125,Filtro!$A$5:$AW$2591,17,FALSE),0) -> 0 | T125: =IFERROR(VLOOKUP($A125,Filtro!$A$5:$AW$2591,18,FALSE),0) -> 0 | U125: =IFERROR(VLOOKUP($A125,Filtro!$A$5:$AW$2591,19,FALSE),0) -> 0 | V125: =IFERROR(VLOOKUP($A125,Filtro!$A$5:$AW$2591,20,FALSE),0) -> 1 | W125: =IFERROR(VLOOKUP($A125,Filtro!$A$5:$AW$2591,21,FALSE),0) -> 0 | X125: =IFERROR(VLOOKUP($A125,Filtro!$A$5:$AW$2591,22,FALSE),0) -> 0 | Y125: =IFERROR(VLOOKUP($A125,Filtro!$A$5:$AW$2591,23,FALSE),0) -> 0 | Z125: =IFERROR(VLOOKUP($A125,Filtro!$A$5:$AW$2591,24,FALSE),0) -> 0 | AA125: =IFERROR(VLOOKUP($A125,Filtro!$A$5:$AW$2591,25,FALSE),0) -> 0 | AB125: =IFERROR(VLOOKUP($A125,Filtro!$A$5:$AW$2591,26,FALSE),0) -> 0
A126: 03051600 | C126: DISCAPACIDAD LEVE | D126: 32 | E126: 22 | F126: 10 | G126: =IFERROR(VLOOKUP($A126,Filtro!$A$5:$AW$2591,5,FALSE),0) -> 0 | H126: =IFERROR(VLOOKUP($A126,Filtro!$A$5:$AW$2591,6,FALSE),0) -> 0 | I126: =IFERROR(VLOOKUP($A126,Filtro!$A$5:$AW$2591,7,FALSE),0) -> 0 | J126: =IFERROR(VLOOKUP($A126,Filtro!$A$5:$AW$2591,8,FALSE),0) -> 0 | K126: =IFERROR(VLOOKUP($A126,Filtro!$A$5:$AW$2591,9,FALSE),0) -> 0 | L126: =IFERROR(VLOOKUP($A126,Filtro!$A$5:$AW$2591,10,FALSE),0) -> 0 | M126: =IFERROR(VLOOKUP($A126,Filtro!$A$5:$AW$2591,11,FALSE),0) -> 1 | N126: =IFERROR(VLOOKUP($A126,Filtro!$A$5:$AW$2591,12,FALSE),0) -> 0 | O126: =IFERROR(VLOOKUP($A126,Filtro!$A$5:$AW$2591,13,FALSE),0) -> 0 | P126: =IFERROR(VLOOKUP($A126,Filtro!$A$5:$AW$2591,14,FALSE),0) -> 0 | Q126: =IFERROR(VLOOKUP($A126,Filtro!$A$5:$AW$2591,15,FALSE),0) -> 1 | R126: =IFERROR(VLOOKUP($A126,Filtro!$A$5:$AW$2591,16,FALSE),0) -> 1 | S126: =IFERROR(VLOOKUP($A126,Filtro!$A$5:$AW$2591,17,FALSE),0) -> 0 | T126: =IFERROR(VLOOKUP($A126,Filtro!$A$5:$AW$2591,18,FALSE),0) -> 0 | U126: =IFERROR(VLOOKUP($A126,Filtro!$A$5:$AW$2591,19,FALSE),0) -> 16 | V126: =IFERROR(VLOOKUP($A126,Filtro!$A$5:$AW$2591,20,FALSE),0) -> 8 | W126: =IFERROR(VLOOKUP($A126,Filtro!$A$5:$AW$2591,21,FALSE),0) -> 4 | X126: =IFERROR(VLOOKUP($A126,Filtro!$A$5:$AW$2591,22,FALSE),0) -> 1 | Y126: =IFERROR(VLOOKUP($A126,Filtro!$A$5:$AW$2591,23,FALSE),0) -> 0 | Z126: =IFERROR(VLOOKUP($A126,Filtro!$A$5:$AW$2591,24,FALSE),0) -> 0 | AA126: =IFERROR(VLOOKUP($A126,Filtro!$A$5:$AW$2591,25,FALSE),0) -> 0 | AB126: =IFERROR(VLOOKUP($A126,Filtro!$A$5:$AW$2591,26,FALSE),0) -> 0
